Workbook

Sheet App.2-BA2_Fix Asset Cont.MIFRS (hidden)
L1: File Number: | M1: =EBNUMBER -> 
L2: Exhibit:
L3: Tab:
L4: Schedule:
L5: Page:
L7: Date:
A9: Appendix 2-BA
A10: Fixed Asset Continuity Schedule - MIFRS
E12: Year
D14: Cost | J14: Accumulated Depreciation
A15: CCA Class | B15: OEB | C15: Description | D15: Opening Balance | E15: Additions | F15: Disposals | G15: Closing Balance | I15: Opening Balance | J15: Additions | K15: Disposals | L15: Closing Balance | M15: Net Book Value
A16: 12 | B16: 1611 | C16: Computer Software (Formally known as Account 1925) | G16: =D16+E16+F16 -> 0 | L16: =I16+J16+K16 -> 0 | M16: =G16+L16 -> 0
A17: CEC | B17: 1612 | C17: Land Rights (Formally known as Account 1906) | G17: =D17+E17+F17 -> 0 | L17: =I17+J17+K17 -> 0 | M17: =G17+L17 -> 0
A18: N/A | B18: 1805 | C18: Land | G18: =D18+E18+F18 -> 0 | L18: =I18+J18+K18 -> 0 | M18: =G18+L18 -> 0
A19: 47 | B19: 1808 | C19: Buildings | G19: =D19+E19+F19 -> 0 | L19: =I19+J19+K19 -> 0 | M19: =G19+L19 -> 0
A20: 13 | B20: 1810 | C20: Leasehold Improvements | G20: 0 | L20: 0 | M20: 0
A21: 47 | B21: 1815 | C21: Transformer Station Equipment >50 kV | G21: 0 | L21: 0 | M21: 0
A22: 47 | B22: 1820 | C22: Distribution Station Equipment <50 kV | G22: 0 | L22: 0 | M22: 0
A23: 47 | B23: 1825 | C23: Storage Battery Equipment | G23: 0 | L23: 0 | M23: 0
A24: 47 | B24: 1830 | C24: Poles, Towers & Fixtures | G24: 0 | L24: 0 | M24: 0
A25: 47 | B25: 1835 | C25: Overhead Conductors & Devices | G25: 0 | L25: 0 | M25: 0
A26: 47 | B26: 1840 | C26: Underground Conduit | G26: 0 | L26: 0 | M26: 0
A27: 47 | B27: 1845 | C27: Underground Conductors & Devices | G27: 0 | L27: 0 | M27: 0
A28: 47 | B28: 1850 | C28: Line Transformers | G28: 0 | L28: 0 | M28: 0
A29: 47 | B29: 1855 | C29: Services (Overhead & Underground) | G29: 0 | L29: 0 | M29: 0
A30: 47 | B30: 1860 | C30: Meters | G30: 0 | L30: 0 | M30: 0
A31: 47 | B31: 1860 | C31: Meters (Smart Meters) | G31: 0 | L31: 0 | M31: 0
A32: N/A | B32: 1905 | C32: Land | G32: 0 | L32: 0 | M32: 0
A33: 47 | B33: 1908 | C33: Buildings & Fixtures | G33: 0 | L33: 0 | M33: 0
A34: 13 | B34: 1910 | C34: Leasehold Improvements | G34: 0 | L34: 0 | M34: 0
A35: 8 | B35: 1915 | C35: Office Furniture & Equipment (10 years) | G35: 0 | L35: 0 | M35: 0
A36: 8 | B36: 1915 | C36: Office Furniture & Equipment (5 years) | G36: 0 | L36: 0 | M36: 0
A37: 10 | B37: 1920 | C37: Computer Equipment - Hardware | G37: 0 | L37: 0 | M37: 0
A38: 45 | B38: 1920 | C38: Computer Equip.-Hardware(Post Mar. 22/04) | G38: 0 | L38: 0 | M38: 0
A39: 45.1 | B39: 1920 | C39: Computer Equip.-Hardware(Post Mar. 19/07) | G39: 0 | L39: 0 | M39: 0
A40: 10 | B40: 1930 | C40: Transportation Equipment | G40: 0 | L40: 0 | M40: 0
A41: 8 | B41: 1935 | C41: Stores Equipment | G41: 0 | L41: 0 | M41: 0
A42: 8 | B42: 1940 | C42: Tools, Shop & Garage Equipment | G42: 0 | L42: 0 | M42: 0
A43: 8 | B43: 1945 | C43: Measurement & Testing Equipment | G43: 0 | L43: 0 | M43: 0
A44: 8 | B44: 1950 | C44: Power Operated Equipment | G44: 0 | L44: 0 | M44: 0
A45: 8 | B45: 1955 | C45: Communications Equipment | G45: 0 | L45: 0 | M45: 0
A46: 8 | B46: 1955 | C46: Communication Equipment (Smart Meters) | G46: 0 | L46: 0 | M46: 0
A47: 8 | B47: 1960 | C47: Miscellaneous Equipment | G47: 0 | L47: 0 | M47: 0
A48: 47 | B48: 1970 | C48: Load Management Controls Customer Premises | G48: 0 | L48: 0 | M48: 0
A49: 47 | B49: 1975 | C49: Load Management Controls Utility Premises | G49: 0 | L49: 0 | M49: 0
A50: 47 | B50: 1980 | C50: System Supervisor Equipment | G50: 0 | L50: 0 | M50: 0
A51: 47 | B51: 1985 | C51: Miscellaneous Fixed Assets | G51: 0 | L51: 0 | M51: 0
A52: 47 | B52: 1990 | C52: Other Tangible Property | G52: 0 | L52: 0 | M52: 0
A53: 47 | B53: 1995 | C53: Contributions & Grants | G53: 0 | L53: 0 | M53: 0
B54: etc. | G54: 0 | L54: 0 | M54: 0
G55: 0 | L55: 0 | M55: 0
C56: Sub-Total | D56: =SUM(D16:D55) -> 0 | E56: =SUM(E16:E55) -> 0 | F56: =SUM(F16:F55) -> 0 | G56: =SUM(G16:G55) -> 0 | I56: =SUM(I16:I55) -> 0 | J56: =SUM(J16:J55) -> 0 | K56: =SUM(K16:K55) -> 0 | L56: =SUM(L16:L55) -> 0 | M56: =SUM(M16:M55) -> 0
C57: Less Socialized Renewable Energy Generation Investments (input as negative) | G57: =D57+E57+F57 -> 0 | L57: =I57+J57+K57 -> 0 | M57: =G57+L57 -> 0
C58: Less Other Non Rate-Regulated Utility Assets (input as negative) | G58: 0 | L58: =I58+J58+K58 -> 0 | M58: 0
C59: Total PP&E | D59: =SUM(D56:D58) -> 0 | E59: =SUM(E56:E58) -> 0 | F59: =SUM(F56:F58) -> 0 | G59: =SUM(G56:G58) -> 0 | I59: =SUM(I56:I58) -> 0 | J59: =SUM(J56:J58) -> 0 | K59: =SUM(K56:K58) -> 0 | L59: =SUM(L56:L58) -> 0 | M59: =SUM(M56:M58) -> 0
C60: Depreciation Expense adj. from gain or loss on the retirement of assets (pool of like assets)
C61: Total | J61: =J59+J60 -> 0
I63: Less: Fully Allocated Depreciation
A64: 10 | C64: Transportation | I64: Transportation
A65: 8 | C65: Stores Equipment | I65: Stores Equipment
I66: Net Depreciation | K66: =J61-K64-K65 -> 0
A68: Notes:
A70: 1 | B70: Tables in the format outlined above covering all fixed asset accounts should be submitted for the Test Year, Bridge Year and all relevant historical years. At a minimum , the applicant must provide data for the earlier of: 1) all historical years back to its last rebasing; or 2) at least three years of historical actuals, in addition to Bridge Year and Test Year forecasts.
A73: 2 | B73: The "CCA Class" for fixed assets should agree with the CCA Class used for tax purposes in Tax Returns. Fixed Assets sub-components may be used where the underlying asset components are classified under multiple CCA Classes for tax purposes. If an applicant uses any different classes from those shown in the table, an explanation should be provided. (also see note 3 below).
A76: 3 | B76: The table may need to be customized for a utility's asset categories or for any new asset accounts announced or authorized by the Board.
A78: 4 | B78: The additions column (F) must not include construction work in progress (CWIP).

Sheet App.2-CA_CGAAP_DepExp_2011 (hidden)
K1: File Number: | L1: =EBNUMBER -> 
K2: Exhibit:
K3: Tab:
K4: Schedule:
K5: Page:
K7: Date:
A9: Appendix 2-CA
A10: Depreciation and Amortization Expense
A11: Assumes the applicant adopted IFRS for financial reporting purposes January 1, 2012
C12: Year | D12: 2011 | E12: CGAAP
A14: Account | B14: Description | C14: Opening Regulatory Gross PP&E as at Jan 1, 2011 | D14: Less Fully Depreciated | E14: Net for Depreciation | F14: Additions | G14: Total for Depreciation | H14: Years | I14: Depreciation Rate | J14: Depreciation Expense | K14: 2011 Depreciation Expense per Appendix 2-B Fixed Assets, Column K (l) | L14: Variance 2
C15: (a) | D15: (b) | E15: (c) | F15: (d) | G15: (e) = (c) + ½ x (d) 1 | H15: (f) | I15: (g) = 1 / (f) | J15: (h) = (e) / (f) | L15: (m) = (h) - (l)
A16: 1611 | B16: Computer Software (Formally known as Account 1925) | E16: =C16-D16 -> 0 | G16: =E16+0.5*F16 -> 0 | I16: =IF(H16=0,0,1/H16) -> 0 | J16: =IF(H16=0,0,G16/H16) -> 0 | L16: =IF(ISERROR(+J16-K16), 0, +J16-K16) -> 0
A17: 1612 | B17: Land Rights (Formally known as Account 1906) | E17: =C17-D17 -> 0 | G17: =E17+0.5*F17 -> 0 | I17: 0 | J17: 0 | L17: 0
A18: 1805 | B18: Land | E18: 0 | G18: 0 | I18: 0 | J18: 0 | L18: 0
A19: 1808 | B19: Buildings | E19: 0 | G19: 0 | I19: 0 | J19: 0 | L19: 0
A20: 1810 | B20: Leasehold Improvements | E20: 0 | G20: 0 | I20: 0 | J20: 0 | L20: 0
A21: 1815 | B21: Transformer Station Equipment >50 kV | E21: 0 | G21: 0 | I21: 0 | J21: 0 | L21: 0
A22: 1820 | B22: Distribution Station Equipment <50 kV | E22: 0 | G22: 0 | I22: 0 | J22: 0 | L22: 0
A23: 1825 | B23: Storage Battery Equipment | E23: 0 | G23: 0 | I23: 0 | J23: 0 | L23: 0
A24: 1830 | B24: Poles, Towers & Fixtures | E24: 0 | G24: 0 | I24: 0 | J24: 0 | L24: 0
A25: 1835 | B25: Overhead Conductors & Devices | E25: 0 | G25: 0 | I25: 0 | J25: 0 | L25: 0
A26: 1840 | B26: Underground Conduit | E26: 0 | G26: 0 | I26: 0 | J26: 0 | L26: 0
A27: 1845 | B27: Underground Conductors & Devices | E27: 0 | G27: 0 | I27: 0 | J27: 0 | L27: 0
A28: 1850 | B28: Line Transformers | E28: 0 | G28: 0 | I28: 0 | J28: 0 | L28: 0
A29: 1855 | B29: Services (Overhead & Underground) | E29: 0 | G29: 0 | I29: 0 | J29: 0 | L29: 0
A30: 1860 | B30: Meters | E30: 0 | G30: 0 | I30: 0 | J30: 0 | L30: 0
A31: 1860 | B31: Meters (Smart Meters) | E31: 0 | G31: 0 | I31: 0 | J31: 0 | L31: 0
A32: 1905 | B32: Land | E32: 0 | G32: 0 | I32: 0 | J32: 0 | L32: 0
A33: 1908 | B33: Buildings & Fixtures | E33: 0 | G33: 0 | I33: 0 | J33: 0 | L33: 0
A34: 1910 | B34: Leasehold Improvements | E34: 0 | G34: 0 | I34: 0 | J34: 0 | L34: 0
A35: 1915 | B35: Office Furniture & Equipment (10 years) | E35: 0 | G35: 0 | I35: 0 | J35: 0 | L35: 0
A36: 1915 | B36: Office Furniture & Equipment (5 years) | E36: 0 | G36: 0 | I36: 0 | J36: 0 | L36: 0
A37: 1920 | B37: Computer Equipment - Hardware | E37: 0 | G37: 0 | I37: 0 | J37: 0 | L37: 0
A38: 1920 | B38: Computer Equip.-Hardware(Post Mar. 22/04) | E38: 0 | G38: 0 | I38: 0 | J38: 0 | L38: 0
A39: 1920 | B39: Computer Equip.-Hardware(Post Mar. 19/07) | E39: 0 | G39: 0 | I39: 0 | J39: 0 | L39: 0
A40: 1930 | B40: Transportation Equipment | E40: 0 | G40: 0 | I40: 0 | J40: 0 | L40: 0
A41: 1935 | B41: Stores Equipment | E41: 0 | G41: 0 | I41: 0 | J41: 0 | L41: 0
A42: 1940 | B42: Tools, Shop & Garage Equipment | E42: 0 | G42: 0 | I42: 0 | J42: 0 | L42: 0
A43: 1945 | B43: Measurement & Testing Equipment | E43: 0 | G43: 0 | I43: 0 | J43: 0 | L43: 0
A44: 1950 | B44: Power Operated Equipment | E44: 0 | G44: 0 | I44: 0 | J44: 0 | L44: 0
A45: 1955 | B45: Communications Equipment | E45: 0 | G45: 0 | I45: 0 | J45: 0 | L45: 0
A46: 1955 | B46: Communication Equipment (Smart Meters) | E46: 0 | G46: 0 | I46: 0 | J46: 0 | L46: 0
A47: 1960 | B47: Miscellaneous Equipment | E47: 0 | G47: 0 | I47: 0 | J47: 0 | L47: 0
A48: 1970 | B48: Load Management Controls Customer Premises | E48: 0 | G48: 0 | I48: 0 | J48: 0 | L48: 0
A49: 1975 | B49: Load Management Controls Utility Premises | E49: 0 | G49: 0 | I49: 0 | J49: 0 | L49: 0
A50: 1980 | B50: System Supervisor Equipment | E50: 0 | G50: 0 | I50: 0 | J50: 0 | L50: 0
A51: 1985 | B51: Miscellaneous Fixed Assets | E51: 0 | G51: 0 | I51: 0 | J51: 0 | L51: 0
A52: 1990 | B52: Other Tangible Property | E52: 0 | G52: 0 | I52: 0 | J52: 0 | L52: 0
A53: 1995 | B53: Contributions & Grants | E53: 0 | G53: 0 | I53: 0 | J53: 0 | L53: 0
A54: etc. | E54: 0 | G54: 0 | I54: 0 | J54: 0 | L54: 0
E55: 0 | G55: 0 | I55: 0 | J55: 0 | L55: 0
B56: Total | C56: =SUM(C16:C55) -> 0 | D56: =SUM(D16:D55) -> 0 | E56: =SUM(E16:E55) -> 0 | F56: =SUM(F16:F55) -> 0 | G56: =SUM(G16:G55) -> 0 | J56: =SUM(J16:J55) -> 0 | K56: =SUM(K16:K55) -> 0 | L56: =SUM(L16:L55) -> 0
A58: Notes:
A60: 1 | B60: Board policy of the "half-year" rule - the applicant must ensure that additions in the year attract a half-year depreciation expense in the first year. Deviations from this standard practice must be supported in the application.
A61: 2 | B61: The applicant must provide an explanation of material variances in evidence.
A63: General | B63: Applicants must provide a breakdown of depreciation and amortization expense in the above format for all relevant accounts. Asset Retirement Obligations (AROs), depreciation and accretion expense should be disclosed separately consistent with the Notes of historical Audited Financial Statements.

Sheet App.2-CB_MIFRS_DepExp_2011 (hidden)
N1: File Number: | O1: =EBNUMBER -> 
N2: Exhibit:
N3: Tab:
N4: Schedule:
N5: Page:
N7: Date:
A9: Appendix 2-CB
A10: Depreciation and Amortization Expense
A11: Assumes the applicant adopted IFRS for financial reporting purposes January 1, 2012
C12: Year | D12: 2011 | E12: MIFRS
A14: Account | B14: Description | C14: Opening NBV as at Jan 1, 2011 5 | D14: Additions | E14: Average Remaining Life of Opening NBV 4 | F14: Years (new additions only) 3 | G14: Depreciation Rate on New Additions | H14: Depreciation Expense on Opening NBV | I14: Depreciation Expense on Additions 1 | J14: 2011 Depreciation Expense | K14: 2011 Depreciation Expense per Appendix 2-B Fixed Assets, Column K (l) | L14: Variance 2 | M14: Depreciation Expense on 2011 Full Year Additions | N14: Less Depreciation Expense on Assets Fully Depreciated during the year (o) | O14: 2011 Full Year Depreciation 6
C15: (a) | D15: (d) | E15: (i) | F15: (f) | G15: (g) = 1 / (f) | H15: (j) = (a) / (i) | I15: (h)=((d)*0.5)/(f) | J15: (k) = (j) + (h) | L15: (m) = (k) - (l) | M15: (n) = (d)/(f) | O15: (p) = (j) + (n) - (o)
A16: 1611 | B16: Computer Software (Formally known as Account 1925) | G16: =IF(F16=0,0,1/F16) -> 0 | H16: =IF(E16=0,0,+C16/E16) -> 0 | I16: =IF(F16=0,0,+(D16*0.5)/F16) -> 0 | J16: =IF(ISERROR(+H16+I16), 0, +H16+I16) -> 0 | L16: =IF(ISERROR(+J16-K16), 0, +J16-K16) -> 0 | M16: =IF(F16=0,0,+(D16)/F16) -> 0 | O16: =IF(ISERROR(+M16+H16-N16), 0, +M16+H16-N16) -> 0
A17: 1612 | B17: Land Rights (Formally known as Account 1906) | G17: 0 | H17: 0 | I17: 0 | J17: 0 | L17: 0 | M17: 0 | O17: =IF(ISERROR(+M17+H17-N17), 0, +M17+H17-N17) -> 0
A18: 1805 | B18: Land | G18: 0 | H18: 0 | I18: 0 | J18: 0 | L18: 0 | M18: 0 | O18: 0
A19: 1808 | B19: Buildings | G19: 0 | H19: 0 | I19: 0 | J19: 0 | L19: 0 | M19: 0 | O19: 0
A20: 1810 | B20: Leasehold Improvements | G20: 0 | H20: 0 | I20: 0 | J20: 0 | L20: 0 | M20: 0 | O20: 0
A21: 1815 | B21: Transformer Station Equipment >50 kV | G21: 0 | H21: 0 | I21: 0 | J21: 0 | L21: 0 | M21: 0 | O21: 0
A22: 1820 | B22: Distribution Station Equipment <50 kV | G22: 0 | H22: 0 | I22: 0 | J22: 0 | L22: 0 | M22: 0 | O22: 0
A23: 1825 | B23: Storage Battery Equipment | G23: 0 | H23: 0 | I23: 0 | J23: 0 | L23: 0 | M23: 0 | O23: 0
A24: 1830 | B24: Poles, Towers & Fixtures | G24: 0 | H24: 0 | I24: 0 | J24: 0 | L24: 0 | M24: 0 | O24: 0
A25: 1835 | B25: Overhead Conductors & Devices | G25: 0 | H25: 0 | I25: 0 | J25: 0 | L25: 0 | M25: 0 | O25: 0
A26: 1840 | B26: Underground Conduit | G26: 0 | H26: 0 | I26: 0 | J26: 0 | L26: 0 | M26: 0 | O26: 0
A27: 1845 | B27: Underground Conductors & Devices | G27: 0 | H27: 0 | I27: 0 | J27: 0 | L27: 0 | M27: 0 | O27: 0
A28: 1850 | B28: Line Transformers | G28: 0 | H28: 0 | I28: 0 | J28: 0 | L28: 0 | M28: 0 | O28: 0
A29: 1855 | B29: Services (Overhead & Underground) | G29: 0 | H29: 0 | I29: 0 | J29: 0 | L29: 0 | M29: 0 | O29: 0
A30: 1860 | B30: Meters | G30: 0 | H30: 0 | I30: 0 | J30: 0 | L30: 0 | M30: 0 | O30: 0
A31: 1860 | B31: Meters (Smart Meters) | G31: 0 | H31: 0 | I31: 0 | J31: 0 | L31: 0 | M31: 0 | O31: 0
A32: 1905 | B32: Land | G32: 0 | H32: 0 | I32: 0 | J32: 0 | L32: 0 | M32: 0 | O32: 0
A33: 1908 | B33: Buildings & Fixtures | G33: 0 | H33: 0 | I33: 0 | J33: 0 | L33: 0 | M33: 0 | O33: 0
A34: 1910 | B34: Leasehold Improvements | G34: 0 | H34: 0 | I34: 0 | J34: 0 | L34: 0 | M34: 0 | O34: 0
A35: 1915 | B35: Office Furniture & Equipment (10 years) | G35: 0 | H35: 0 | I35: 0 | J35: 0 | L35: 0 | M35: 0 | O35: 0
A36: 1915 | B36: Office Furniture & Equipment (5 years) | G36: 0 | H36: 0 | I36: 0 | J36: 0 | L36: 0 | M36: 0 | O36: 0
A37: 1920 | B37: Computer Equipment - Hardware | G37: 0 | H37: 0 | I37: 0 | J37: 0 | L37: 0 | M37: 0 | O37: 0
A38: 1920 | B38: Computer Equip.-Hardware(Post Mar. 22/04) | G38: 0 | H38: 0 | I38: 0 | J38: 0 | L38: 0 | M38: 0 | O38: 0
A39: 1920 | B39: Computer Equip.-Hardware(Post Mar. 19/07) | G39: 0 | H39: 0 | I39: 0 | J39: 0 | L39: 0 | M39: 0 | O39: 0
A40: 1930 | B40: Transportation Equipment | G40: 0 | H40: 0 | I40: 0 | J40: 0 | L40: 0 | M40: 0 | O40: 0
A41: 1935 | B41: Stores Equipment | G41: 0 | H41: 0 | I41: 0 | J41: 0 | L41: 0 | M41: 0 | O41: 0
A42: 1940 | B42: Tools, Shop & Garage Equipment | G42: 0 | H42: 0 | I42: 0 | J42: 0 | L42: 0 | M42: 0 | O42: 0
A43: 1945 | B43: Measurement & Testing Equipment | G43: 0 | H43: 0 | I43: 0 | J43: 0 | L43: 0 | M43: 0 | O43: 0
A44: 1950 | B44: Power Operated Equipment | G44: 0 | H44: 0 | I44: 0 | J44: 0 | L44: 0 | M44: 0 | O44: 0
A45: 1955 | B45: Communications Equipment | G45: 0 | H45: 0 | I45: 0 | J45: 0 | L45: 0 | M45: 0 | O45: 0
A46: 1955 | B46: Communication Equipment (Smart Meters) | G46: 0 | H46: 0 | I46: 0 | J46: 0 | L46: 0 | M46: 0 | O46: 0
A47: 1960 | B47: Miscellaneous Equipment | G47: 0 | H47: 0 | I47: 0 | J47: 0 | L47: 0 | M47: 0 | O47: 0
A48: 1970 | B48: Load Management Controls Customer Premises | G48: 0 | H48: 0 | I48: 0 | J48: 0 | L48: 0 | M48: 0 | O48: 0
A49: 1975 | B49: Load Management Controls Utility Premises | G49: 0 | H49: 0 | I49: 0 | J49: 0 | L49: 0 | M49: 0 | O49: 0
A50: 1980 | B50: System Supervisor Equipment | G50: 0 | H50: 0 | I50: 0 | J50: 0 | L50: 0 | M50: 0 | O50: 0
A51: 1985 | B51: Miscellaneous Fixed Assets | G51: 0 | H51: 0 | I51: 0 | J51: 0 | L51: 0 | M51: 0 | O51: 0
A52: 1990 | B52: Other Tangible Property | G52: 0 | H52: 0 | I52: 0 | J52: 0 | L52: 0 | M52: 0 | O52: 0
A53: 1995 | B53: Contributions & Grants | G53: 0 | H53: 0 | I53: 0 | J53: 0 | L53: 0 | M53: 0 | O53: 0
A54: etc. | G54: 0 | H54: 0 | I54: 0 | J54: 0 | L54: 0 | M54: 0 | O54: 0
G55: 0 | H55: 0 | I55: 0 | J55: 0 | L55: 0 | M55: 0 | O55: 0
B56: Total | C56: =SUM(C16:C55) -> 0 | D56: =SUM(D16:D55) -> 0 | H56: =SUM(H16:H55) -> 0 | I56: 0 | J56: 0 | K56: 0 | L56: 0 | M56: 0 | N56: =SUM(N16:N55) -> 0 | O56: 0
B57: Depreciation exp. adj. from gain or loss on the retirement of assets (pool of like assets) | J57: 0
B58: Total | J58: =+J57+J56 -> 0
A59: Notes:
A61: 1 | B61: Board policy of the "half-year" rule - the applicant must ensure that additions in the year attract a half-year depreciation expense in the first year. Deviations from this standard practice must be supported in the application.
A62: 2 | B62: The applicant must provide an explanation of material variances in evidence.
A63: 3 | B63: The applicant should ensure that the years for new additions of assets are the asset useful lives determined by management in accordance with IFRS.
A64: 4 | B64: A recalculation should be performed to determine the average remaining life of opening balance of assets (i.e. excluding 2011 additions) under IFRS. For example, Asset A had a useful life of 20 years under CGAAP. On January 1, 2011, the date of transition, Asset A was 3 years depreciated. As a result, Asset A would have a remaining service life of 17 years (20 years less 3 years) under CGAAP as of January 1, 2011. Due to the transition to IFRS, management re-assessed the asset useful lives under IFRS principles and concluded that the revised useful life of Asset A is now 30 years. Therefore, the average remaining useful life of opening balance of Asset A is determined to be 27 years (30 years less 3 years) under IFRS as of January 1, 2011.
A65: 5 | B65: NBV must exclude assets still on the books but which have been fully amortized or depreciated.
A66: 6 | B66: This column refers to the calculated full year depreciation but excludes the depreciation expense on assets fully depreciated during the year. This column is used for the purpose of calculating depreciation expense in the following year on the next worksheet.
A68: General: | B68: Applicants must provide a breakdown of depreciation and amortization expense in the above format for all relevant accounts. Asset Retirement Obligations (AROs), depreciation and accretion expense should be disclosed separately consistent with the Notes of historical Audited Financial Statements.

Sheet App.2-CC_MIFRS_DepExp_2012 (hidden)
J1: File Number: | K1: =EBNUMBER -> 
J2: Exhibit:
J3: Tab:
J4: Schedule:
J5: Page:
J7: Date:
A9: Appendix 2-CC
A10: Depreciation and Amortization Expense
A11: Assumes the applicant adopted IFRS for financial reporting purposes January 1, 2012
C12: 2012 | D12: MIFRS
A14: Account | B14: Description | C14: Additions | D14: Years (new additions only) | E14: Depreciation Rate on New Additions | F14: 2012 Depreciation Expense 1 | G14: 2012 Depreciation Expense per Apppendix 2-B Fixed Assets, Column K (l) | H14: Variance 2 | I14: Depreciation Expense on 2012 Full Year Additions | J14: Less Depreciation Expense on Assets Fully Depreciated during the year (o) | K14: 2012 Full Year Depreciation 3
C15: (d) | D15: (f) | E15: (g) = 1 / (f) | F15: (h)=2011 Full Year Deprecation + ((d)*0.5)/(f) | H15: (m) = (h) - (l) | I15: (n)=((d))/(f) | K15: (p) = 2011 Full Year Depreciation + (n) - (o)
A16: 1611 | B16: Computer Software (Formally known as Account 1925) | E16: =IF(D16=0,0,1/D16) -> 0 | F16: =IF(D16=0,+'App.2-CB_MIFRS_DepExp_2011'!O16,+'App.2-CB_MIFRS_DepExp_2011'!O16+((C16*0.5)/D16)) -> 0 | H16: =IF(ISERROR(+F16-G16), 0, +F16-G16) -> 0 | I16: =IF(D16=0,0,+(C16)/D16) -> 0 | K16: =IF(ISERROR(+I16+'App.2-CB_MIFRS_DepExp_2011'!O16-J16), 0, +I16+'App.2-CB_MIFRS_DepExp_2011'!O16-J16) -> 0
A17: 1612 | B17: Land Rights (Formally known as Account 1906) | E17: 0 | F17: =IF(D17=0,+'App.2-CB_MIFRS_DepExp_2011'!O17,+'App.2-CB_MIFRS_DepExp_2011'!O17+((C17*0.5)/D17)) -> 0 | H17: 0 | I17: 0 | K17: =IF(ISERROR(+I17+'App.2-CB_MIFRS_DepExp_2011'!O17-J17), 0, +I17+'App.2-CB_MIFRS_DepExp_2011'!O17-J17) -> 0
A18: 1805 | B18: Land | E18: 0 | F18: =IF(D18=0,+'App.2-CB_MIFRS_DepExp_2011'!O18,+'App.2-CB_MIFRS_DepExp_2011'!O18+((C18*0.5)/D18)) -> 0 | H18: 0 | I18: 0 | K18: =IF(ISERROR(+I18+'App.2-CB_MIFRS_DepExp_2011'!O18-J18), 0, +I18+'App.2-CB_MIFRS_DepExp_2011'!O18-J18) -> 0
A19: 1808 | B19: Buildings | E19: 0 | F19: =IF(D19=0,+'App.2-CB_MIFRS_DepExp_2011'!O19,+'App.2-CB_MIFRS_DepExp_2011'!O19+((C19*0.5)/D19)) -> 0 | H19: 0 | I19: 0 | K19: =IF(ISERROR(+I19+'App.2-CB_MIFRS_DepExp_2011'!O19-J19), 0, +I19+'App.2-CB_MIFRS_DepExp_2011'!O19-J19) -> 0
A20: 1810 | B20: Leasehold Improvements | E20: 0 | F20: =IF(D20=0,+'App.2-CB_MIFRS_DepExp_2011'!O20,+'App.2-CB_MIFRS_DepExp_2011'!O20+((C20*0.5)/D20)) -> 0 | H20: 0 | I20: 0 | K20: =IF(ISERROR(+I20+'App.2-CB_MIFRS_DepExp_2011'!O20-J20), 0, +I20+'App.2-CB_MIFRS_DepExp_2011'!O20-J20) -> 0
A21: 1815 | B21: Transformer Station Equipment >50 kV | E21: 0 | F21: =IF(D21=0,+'App.2-CB_MIFRS_DepExp_2011'!O21,+'App.2-CB_MIFRS_DepExp_2011'!O21+((C21*0.5)/D21)) -> 0 | H21: 0 | I21: 0 | K21: =IF(ISERROR(+I21+'App.2-CB_MIFRS_DepExp_2011'!O21-J21), 0, +I21+'App.2-CB_MIFRS_DepExp_2011'!O21-J21) -> 0
A22: 1820 | B22: Distribution Station Equipment <50 kV | E22: 0 | F22: =IF(D22=0,+'App.2-CB_MIFRS_DepExp_2011'!O22,+'App.2-CB_MIFRS_DepExp_2011'!O22+((C22*0.5)/D22)) -> 0 | H22: 0 | I22: 0 | K22: =IF(ISERROR(+I22+'App.2-CB_MIFRS_DepExp_2011'!O22-J22), 0, +I22+'App.2-CB_MIFRS_DepExp_2011'!O22-J22) -> 0
A23: 1825 | B23: Storage Battery Equipment | E23: 0 | F23: =IF(D23=0,+'App.2-CB_MIFRS_DepExp_2011'!O23,+'App.2-CB_MIFRS_DepExp_2011'!O23+((C23*0.5)/D23)) -> 0 | H23: 0 | I23: 0 | K23: =IF(ISERROR(+I23+'App.2-CB_MIFRS_DepExp_2011'!O23-J23), 0, +I23+'App.2-CB_MIFRS_DepExp_2011'!O23-J23) -> 0
A24: 1830 | B24: Poles, Towers & Fixtures | E24: 0 | F24: =IF(D24=0,+'App.2-CB_MIFRS_DepExp_2011'!O24,+'App.2-CB_MIFRS_DepExp_2011'!O24+((C24*0.5)/D24)) -> 0 | H24: 0 | I24: 0 | K24: =IF(ISERROR(+I24+'App.2-CB_MIFRS_DepExp_2011'!O24-J24), 0, +I24+'App.2-CB_MIFRS_DepExp_2011'!O24-J24) -> 0
A25: 1835 | B25: Overhead Conductors & Devices | E25: 0 | F25: =IF(D25=0,+'App.2-CB_MIFRS_DepExp_2011'!O25,+'App.2-CB_MIFRS_DepExp_2011'!O25+((C25*0.5)/D25)) -> 0 | H25: 0 | I25: 0 | K25: =IF(ISERROR(+I25+'App.2-CB_MIFRS_DepExp_2011'!O25-J25), 0, +I25+'App.2-CB_MIFRS_DepExp_2011'!O25-J25) -> 0
A26: 1840 | B26: Underground Conduit | E26: 0 | F26: =IF(D26=0,+'App.2-CB_MIFRS_DepExp_2011'!O26,+'App.2-CB_MIFRS_DepExp_2011'!O26+((C26*0.5)/D26)) -> 0 | H26: 0 | I26: 0 | K26: =IF(ISERROR(+I26+'App.2-CB_MIFRS_DepExp_2011'!O26-J26), 0, +I26+'App.2-CB_MIFRS_DepExp_2011'!O26-J26) -> 0
A27: 1845 | B27: Underground Conductors & Devices | E27: 0 | F27: =IF(D27=0,+'App.2-CB_MIFRS_DepExp_2011'!O27,+'App.2-CB_MIFRS_DepExp_2011'!O27+((C27*0.5)/D27)) -> 0 | H27: 0 | I27: 0 | K27: =IF(ISERROR(+I27+'App.2-CB_MIFRS_DepExp_2011'!O27-J27), 0, +I27+'App.2-CB_MIFRS_DepExp_2011'!O27-J27) -> 0
A28: 1850 | B28: Line Transformers | E28: 0 | F28: =IF(D28=0,+'App.2-CB_MIFRS_DepExp_2011'!O28,+'App.2-CB_MIFRS_DepExp_2011'!O28+((C28*0.5)/D28)) -> 0 | H28: 0 | I28: 0 | K28: =IF(ISERROR(+I28+'App.2-CB_MIFRS_DepExp_2011'!O28-J28), 0, +I28+'App.2-CB_MIFRS_DepExp_2011'!O28-J28) -> 0
A29: 1855 | B29: Services (Overhead & Underground) | E29: 0 | F29: =IF(D29=0,+'App.2-CB_MIFRS_DepExp_2011'!O29,+'App.2-CB_MIFRS_DepExp_2011'!O29+((C29*0.5)/D29)) -> 0 | H29: 0 | I29: 0 | K29: =IF(ISERROR(+I29+'App.2-CB_MIFRS_DepExp_2011'!O29-J29), 0, +I29+'App.2-CB_MIFRS_DepExp_2011'!O29-J29) -> 0
A30: 1860 | B30: Meters | E30: 0 | F30: =IF(D30=0,+'App.2-CB_MIFRS_DepExp_2011'!O30,+'App.2-CB_MIFRS_DepExp_2011'!O30+((C30*0.5)/D30)) -> 0 | H30: 0 | I30: 0 | K30: =IF(ISERROR(+I30+'App.2-CB_MIFRS_DepExp_2011'!O30-J30), 0, +I30+'App.2-CB_MIFRS_DepExp_2011'!O30-J30) -> 0
A31: 1860 | B31: Meters (Smart Meters) | E31: 0 | F31: =IF(D31=0,+'App.2-CB_MIFRS_DepExp_2011'!O31,+'App.2-CB_MIFRS_DepExp_2011'!O31+((C31*0.5)/D31)) -> 0 | H31: 0 | I31: 0 | K31: =IF(ISERROR(+I31+'App.2-CB_MIFRS_DepExp_2011'!O31-J31), 0, +I31+'App.2-CB_MIFRS_DepExp_2011'!O31-J31) -> 0
A32: 1905 | B32: Land | E32: 0 | F32: =IF(D32=0,+'App.2-CB_MIFRS_DepExp_2011'!O32,+'App.2-CB_MIFRS_DepExp_2011'!O32+((C32*0.5)/D32)) -> 0 | H32: 0 | I32: 0 | K32: =IF(ISERROR(+I32+'App.2-CB_MIFRS_DepExp_2011'!O32-J32), 0, +I32+'App.2-CB_MIFRS_DepExp_2011'!O32-J32) -> 0
A33: 1908 | B33: Buildings & Fixtures | E33: 0 | F33: =IF(D33=0,+'App.2-CB_MIFRS_DepExp_2011'!O33,+'App.2-CB_MIFRS_DepExp_2011'!O33+((C33*0.5)/D33)) -> 0 | H33: 0 | I33: 0 | K33: =IF(ISERROR(+I33+'App.2-CB_MIFRS_DepExp_2011'!O33-J33), 0, +I33+'App.2-CB_MIFRS_DepExp_2011'!O33-J33) -> 0
A34: 1910 | B34: Leasehold Improvements | E34: 0 | F34: =IF(D34=0,+'App.2-CB_MIFRS_DepExp_2011'!O34,+'App.2-CB_MIFRS_DepExp_2011'!O34+((C34*0.5)/D34)) -> 0 | H34: 0 | I34: 0 | K34: =IF(ISERROR(+I34+'App.2-CB_MIFRS_DepExp_2011'!O34-J34), 0, +I34+'App.2-CB_MIFRS_DepExp_2011'!O34-J34) -> 0
A35: 1915 | B35: Office Furniture & Equipment (10 years) | E35: 0 | F35: =IF(D35=0,+'App.2-CB_MIFRS_DepExp_2011'!O35,+'App.2-CB_MIFRS_DepExp_2011'!O35+((C35*0.5)/D35)) -> 0 | H35: 0 | I35: 0 | K35: =IF(ISERROR(+I35+'App.2-CB_MIFRS_DepExp_2011'!O35-J35), 0, +I35+'App.2-CB_MIFRS_DepExp_2011'!O35-J35) -> 0
A36: 1915 | B36: Office Furniture & Equipment (5 years) | E36: 0 | F36: =IF(D36=0,+'App.2-CB_MIFRS_DepExp_2011'!O36,+'App.2-CB_MIFRS_DepExp_2011'!O36+((C36*0.5)/D36)) -> 0 | H36: 0 | I36: 0 | K36: =IF(ISERROR(+I36+'App.2-CB_MIFRS_DepExp_2011'!O36-J36), 0, +I36+'App.2-CB_MIFRS_DepExp_2011'!O36-J36) -> 0
A37: 1920 | B37: Computer Equipment - Hardware | E37: 0 | F37: =IF(D37=0,+'App.2-CB_MIFRS_DepExp_2011'!O37,+'App.2-CB_MIFRS_DepExp_2011'!O37+((C37*0.5)/D37)) -> 0 | H37: 0 | I37: 0 | K37: =IF(ISERROR(+I37+'App.2-CB_MIFRS_DepExp_2011'!O37-J37), 0, +I37+'App.2-CB_MIFRS_DepExp_2011'!O37-J37) -> 0
A38: 1920 | B38: Computer Equip.-Hardware(Post Mar. 22/04) | E38: 0 | F38: =IF(D38=0,+'App.2-CB_MIFRS_DepExp_2011'!O38,+'App.2-CB_MIFRS_DepExp_2011'!O38+((C38*0.5)/D38)) -> 0 | H38: 0 | I38: 0 | K38: =IF(ISERROR(+I38+'App.2-CB_MIFRS_DepExp_2011'!O38-J38), 0, +I38+'App.2-CB_MIFRS_DepExp_2011'!O38-J38) -> 0
A39: 1920 | B39: Computer Equip.-Hardware(Post Mar. 19/07) | E39: 0 | F39: =IF(D39=0,+'App.2-CB_MIFRS_DepExp_2011'!O39,+'App.2-CB_MIFRS_DepExp_2011'!O39+((C39*0.5)/D39)) -> 0 | H39: 0 | I39: 0 | K39: =IF(ISERROR(+I39+'App.2-CB_MIFRS_DepExp_2011'!O39-J39), 0, +I39+'App.2-CB_MIFRS_DepExp_2011'!O39-J39) -> 0
A40: 1930 | B40: Transportation Equipment | E40: 0 | F40: =IF(D40=0,+'App.2-CB_MIFRS_DepExp_2011'!O40,+'App.2-CB_MIFRS_DepExp_2011'!O40+((C40*0.5)/D40)) -> 0 | H40: 0 | I40: 0 | K40: =IF(ISERROR(+I40+'App.2-CB_MIFRS_DepExp_2011'!O40-J40), 0, +I40+'App.2-CB_MIFRS_DepExp_2011'!O40-J40) -> 0
A41: 1935 | B41: Stores Equipment | E41: 0 | F41: =IF(D41=0,+'App.2-CB_MIFRS_DepExp_2011'!O41,+'App.2-CB_MIFRS_DepExp_2011'!O41+((C41*0.5)/D41)) -> 0 | H41: 0 | I41: 0 | K41: =IF(ISERROR(+I41+'App.2-CB_MIFRS_DepExp_2011'!O41-J41), 0, +I41+'App.2-CB_MIFRS_DepExp_2011'!O41-J41) -> 0
A42: 1940 | B42: Tools, Shop & Garage Equipment | E42: 0 | F42: =IF(D42=0,+'App.2-CB_MIFRS_DepExp_2011'!O42,+'App.2-CB_MIFRS_DepExp_2011'!O42+((C42*0.5)/D42)) -> 0 | H42: 0 | I42: 0 | K42: =IF(ISERROR(+I42+'App.2-CB_MIFRS_DepExp_2011'!O42-J42), 0, +I42+'App.2-CB_MIFRS_DepExp_2011'!O42-J42) -> 0
A43: 1945 | B43: Measurement & Testing Equipment | E43: 0 | F43: =IF(D43=0,+'App.2-CB_MIFRS_DepExp_2011'!O43,+'App.2-CB_MIFRS_DepExp_2011'!O43+((C43*0.5)/D43)) -> 0 | H43: 0 | I43: 0 | K43: =IF(ISERROR(+I43+'App.2-CB_MIFRS_DepExp_2011'!O43-J43), 0, +I43+'App.2-CB_MIFRS_DepExp_2011'!O43-J43) -> 0
A44: 1950 | B44: Power Operated Equipment | E44: 0 | F44: =IF(D44=0,+'App.2-CB_MIFRS_DepExp_2011'!O44,+'App.2-CB_MIFRS_DepExp_2011'!O44+((C44*0.5)/D44)) -> 0 | H44: 0 | I44: 0 | K44: =IF(ISERROR(+I44+'App.2-CB_MIFRS_DepExp_2011'!O44-J44), 0, +I44+'App.2-CB_MIFRS_DepExp_2011'!O44-J44) -> 0
A45: 1955 | B45: Communications Equipment | E45: 0 | F45: =IF(D45=0,+'App.2-CB_MIFRS_DepExp_2011'!O45,+'App.2-CB_MIFRS_DepExp_2011'!O45+((C45*0.5)/D45)) -> 0 | H45: 0 | I45: 0 | K45: =IF(ISERROR(+I45+'App.2-CB_MIFRS_DepExp_2011'!O45-J45), 0, +I45+'App.2-CB_MIFRS_DepExp_2011'!O45-J45) -> 0
A46: 1955 | B46: Communication Equipment (Smart Meters) | E46: 0 | F46: =IF(D46=0,+'App.2-CB_MIFRS_DepExp_2011'!O46,+'App.2-CB_MIFRS_DepExp_2011'!O46+((C46*0.5)/D46)) -> 0 | H46: 0 | I46: 0 | K46: =IF(ISERROR(+I46+'App.2-CB_MIFRS_DepExp_2011'!O46-J46), 0, +I46+'App.2-CB_MIFRS_DepExp_2011'!O46-J46) -> 0
A47: 1960 | B47: Miscellaneous Equipment | E47: 0 | F47: =IF(D47=0,+'App.2-CB_MIFRS_DepExp_2011'!O47,+'App.2-CB_MIFRS_DepExp_2011'!O47+((C47*0.5)/D47)) -> 0 | H47: 0 | I47: 0 | K47: =IF(ISERROR(+I47+'App.2-CB_MIFRS_DepExp_2011'!O47-J47), 0, +I47+'App.2-CB_MIFRS_DepExp_2011'!O47-J47) -> 0
A48: 1970 | B48: Load Management Controls Customer Premises | E48: 0 | F48: =IF(D48=0,+'App.2-CB_MIFRS_DepExp_2011'!O48,+'App.2-CB_MIFRS_DepExp_2011'!O48+((C48*0.5)/D48)) -> 0 | H48: 0 | I48: 0 | K48: =IF(ISERROR(+I48+'App.2-CB_MIFRS_DepExp_2011'!O48-J48), 0, +I48+'App.2-CB_MIFRS_DepExp_2011'!O48-J48) -> 0
A49: 1975 | B49: Load Management Controls Utility Premises | E49: 0 | F49: =IF(D49=0,+'App.2-CB_MIFRS_DepExp_2011'!O49,+'App.2-CB_MIFRS_DepExp_2011'!O49+((C49*0.5)/D49)) -> 0 | H49: 0 | I49: 0 | K49: =IF(ISERROR(+I49+'App.2-CB_MIFRS_DepExp_2011'!O49-J49), 0, +I49+'App.2-CB_MIFRS_DepExp_2011'!O49-J49) -> 0
A50: 1980 | B50: System Supervisor Equipment | E50: 0 | F50: =IF(D50=0,+'App.2-CB_MIFRS_DepExp_2011'!O50,+'App.2-CB_MIFRS_DepExp_2011'!O50+((C50*0.5)/D50)) -> 0 | H50: 0 | I50: 0 | K50: =IF(ISERROR(+I50+'App.2-CB_MIFRS_DepExp_2011'!O50-J50), 0, +I50+'App.2-CB_MIFRS_DepExp_2011'!O50-J50) -> 0
A51: 1985 | B51: Miscellaneous Fixed Assets | E51: 0 | F51: =IF(D51=0,+'App.2-CB_MIFRS_DepExp_2011'!O51,+'App.2-CB_MIFRS_DepExp_2011'!O51+((C51*0.5)/D51)) -> 0 | H51: 0 | I51: 0 | K51: =IF(ISERROR(+I51+'App.2-CB_MIFRS_DepExp_2011'!O51-J51), 0, +I51+'App.2-CB_MIFRS_DepExp_2011'!O51-J51) -> 0
A52: 1990 | B52: Other Tangible Property | E52: 0 | F52: =IF(D52=0,+'App.2-CB_MIFRS_DepExp_2011'!O52,+'App.2-CB_MIFRS_DepExp_2011'!O52+((C52*0.5)/D52)) -> 0 | H52: 0 | I52: 0 | K52: =IF(ISERROR(+I52+'App.2-CB_MIFRS_DepExp_2011'!O52-J52), 0, +I52+'App.2-CB_MIFRS_DepExp_2011'!O52-J52) -> 0
A53: 1995 | B53: Contributions & Grants | E53: 0 | F53: =IF(D53=0,+'App.2-CB_MIFRS_DepExp_2011'!O53,+'App.2-CB_MIFRS_DepExp_2011'!O53+((C53*0.5)/D53)) -> 0 | H53: 0 | I53: 0 | K53: =IF(ISERROR(+I53+'App.2-CB_MIFRS_DepExp_2011'!O53-J53), 0, +I53+'App.2-CB_MIFRS_DepExp_2011'!O53-J53) -> 0
A54: etc. | E54: 0 | F54: =IF(D54=0,+'App.2-CB_MIFRS_DepExp_2011'!O54,+'App.2-CB_MIFRS_DepExp_2011'!O54+((C54*0.5)/D54)) -> 0 | H54: 0 | I54: 0 | K54: =IF(ISERROR(+I54+'App.2-CB_MIFRS_DepExp_2011'!O54-J54), 0, +I54+'App.2-CB_MIFRS_DepExp_2011'!O54-J54) -> 0
E55: 0 | F55: =IF(D55=0,+'App.2-CB_MIFRS_DepExp_2011'!O55,+'App.2-CB_MIFRS_DepExp_2011'!O55+((C55*0.5)/D55)) -> 0 | H55: 0 | I55: 0 | K55: =IF(ISERROR(+I55+'App.2-CB_MIFRS_DepExp_2011'!O55-J55), 0, +I55+'App.2-CB_MIFRS_DepExp_2011'!O55-J55) -> 0
B56: Total | C56: =SUM(C16:C55) -> 0 | F56: =SUM(F16:F55) -> 0 | G56: 0 | H56: 0 | I56: 0 | J56: 0 | K56: 0
B57: Depreciation exp. adj. from gain or loss on the retirement of assets (pool of like assets) | F57: 0
B58: Total | F58: =+F56+F57 -> 0
A59: Notes:
A60: 1 | B60: Board policy of the "half-year" rule - the applicant must ensure that additions in the year attract a half-year depreciation expense in the first year. Deviations from this standard practice must be supported in the application.
A61: 2 | B61: The applicant must provide an explanation of material variances in evidence.
A62: 3 | B62: This column refers to the calculated full year depreciation but excludes the depreciation expense on assets fully depreciated during the year. This column is used for the purpose of calculating depreciation expense in the following year on the next worksheet.
A64: General: | B64: Applicants must provide a breakdown of depreciation and amortization expense in the above format for all relevant accounts. Asset Retirement Obligations (AROs), depreciation and accretion expense should be disclosed separately consistent with the Notes of historical Audited Financial Statements.

Sheet App.2-CD_MIFRS_DepExp_2013 (hidden)
J1: File Number: | K1: =EBNUMBER -> 
J2: Exhibit:
J3: Tab:
J4: Schedule:
J5: Page:
J7: Date:
A9: Appendix 2-CD
A10: Depreciation and Amortization Expense
A11: Assumes the applicant adopted IFRS for financial reporting purposes January 1, 2012
C12: 2013 | D12: MIFRS
A14: Account | B14: Description | C14: Additions | D14: Years (new additions only) | E14: Depreciation Rate on New Additions | F14: 2013 Depreciation Expense 1 | G14: 2013 Depreciation Expense per Apppendix 2-B Fixed Assets, Column K (l) | H14: Variance 2 | I14: Depreciation Expense on 2013 Full Year Additions | J14: Less Depreciation Expense on Assets Fully Depreciated during the year (o) | K14: 2013 Full Year Depreciation 3
C15: (d) | D15: (f) | E15: (g) = 1 / (f) | F15: (h)=2012 Full Year Deprecation + ((d)*0.5)/(f) | H15: (m) = (h) - (l) | I15: (n)=((d))/(f) | K15: (p) = 2012 Full Year Depreciation + (n) - (o)
A16: 1611 | B16: Computer Software (Formally known as Account 1925) | E16: =IF(D16=0,0,1/D16) -> 0 | F16: =IF(D16=0,+'App.2-CC_MIFRS_DepExp_2012'!K16,+'App.2-CC_MIFRS_DepExp_2012'!K16+((C16*0.5)/D16)) -> 0 | H16: =IF(ISERROR(+F16-G16), 0, +F16-G16) -> 0 | I16: =IF(D16=0,0,+(C16)/D16) -> 0 | K16: =IF(ISERROR(+I16+'App.2-CC_MIFRS_DepExp_2012'!K16-J16), 0, +I16+'App.2-CC_MIFRS_DepExp_2012'!K16-J16) -> 0
A17: 1612 | B17: Land Rights (Formally known as Account 1906) | E17: 0 | F17: =IF(D17=0,+'App.2-CC_MIFRS_DepExp_2012'!K17,+'App.2-CC_MIFRS_DepExp_2012'!K17+((C17*0.5)/D17)) -> 0 | H17: 0 | I17: 0 | K17: =IF(ISERROR(+I17+'App.2-CC_MIFRS_DepExp_2012'!K17-J17), 0, +I17+'App.2-CC_MIFRS_DepExp_2012'!K17-J17) -> 0
A18: 1805 | B18: Land | E18: 0 | F18: =IF(D18=0,+'App.2-CC_MIFRS_DepExp_2012'!K18,+'App.2-CC_MIFRS_DepExp_2012'!K18+((C18*0.5)/D18)) -> 0 | H18: 0 | I18: 0 | K18: =IF(ISERROR(+I18+'App.2-CC_MIFRS_DepExp_2012'!K18-J18), 0, +I18+'App.2-CC_MIFRS_DepExp_2012'!K18-J18) -> 0
A19: 1808 | B19: Buildings | E19: 0 | F19: =IF(D19=0,+'App.2-CC_MIFRS_DepExp_2012'!K19,+'App.2-CC_MIFRS_DepExp_2012'!K19+((C19*0.5)/D19)) -> 0 | H19: 0 | I19: 0 | K19: =IF(ISERROR(+I19+'App.2-CC_MIFRS_DepExp_2012'!K19-J19), 0, +I19+'App.2-CC_MIFRS_DepExp_2012'!K19-J19) -> 0
A20: 1810 | B20: Leasehold Improvements | E20: 0 | F20: =IF(D20=0,+'App.2-CC_MIFRS_DepExp_2012'!K20,+'App.2-CC_MIFRS_DepExp_2012'!K20+((C20*0.5)/D20)) -> 0 | H20: 0 | I20: 0 | K20: =IF(ISERROR(+I20+'App.2-CC_MIFRS_DepExp_2012'!K20-J20), 0, +I20+'App.2-CC_MIFRS_DepExp_2012'!K20-J20) -> 0
A21: 1815 | B21: Transformer Station Equipment >50 kV | E21: 0 | F21: =IF(D21=0,+'App.2-CC_MIFRS_DepExp_2012'!K21,+'App.2-CC_MIFRS_DepExp_2012'!K21+((C21*0.5)/D21)) -> 0 | H21: 0 | I21: 0 | K21: =IF(ISERROR(+I21+'App.2-CC_MIFRS_DepExp_2012'!K21-J21), 0, +I21+'App.2-CC_MIFRS_DepExp_2012'!K21-J21) -> 0
A22: 1820 | B22: Distribution Station Equipment <50 kV | E22: 0 | F22: =IF(D22=0,+'App.2-CC_MIFRS_DepExp_2012'!K22,+'App.2-CC_MIFRS_DepExp_2012'!K22+((C22*0.5)/D22)) -> 0 | H22: 0 | I22: 0 | K22: =IF(ISERROR(+I22+'App.2-CC_MIFRS_DepExp_2012'!K22-J22), 0, +I22+'App.2-CC_MIFRS_DepExp_2012'!K22-J22) -> 0
A23: 1825 | B23: Storage Battery Equipment | E23: 0 | F23: =IF(D23=0,+'App.2-CC_MIFRS_DepExp_2012'!K23,+'App.2-CC_MIFRS_DepExp_2012'!K23+((C23*0.5)/D23)) -> 0 | H23: 0 | I23: 0 | K23: =IF(ISERROR(+I23+'App.2-CC_MIFRS_DepExp_2012'!K23-J23), 0, +I23+'App.2-CC_MIFRS_DepExp_2012'!K23-J23) -> 0
A24: 1830 | B24: Poles, Towers & Fixtures | E24: 0 | F24: =IF(D24=0,+'App.2-CC_MIFRS_DepExp_2012'!K24,+'App.2-CC_MIFRS_DepExp_2012'!K24+((C24*0.5)/D24)) -> 0 | H24: 0 | I24: 0 | K24: =IF(ISERROR(+I24+'App.2-CC_MIFRS_DepExp_2012'!K24-J24), 0, +I24+'App.2-CC_MIFRS_DepExp_2012'!K24-J24) -> 0
A25: 1835 | B25: Overhead Conductors & Devices | E25: 0 | F25: =IF(D25=0,+'App.2-CC_MIFRS_DepExp_2012'!K25,+'App.2-CC_MIFRS_DepExp_2012'!K25+((C25*0.5)/D25)) -> 0 | H25: 0 | I25: 0 | K25: =IF(ISERROR(+I25+'App.2-CC_MIFRS_DepExp_2012'!K25-J25), 0, +I25+'App.2-CC_MIFRS_DepExp_2012'!K25-J25) -> 0
A26: 1840 | B26: Underground Conduit | E26: 0 | F26: =IF(D26=0,+'App.2-CC_MIFRS_DepExp_2012'!K26,+'App.2-CC_MIFRS_DepExp_2012'!K26+((C26*0.5)/D26)) -> 0 | H26: 0 | I26: 0 | K26: =IF(ISERROR(+I26+'App.2-CC_MIFRS_DepExp_2012'!K26-J26), 0, +I26+'App.2-CC_MIFRS_DepExp_2012'!K26-J26) -> 0
A27: 1845 | B27: Underground Conductors & Devices | E27: 0 | F27: =IF(D27=0,+'App.2-CC_MIFRS_DepExp_2012'!K27,+'App.2-CC_MIFRS_DepExp_2012'!K27+((C27*0.5)/D27)) -> 0 | H27: 0 | I27: 0 | K27: =IF(ISERROR(+I27+'App.2-CC_MIFRS_DepExp_2012'!K27-J27), 0, +I27+'App.2-CC_MIFRS_DepExp_2012'!K27-J27) -> 0
A28: 1850 | B28: Line Transformers | E28: 0 | F28: =IF(D28=0,+'App.2-CC_MIFRS_DepExp_2012'!K28,+'App.2-CC_MIFRS_DepExp_2012'!K28+((C28*0.5)/D28)) -> 0 | H28: 0 | I28: 0 | K28: =IF(ISERROR(+I28+'App.2-CC_MIFRS_DepExp_2012'!K28-J28), 0, +I28+'App.2-CC_MIFRS_DepExp_2012'!K28-J28) -> 0
A29: 1855 | B29: Services (Overhead & Underground) | E29: 0 | F29: =IF(D29=0,+'App.2-CC_MIFRS_DepExp_2012'!K29,+'App.2-CC_MIFRS_DepExp_2012'!K29+((C29*0.5)/D29)) -> 0 | H29: 0 | I29: 0 | K29: =IF(ISERROR(+I29+'App.2-CC_MIFRS_DepExp_2012'!K29-J29), 0, +I29+'App.2-CC_MIFRS_DepExp_2012'!K29-J29) -> 0
A30: 1860 | B30: Meters | E30: 0 | F30: =IF(D30=0,+'App.2-CC_MIFRS_DepExp_2012'!K30,+'App.2-CC_MIFRS_DepExp_2012'!K30+((C30*0.5)/D30)) -> 0 | H30: 0 | I30: 0 | K30: =IF(ISERROR(+I30+'App.2-CC_MIFRS_DepExp_2012'!K30-J30), 0, +I30+'App.2-CC_MIFRS_DepExp_2012'!K30-J30) -> 0
A31: 1860 | B31: Meters (Smart Meters) | E31: 0 | F31: =IF(D31=0,+'App.2-CC_MIFRS_DepExp_2012'!K31,+'App.2-CC_MIFRS_DepExp_2012'!K31+((C31*0.5)/D31)) -> 0 | H31: 0 | I31: 0 | K31: =IF(ISERROR(+I31+'App.2-CC_MIFRS_DepExp_2012'!K31-J31), 0, +I31+'App.2-CC_MIFRS_DepExp_2012'!K31-J31) -> 0
A32: 1905 | B32: Land | E32: 0 | F32: =IF(D32=0,+'App.2-CC_MIFRS_DepExp_2012'!K32,+'App.2-CC_MIFRS_DepExp_2012'!K32+((C32*0.5)/D32)) -> 0 | H32: 0 | I32: 0 | K32: =IF(ISERROR(+I32+'App.2-CC_MIFRS_DepExp_2012'!K32-J32), 0, +I32+'App.2-CC_MIFRS_DepExp_2012'!K32-J32) -> 0
A33: 1908 | B33: Buildings & Fixtures | E33: 0 | F33: =IF(D33=0,+'App.2-CC_MIFRS_DepExp_2012'!K33,+'App.2-CC_MIFRS_DepExp_2012'!K33+((C33*0.5)/D33)) -> 0 | H33: 0 | I33: 0 | K33: =IF(ISERROR(+I33+'App.2-CC_MIFRS_DepExp_2012'!K33-J33), 0, +I33+'App.2-CC_MIFRS_DepExp_2012'!K33-J33) -> 0
A34: 1910 | B34: Leasehold Improvements | E34: 0 | F34: =IF(D34=0,+'App.2-CC_MIFRS_DepExp_2012'!K34,+'App.2-CC_MIFRS_DepExp_2012'!K34+((C34*0.5)/D34)) -> 0 | H34: 0 | I34: 0 | K34: =IF(ISERROR(+I34+'App.2-CC_MIFRS_DepExp_2012'!K34-J34), 0, +I34+'App.2-CC_MIFRS_DepExp_2012'!K34-J34) -> 0
A35: 1915 | B35: Office Furniture & Equipment (10 years) | E35: 0 | F35: =IF(D35=0,+'App.2-CC_MIFRS_DepExp_2012'!K35,+'App.2-CC_MIFRS_DepExp_2012'!K35+((C35*0.5)/D35)) -> 0 | H35: 0 | I35: 0 | K35: =IF(ISERROR(+I35+'App.2-CC_MIFRS_DepExp_2012'!K35-J35), 0, +I35+'App.2-CC_MIFRS_DepExp_2012'!K35-J35) -> 0
A36: 1915 | B36: Office Furniture & Equipment (5 years) | E36: 0 | F36: =IF(D36=0,+'App.2-CC_MIFRS_DepExp_2012'!K36,+'App.2-CC_MIFRS_DepExp_2012'!K36+((C36*0.5)/D36)) -> 0 | H36: 0 | I36: 0 | K36: =IF(ISERROR(+I36+'App.2-CC_MIFRS_DepExp_2012'!K36-J36), 0, +I36+'App.2-CC_MIFRS_DepExp_2012'!K36-J36) -> 0
A37: 1920 | B37: Computer Equipment - Hardware | E37: 0 | F37: =IF(D37=0,+'App.2-CC_MIFRS_DepExp_2012'!K37,+'App.2-CC_MIFRS_DepExp_2012'!K37+((C37*0.5)/D37)) -> 0 | H37: 0 | I37: 0 | K37: =IF(ISERROR(+I37+'App.2-CC_MIFRS_DepExp_2012'!K37-J37), 0, +I37+'App.2-CC_MIFRS_DepExp_2012'!K37-J37) -> 0
A38: 1920 | B38: Computer Equip.-Hardware(Post Mar. 22/04) | E38: 0 | F38: =IF(D38=0,+'App.2-CC_MIFRS_DepExp_2012'!K38,+'App.2-CC_MIFRS_DepExp_2012'!K38+((C38*0.5)/D38)) -> 0 | H38: 0 | I38: 0 | K38: =IF(ISERROR(+I38+'App.2-CC_MIFRS_DepExp_2012'!K38-J38), 0, +I38+'App.2-CC_MIFRS_DepExp_2012'!K38-J38) -> 0
A39: 1920 | B39: Computer Equip.-Hardware(Post Mar. 19/07) | E39: 0 | F39: =IF(D39=0,+'App.2-CC_MIFRS_DepExp_2012'!K39,+'App.2-CC_MIFRS_DepExp_2012'!K39+((C39*0.5)/D39)) -> 0 | H39: 0 | I39: 0 | K39: =IF(ISERROR(+I39+'App.2-CC_MIFRS_DepExp_2012'!K39-J39), 0, +I39+'App.2-CC_MIFRS_DepExp_2012'!K39-J39) -> 0
A40: 1930 | B40: Transportation Equipment | E40: 0 | F40: =IF(D40=0,+'App.2-CC_MIFRS_DepExp_2012'!K40,+'App.2-CC_MIFRS_DepExp_2012'!K40+((C40*0.5)/D40)) -> 0 | H40: 0 | I40: 0 | K40: =IF(ISERROR(+I40+'App.2-CC_MIFRS_DepExp_2012'!K40-J40), 0, +I40+'App.2-CC_MIFRS_DepExp_2012'!K40-J40) -> 0
A41: 1935 | B41: Stores Equipment | E41: 0 | F41: =IF(D41=0,+'App.2-CC_MIFRS_DepExp_2012'!K41,+'App.2-CC_MIFRS_DepExp_2012'!K41+((C41*0.5)/D41)) -> 0 | H41: 0 | I41: 0 | K41: =IF(ISERROR(+I41+'App.2-CC_MIFRS_DepExp_2012'!K41-J41), 0, +I41+'App.2-CC_MIFRS_DepExp_2012'!K41-J41) -> 0
A42: 1940 | B42: Tools, Shop & Garage Equipment | E42: 0 | F42: =IF(D42=0,+'App.2-CC_MIFRS_DepExp_2012'!K42,+'App.2-CC_MIFRS_DepExp_2012'!K42+((C42*0.5)/D42)) -> 0 | H42: 0 | I42: 0 | K42: =IF(ISERROR(+I42+'App.2-CC_MIFRS_DepExp_2012'!K42-J42), 0, +I42+'App.2-CC_MIFRS_DepExp_2012'!K42-J42) -> 0
A43: 1945 | B43: Measurement & Testing Equipment | E43: 0 | F43: =IF(D43=0,+'App.2-CC_MIFRS_DepExp_2012'!K43,+'App.2-CC_MIFRS_DepExp_2012'!K43+((C43*0.5)/D43)) -> 0 | H43: 0 | I43: 0 | K43: =IF(ISERROR(+I43+'App.2-CC_MIFRS_DepExp_2012'!K43-J43), 0, +I43+'App.2-CC_MIFRS_DepExp_2012'!K43-J43) -> 0
A44: 1950 | B44: Power Operated Equipment | E44: 0 | F44: =IF(D44=0,+'App.2-CC_MIFRS_DepExp_2012'!K44,+'App.2-CC_MIFRS_DepExp_2012'!K44+((C44*0.5)/D44)) -> 0 | H44: 0 | I44: 0 | K44: =IF(ISERROR(+I44+'App.2-CC_MIFRS_DepExp_2012'!K44-J44), 0, +I44+'App.2-CC_MIFRS_DepExp_2012'!K44-J44) -> 0
A45: 1955 | B45: Communications Equipment | E45: 0 | F45: =IF(D45=0,+'App.2-CC_MIFRS_DepExp_2012'!K45,+'App.2-CC_MIFRS_DepExp_2012'!K45+((C45*0.5)/D45)) -> 0 | H45: 0 | I45: 0 | K45: =IF(ISERROR(+I45+'App.2-CC_MIFRS_DepExp_2012'!K45-J45), 0, +I45+'App.2-CC_MIFRS_DepExp_2012'!K45-J45) -> 0
A46: 1955 | B46: Communication Equipment (Smart Meters) | E46: 0 | F46: =IF(D46=0,+'App.2-CC_MIFRS_DepExp_2012'!K46,+'App.2-CC_MIFRS_DepExp_2012'!K46+((C46*0.5)/D46)) -> 0 | H46: 0 | I46: 0 | K46: =IF(ISERROR(+I46+'App.2-CC_MIFRS_DepExp_2012'!K46-J46), 0, +I46+'App.2-CC_MIFRS_DepExp_2012'!K46-J46) -> 0
A47: 1960 | B47: Miscellaneous Equipment | E47: 0 | F47: =IF(D47=0,+'App.2-CC_MIFRS_DepExp_2012'!K47,+'App.2-CC_MIFRS_DepExp_2012'!K47+((C47*0.5)/D47)) -> 0 | H47: 0 | I47: 0 | K47: =IF(ISERROR(+I47+'App.2-CC_MIFRS_DepExp_2012'!K47-J47), 0, +I47+'App.2-CC_MIFRS_DepExp_2012'!K47-J47) -> 0
A48: 1970 | B48: Load Management Controls Customer Premises | E48: 0 | F48: =IF(D48=0,+'App.2-CC_MIFRS_DepExp_2012'!K48,+'App.2-CC_MIFRS_DepExp_2012'!K48+((C48*0.5)/D48)) -> 0 | H48: 0 | I48: 0 | K48: =IF(ISERROR(+I48+'App.2-CC_MIFRS_DepExp_2012'!K48-J48), 0, +I48+'App.2-CC_MIFRS_DepExp_2012'!K48-J48) -> 0
A49: 1975 | B49: Load Management Controls Utility Premises | E49: 0 | F49: =IF(D49=0,+'App.2-CC_MIFRS_DepExp_2012'!K49,+'App.2-CC_MIFRS_DepExp_2012'!K49+((C49*0.5)/D49)) -> 0 | H49: 0 | I49: 0 | K49: =IF(ISERROR(+I49+'App.2-CC_MIFRS_DepExp_2012'!K49-J49), 0, +I49+'App.2-CC_MIFRS_DepExp_2012'!K49-J49) -> 0
A50: 1980 | B50: System Supervisor Equipment | E50: 0 | F50: =IF(D50=0,+'App.2-CC_MIFRS_DepExp_2012'!K50,+'App.2-CC_MIFRS_DepExp_2012'!K50+((C50*0.5)/D50)) -> 0 | H50: 0 | I50: 0 | K50: =IF(ISERROR(+I50+'App.2-CC_MIFRS_DepExp_2012'!K50-J50), 0, +I50+'App.2-CC_MIFRS_DepExp_2012'!K50-J50) -> 0
A51: 1985 | B51: Miscellaneous Fixed Assets | E51: 0 | F51: =IF(D51=0,+'App.2-CC_MIFRS_DepExp_2012'!K51,+'App.2-CC_MIFRS_DepExp_2012'!K51+((C51*0.5)/D51)) -> 0 | H51: 0 | I51: 0 | K51: =IF(ISERROR(+I51+'App.2-CC_MIFRS_DepExp_2012'!K51-J51), 0, +I51+'App.2-CC_MIFRS_DepExp_2012'!K51-J51) -> 0
A52: 1990 | B52: Other Tangible Property | E52: 0 | F52: =IF(D52=0,+'App.2-CC_MIFRS_DepExp_2012'!K52,+'App.2-CC_MIFRS_DepExp_2012'!K52+((C52*0.5)/D52)) -> 0 | H52: 0 | I52: 0 | K52: =IF(ISERROR(+I52+'App.2-CC_MIFRS_DepExp_2012'!K52-J52), 0, +I52+'App.2-CC_MIFRS_DepExp_2012'!K52-J52) -> 0
A53: 1995 | B53: Contributions & Grants | E53: 0 | F53: =IF(D53=0,+'App.2-CC_MIFRS_DepExp_2012'!K53,+'App.2-CC_MIFRS_DepExp_2012'!K53+((C53*0.5)/D53)) -> 0 | H53: 0 | I53: 0 | K53: =IF(ISERROR(+I53+'App.2-CC_MIFRS_DepExp_2012'!K53-J53), 0, +I53+'App.2-CC_MIFRS_DepExp_2012'!K53-J53) -> 0
A54: etc. | E54: 0 | F54: =IF(D54=0,+'App.2-CC_MIFRS_DepExp_2012'!K54,+'App.2-CC_MIFRS_DepExp_2012'!K54+((C54*0.5)/D54)) -> 0 | H54: 0 | I54: 0 | K54: =IF(ISERROR(+I54+'App.2-CC_MIFRS_DepExp_2012'!K54-J54), 0, +I54+'App.2-CC_MIFRS_DepExp_2012'!K54-J54) -> 0
E55: 0 | F55: =IF(D55=0,+'App.2-CC_MIFRS_DepExp_2012'!K55,+'App.2-CC_MIFRS_DepExp_2012'!K55+((C55*0.5)/D55)) -> 0 | H55: 0 | I55: 0 | K55: =IF(ISERROR(+I55+'App.2-CC_MIFRS_DepExp_2012'!K55-J55), 0, +I55+'App.2-CC_MIFRS_DepExp_2012'!K55-J55) -> 0
B56: Total | C56: =SUM(C16:C55) -> 0 | F56: =SUM(F16:F55) -> 0 | G56: 0 | H56: 0 | I56: 0 | J56: 0 | K56: 0
B57: Depreciation exp. adj. from gain or loss on the retirement of assets (pool of like assets) | F57: 0
B58: Total | F58: =+F57+F56 -> 0
A59: Notes:
A60: 1 | B60: Board policy of the "half-year" rule - the applicant must ensure that additions in the year attract a half-year depreciation expense in the first year. Deviations from this standard practice must be supported in the application.
A61: 2 | B61: The applicant must provide an explanation of material variances in evidence.
A62: 3 | B62: This column refers to the calculated full year depreciation but excludes the depreciation expense on assets fully depreciated during the year. This column is used for the purpose of calculating depreciation expense in the following year on the next worksheet.
A64: General: | B64: Applicants must provide a breakdown of depreciation and amortization expense in the above format for all relevant accounts. Asset Retirement Obligations (AROs), depreciation and accretion expense should be disclosed separately consistent with the Notes of historical Audited Financial Statements.

Sheet App.2-CE_MIFRS_DepExp_2014 (hidden)
G1: File Number: | H1: =EBNUMBER -> 
G2: Exhibit:
G3: Tab:
G4: Schedule:
G5: Page:
G7: Date:
A9: Appendix 2-CE
A10: Depreciation and Amortization Expense
A11: Assumes the applicant adopted IFRS for financial reporting purposes January 1, 2012
C12: 2014 | D12: MIFRS
A14: Account | B14: Description | C14: Additions | D14: Years (new additions only) | E14: Depreciation Rate on New Additions | F14: 2014 Depreciation Expense 1 | G14: 2014 Depreciation Expense per Appendix 2-B Fixed Assets, Column K (l) | H14: Variance 2
C15: (d) | D15: (f) | E15: (g) = 1 / (f) | F15: (h)=2013 Full Year Depreciation + ((d)*0.5)/(f) | H15: (m) = (h) - (l)
A16: 1611 | B16: Computer Software (Formally known as Account 1925) | E16: =IF(D16=0,0,1/D16) -> 0 | F16: =IF(D16=0,'App.2-CD_MIFRS_DepExp_2013'!K16,+'App.2-CD_MIFRS_DepExp_2013'!K16+((C16*0.5)/D16)) -> 0 | H16: =IF(ISERROR(+F16-G16), 0, +F16-G16) -> 0
A17: 1612 | B17: Land Rights (Formally known as Account 1906) | E17: 0 | F17: =IF(D17=0,'App.2-CD_MIFRS_DepExp_2013'!K17,+'App.2-CD_MIFRS_DepExp_2013'!K17+((C17*0.5)/D17)) -> 0 | H17: 0
A18: 1805 | B18: Land | E18: 0 | F18: =IF(D18=0,'App.2-CD_MIFRS_DepExp_2013'!K18,+'App.2-CD_MIFRS_DepExp_2013'!K18+((C18*0.5)/D18)) -> 0 | H18: 0
A19: 1808 | B19: Buildings | E19: 0 | F19: =IF(D19=0,'App.2-CD_MIFRS_DepExp_2013'!K19,+'App.2-CD_MIFRS_DepExp_2013'!K19+((C19*0.5)/D19)) -> 0 | H19: 0
A20: 1810 | B20: Leasehold Improvements | E20: 0 | F20: =IF(D20=0,'App.2-CD_MIFRS_DepExp_2013'!K20,+'App.2-CD_MIFRS_DepExp_2013'!K20+((C20*0.5)/D20)) -> 0 | H20: 0
A21: 1815 | B21: Transformer Station Equipment >50 kV | E21: 0 | F21: =IF(D21=0,'App.2-CD_MIFRS_DepExp_2013'!K21,+'App.2-CD_MIFRS_DepExp_2013'!K21+((C21*0.5)/D21)) -> 0 | H21: 0
A22: 1820 | B22: Distribution Station Equipment <50 kV | E22: 0 | F22: =IF(D22=0,'App.2-CD_MIFRS_DepExp_2013'!K22,+'App.2-CD_MIFRS_DepExp_2013'!K22+((C22*0.5)/D22)) -> 0 | H22: 0
A23: 1825 | B23: Storage Battery Equipment | E23: 0 | F23: =IF(D23=0,'App.2-CD_MIFRS_DepExp_2013'!K23,+'App.2-CD_MIFRS_DepExp_2013'!K23+((C23*0.5)/D23)) -> 0 | H23: 0
A24: 1830 | B24: Poles, Towers & Fixtures | E24: 0 | F24: =IF(D24=0,'App.2-CD_MIFRS_DepExp_2013'!K24,+'App.2-CD_MIFRS_DepExp_2013'!K24+((C24*0.5)/D24)) -> 0 | H24: 0
A25: 1835 | B25: Overhead Conductors & Devices | E25: 0 | F25: =IF(D25=0,'App.2-CD_MIFRS_DepExp_2013'!K25,+'App.2-CD_MIFRS_DepExp_2013'!K25+((C25*0.5)/D25)) -> 0 | H25: 0
A26: 1840 | B26: Underground Conduit | E26: 0 | F26: =IF(D26=0,'App.2-CD_MIFRS_DepExp_2013'!K26,+'App.2-CD_MIFRS_DepExp_2013'!K26+((C26*0.5)/D26)) -> 0 | H26: 0
A27: 1845 | B27: Underground Conductors & Devices | E27: 0 | F27: =IF(D27=0,'App.2-CD_MIFRS_DepExp_2013'!K27,+'App.2-CD_MIFRS_DepExp_2013'!K27+((C27*0.5)/D27)) -> 0 | H27: 0
A28: 1850 | B28: Line Transformers | E28: 0 | F28: =IF(D28=0,'App.2-CD_MIFRS_DepExp_2013'!K28,+'App.2-CD_MIFRS_DepExp_2013'!K28+((C28*0.5)/D28)) -> 0 | H28: 0
A29: 1855 | B29: Services (Overhead & Underground) | E29: 0 | F29: =IF(D29=0,'App.2-CD_MIFRS_DepExp_2013'!K29,+'App.2-CD_MIFRS_DepExp_2013'!K29+((C29*0.5)/D29)) -> 0 | H29: 0
A30: 1860 | B30: Meters | E30: 0 | F30: =IF(D30=0,'App.2-CD_MIFRS_DepExp_2013'!K30,+'App.2-CD_MIFRS_DepExp_2013'!K30+((C30*0.5)/D30)) -> 0 | H30: 0
A31: 1860 | B31: Meters (Smart Meters) | E31: 0 | F31: =IF(D31=0,'App.2-CD_MIFRS_DepExp_2013'!K31,+'App.2-CD_MIFRS_DepExp_2013'!K31+((C31*0.5)/D31)) -> 0 | H31: 0
A32: 1905 | B32: Land | E32: 0 | F32: =IF(D32=0,'App.2-CD_MIFRS_DepExp_2013'!K32,+'App.2-CD_MIFRS_DepExp_2013'!K32+((C32*0.5)/D32)) -> 0 | H32: 0
A33: 1908 | B33: Buildings & Fixtures | E33: 0 | F33: =IF(D33=0,'App.2-CD_MIFRS_DepExp_2013'!K33,+'App.2-CD_MIFRS_DepExp_2013'!K33+((C33*0.5)/D33)) -> 0 | H33: 0
A34: 1910 | B34: Leasehold Improvements | E34: 0 | F34: =IF(D34=0,'App.2-CD_MIFRS_DepExp_2013'!K34,+'App.2-CD_MIFRS_DepExp_2013'!K34+((C34*0.5)/D34)) -> 0 | H34: 0
A35: 1915 | B35: Office Furniture & Equipment (10 years) | E35: 0 | F35: =IF(D35=0,'App.2-CD_MIFRS_DepExp_2013'!K35,+'App.2-CD_MIFRS_DepExp_2013'!K35+((C35*0.5)/D35)) -> 0 | H35: 0
A36: 1915 | B36: Office Furniture & Equipment (5 years) | E36: 0 | F36: =IF(D36=0,'App.2-CD_MIFRS_DepExp_2013'!K36,+'App.2-CD_MIFRS_DepExp_2013'!K36+((C36*0.5)/D36)) -> 0 | H36: 0
A37: 1920 | B37: Computer Equipment - Hardware | E37: 0 | F37: =IF(D37=0,'App.2-CD_MIFRS_DepExp_2013'!K37,+'App.2-CD_MIFRS_DepExp_2013'!K37+((C37*0.5)/D37)) -> 0 | H37: 0
A38: 1920 | B38: Computer Equip.-Hardware(Post Mar. 22/04) | E38: 0 | F38: =IF(D38=0,'App.2-CD_MIFRS_DepExp_2013'!K38,+'App.2-CD_MIFRS_DepExp_2013'!K38+((C38*0.5)/D38)) -> 0 | H38: 0
A39: 1920 | B39: Computer Equip.-Hardware(Post Mar. 19/07) | E39: 0 | F39: =IF(D39=0,'App.2-CD_MIFRS_DepExp_2013'!K39,+'App.2-CD_MIFRS_DepExp_2013'!K39+((C39*0.5)/D39)) -> 0 | H39: 0
A40: 1930 | B40: Transportation Equipment | E40: 0 | F40: =IF(D40=0,'App.2-CD_MIFRS_DepExp_2013'!K40,+'App.2-CD_MIFRS_DepExp_2013'!K40+((C40*0.5)/D40)) -> 0 | H40: 0
A41: 1935 | B41: Stores Equipment | E41: 0 | F41: =IF(D41=0,'App.2-CD_MIFRS_DepExp_2013'!K41,+'App.2-CD_MIFRS_DepExp_2013'!K41+((C41*0.5)/D41)) -> 0 | H41: 0
A42: 1940 | B42: Tools, Shop & Garage Equipment | E42: 0 | F42: =IF(D42=0,'App.2-CD_MIFRS_DepExp_2013'!K42,+'App.2-CD_MIFRS_DepExp_2013'!K42+((C42*0.5)/D42)) -> 0 | H42: 0
A43: 1945 | B43: Measurement & Testing Equipment | E43: 0 | F43: =IF(D43=0,'App.2-CD_MIFRS_DepExp_2013'!K43,+'App.2-CD_MIFRS_DepExp_2013'!K43+((C43*0.5)/D43)) -> 0 | H43: 0
A44: 1950 | B44: Power Operated Equipment | E44: 0 | F44: =IF(D44=0,'App.2-CD_MIFRS_DepExp_2013'!K44,+'App.2-CD_MIFRS_DepExp_2013'!K44+((C44*0.5)/D44)) -> 0 | H44: 0
A45: 1955 | B45: Communications Equipment | E45: 0 | F45: =IF(D45=0,'App.2-CD_MIFRS_DepExp_2013'!K45,+'App.2-CD_MIFRS_DepExp_2013'!K45+((C45*0.5)/D45)) -> 0 | H45: 0
A46: 1955 | B46: Communication Equipment (Smart Meters) | E46: 0 | F46: =IF(D46=0,'App.2-CD_MIFRS_DepExp_2013'!K46,+'App.2-CD_MIFRS_DepExp_2013'!K46+((C46*0.5)/D46)) -> 0 | H46: 0
A47: 1960 | B47: Miscellaneous Equipment | E47: 0 | F47: =IF(D47=0,'App.2-CD_MIFRS_DepExp_2013'!K47,+'App.2-CD_MIFRS_DepExp_2013'!K47+((C47*0.5)/D47)) -> 0 | H47: 0
A48: 1970 | B48: Load Management Controls Customer Premises | E48: 0 | F48: =IF(D48=0,'App.2-CD_MIFRS_DepExp_2013'!K48,+'App.2-CD_MIFRS_DepExp_2013'!K48+((C48*0.5)/D48)) -> 0 | H48: 0
A49: 1975 | B49: Load Management Controls Utility Premises | E49: 0 | F49: =IF(D49=0,'App.2-CD_MIFRS_DepExp_2013'!K49,+'App.2-CD_MIFRS_DepExp_2013'!K49+((C49*0.5)/D49)) -> 0 | H49: 0
A50: 1980 | B50: System Supervisor Equipment | E50: 0 | F50: =IF(D50=0,'App.2-CD_MIFRS_DepExp_2013'!K50,+'App.2-CD_MIFRS_DepExp_2013'!K50+((C50*0.5)/D50)) -> 0 | H50: 0
A51: 1985 | B51: Miscellaneous Fixed Assets | E51: 0 | F51: =IF(D51=0,'App.2-CD_MIFRS_DepExp_2013'!K51,+'App.2-CD_MIFRS_DepExp_2013'!K51+((C51*0.5)/D51)) -> 0 | H51: 0
A52: 1990 | B52: Other Tangible Property | E52: 0 | F52: =IF(D52=0,'App.2-CD_MIFRS_DepExp_2013'!K52,+'App.2-CD_MIFRS_DepExp_2013'!K52+((C52*0.5)/D52)) -> 0 | H52: 0
A53: 1995 | B53: Contributions & Grants | E53: 0 | F53: =IF(D53=0,'App.2-CD_MIFRS_DepExp_2013'!K53,+'App.2-CD_MIFRS_DepExp_2013'!K53+((C53*0.5)/D53)) -> 0 | H53: 0
A54: etc. | E54: 0 | F54: =IF(D54=0,'App.2-CD_MIFRS_DepExp_2013'!K54,+'App.2-CD_MIFRS_DepExp_2013'!K54+((C54*0.5)/D54)) -> 0 | H54: 0
E55: 0 | F55: =IF(D55=0,'App.2-CD_MIFRS_DepExp_2013'!K55,+'App.2-CD_MIFRS_DepExp_2013'!K55+((C55*0.5)/D55)) -> 0 | H55: 0
B56: Total | C56: =SUM(C16:C55) -> 0 | F56: =SUM(F16:F55) -> 0 | G56: =SUM(G16:G55) -> 0 | H56: =SUM(H16:H55) -> 0
B57: Depreciation exp. adj. from gain or loss on the retirement of assets (pool of like assets)
B58: Total Depreciation expense to be included in the test year revenue requirement | F58: =SUM(F56:F57) -> 0
A59: Notes:
A60: 1 | B60: Board policy of the "half-year" rule - the applicant must ensure that additions in the year attract a half-year depreciation expense in the first year. Deviations from this standard practice must be supported in the application.
A61: 2 | B61: The applicant must provide an explanation of material variances in evidence.
A63: General: | B63: Applicants must provide a breakdown of depreciation and amortization expense in the above format for all relevant accounts. Asset Retirement Obligations (AROs), depreciation and accretion expense should be disclosed separately consistent with the Notes of historical Audited Financial Statements.

Sheet App.2-CF_CGAAP_DepExp_2012 (hidden)
K1: File Number: | L1: =EBNUMBER -> 
K2: Exhibit:
K3: Tab:
K4: Schedule:
K5: Page:
K7: Date:
A9: Appendix 2-CF
A10: Depreciation and Amortization Expense
A11: Assumes the applicant adopted IFRS for financial reporting purposes January 1, 2013
C12: Year | D12: 2012 | E12: CGAAP
A14: Account | B14: Description | C14: Opening Regulatory Gross PP&E as at Jan 1, 2012 | D14: Less Fully Depreciated | E14: Net for Depreciation | F14: Additions | G14: Total for Depreciation | H14: Years | I14: Depreciation Rate | J14: Depreciation Expense | K14: 2012 Depreciation Expense per Appendix 2-B Fixed Assets, Column K (l) | L14: Variance 2
C15: (a) | D15: (b) | E15: (c) | F15: (d) | G15: (e) = (c) + ½ x (d) 1 | H15: (f) | I15: (g) = 1 / (f) | J15: (h) = (e) / (f) | L15: (m) = (h) - (l)
A16: 1611 | B16: Computer Software (Formally known as Account 1925) | E16: =C16-D16 -> 0 | G16: =E16+0.5*F16 -> 0 | I16: =IF(H16=0,0,1/H16) -> 0 | J16: =IF(H16=0,0,G16/H16) -> 0 | L16: =IF(ISERROR(+J16-K16), 0, +J16-K16) -> 0
A17: 1612 | B17: Land Rights (Formally known as Account 1906) | E17: =C17-D17 -> 0 | G17: =E17+0.5*F17 -> 0 | I17: 0 | J17: 0 | L17: 0
A18: 1805 | B18: Land | E18: 0 | G18: 0 | I18: 0 | J18: 0 | L18: 0
A19: 1808 | B19: Buildings | E19: 0 | G19: 0 | I19: 0 | J19: 0 | L19: 0
A20: 1810 | B20: Leasehold Improvements | E20: 0 | G20: 0 | I20: 0 | J20: 0 | L20: 0
A21: 1815 | B21: Transformer Station Equipment >50 kV | E21: 0 | G21: 0 | I21: 0 | J21: 0 | L21: 0
A22: 1820 | B22: Distribution Station Equipment <50 kV | E22: 0 | G22: 0 | I22: 0 | J22: 0 | L22: 0
A23: 1825 | B23: Storage Battery Equipment | E23: 0 | G23: 0 | I23: 0 | J23: 0 | L23: 0
A24: 1830 | B24: Poles, Towers & Fixtures | E24: 0 | G24: 0 | I24: 0 | J24: 0 | L24: 0
A25: 1835 | B25: Overhead Conductors & Devices | E25: 0 | G25: 0 | I25: 0 | J25: 0 | L25: 0
A26: 1840 | B26: Underground Conduit | E26: 0 | G26: 0 | I26: 0 | J26: 0 | L26: 0
A27: 1845 | B27: Underground Conductors & Devices | E27: 0 | G27: 0 | I27: 0 | J27: 0 | L27: 0
A28: 1850 | B28: Line Transformers | E28: 0 | G28: 0 | I28: 0 | J28: 0 | L28: 0
A29: 1855 | B29: Services (Overhead & Underground) | E29: 0 | G29: 0 | I29: 0 | J29: 0 | L29: 0
A30: 1860 | B30: Meters | E30: 0 | G30: 0 | I30: 0 | J30: 0 | L30: 0
A31: 1860 | B31: Meters (Smart Meters) | E31: 0 | G31: 0 | I31: 0 | J31: 0 | L31: 0
A32: 1905 | B32: Land | E32: 0 | G32: 0 | I32: 0 | J32: 0 | L32: 0
A33: 1908 | B33: Buildings & Fixtures | E33: 0 | G33: 0 | I33: 0 | J33: 0 | L33: 0
A34: 1910 | B34: Leasehold Improvements | E34: 0 | G34: 0 | I34: 0 | J34: 0 | L34: 0
A35: 1915 | B35: Office Furniture & Equipment (10 years) | E35: 0 | G35: 0 | I35: 0 | J35: 0 | L35: 0
A36: 1915 | B36: Office Furniture & Equipment (5 years) | E36: 0 | G36: 0 | I36: 0 | J36: 0 | L36: 0
A37: 1920 | B37: Computer Equipment - Hardware | E37: 0 | G37: 0 | I37: 0 | J37: 0 | L37: 0
A38: 1920 | B38: Computer Equip.-Hardware(Post Mar. 22/04) | E38: 0 | G38: 0 | I38: 0 | J38: 0 | L38: 0
A39: 1920 | B39: Computer Equip.-Hardware(Post Mar. 19/07) | E39: 0 | G39: 0 | I39: 0 | J39: 0 | L39: 0
A40: 1930 | B40: Transportation Equipment | E40: 0 | G40: 0 | I40: 0 | J40: 0 | L40: 0
A41: 1935 | B41: Stores Equipment | E41: 0 | G41: 0 | I41: 0 | J41: 0 | L41: 0
A42: 1940 | B42: Tools, Shop & Garage Equipment | E42: 0 | G42: 0 | I42: 0 | J42: 0 | L42: 0
A43: 1945 | B43: Measurement & Testing Equipment | E43: 0 | G43: 0 | I43: 0 | J43: 0 | L43: 0
A44: 1950 | B44: Power Operated Equipment | E44: 0 | G44: 0 | I44: 0 | J44: 0 | L44: 0
A45: 1955 | B45: Communications Equipment | E45: 0 | G45: 0 | I45: 0 | J45: 0 | L45: 0
A46: 1955 | B46: Communication Equipment (Smart Meters) | E46: 0 | G46: 0 | I46: 0 | J46: 0 | L46: 0
A47: 1960 | B47: Miscellaneous Equipment | E47: 0 | G47: 0 | I47: 0 | J47: 0 | L47: 0
A48: 1970 | B48: Load Management Controls Customer Premises | E48: 0 | G48: 0 | I48: 0 | J48: 0 | L48: 0
A49: 1975 | B49: Load Management Controls Utility Premises | E49: 0 | G49: 0 | I49: 0 | J49: 0 | L49: 0
A50: 1980 | B50: System Supervisor Equipment | E50: 0 | G50: 0 | I50: 0 | J50: 0 | L50: 0
A51: 1985 | B51: Miscellaneous Fixed Assets | E51: 0 | G51: 0 | I51: 0 | J51: 0 | L51: 0
A52: 1990 | B52: Other Tangible Property | E52: 0 | G52: 0 | I52: 0 | J52: 0 | L52: 0
A53: 1995 | B53: Contributions & Grants | E53: 0 | G53: 0 | I53: 0 | J53: 0 | L53: 0
A54: etc. | E54: 0 | G54: 0 | I54: 0 | J54: 0 | L54: 0
E55: 0 | G55: 0 | I55: 0 | J55: 0 | L55: 0
B56: Total | C56: =SUM(C16:C55) -> 0 | D56: =SUM(D16:D55) -> 0 | E56: =SUM(E16:E55) -> 0 | F56: =SUM(F16:F55) -> 0 | G56: =SUM(G16:G55) -> 0 | J56: =SUM(J16:J55) -> 0 | K56: =SUM(K16:K55) -> 0 | L56: =SUM(L16:L55) -> 0
A58: Notes:
A60: 1 | B60: Board policy of the "half-year" rule - the applicant must ensure that additions in the year attract a half-year depreciation expense in the first year. Deviations from this standard practice must be supported in the application.
A61: 2 | B61: The applicant must provide an explanation of material variances in evidence.
A63: General | B63: Applicants must provide a breakdown of depreciation and amortization expense in the above format for all relevant accounts. Asset Retirement Obligations (AROs), depreciation and accretion expense should be disclosed separately consistent with the Notes of historical Audited Financial Statements.

Sheet App.2-CG_MIFRS_DepExp_2012 (hidden)
N1: File Number: | O1: =EBNUMBER -> 
N2: Exhibit:
N3: Tab:
N4: Schedule:
N5: Page:
N7: Date:
A9: Appendix 2-CG
A10: Depreciation and Amortization Expense
A11: Assumes the applicant adopted IFRS for financial reporting purposes January 1, 2013
C12: Year | D12: 2012 | E12: MIFRS
A14: Account | B14: Description | C14: Opening NBV as at Jan 1, 2012 5 | D14: Additions | E14: Average Remaining Life of Opening NBV 4 | F14: Years (new additions only) 3 | G14: Depreciation Rate on New Additions | H14: Depreciation Expense on Opening NBV | I14: Depreciation Expense on Additions 1 | J14: 2012 Depreciation Expense | K14: 2012 Depreciation Expense per Appendix 2-B Fixed Assets, Column K (l) | L14: Variance 2 | M14: Depreciation Expense on 2012 Full Year Additions | N14: Less Depreciation Expense on Assets Fully Depreciated during the year (o) | O14: 2012 Full Year Depreciation 6
C15: (a) | D15: (d) | E15: (i) | F15: (f) | G15: (g) = 1 / (f) | H15: (j) = (a) / (i) | I15: (h)=((d)*0.5)/(f) | J15: (k) = (j) + (h) | L15: (m) = (k) - (l) | M15: (n) = (d)/(f) | O15: (p) = (j) + (n) - (o)
A16: 1611 | B16: Computer Software (Formally known as Account 1925) | G16: =IF(F16=0,0,1/F16) -> 0 | H16: =IF(E16=0,0,+C16/E16) -> 0 | I16: =IF(F16=0,0,+(D16*0.5)/F16) -> 0 | J16: =IF(ISERROR(+H16+I16), 0, +H16+I16) -> 0 | L16: =IF(ISERROR(+J16-K16), 0, +J16-K16) -> 0 | M16: =IF(F16=0,0,+(D16)/F16) -> 0 | O16: =IF(ISERROR(+M16+H16-N16), 0, +M16+H16-N16) -> 0
A17: 1612 | B17: Land Rights (Formally known as Account 1906) | G17: 0 | H17: 0 | I17: 0 | J17: 0 | L17: 0 | M17: 0 | O17: =IF(ISERROR(+M17+H17-N17), 0, +M17+H17-N17) -> 0
A18: 1805 | B18: Land | G18: 0 | H18: 0 | I18: 0 | J18: 0 | L18: 0 | M18: 0 | O18: 0
A19: 1808 | B19: Buildings | G19: 0 | H19: 0 | I19: 0 | J19: 0 | L19: 0 | M19: 0 | O19: 0
A20: 1810 | B20: Leasehold Improvements | G20: 0 | H20: 0 | I20: 0 | J20: 0 | L20: 0 | M20: 0 | O20: 0
A21: 1815 | B21: Transformer Station Equipment >50 kV | G21: 0 | H21: 0 | I21: 0 | J21: 0 | L21: 0 | M21: 0 | O21: 0
A22: 1820 | B22: Distribution Station Equipment <50 kV | G22: 0 | H22: 0 | I22: 0 | J22: 0 | L22: 0 | M22: 0 | O22: 0
A23: 1825 | B23: Storage Battery Equipment | G23: 0 | H23: 0 | I23: 0 | J23: 0 | L23: 0 | M23: 0 | O23: 0
A24: 1830 | B24: Poles, Towers & Fixtures | G24: 0 | H24: 0 | I24: 0 | J24: 0 | L24: 0 | M24: 0 | O24: 0
A25: 1835 | B25: Overhead Conductors & Devices | G25: 0 | H25: 0 | I25: 0 | J25: 0 | L25: 0 | M25: 0 | O25: 0
A26: 1840 | B26: Underground Conduit | G26: 0 | H26: 0 | I26: 0 | J26: 0 | L26: 0 | M26: 0 | O26: 0
A27: 1845 | B27: Underground Conductors & Devices | G27: 0 | H27: 0 | I27: 0 | J27: 0 | L27: 0 | M27: 0 | O27: 0
A28: 1850 | B28: Line Transformers | G28: 0 | H28: 0 | I28: 0 | J28: 0 | L28: 0 | M28: 0 | O28: 0
A29: 1855 | B29: Services (Overhead & Underground) | G29: 0 | H29: 0 | I29: 0 | J29: 0 | L29: 0 | M29: 0 | O29: 0
A30: 1860 | B30: Meters | G30: 0 | H30: 0 | I30: 0 | J30: 0 | L30: 0 | M30: 0 | O30: 0
A31: 1860 | B31: Meters (Smart Meters) | G31: 0 | H31: 0 | I31: 0 | J31: 0 | L31: 0 | M31: 0 | O31: 0
A32: 1905 | B32: Land | G32: 0 | H32: 0 | I32: 0 | J32: 0 | L32: 0 | M32: 0 | O32: 0
A33: 1908 | B33: Buildings & Fixtures | G33: 0 | H33: 0 | I33: 0 | J33: 0 | L33: 0 | M33: 0 | O33: 0
A34: 1910 | B34: Leasehold Improvements | G34: 0 | H34: 0 | I34: 0 | J34: 0 | L34: 0 | M34: 0 | O34: 0
A35: 1915 | B35: Office Furniture & Equipment (10 years) | G35: 0 | H35: 0 | I35: 0 | J35: 0 | L35: 0 | M35: 0 | O35: 0
A36: 1915 | B36: Office Furniture & Equipment (5 years) | G36: 0 | H36: 0 | I36: 0 | J36: 0 | L36: 0 | M36: 0 | O36: 0
A37: 1920 | B37: Computer Equipment - Hardware | G37: 0 | H37: 0 | I37: 0 | J37: 0 | L37: 0 | M37: 0 | O37: 0
A38: 1920 | B38: Computer Equip.-Hardware(Post Mar. 22/04) | G38: 0 | H38: 0 | I38: 0 | J38: 0 | L38: 0 | M38: 0 | O38: 0
A39: 1920 | B39: Computer Equip.-Hardware(Post Mar. 19/07) | G39: 0 | H39: 0 | I39: 0 | J39: 0 | L39: 0 | M39: 0 | O39: 0
A40: 1930 | B40: Transportation Equipment | G40: 0 | H40: 0 | I40: 0 | J40: 0 | L40: 0 | M40: 0 | O40: 0
A41: 1935 | B41: Stores Equipment | G41: 0 | H41: 0 | I41: 0 | J41: 0 | L41: 0 | M41: 0 | O41: 0
A42: 1940 | B42: Tools, Shop & Garage Equipment | G42: 0 | H42: 0 | I42: 0 | J42: 0 | L42: 0 | M42: 0 | O42: 0
A43: 1945 | B43: Measurement & Testing Equipment | G43: 0 | H43: 0 | I43: 0 | J43: 0 | L43: 0 | M43: 0 | O43: 0
A44: 1950 | B44: Power Operated Equipment | G44: 0 | H44: 0 | I44: 0 | J44: 0 | L44: 0 | M44: 0 | O44: 0
A45: 1955 | B45: Communications Equipment | G45: 0 | H45: 0 | I45: 0 | J45: 0 | L45: 0 | M45: 0 | O45: 0
A46: 1955 | B46: Communication Equipment (Smart Meters) | G46: 0 | H46: 0 | I46: 0 | J46: 0 | L46: 0 | M46: 0 | O46: 0
A47: 1960 | B47: Miscellaneous Equipment | G47: 0 | H47: 0 | I47: 0 | J47: 0 | L47: 0 | M47: 0 | O47: 0
A48: 1970 | B48: Load Management Controls Customer Premises | G48: 0 | H48: 0 | I48: 0 | J48: 0 | L48: 0 | M48: 0 | O48: 0
A49: 1975 | B49: Load Management Controls Utility Premises | G49: 0 | H49: 0 | I49: 0 | J49: 0 | L49: 0 | M49: 0 | O49: 0
A50: 1980 | B50: System Supervisor Equipment | G50: 0 | H50: 0 | I50: 0 | J50: 0 | L50: 0 | M50: 0 | O50: 0
A51: 1985 | B51: Miscellaneous Fixed Assets | G51: 0 | H51: 0 | I51: 0 | J51: 0 | L51: 0 | M51: 0 | O51: 0
A52: 1990 | B52: Other Tangible Property | G52: 0 | H52: 0 | I52: 0 | J52: 0 | L52: 0 | M52: 0 | O52: 0
A53: 1995 | B53: Contributions & Grants | G53: 0 | H53: 0 | I53: 0 | J53: 0 | L53: 0 | M53: 0 | O53: 0
A54: etc. | G54: 0 | H54: 0 | I54: 0 | J54: 0 | L54: 0 | M54: 0 | O54: 0
G55: 0 | H55: 0 | I55: 0 | J55: 0 | L55: 0 | M55: 0 | O55: 0
B56: Total | C56: =SUM(C16:C55) -> 0 | D56: =SUM(D16:D55) -> 0 | H56: =SUM(H16:H55) -> 0 | I56: 0 | J56: 0 | K56: 0 | L56: 0 | M56: 0 | N56: =SUM(N16:N55) -> 0 | O56: 0
B57: Depreciation exp. adj. from gain or loss on the retirement of assets (pool of like assets) | J57: 0
B58: Total | J58: =+J56+J57 -> 0
A59: Notes:
A61: 1 | B61: Board policy of the "half-year" rule - the applicant must ensure that additions in the year attract a half-year depreciation expense in the first year. Deviations from this standard practice must be supported in the application.
A62: 2 | B62: The applicant must provide an explanation of material variances in evidence.
A63: 3 | B63: The applicant should ensure that the years for new additions of assets are the asset useful lives determined by management in accordance with IFRS.
A64: 4 | B64: A recalculation should be performed to determine the average remaining life of opening balance of assets (i.e. excluding 2012 additions) under IFRS. For example, Asset A had a useful life of 20 years under CGAAP. On January 1, 2012, the date of transition, Asset A was 3 years depreciated. As a result, Asset A would have a remaining service life of 17 years (20 years less 3 years) under CGAAP as of January 1, 2012. Due to the transition to IFRS, management re-assessed the asset useful lives under IFRS principles and concluded that the revised useful life of Asset A is now 30 years. Therefore, the average remaining useful life of opening balance of Asset A is determined to be 27 years (30 years less 3 years) under IFRS as of January 1, 2012.
A65: 5 | B65: NBV must exclude assets still on the books but which have been fully amortized or depreciated.
A66: 6 | B66: This column refers to the calculated full year depreciation but excludes the depreciation expense on assets fully depreciated during the year. This column is used for the purpose of calculating depreciation expense in the following year on the next worksheet.
A68: General: | B68: Applicants must provide a breakdown of depreciation and amortization expense in the above format for all relevant accounts. Asset Retirement Obligations (AROs), depreciation and accretion expense should be disclosed separately consistent with the Notes of historical Audited Financial Statements.

Sheet App.2-CH_MIFRS_DepExp_2013 (hidden)
J1: File Number: | K1: =EBNUMBER -> 
J2: Exhibit:
J3: Tab:
J4: Schedule:
J5: Page:
J7: Date:
A9: Appendix 2-CH
A10: Depreciation and Amortization Expense
A11: Assumes the applicant adopted IFRS for financial reporting purposes January 1, 2013
C12: 2013 | D12: MIFRS
A14: Account | B14: Description | C14: Additions | D14: Years (new additions only) | E14: Depreciation Rate on New Additions | F14: 2013 Depreciation Expense 1 | G14: 2013 Depreciation Expense per Apppendix 2-B Fixed Assets, Column K (l) | H14: Variance 2 | I14: Depreciation Expense on 2013 Full Year Additions | J14: Less Depreciation Expense on Assets Fully Depreciated during the year (o) | K14: 2013 Full Year Depreciation 3
C15: (d) | D15: (f) | E15: (g) = 1 / (f) | F15: (h)=2012 Full Year Deprecation + ((d)*0.5)/(f) | H15: (m) = (h) - (l) | I15: (n)=((d))/(f) | K15: (p) = 2012 Full Year Depreciation + (n) - (o)
A16: 1611 | B16: Computer Software (Formally known as Account 1925) | E16: =IF(D16=0,0,1/D16) -> 0 | F16: =IF(D16=0,+'App.2-CG_MIFRS_DepExp_2012'!O16,+'App.2-CG_MIFRS_DepExp_2012'!O16+((C16*0.5)/D16)) -> 0 | H16: =IF(ISERROR(+F16-G16), 0, +F16-G16) -> 0 | I16: =IF(D16=0,0,+(C16)/D16) -> 0 | K16: =IF(ISERROR(+I16+'App.2-CG_MIFRS_DepExp_2012'!O16-J16), 0, +I16+'App.2-CG_MIFRS_DepExp_2012'!O16-J16) -> 0
A17: 1612 | B17: Land Rights (Formally known as Account 1906) | E17: 0 | F17: =IF(D17=0,+'App.2-CG_MIFRS_DepExp_2012'!O17,+'App.2-CG_MIFRS_DepExp_2012'!O17+((C17*0.5)/D17)) -> 0 | H17: 0 | I17: 0 | K17: =IF(ISERROR(+I17+'App.2-CG_MIFRS_DepExp_2012'!O17-J17), 0, +I17+'App.2-CG_MIFRS_DepExp_2012'!O17-J17) -> 0
A18: 1805 | B18: Land | E18: 0 | F18: =IF(D18=0,+'App.2-CG_MIFRS_DepExp_2012'!O18,+'App.2-CG_MIFRS_DepExp_2012'!O18+((C18*0.5)/D18)) -> 0 | H18: 0 | I18: 0 | K18: =IF(ISERROR(+I18+'App.2-CG_MIFRS_DepExp_2012'!O18-J18), 0, +I18+'App.2-CG_MIFRS_DepExp_2012'!O18-J18) -> 0
A19: 1808 | B19: Buildings | E19: 0 | F19: =IF(D19=0,+'App.2-CG_MIFRS_DepExp_2012'!O19,+'App.2-CG_MIFRS_DepExp_2012'!O19+((C19*0.5)/D19)) -> 0 | H19: 0 | I19: 0 | K19: =IF(ISERROR(+I19+'App.2-CG_MIFRS_DepExp_2012'!O19-J19), 0, +I19+'App.2-CG_MIFRS_DepExp_2012'!O19-J19) -> 0
A20: 1810 | B20: Leasehold Improvements | E20: 0 | F20: =IF(D20=0,+'App.2-CG_MIFRS_DepExp_2012'!O20,+'App.2-CG_MIFRS_DepExp_2012'!O20+((C20*0.5)/D20)) -> 0 | H20: 0 | I20: 0 | K20: =IF(ISERROR(+I20+'App.2-CG_MIFRS_DepExp_2012'!O20-J20), 0, +I20+'App.2-CG_MIFRS_DepExp_2012'!O20-J20) -> 0
A21: 1815 | B21: Transformer Station Equipment >50 kV | E21: 0 | F21: =IF(D21=0,+'App.2-CG_MIFRS_DepExp_2012'!O21,+'App.2-CG_MIFRS_DepExp_2012'!O21+((C21*0.5)/D21)) -> 0 | H21: 0 | I21: 0 | K21: =IF(ISERROR(+I21+'App.2-CG_MIFRS_DepExp_2012'!O21-J21), 0, +I21+'App.2-CG_MIFRS_DepExp_2012'!O21-J21) -> 0
A22: 1820 | B22: Distribution Station Equipment <50 kV | E22: 0 | F22: =IF(D22=0,+'App.2-CG_MIFRS_DepExp_2012'!O22,+'App.2-CG_MIFRS_DepExp_2012'!O22+((C22*0.5)/D22)) -> 0 | H22: 0 | I22: 0 | K22: =IF(ISERROR(+I22+'App.2-CG_MIFRS_DepExp_2012'!O22-J22), 0, +I22+'App.2-CG_MIFRS_DepExp_2012'!O22-J22) -> 0
A23: 1825 | B23: Storage Battery Equipment | E23: 0 | F23: =IF(D23=0,+'App.2-CG_MIFRS_DepExp_2012'!O23,+'App.2-CG_MIFRS_DepExp_2012'!O23+((C23*0.5)/D23)) -> 0 | H23: 0 | I23: 0 | K23: =IF(ISERROR(+I23+'App.2-CG_MIFRS_DepExp_2012'!O23-J23), 0, +I23+'App.2-CG_MIFRS_DepExp_2012'!O23-J23) -> 0
A24: 1830 | B24: Poles, Towers & Fixtures | E24: 0 | F24: =IF(D24=0,+'App.2-CG_MIFRS_DepExp_2012'!O24,+'App.2-CG_MIFRS_DepExp_2012'!O24+((C24*0.5)/D24)) -> 0 | H24: 0 | I24: 0 | K24: =IF(ISERROR(+I24+'App.2-CG_MIFRS_DepExp_2012'!O24-J24), 0, +I24+'App.2-CG_MIFRS_DepExp_2012'!O24-J24) -> 0
A25: 1835 | B25: Overhead Conductors & Devices | E25: 0 | F25: =IF(D25=0,+'App.2-CG_MIFRS_DepExp_2012'!O25,+'App.2-CG_MIFRS_DepExp_2012'!O25+((C25*0.5)/D25)) -> 0 | H25: 0 | I25: 0 | K25: =IF(ISERROR(+I25+'App.2-CG_MIFRS_DepExp_2012'!O25-J25), 0, +I25+'App.2-CG_MIFRS_DepExp_2012'!O25-J25) -> 0
A26: 1840 | B26: Underground Conduit | E26: 0 | F26: =IF(D26=0,+'App.2-CG_MIFRS_DepExp_2012'!O26,+'App.2-CG_MIFRS_DepExp_2012'!O26+((C26*0.5)/D26)) -> 0 | H26: 0 | I26: 0 | K26: =IF(ISERROR(+I26+'App.2-CG_MIFRS_DepExp_2012'!O26-J26), 0, +I26+'App.2-CG_MIFRS_DepExp_2012'!O26-J26) -> 0
A27: 1845 | B27: Underground Conductors & Devices | E27: 0 | F27: =IF(D27=0,+'App.2-CG_MIFRS_DepExp_2012'!O27,+'App.2-CG_MIFRS_DepExp_2012'!O27+((C27*0.5)/D27)) -> 0 | H27: 0 | I27: 0 | K27: =IF(ISERROR(+I27+'App.2-CG_MIFRS_DepExp_2012'!O27-J27), 0, +I27+'App.2-CG_MIFRS_DepExp_2012'!O27-J27) -> 0
A28: 1850 | B28: Line Transformers | E28: 0 | F28: =IF(D28=0,+'App.2-CG_MIFRS_DepExp_2012'!O28,+'App.2-CG_MIFRS_DepExp_2012'!O28+((C28*0.5)/D28)) -> 0 | H28: 0 | I28: 0 | K28: =IF(ISERROR(+I28+'App.2-CG_MIFRS_DepExp_2012'!O28-J28), 0, +I28+'App.2-CG_MIFRS_DepExp_2012'!O28-J28) -> 0
A29: 1855 | B29: Services (Overhead & Underground) | E29: 0 | F29: =IF(D29=0,+'App.2-CG_MIFRS_DepExp_2012'!O29,+'App.2-CG_MIFRS_DepExp_2012'!O29+((C29*0.5)/D29)) -> 0 | H29: 0 | I29: 0 | K29: =IF(ISERROR(+I29+'App.2-CG_MIFRS_DepExp_2012'!O29-J29), 0, +I29+'App.2-CG_MIFRS_DepExp_2012'!O29-J29) -> 0
A30: 1860 | B30: Meters | E30: 0 | F30: =IF(D30=0,+'App.2-CG_MIFRS_DepExp_2012'!O30,+'App.2-CG_MIFRS_DepExp_2012'!O30+((C30*0.5)/D30)) -> 0 | H30: 0 | I30: 0 | K30: =IF(ISERROR(+I30+'App.2-CG_MIFRS_DepExp_2012'!O30-J30), 0, +I30+'App.2-CG_MIFRS_DepExp_2012'!O30-J30) -> 0
A31: 1860 | B31: Meters (Smart Meters) | E31: 0 | F31: =IF(D31=0,+'App.2-CG_MIFRS_DepExp_2012'!O31,+'App.2-CG_MIFRS_DepExp_2012'!O31+((C31*0.5)/D31)) -> 0 | H31: 0 | I31: 0 | K31: =IF(ISERROR(+I31+'App.2-CG_MIFRS_DepExp_2012'!O31-J31), 0, +I31+'App.2-CG_MIFRS_DepExp_2012'!O31-J31) -> 0
A32: 1905 | B32: Land | E32: 0 | F32: =IF(D32=0,+'App.2-CG_MIFRS_DepExp_2012'!O32,+'App.2-CG_MIFRS_DepExp_2012'!O32+((C32*0.5)/D32)) -> 0 | H32: 0 | I32: 0 | K32: =IF(ISERROR(+I32+'App.2-CG_MIFRS_DepExp_2012'!O32-J32), 0, +I32+'App.2-CG_MIFRS_DepExp_2012'!O32-J32) -> 0
A33: 1908 | B33: Buildings & Fixtures | E33: 0 | F33: =IF(D33=0,+'App.2-CG_MIFRS_DepExp_2012'!O33,+'App.2-CG_MIFRS_DepExp_2012'!O33+((C33*0.5)/D33)) -> 0 | H33: 0 | I33: 0 | K33: =IF(ISERROR(+I33+'App.2-CG_MIFRS_DepExp_2012'!O33-J33), 0, +I33+'App.2-CG_MIFRS_DepExp_2012'!O33-J33) -> 0
A34: 1910 | B34: Leasehold Improvements | E34: 0 | F34: =IF(D34=0,+'App.2-CG_MIFRS_DepExp_2012'!O34,+'App.2-CG_MIFRS_DepExp_2012'!O34+((C34*0.5)/D34)) -> 0 | H34: 0 | I34: 0 | K34: =IF(ISERROR(+I34+'App.2-CG_MIFRS_DepExp_2012'!O34-J34), 0, +I34+'App.2-CG_MIFRS_DepExp_2012'!O34-J34) -> 0
A35: 1915 | B35: Office Furniture & Equipment (10 years) | E35: 0 | F35: =IF(D35=0,+'App.2-CG_MIFRS_DepExp_2012'!O35,+'App.2-CG_MIFRS_DepExp_2012'!O35+((C35*0.5)/D35)) -> 0 | H35: 0 | I35: 0 | K35: =IF(ISERROR(+I35+'App.2-CG_MIFRS_DepExp_2012'!O35-J35), 0, +I35+'App.2-CG_MIFRS_DepExp_2012'!O35-J35) -> 0
A36: 1915 | B36: Office Furniture & Equipment (5 years) | E36: 0 | F36: =IF(D36=0,+'App.2-CG_MIFRS_DepExp_2012'!O36,+'App.2-CG_MIFRS_DepExp_2012'!O36+((C36*0.5)/D36)) -> 0 | H36: 0 | I36: 0 | K36: =IF(ISERROR(+I36+'App.2-CG_MIFRS_DepExp_2012'!O36-J36), 0, +I36+'App.2-CG_MIFRS_DepExp_2012'!O36-J36) -> 0
A37: 1920 | B37: Computer Equipment - Hardware | E37: 0 | F37: =IF(D37=0,+'App.2-CG_MIFRS_DepExp_2012'!O37,+'App.2-CG_MIFRS_DepExp_2012'!O37+((C37*0.5)/D37)) -> 0 | H37: 0 | I37: 0 | K37: =IF(ISERROR(+I37+'App.2-CG_MIFRS_DepExp_2012'!O37-J37), 0, +I37+'App.2-CG_MIFRS_DepExp_2012'!O37-J37) -> 0
A38: 1920 | B38: Computer Equip.-Hardware(Post Mar. 22/04) | E38: 0 | F38: =IF(D38=0,+'App.2-CG_MIFRS_DepExp_2012'!O38,+'App.2-CG_MIFRS_DepExp_2012'!O38+((C38*0.5)/D38)) -> 0 | H38: 0 | I38: 0 | K38: =IF(ISERROR(+I38+'App.2-CG_MIFRS_DepExp_2012'!O38-J38), 0, +I38+'App.2-CG_MIFRS_DepExp_2012'!O38-J38) -> 0
A39: 1920 | B39: Computer Equip.-Hardware(Post Mar. 19/07) | E39: 0 | F39: =IF(D39=0,+'App.2-CG_MIFRS_DepExp_2012'!O39,+'App.2-CG_MIFRS_DepExp_2012'!O39+((C39*0.5)/D39)) -> 0 | H39: 0 | I39: 0 | K39: =IF(ISERROR(+I39+'App.2-CG_MIFRS_DepExp_2012'!O39-J39), 0, +I39+'App.2-CG_MIFRS_DepExp_2012'!O39-J39) -> 0
A40: 1930 | B40: Transportation Equipment | E40: 0 | F40: =IF(D40=0,+'App.2-CG_MIFRS_DepExp_2012'!O40,+'App.2-CG_MIFRS_DepExp_2012'!O40+((C40*0.5)/D40)) -> 0 | H40: 0 | I40: 0 | K40: =IF(ISERROR(+I40+'App.2-CG_MIFRS_DepExp_2012'!O40-J40), 0, +I40+'App.2-CG_MIFRS_DepExp_2012'!O40-J40) -> 0
A41: 1935 | B41: Stores Equipment | E41: 0 | F41: =IF(D41=0,+'App.2-CG_MIFRS_DepExp_2012'!O41,+'App.2-CG_MIFRS_DepExp_2012'!O41+((C41*0.5)/D41)) -> 0 | H41: 0 | I41: 0 | K41: =IF(ISERROR(+I41+'App.2-CG_MIFRS_DepExp_2012'!O41-J41), 0, +I41+'App.2-CG_MIFRS_DepExp_2012'!O41-J41) -> 0
A42: 1940 | B42: Tools, Shop & Garage Equipment | E42: 0 | F42: =IF(D42=0,+'App.2-CG_MIFRS_DepExp_2012'!O42,+'App.2-CG_MIFRS_DepExp_2012'!O42+((C42*0.5)/D42)) -> 0 | H42: 0 | I42: 0 | K42: =IF(ISERROR(+I42+'App.2-CG_MIFRS_DepExp_2012'!O42-J42), 0, +I42+'App.2-CG_MIFRS_DepExp_2012'!O42-J42) -> 0
A43: 1945 | B43: Measurement & Testing Equipment | E43: 0 | F43: =IF(D43=0,+'App.2-CG_MIFRS_DepExp_2012'!O43,+'App.2-CG_MIFRS_DepExp_2012'!O43+((C43*0.5)/D43)) -> 0 | H43: 0 | I43: 0 | K43: =IF(ISERROR(+I43+'App.2-CG_MIFRS_DepExp_2012'!O43-J43), 0, +I43+'App.2-CG_MIFRS_DepExp_2012'!O43-J43) -> 0
A44: 1950 | B44: Power Operated Equipment | E44: 0 | F44: =IF(D44=0,+'App.2-CG_MIFRS_DepExp_2012'!O44,+'App.2-CG_MIFRS_DepExp_2012'!O44+((C44*0.5)/D44)) -> 0 | H44: 0 | I44: 0 | K44: =IF(ISERROR(+I44+'App.2-CG_MIFRS_DepExp_2012'!O44-J44), 0, +I44+'App.2-CG_MIFRS_DepExp_2012'!O44-J44) -> 0
A45: 1955 | B45: Communications Equipment | E45: 0 | F45: =IF(D45=0,+'App.2-CG_MIFRS_DepExp_2012'!O45,+'App.2-CG_MIFRS_DepExp_2012'!O45+((C45*0.5)/D45)) -> 0 | H45: 0 | I45: 0 | K45: =IF(ISERROR(+I45+'App.2-CG_MIFRS_DepExp_2012'!O45-J45), 0, +I45+'App.2-CG_MIFRS_DepExp_2012'!O45-J45) -> 0
A46: 1955 | B46: Communication Equipment (Smart Meters) | E46: 0 | F46: =IF(D46=0,+'App.2-CG_MIFRS_DepExp_2012'!O46,+'App.2-CG_MIFRS_DepExp_2012'!O46+((C46*0.5)/D46)) -> 0 | H46: 0 | I46: 0 | K46: =IF(ISERROR(+I46+'App.2-CG_MIFRS_DepExp_2012'!O46-J46), 0, +I46+'App.2-CG_MIFRS_DepExp_2012'!O46-J46) -> 0
A47: 1960 | B47: Miscellaneous Equipment | E47: 0 | F47: =IF(D47=0,+'App.2-CG_MIFRS_DepExp_2012'!O47,+'App.2-CG_MIFRS_DepExp_2012'!O47+((C47*0.5)/D47)) -> 0 | H47: 0 | I47: 0 | K47: =IF(ISERROR(+I47+'App.2-CG_MIFRS_DepExp_2012'!O47-J47), 0, +I47+'App.2-CG_MIFRS_DepExp_2012'!O47-J47) -> 0
A48: 1970 | B48: Load Management Controls Customer Premises | E48: 0 | F48: =IF(D48=0,+'App.2-CG_MIFRS_DepExp_2012'!O48,+'App.2-CG_MIFRS_DepExp_2012'!O48+((C48*0.5)/D48)) -> 0 | H48: 0 | I48: 0 | K48: =IF(ISERROR(+I48+'App.2-CG_MIFRS_DepExp_2012'!O48-J48), 0, +I48+'App.2-CG_MIFRS_DepExp_2012'!O48-J48) -> 0
A49: 1975 | B49: Load Management Controls Utility Premises | E49: 0 | F49: =IF(D49=0,+'App.2-CG_MIFRS_DepExp_2012'!O49,+'App.2-CG_MIFRS_DepExp_2012'!O49+((C49*0.5)/D49)) -> 0 | H49: 0 | I49: 0 | K49: =IF(ISERROR(+I49+'App.2-CG_MIFRS_DepExp_2012'!O49-J49), 0, +I49+'App.2-CG_MIFRS_DepExp_2012'!O49-J49) -> 0
A50: 1980 | B50: System Supervisor Equipment | E50: 0 | F50: =IF(D50=0,+'App.2-CG_MIFRS_DepExp_2012'!O50,+'App.2-CG_MIFRS_DepExp_2012'!O50+((C50*0.5)/D50)) -> 0 | H50: 0 | I50: 0 | K50: =IF(ISERROR(+I50+'App.2-CG_MIFRS_DepExp_2012'!O50-J50), 0, +I50+'App.2-CG_MIFRS_DepExp_2012'!O50-J50) -> 0
A51: 1985 | B51: Miscellaneous Fixed Assets | E51: 0 | F51: =IF(D51=0,+'App.2-CG_MIFRS_DepExp_2012'!O51,+'App.2-CG_MIFRS_DepExp_2012'!O51+((C51*0.5)/D51)) -> 0 | H51: 0 | I51: 0 | K51: =IF(ISERROR(+I51+'App.2-CG_MIFRS_DepExp_2012'!O51-J51), 0, +I51+'App.2-CG_MIFRS_DepExp_2012'!O51-J51) -> 0
A52: 1990 | B52: Other Tangible Property | E52: 0 | F52: =IF(D52=0,+'App.2-CG_MIFRS_DepExp_2012'!O52,+'App.2-CG_MIFRS_DepExp_2012'!O52+((C52*0.5)/D52)) -> 0 | H52: 0 | I52: 0 | K52: =IF(ISERROR(+I52+'App.2-CG_MIFRS_DepExp_2012'!O52-J52), 0, +I52+'App.2-CG_MIFRS_DepExp_2012'!O52-J52) -> 0
A53: 1995 | B53: Contributions & Grants | E53: 0 | F53: =IF(D53=0,+'App.2-CG_MIFRS_DepExp_2012'!O53,+'App.2-CG_MIFRS_DepExp_2012'!O53+((C53*0.5)/D53)) -> 0 | H53: 0 | I53: 0 | K53: =IF(ISERROR(+I53+'App.2-CG_MIFRS_DepExp_2012'!O53-J53), 0, +I53+'App.2-CG_MIFRS_DepExp_2012'!O53-J53) -> 0
A54: etc. | E54: 0 | F54: =IF(D54=0,+'App.2-CG_MIFRS_DepExp_2012'!O54,+'App.2-CG_MIFRS_DepExp_2012'!O54+((C54*0.5)/D54)) -> 0 | H54: 0 | I54: 0 | K54: =IF(ISERROR(+I54+'App.2-CG_MIFRS_DepExp_2012'!O54-J54), 0, +I54+'App.2-CG_MIFRS_DepExp_2012'!O54-J54) -> 0
E55: 0 | F55: =IF(D55=0,+'App.2-CG_MIFRS_DepExp_2012'!O55,+'App.2-CG_MIFRS_DepExp_2012'!O55+((C55*0.5)/D55)) -> 0 | H55: 0 | I55: 0 | K55: =IF(ISERROR(+I55+'App.2-CG_MIFRS_DepExp_2012'!O55-J55), 0, +I55+'App.2-CG_MIFRS_DepExp_2012'!O55-J55) -> 0
B56: Total | C56: =SUM(C16:C55) -> 0 | F56: =SUM(F16:F55) -> 0 | G56: 0 | H56: 0 | I56: 0 | J56: 0 | K56: 0
B57: Depreciation exp. adj. from gain or loss on the retirement of assets (pool of like assets) | F57: 0
B58: Total | F58: =+F57+F56 -> 0
A59: Notes:
A60: 1 | B60: Board policy of the "half-year" rule - the applicant must ensure that additions in the year attract a half-year depreciation expense in the first year. Deviations from this standard practice must be supported in the application.
A61: 2 | B61: The applicant must provide an explanation of material variances in evidence.
A62: 3 | B62: This column refers to the calculated full year depreciation but excludes the depreciation expense on assets fully depreciated during the year. This column is used for the purpose of calculating depreciation expense in the following year on the next worksheet.
A64: General: | B64: Applicants must provide a breakdown of depreciation and amortization expense in the above format for all relevant accounts. Asset Retirement Obligations (AROs), depreciation and accretion expense should be disclosed separately consistent with the Notes of historical Audited Financial Statements.

Sheet App.2-CI_MIFRS_DepExp_2014 (hidden)
G1: File Number: | H1: =EBNUMBER -> 
G2: Exhibit:
G3: Tab:
G4: Schedule:
G5: Page:
G7: Date:
A9: Appendix 2-CI
A10: Depreciation and Amortization Expense
A11: Assumes the applicant adopted IFRS for financial reporting purposes January 1, 2013
C12: 2014 | D12: MIFRS
A14: Account | B14: Description | C14: Additions | D14: Years (new additions only) | E14: Depreciation Rate on New Additions | F14: 2014 Depreciation Expense 1 | G14: 2014 Depreciation Expense per Appendix 2-B Fixed Assets, Column K (l) | H14: Variance 2
C15: (d) | D15: (f) | E15: (g) = 1 / (f) | F15: (h)=2013 Full Year Depreciation + ((d)*0.5)/(f) | H15: (m) = (h) - (l)
A16: 1611 | B16: Computer Software (Formally known as Account 1925) | E16: =IF(D16=0,0,1/D16) -> 0 | F16: =IF(D16=0,'App.2-CH_MIFRS_DepExp_2013'!K16,+'App.2-CH_MIFRS_DepExp_2013'!K16+((C16*0.5)/D16)) -> 0 | H16: =IF(ISERROR(+F16-G16), 0, +F16-G16) -> 0
A17: 1612 | B17: Land Rights (Formally known as Account 1906) | E17: 0 | F17: =IF(D17=0,'App.2-CH_MIFRS_DepExp_2013'!K17,+'App.2-CH_MIFRS_DepExp_2013'!K17+((C17*0.5)/D17)) -> 0 | H17: 0
A18: 1805 | B18: Land | E18: 0 | F18: =IF(D18=0,'App.2-CH_MIFRS_DepExp_2013'!K18,+'App.2-CH_MIFRS_DepExp_2013'!K18+((C18*0.5)/D18)) -> 0 | H18: 0
A19: 1808 | B19: Buildings | E19: 0 | F19: =IF(D19=0,'App.2-CH_MIFRS_DepExp_2013'!K19,+'App.2-CH_MIFRS_DepExp_2013'!K19+((C19*0.5)/D19)) -> 0 | H19: 0
A20: 1810 | B20: Leasehold Improvements | E20: 0 | F20: =IF(D20=0,'App.2-CH_MIFRS_DepExp_2013'!K20,+'App.2-CH_MIFRS_DepExp_2013'!K20+((C20*0.5)/D20)) -> 0 | H20: 0
A21: 1815 | B21: Transformer Station Equipment >50 kV | E21: 0 | F21: =IF(D21=0,'App.2-CH_MIFRS_DepExp_2013'!K21,+'App.2-CH_MIFRS_DepExp_2013'!K21+((C21*0.5)/D21)) -> 0 | H21: 0
A22: 1820 | B22: Distribution Station Equipment <50 kV | E22: 0 | F22: =IF(D22=0,'App.2-CH_MIFRS_DepExp_2013'!K22,+'App.2-CH_MIFRS_DepExp_2013'!K22+((C22*0.5)/D22)) -> 0 | H22: 0
A23: 1825 | B23: Storage Battery Equipment | E23: 0 | F23: =IF(D23=0,'App.2-CH_MIFRS_DepExp_2013'!K23,+'App.2-CH_MIFRS_DepExp_2013'!K23+((C23*0.5)/D23)) -> 0 | H23: 0
A24: 1830 | B24: Poles, Towers & Fixtures | E24: 0 | F24: =IF(D24=0,'App.2-CH_MIFRS_DepExp_2013'!K24,+'App.2-CH_MIFRS_DepExp_2013'!K24+((C24*0.5)/D24)) -> 0 | H24: 0
A25: 1835 | B25: Overhead Conductors & Devices | E25: 0 | F25: =IF(D25=0,'App.2-CH_MIFRS_DepExp_2013'!K25,+'App.2-CH_MIFRS_DepExp_2013'!K25+((C25*0.5)/D25)) -> 0 | H25: 0
A26: 1840 | B26: Underground Conduit | E26: 0 | F26: =IF(D26=0,'App.2-CH_MIFRS_DepExp_2013'!K26,+'App.2-CH_MIFRS_DepExp_2013'!K26+((C26*0.5)/D26)) -> 0 | H26: 0
A27: 1845 | B27: Underground Conductors & Devices | E27: 0 | F27: =IF(D27=0,'App.2-CH_MIFRS_DepExp_2013'!K27,+'App.2-CH_MIFRS_DepExp_2013'!K27+((C27*0.5)/D27)) -> 0 | H27: 0
A28: 1850 | B28: Line Transformers | E28: 0 | F28: =IF(D28=0,'App.2-CH_MIFRS_DepExp_2013'!K28,+'App.2-CH_MIFRS_DepExp_2013'!K28+((C28*0.5)/D28)) -> 0 | H28: 0
A29: 1855 | B29: Services (Overhead & Underground) | E29: 0 | F29: =IF(D29=0,'App.2-CH_MIFRS_DepExp_2013'!K29,+'App.2-CH_MIFRS_DepExp_2013'!K29+((C29*0.5)/D29)) -> 0 | H29: 0
A30: 1860 | B30: Meters | E30: 0 | F30: =IF(D30=0,'App.2-CH_MIFRS_DepExp_2013'!K30,+'App.2-CH_MIFRS_DepExp_2013'!K30+((C30*0.5)/D30)) -> 0 | H30: 0
A31: 1860 | B31: Meters (Smart Meters) | E31: 0 | F31: =IF(D31=0,'App.2-CH_MIFRS_DepExp_2013'!K31,+'App.2-CH_MIFRS_DepExp_2013'!K31+((C31*0.5)/D31)) -> 0 | H31: 0
A32: 1905 | B32: Land | E32: 0 | F32: =IF(D32=0,'App.2-CH_MIFRS_DepExp_2013'!K32,+'App.2-CH_MIFRS_DepExp_2013'!K32+((C32*0.5)/D32)) -> 0 | H32: 0
A33: 1908 | B33: Buildings & Fixtures | E33: 0 | F33: =IF(D33=0,'App.2-CH_MIFRS_DepExp_2013'!K33,+'App.2-CH_MIFRS_DepExp_2013'!K33+((C33*0.5)/D33)) -> 0 | H33: 0
A34: 1910 | B34: Leasehold Improvements | E34: 0 | F34: =IF(D34=0,'App.2-CH_MIFRS_DepExp_2013'!K34,+'App.2-CH_MIFRS_DepExp_2013'!K34+((C34*0.5)/D34)) -> 0 | H34: 0
A35: 1915 | B35: Office Furniture & Equipment (10 years) | E35: 0 | F35: =IF(D35=0,'App.2-CH_MIFRS_DepExp_2013'!K35,+'App.2-CH_MIFRS_DepExp_2013'!K35+((C35*0.5)/D35)) -> 0 | H35: 0
A36: 1915 | B36: Office Furniture & Equipment (5 years) | E36: 0 | F36: =IF(D36=0,'App.2-CH_MIFRS_DepExp_2013'!K36,+'App.2-CH_MIFRS_DepExp_2013'!K36+((C36*0.5)/D36)) -> 0 | H36: 0
A37: 1920 | B37: Computer Equipment - Hardware | E37: 0 | F37: =IF(D37=0,'App.2-CH_MIFRS_DepExp_2013'!K37,+'App.2-CH_MIFRS_DepExp_2013'!K37+((C37*0.5)/D37)) -> 0 | H37: 0
A38: 1920 | B38: Computer Equip.-Hardware(Post Mar. 22/04) | E38: 0 | F38: =IF(D38=0,'App.2-CH_MIFRS_DepExp_2013'!K38,+'App.2-CH_MIFRS_DepExp_2013'!K38+((C38*0.5)/D38)) -> 0 | H38: 0
A39: 1920 | B39: Computer Equip.-Hardware(Post Mar. 19/07) | E39: 0 | F39: =IF(D39=0,'App.2-CH_MIFRS_DepExp_2013'!K39,+'App.2-CH_MIFRS_DepExp_2013'!K39+((C39*0.5)/D39)) -> 0 | H39: 0
A40: 1930 | B40: Transportation Equipment | E40: 0 | F40: =IF(D40=0,'App.2-CH_MIFRS_DepExp_2013'!K40,+'App.2-CH_MIFRS_DepExp_2013'!K40+((C40*0.5)/D40)) -> 0 | H40: 0
A41: 1935 | B41: Stores Equipment | E41: 0 | F41: =IF(D41=0,'App.2-CH_MIFRS_DepExp_2013'!K41,+'App.2-CH_MIFRS_DepExp_2013'!K41+((C41*0.5)/D41)) -> 0 | H41: 0
A42: 1940 | B42: Tools, Shop & Garage Equipment | E42: 0 | F42: =IF(D42=0,'App.2-CH_MIFRS_DepExp_2013'!K42,+'App.2-CH_MIFRS_DepExp_2013'!K42+((C42*0.5)/D42)) -> 0 | H42: 0
A43: 1945 | B43: Measurement & Testing Equipment | E43: 0 | F43: =IF(D43=0,'App.2-CH_MIFRS_DepExp_2013'!K43,+'App.2-CH_MIFRS_DepExp_2013'!K43+((C43*0.5)/D43)) -> 0 | H43: 0
A44: 1950 | B44: Power Operated Equipment | E44: 0 | F44: =IF(D44=0,'App.2-CH_MIFRS_DepExp_2013'!K44,+'App.2-CH_MIFRS_DepExp_2013'!K44+((C44*0.5)/D44)) -> 0 | H44: 0
A45: 1955 | B45: Communications Equipment | E45: 0 | F45: =IF(D45=0,'App.2-CH_MIFRS_DepExp_2013'!K45,+'App.2-CH_MIFRS_DepExp_2013'!K45+((C45*0.5)/D45)) -> 0 | H45: 0
A46: 1955 | B46: Communication Equipment (Smart Meters) | E46: 0 | F46: =IF(D46=0,'App.2-CH_MIFRS_DepExp_2013'!K46,+'App.2-CH_MIFRS_DepExp_2013'!K46+((C46*0.5)/D46)) -> 0 | H46: 0
A47: 1960 | B47: Miscellaneous Equipment | E47: 0 | F47: =IF(D47=0,'App.2-CH_MIFRS_DepExp_2013'!K47,+'App.2-CH_MIFRS_DepExp_2013'!K47+((C47*0.5)/D47)) -> 0 | H47: 0
A48: 1970 | B48: Load Management Controls Customer Premises | E48: 0 | F48: =IF(D48=0,'App.2-CH_MIFRS_DepExp_2013'!K48,+'App.2-CH_MIFRS_DepExp_2013'!K48+((C48*0.5)/D48)) -> 0 | H48: 0
A49: 1975 | B49: Load Management Controls Utility Premises | E49: 0 | F49: =IF(D49=0,'App.2-CH_MIFRS_DepExp_2013'!K49,+'App.2-CH_MIFRS_DepExp_2013'!K49+((C49*0.5)/D49)) -> 0 | H49: 0
A50: 1980 | B50: System Supervisor Equipment | E50: 0 | F50: =IF(D50=0,'App.2-CH_MIFRS_DepExp_2013'!K50,+'App.2-CH_MIFRS_DepExp_2013'!K50+((C50*0.5)/D50)) -> 0 | H50: 0
A51: 1985 | B51: Miscellaneous Fixed Assets | E51: 0 | F51: =IF(D51=0,'App.2-CH_MIFRS_DepExp_2013'!K51,+'App.2-CH_MIFRS_DepExp_2013'!K51+((C51*0.5)/D51)) -> 0 | H51: 0
A52: 1990 | B52: Other Tangible Property | E52: 0 | F52: =IF(D52=0,'App.2-CH_MIFRS_DepExp_2013'!K52,+'App.2-CH_MIFRS_DepExp_2013'!K52+((C52*0.5)/D52)) -> 0 | H52: 0
A53: 1995 | B53: Contributions & Grants | E53: 0 | F53: =IF(D53=0,'App.2-CH_MIFRS_DepExp_2013'!K53,+'App.2-CH_MIFRS_DepExp_2013'!K53+((C53*0.5)/D53)) -> 0 | H53: 0
A54: etc. | E54: 0 | F54: =IF(D54=0,'App.2-CH_MIFRS_DepExp_2013'!K54,+'App.2-CH_MIFRS_DepExp_2013'!K54+((C54*0.5)/D54)) -> 0 | H54: 0
E55: 0 | F55: =IF(D55=0,'App.2-CH_MIFRS_DepExp_2013'!K55,+'App.2-CH_MIFRS_DepExp_2013'!K55+((C55*0.5)/D55)) -> 0 | H55: 0
B56: Total | C56: =SUM(C16:C55) -> 0 | F56: =SUM(F16:F55) -> 0 | G56: =SUM(G16:G55) -> 0 | H56: =SUM(H16:H55) -> 0
B57: Depreciation exp. adj. from gain or loss on the retirement of assets (pool of like assets) | F57: 0
B58: Total Depreciation expense to be included in the test year revenue requirement | F58: =SUM(F56:F57) -> 0
A59: Notes:
A60: 1 | B60: Board policy of the "half-year" rule - the applicant must ensure that additions in the year attract a half-year depreciation expense in the first year. Deviations from this standard practice must be supported in the application.
A61: 2 | B61: The applicant must provide an explanation of material variances in evidence.
A63: General: | B63: Applicants must provide a breakdown of depreciation and amortization expense in the above format for all relevant accounts. Asset Retirement Obligations (AROs), depreciation and accretion expense should be disclosed separately consistent with the Notes of historical Audited Financial Statements.

Sheet App.2-CJ_CGAAP_DepExp_2012 (hidden)
K1: File Number: | L1: =EBNUMBER -> 
K2: Exhibit:
K3: Tab:
K4: Schedule:
K5: Page:
K7: Date:
A9: Appendix 2-CJ
A10: Depreciation and Amortization Expense
A11: Assumes the applicant adopted IFRS for financial reporting purposes January 1, 2014
C12: Year | D12: 2012 | E12: CGAAP
A14: Account | B14: Description | C14: Opening Regulatory Gross PP&E as at Jan 1, 2012 | D14: Less Fully Depreciated | E14: Net for Depreciation | F14: Additions | G14: Total for Depreciation | H14: Years | I14: Depreciation Rate | J14: 2012 Depreciation Expense | K14: 2012 Depreciation Expense per Appendix 2-B Fixed Assets, Column K (l) | L14: Variance 2
C15: (a) | D15: (b) | E15: (c) | F15: (d) | G15: (e) = (c) + ½ x (d) 1 | H15: (f) | I15: (g) = 1 / (f) | J15: (h) = (e) / (f) | L15: (m) = (h) - (l)
A16: 1611 | B16: Computer Software (Formally known as Account 1925) | E16: =C16-D16 -> 0 | G16: =E16+0.5*F16 -> 0 | I16: =IF(H16=0,"",1/H16) ->  | J16: =IF(H16=0,0,G16/H16) -> 0 | L16: =IF(ISERROR(+J16-K16), "", +J16-K16) -> 0
A17: 1612 | B17: Land Rights (Formally known as Account 1906) | E17: =C17-D17 -> 0 | G17: =E17+0.5*F17 -> 0 | J17: 0 | L17: =IF(ISERROR(+J17-K17), "", +J17-K17) -> 0
A18: 1805 | B18: Land | E18: 0 | G18: 0 | J18: 0 | L18: 0
A19: 1808 | B19: Buildings | E19: 0 | G19: 0 | J19: 0 | L19: 0
A20: 1810 | B20: Leasehold Improvements | E20: 0 | G20: 0 | J20: 0 | L20: 0
A21: 1815 | B21: Transformer Station Equipment >50 kV | E21: 0 | G21: 0 | J21: 0 | L21: 0
A22: 1820 | B22: Distribution Station Equipment <50 kV | E22: 0 | G22: 0 | J22: 0 | L22: 0
A23: 1825 | B23: Storage Battery Equipment | E23: 0 | G23: 0 | J23: 0 | L23: 0
A24: 1830 | B24: Poles, Towers & Fixtures | E24: 0 | G24: 0 | J24: 0 | L24: 0
A25: 1835 | B25: Overhead Conductors & Devices | E25: 0 | G25: 0 | J25: 0 | L25: 0
A26: 1840 | B26: Underground Conduit | E26: 0 | G26: 0 | J26: 0 | L26: 0
A27: 1845 | B27: Underground Conductors & Devices | E27: 0 | G27: 0 | J27: 0 | L27: 0
A28: 1850 | B28: Line Transformers | E28: 0 | G28: 0 | J28: 0 | L28: 0
A29: 1855 | B29: Services (Overhead & Underground) | E29: 0 | G29: 0 | J29: 0 | L29: 0
A30: 1860 | B30: Meters | E30: 0 | G30: 0 | J30: 0 | L30: 0
A31: 1860 | B31: Meters (Smart Meters) | E31: 0 | G31: 0 | J31: 0 | L31: 0
A32: 1905 | B32: Land | E32: 0 | G32: 0 | J32: 0 | L32: 0
A33: 1908 | B33: Buildings & Fixtures | E33: 0 | G33: 0 | J33: 0 | L33: 0
A34: 1910 | B34: Leasehold Improvements | E34: 0 | G34: 0 | J34: 0 | L34: 0
A35: 1915 | B35: Office Furniture & Equipment (10 years) | E35: 0 | G35: 0 | J35: 0 | L35: 0
A36: 1915 | B36: Office Furniture & Equipment (5 years) | E36: 0 | G36: 0 | J36: 0 | L36: 0
A37: 1920 | B37: Computer Equipment - Hardware | E37: 0 | G37: 0 | J37: 0 | L37: 0
A38: 1920 | B38: Computer Equip.-Hardware(Post Mar. 22/04) | E38: 0 | G38: 0 | J38: 0 | L38: 0
A39: 1920 | B39: Computer Equip.-Hardware(Post Mar. 19/07) | E39: 0 | G39: 0 | J39: 0 | L39: 0
A40: 1930 | B40: Transportation Equipment | E40: 0 | G40: 0 | J40: 0 | L40: 0
A41: 1935 | B41: Stores Equipment | E41: 0 | G41: 0 | J41: 0 | L41: 0
A42: 1940 | B42: Tools, Shop & Garage Equipment | E42: 0 | G42: 0 | J42: 0 | L42: 0
A43: 1945 | B43: Measurement & Testing Equipment | E43: 0 | G43: 0 | J43: 0 | L43: 0
A44: 1950 | B44: Power Operated Equipment | E44: 0 | G44: 0 | J44: 0 | L44: 0
A45: 1955 | B45: Communications Equipment | E45: 0 | G45: 0 | J45: 0 | L45: 0
A46: 1955 | B46: Communication Equipment (Smart Meters) | E46: 0 | G46: 0 | J46: 0 | L46: 0
A47: 1960 | B47: Miscellaneous Equipment | E47: 0 | G47: 0 | J47: 0 | L47: 0
A48: 1970 | B48: Load Management Controls Customer Premises | E48: 0 | G48: 0 | J48: 0 | L48: 0
A49: 1975 | B49: Load Management Controls Utility Premises | E49: 0 | G49: 0 | J49: 0 | L49: 0
A50: 1980 | B50: System Supervisor Equipment | E50: 0 | G50: 0 | J50: 0 | L50: 0
A51: 1985 | B51: Miscellaneous Fixed Assets | E51: 0 | G51: 0 | J51: 0 | L51: 0
A52: 1990 | B52: Other Tangible Property | E52: 0 | G52: 0 | J52: 0 | L52: 0
A53: 1995 | B53: Contributions & Grants | E53: 0 | G53: 0 | J53: 0 | L53: 0
A54: etc. | E54: 0 | G54: 0 | J54: 0 | L54: 0
E55: 0 | G55: 0 | J55: 0 | L55: 0
B56: Total | C56: =SUM(C16:C55) -> 0 | D56: =SUM(D16:D55) -> 0 | E56: =SUM(E16:E55) -> 0 | F56: =SUM(F16:F55) -> 0 | G56: =SUM(G16:G55) -> 0 | J56: =SUM(J16:J55) -> 0 | K56: =SUM(K16:K55) -> 0 | L56: =SUM(L16:L55) -> 0
A58: Notes:
A59: 1 | B59: Board policy of the "half-year" rule - the applicant must ensure that additions in the year attract a half-year depreciation expense in the first year. Deviations from this standard practice must be supported in the application.
A60: 2 | B60: The applicant must provide an explanation of material variances in evidence.
A61: General: | B61: Applicants must provide a breakdown of depreciation and amortization expense in the above format for all relevant accounts. Asset Retirement Obligations (AROs), depreciation and accretion expense should be disclosed separately consistent with the Notes of historical Audited Financial Statements.

Sheet App.2-CK_CGAAP_DepExp_2013 (hidden)
K1: File Number: | L1: =EBNUMBER -> 
K2: Exhibit:
K3: Tab:
K4: Schedule:
K5: Page:
K7: Date:
A9: Appendix 2-CK
A10: Depreciation and Amortization Expense
A11: Assumes the applicant adopted IFRS for financial reporting purposes January 1, 2014
C12: Year | D12: 2013 | E12: CGAAP
A14: Account | B14: Description | C14: Opening Regulatory Gross PP&E as at Jan 1, 2013 | D14: Less Fully Depreciated | E14: Net for Depreciation | F14: Additions | G14: Total for Depreciation | H14: Years | I14: Depreciation Rate | J14: 2013 Depreciation Expense | K14: 2013 Depreciation Expense per Appendix 2-B Fixed Assets, Column K (l) | L14: Variance 2
C15: (a) | D15: (b) | E15: (c) | F15: (d) | G15: (e) = (c) + ½ x (d) 1 | H15: (f) | I15: (g) = 1 / (f) | J15: (h) = (e) / (f) | L15: (m) = (h) - (l)
A16: 1611 | B16: Computer Software (Formally known as Account 1925) | E16: =C16-D16 -> 0 | G16: =E16+0.5*F16 -> 0 | I16: =IF(H16=0,0,1/H16) -> 0 | J16: =IF(H16=0,0,G16/H16) -> 0 | L16: =IF(ISERROR(+J16-K16), 0, +J16-K16) -> 0
A17: 1612 | B17: Land Rights (Formally known as Account 1906) | E17: =C17-D17 -> 0 | G17: =E17+0.5*F17 -> 0 | I17: 0 | J17: 0 | L17: 0
A18: 1805 | B18: Land | E18: 0 | G18: 0 | I18: 0 | J18: 0 | L18: 0
A19: 1808 | B19: Buildings | E19: 0 | G19: 0 | I19: 0 | J19: 0 | L19: 0
A20: 1810 | B20: Leasehold Improvements | E20: 0 | G20: 0 | I20: 0 | J20: 0 | L20: 0
A21: 1815 | B21: Transformer Station Equipment >50 kV | E21: 0 | G21: 0 | I21: 0 | J21: 0 | L21: 0
A22: 1820 | B22: Distribution Station Equipment <50 kV | E22: 0 | G22: 0 | I22: 0 | J22: 0 | L22: 0
A23: 1825 | B23: Storage Battery Equipment | E23: 0 | G23: 0 | I23: 0 | J23: 0 | L23: 0
A24: 1830 | B24: Poles, Towers & Fixtures | E24: 0 | G24: 0 | I24: 0 | J24: 0 | L24: 0
A25: 1835 | B25: Overhead Conductors & Devices | E25: 0 | G25: 0 | I25: 0 | J25: 0 | L25: 0
A26: 1840 | B26: Underground Conduit | E26: 0 | G26: 0 | I26: 0 | J26: 0 | L26: 0
A27: 1845 | B27: Underground Conductors & Devices | E27: 0 | G27: 0 | I27: 0 | J27: 0 | L27: 0
A28: 1850 | B28: Line Transformers | E28: 0 | G28: 0 | I28: 0 | J28: 0 | L28: 0
A29: 1855 | B29: Services (Overhead & Underground) | E29: 0 | G29: 0 | I29: 0 | J29: 0 | L29: 0
A30: 1860 | B30: Meters | E30: 0 | G30: 0 | I30: 0 | J30: 0 | L30: 0
A31: 1860 | B31: Meters (Smart Meters) | E31: 0 | G31: 0 | I31: 0 | J31: 0 | L31: 0
A32: 1905 | B32: Land | E32: 0 | G32: 0 | I32: 0 | J32: 0 | L32: 0
A33: 1908 | B33: Buildings & Fixtures | E33: 0 | G33: 0 | I33: 0 | J33: 0 | L33: 0
A34: 1910 | B34: Leasehold Improvements | E34: 0 | G34: 0 | I34: 0 | J34: 0 | L34: 0
A35: 1915 | B35: Office Furniture & Equipment (10 years) | E35: 0 | G35: 0 | I35: 0 | J35: 0 | L35: 0
A36: 1915 | B36: Office Furniture & Equipment (5 years) | E36: 0 | G36: 0 | I36: 0 | J36: 0 | L36: 0
A37: 1920 | B37: Computer Equipment - Hardware | E37: 0 | G37: 0 | I37: 0 | J37: 0 | L37: 0
A38: 1920 | B38: Computer Equip.-Hardware(Post Mar. 22/04) | E38: 0 | G38: 0 | I38: 0 | J38: 0 | L38: 0
A39: 1920 | B39: Computer Equip.-Hardware(Post Mar. 19/07) | E39: 0 | G39: 0 | I39: 0 | J39: 0 | L39: 0
A40: 1930 | B40: Transportation Equipment | E40: 0 | G40: 0 | I40: 0 | J40: 0 | L40: 0
A41: 1935 | B41: Stores Equipment | E41: 0 | G41: 0 | I41: 0 | J41: 0 | L41: 0
A42: 1940 | B42: Tools, Shop & Garage Equipment | E42: 0 | G42: 0 | I42: 0 | J42: 0 | L42: 0
A43: 1945 | B43: Measurement & Testing Equipment | E43: 0 | G43: 0 | I43: 0 | J43: 0 | L43: 0
A44: 1950 | B44: Power Operated Equipment | E44: 0 | G44: 0 | I44: 0 | J44: 0 | L44: 0
A45: 1955 | B45: Communications Equipment | E45: 0 | G45: 0 | I45: 0 | J45: 0 | L45: 0
A46: 1955 | B46: Communication Equipment (Smart Meters) | E46: 0 | G46: 0 | I46: 0 | J46: 0 | L46: 0
A47: 1960 | B47: Miscellaneous Equipment | E47: 0 | G47: 0 | I47: 0 | J47: 0 | L47: 0
A48: 1970 | B48: Load Management Controls Customer Premises | E48: 0 | G48: 0 | I48: 0 | J48: 0 | L48: 0
A49: 1975 | B49: Load Management Controls Utility Premises | E49: 0 | G49: 0 | I49: 0 | J49: 0 | L49: 0
A50: 1980 | B50: System Supervisor Equipment | E50: 0 | G50: 0 | I50: 0 | J50: 0 | L50: 0
A51: 1985 | B51: Miscellaneous Fixed Assets | E51: 0 | G51: 0 | I51: 0 | J51: 0 | L51: 0
A52: 1990 | B52: Other Tangible Property | E52: 0 | G52: 0 | I52: 0 | J52: 0 | L52: 0
A53: 1995 | B53: Contributions & Grants | E53: 0 | G53: 0 | I53: 0 | J53: 0 | L53: 0
A54: etc. | E54: 0 | G54: 0 | I54: 0 | J54: 0 | L54: 0
E55: 0 | G55: 0 | I55: 0 | J55: 0 | L55: 0
B56: Total | C56: =SUM(C16:C55) -> 0 | D56: =SUM(D16:D55) -> 0 | E56: =SUM(E16:E55) -> 0 | F56: =SUM(F16:F55) -> 0 | G56: =SUM(G16:G55) -> 0 | J56: =SUM(J16:J55) -> 0 | K56: =SUM(K16:K55) -> 0 | L56: =SUM(L16:L55) -> 0
A58: Notes:
A59: 1 | B59: Board policy of the "half-year" rule - the applicant must ensure that additions in the year attract a half-year depreciation expense in the first year. Deviations from this standard practice must be supported in the application.
A60: 2 | B60: The applicant must provide an explanation of material variances in evidence.
A62: General: | B62: Applicants must provide a breakdown of depreciation and amortization expense in the above format for all relevant accounts. Asset Retirement Obligations (AROs), depreciation and accretion expense should be disclosed separately consistent with the Notes of historical Audited Financial Statements.

Sheet App.2-CL_MIFRS_DepExp_2013 (hidden)
N1: File Number: | O1: =EBNUMBER -> 
N2: Exhibit:
N3: Tab:
N4: Schedule:
N5: Page:
N7: Date:
A9: Appendix 2-CL
A10: Depreciation and Amortization Expense
A11: Assumes the applicant adopted IFRS for financial reporting purposes January 1, 2014
C12: Year | D12: 2013 | E12: MIFRS
A14: Account | B14: Description | C14: Opening NBV as at Jan 1, 2013 5 | D14: Additions | E14: Average Remaining Life of Opening NBV 4 | F14: Years (new additions only) 3 | G14: Depreciation Rate on New Additions | H14: Depreciation Expense on Opening NBV | I14: Depreciation Expense on Additions 1 | J14: 2013 Depreciation Expense | K14: 2013 Depreciation Expense per Appendix 2-B Fixed Assets, Column K (l) | L14: Variance 2 | M14: Depreciation Expense on 2013 Full Year Additions | N14: Less Depreciation Expense on Assets Fully Depreciated during the year (o) | O14: 2013 Full Year Depreciation 6
C15: (a) | D15: (d) | E15: (i) | F15: (f) | G15: (g) = 1 / (f) | H15: (j) = (a) / (i) | I15: (h)=((d)*0.5)/(f) | J15: (k) = (j) + (h) | L15: (m) = (k) - (l) | M15: (n)=((d))/(f) | O15: (p) = (j) + (n) - (o)
A16: 1611 | B16: Computer Software (Formally known as Account 1925) | G16: =IF(F16=0,0,1/F16) -> 0 | H16: =IF(E16=0,0,+C16/E16) -> 0 | I16: =IF(F16=0,0,+(D16*0.5)/F16) -> 0 | J16: =IF(ISERROR(+H16+I16), 0, +H16+I16) -> 0 | L16: =IF(ISERROR(+J16-K16), 0, +J16-K16) -> 0 | M16: =IF(F16=0,0,+(D16)/F16) -> 0 | O16: =IF(ISERROR(+M16+H16-N16), 0, +M16+H16-N16) -> 0
A17: 1612 | B17: Land Rights (Formally known as Account 1906) | G17: 0 | H17: 0 | I17: 0 | J17: 0 | L17: 0 | M17: 0 | O17: =IF(ISERROR(+M17+H17-N17), 0, +M17+H17-N17) -> 0
A18: 1805 | B18: Land | G18: 0 | H18: 0 | I18: 0 | J18: 0 | L18: 0 | M18: 0 | O18: 0
A19: 1808 | B19: Buildings | G19: 0 | H19: 0 | I19: 0 | J19: 0 | L19: 0 | M19: 0 | O19: 0
A20: 1810 | B20: Leasehold Improvements | G20: 0 | H20: 0 | I20: 0 | J20: 0 | L20: 0 | M20: 0 | O20: 0
A21: 1815 | B21: Transformer Station Equipment >50 kV | G21: 0 | H21: 0 | I21: 0 | J21: 0 | L21: 0 | M21: 0 | O21: 0
A22: 1820 | B22: Distribution Station Equipment <50 kV | G22: 0 | H22: 0 | I22: 0 | J22: 0 | L22: 0 | M22: 0 | O22: 0
A23: 1825 | B23: Storage Battery Equipment | G23: 0 | H23: 0 | I23: 0 | J23: 0 | L23: 0 | M23: 0 | O23: 0
A24: 1830 | B24: Poles, Towers & Fixtures | G24: 0 | H24: 0 | I24: 0 | J24: 0 | L24: 0 | M24: 0 | O24: 0
A25: 1835 | B25: Overhead Conductors & Devices | G25: 0 | H25: 0 | I25: 0 | J25: 0 | L25: 0 | M25: 0 | O25: 0
A26: 1840 | B26: Underground Conduit | G26: 0 | H26: 0 | I26: 0 | J26: 0 | L26: 0 | M26: 0 | O26: 0
A27: 1845 | B27: Underground Conductors & Devices | G27: 0 | H27: 0 | I27: 0 | J27: 0 | L27: 0 | M27: 0 | O27: 0
A28: 1850 | B28: Line Transformers | G28: 0 | H28: 0 | I28: 0 | J28: 0 | L28: 0 | M28: 0 | O28: 0
A29: 1855 | B29: Services (Overhead & Underground) | G29: 0 | H29: 0 | I29: 0 | J29: 0 | L29: 0 | M29: 0 | O29: 0
A30: 1860 | B30: Meters | G30: 0 | H30: 0 | I30: 0 | J30: 0 | L30: 0 | M30: 0 | O30: 0
A31: 1860 | B31: Meters (Smart Meters) | G31: 0 | H31: 0 | I31: 0 | J31: 0 | L31: 0 | M31: 0 | O31: 0
A32: 1905 | B32: Land | G32: 0 | H32: 0 | I32: 0 | J32: 0 | L32: 0 | M32: 0 | O32: 0
A33: 1908 | B33: Buildings & Fixtures | G33: 0 | H33: 0 | I33: 0 | J33: 0 | L33: 0 | M33: 0 | O33: 0
A34: 1910 | B34: Leasehold Improvements | G34: 0 | H34: 0 | I34: 0 | J34: 0 | L34: 0 | M34: 0 | O34: 0
A35: 1915 | B35: Office Furniture & Equipment (10 years) | G35: 0 | H35: 0 | I35: 0 | J35: 0 | L35: 0 | M35: 0 | O35: 0
A36: 1915 | B36: Office Furniture & Equipment (5 years) | G36: 0 | H36: 0 | I36: 0 | J36: 0 | L36: 0 | M36: 0 | O36: 0
A37: 1920 | B37: Computer Equipment - Hardware | G37: 0 | H37: 0 | I37: 0 | J37: 0 | L37: 0 | M37: 0 | O37: 0
A38: 1920 | B38: Computer Equip.-Hardware(Post Mar. 22/04) | G38: 0 | H38: 0 | I38: 0 | J38: 0 | L38: 0 | M38: 0 | O38: 0
A39: 1920 | B39: Computer Equip.-Hardware(Post Mar. 19/07) | G39: 0 | H39: 0 | I39: 0 | J39: 0 | L39: 0 | M39: 0 | O39: 0
A40: 1930 | B40: Transportation Equipment | G40: 0 | H40: 0 | I40: 0 | J40: 0 | L40: 0 | M40: 0 | O40: 0
A41: 1935 | B41: Stores Equipment | G41: 0 | H41: 0 | I41: 0 | J41: 0 | L41: 0 | M41: 0 | O41: 0
A42: 1940 | B42: Tools, Shop & Garage Equipment | G42: 0 | H42: 0 | I42: 0 | J42: 0 | L42: 0 | M42: 0 | O42: 0
A43: 1945 | B43: Measurement & Testing Equipment | G43: 0 | H43: 0 | I43: 0 | J43: 0 | L43: 0 | M43: 0 | O43: 0
A44: 1950 | B44: Power Operated Equipment | G44: 0 | H44: 0 | I44: 0 | J44: 0 | L44: 0 | M44: 0 | O44: 0
A45: 1955 | B45: Communications Equipment | G45: 0 | H45: 0 | I45: 0 | J45: 0 | L45: 0 | M45: 0 | O45: 0
A46: 1955 | B46: Communication Equipment (Smart Meters) | G46: 0 | H46: 0 | I46: 0 | J46: 0 | L46: 0 | M46: 0 | O46: 0
A47: 1960 | B47: Miscellaneous Equipment | G47: 0 | H47: 0 | I47: 0 | J47: 0 | L47: 0 | M47: 0 | O47: 0
A48: 1970 | B48: Load Management Controls Customer Premises | G48: 0 | H48: 0 | I48: 0 | J48: 0 | L48: 0 | M48: 0 | O48: 0
A49: 1975 | B49: Load Management Controls Utility Premises | G49: 0 | H49: 0 | I49: 0 | J49: 0 | L49: 0 | M49: 0 | O49: 0
A50: 1980 | B50: System Supervisor Equipment | G50: 0 | H50: 0 | I50: 0 | J50: 0 | L50: 0 | M50: 0 | O50: 0
A51: 1985 | B51: Miscellaneous Fixed Assets | G51: 0 | H51: 0 | I51: 0 | J51: 0 | L51: 0 | M51: 0 | O51: 0
A52: 1990 | B52: Other Tangible Property | G52: 0 | H52: 0 | I52: 0 | J52: 0 | L52: 0 | M52: 0 | O52: 0
A53: 1995 | B53: Contributions & Grants | G53: 0 | H53: 0 | I53: 0 | J53: 0 | L53: 0 | M53: 0 | O53: 0
A54: etc. | G54: 0 | H54: 0 | I54: 0 | J54: 0 | L54: 0 | M54: 0 | O54: 0
G55: 0 | H55: 0 | I55: 0 | J55: 0 | L55: 0 | M55: 0 | O55: 0
B56: Total | C56: =SUM(C16:C55) -> 0 | D56: =SUM(D16:D55) -> 0 | H56: =SUM(H16:H55) -> 0 | I56: 0 | J56: 0 | K56: 0 | L56: 0 | M56: 0 | N56: =SUM(N16:N55) -> 0 | O56: 0
B57: Depreciation exp. adj. from gain or loss on the retirement of assets (pool of like assets) | J57: 0
B58: Total | J58: =+J56+J57 -> 0
A59: Notes:
A61: 1 | B61: Board policy of the "half-year" rule - the applicant must ensure that additions in the year attract a half-year depreciation expense in the first year. Deviations from this standard practice must be supported in the application.
A62: 2 | B62: The applicant must provide an explanation of material variances in evidence.
A63: 3 | B63: The applicant should ensure that the years for new additions of assets are the asset useful lives determined by management in accordance with IFRS.
A64: 4 | B64: A recalculation should be performed to determine the average remaining life of opening balance of assets (i.e. excluding 2013 additions) under IFRS. For example, Asset A had a useful life of 20 years under CGAAP. On January 1, 2013, the date of transition, Asset A was 3 years depreciated. As a result, Asset A would have a remaining service life of 17 years (20 years less 3 years) under CGAAP as of January 1, 2013. Due to the transition to IFRS, management re-assessed the asset useful lives under IFRS principles and concluded that the revised useful life of Asset A is now 30 years. Therefore, the average remaining useful life of opening balance of Asset A is determined to be 27 years (30 years less 3 years) under IFRS as of January 1, 2013.
A65: 5 | B65: NBV must exclude assets still on the books but which have been fully amortized or depreciated.
A66: 6 | B66: This column refers to the calculated full year depreciation but excludes the depreciation expense on assets fully depreciated during the year. This column is used for the purpose of calculating depreciation expense in the following year on the next worksheet.
A68: General: | B68: Applicants must provide a breakdown of depreciation and amortization expense in the above format for all relevant accounts. Asset Retirement Obligations (AROs), depreciation and accretion expense should be disclosed separately consistent with the Notes of historical Audited Financial Statements.

Sheet App.2-CM_MIFRS_DepExp_2014 (hidden)
I1: File Number: | J1: =EBNUMBER -> 
I2: Exhibit:
I3: Tab:
I4: Schedule:
I5: Page:
I7: Date:
A9: Appendix 2-CM
A10: Depreciation and Amortization Expense
A11: Assumes the applicant adopted IFRS for financial reporting purposes January 1, 2014
C12: Year | D12: 2014 | E12: MIFRS
A14: Account | B14: Description | C14: Additions | D14: Years (new additions only) | E14: Depreciation Rate on New Additions | F14: 2014 Depreciation Expense 1 | G14: 2014 Depreciation Expense per Appendix 2-B Fixed Assets, Column K (l) | H14: Variance 2
C15: (d) | D15: (f) | E15: (g) = 1 / (f) | F15: (h)=2013 Full Year Depreciation + ((d)*0.5)/(f) | H15: (m) = (h) - (l)
A16: 1611 | B16: Computer Software (Formally known as Account 1925) | E16: =IF(D16=0,0,1/D16) -> 0 | F16: =IF(D16=0,'App.2-CL_MIFRS_DepExp_2013'!O16,+'App.2-CL_MIFRS_DepExp_2013'!O16+((C16*0.5)/D16)) -> 0 | H16: =IF(ISERROR(+F16-G16), 0, +F16-G16) -> 0
A17: 1612 | B17: Land Rights (Formally known as Account 1906) | E17: 0 | F17: =IF(D17=0,'App.2-CL_MIFRS_DepExp_2013'!O17,+'App.2-CL_MIFRS_DepExp_2013'!O17+((C17*0.5)/D17)) -> 0 | H17: 0
A18: 1805 | B18: Land | E18: 0 | F18: =IF(D18=0,'App.2-CL_MIFRS_DepExp_2013'!O18,+'App.2-CL_MIFRS_DepExp_2013'!O18+((C18*0.5)/D18)) -> 0 | H18: 0
A19: 1808 | B19: Buildings | E19: 0 | F19: =IF(D19=0,'App.2-CL_MIFRS_DepExp_2013'!O19,+'App.2-CL_MIFRS_DepExp_2013'!O19+((C19*0.5)/D19)) -> 0 | H19: 0
A20: 1810 | B20: Leasehold Improvements | E20: 0 | F20: =IF(D20=0,'App.2-CL_MIFRS_DepExp_2013'!O20,+'App.2-CL_MIFRS_DepExp_2013'!O20+((C20*0.5)/D20)) -> 0 | H20: 0
A21: 1815 | B21: Transformer Station Equipment >50 kV | E21: 0 | F21: =IF(D21=0,'App.2-CL_MIFRS_DepExp_2013'!O21,+'App.2-CL_MIFRS_DepExp_2013'!O21+((C21*0.5)/D21)) -> 0 | H21: 0
A22: 1820 | B22: Distribution Station Equipment <50 kV | E22: 0 | F22: =IF(D22=0,'App.2-CL_MIFRS_DepExp_2013'!O22,+'App.2-CL_MIFRS_DepExp_2013'!O22+((C22*0.5)/D22)) -> 0 | H22: 0
A23: 1825 | B23: Storage Battery Equipment | E23: 0 | F23: =IF(D23=0,'App.2-CL_MIFRS_DepExp_2013'!O23,+'App.2-CL_MIFRS_DepExp_2013'!O23+((C23*0.5)/D23)) -> 0 | H23: 0
A24: 1830 | B24: Poles, Towers & Fixtures | E24: 0 | F24: =IF(D24=0,'App.2-CL_MIFRS_DepExp_2013'!O24,+'App.2-CL_MIFRS_DepExp_2013'!O24+((C24*0.5)/D24)) -> 0 | H24: 0
A25: 1835 | B25: Overhead Conductors & Devices | E25: 0 | F25: =IF(D25=0,'App.2-CL_MIFRS_DepExp_2013'!O25,+'App.2-CL_MIFRS_DepExp_2013'!O25+((C25*0.5)/D25)) -> 0 | H25: 0
A26: 1840 | B26: Underground Conduit | E26: 0 | F26: =IF(D26=0,'App.2-CL_MIFRS_DepExp_2013'!O26,+'App.2-CL_MIFRS_DepExp_2013'!O26+((C26*0.5)/D26)) -> 0 | H26: 0
A27: 1845 | B27: Underground Conductors & Devices | E27: 0 | F27: =IF(D27=0,'App.2-CL_MIFRS_DepExp_2013'!O27,+'App.2-CL_MIFRS_DepExp_2013'!O27+((C27*0.5)/D27)) -> 0 | H27: 0
A28: 1850 | B28: Line Transformers | E28: 0 | F28: =IF(D28=0,'App.2-CL_MIFRS_DepExp_2013'!O28,+'App.2-CL_MIFRS_DepExp_2013'!O28+((C28*0.5)/D28)) -> 0 | H28: 0
A29: 1855 | B29: Services (Overhead & Underground) | E29: 0 | F29: =IF(D29=0,'App.2-CL_MIFRS_DepExp_2013'!O29,+'App.2-CL_MIFRS_DepExp_2013'!O29+((C29*0.5)/D29)) -> 0 | H29: 0
A30: 1860 | B30: Meters | E30: 0 | F30: =IF(D30=0,'App.2-CL_MIFRS_DepExp_2013'!O30,+'App.2-CL_MIFRS_DepExp_2013'!O30+((C30*0.5)/D30)) -> 0 | H30: 0
A31: 1860 | B31: Meters (Smart Meters) | E31: 0 | F31: =IF(D31=0,'App.2-CL_MIFRS_DepExp_2013'!O31,+'App.2-CL_MIFRS_DepExp_2013'!O31+((C31*0.5)/D31)) -> 0 | H31: 0
A32: 1905 | B32: Land | E32: 0 | F32: =IF(D32=0,'App.2-CL_MIFRS_DepExp_2013'!O32,+'App.2-CL_MIFRS_DepExp_2013'!O32+((C32*0.5)/D32)) -> 0 | H32: 0
A33: 1908 | B33: Buildings & Fixtures | E33: 0 | F33: =IF(D33=0,'App.2-CL_MIFRS_DepExp_2013'!O33,+'App.2-CL_MIFRS_DepExp_2013'!O33+((C33*0.5)/D33)) -> 0 | H33: 0
A34: 1910 | B34: Leasehold Improvements | E34: 0 | F34: =IF(D34=0,'App.2-CL_MIFRS_DepExp_2013'!O34,+'App.2-CL_MIFRS_DepExp_2013'!O34+((C34*0.5)/D34)) -> 0 | H34: 0
A35: 1915 | B35: Office Furniture & Equipment (10 years) | E35: 0 | F35: =IF(D35=0,'App.2-CL_MIFRS_DepExp_2013'!O35,+'App.2-CL_MIFRS_DepExp_2013'!O35+((C35*0.5)/D35)) -> 0 | H35: 0
A36: 1915 | B36: Office Furniture & Equipment (5 years) | E36: 0 | F36: =IF(D36=0,'App.2-CL_MIFRS_DepExp_2013'!O36,+'App.2-CL_MIFRS_DepExp_2013'!O36+((C36*0.5)/D36)) -> 0 | H36: 0
A37: 1920 | B37: Computer Equipment - Hardware | E37: 0 | F37: =IF(D37=0,'App.2-CL_MIFRS_DepExp_2013'!O37,+'App.2-CL_MIFRS_DepExp_2013'!O37+((C37*0.5)/D37)) -> 0 | H37: 0
A38: 1920 | B38: Computer Equip.-Hardware(Post Mar. 22/04) | E38: 0 | F38: =IF(D38=0,'App.2-CL_MIFRS_DepExp_2013'!O38,+'App.2-CL_MIFRS_DepExp_2013'!O38+((C38*0.5)/D38)) -> 0 | H38: 0
A39: 1920 | B39: Computer Equip.-Hardware(Post Mar. 19/07) | E39: 0 | F39: =IF(D39=0,'App.2-CL_MIFRS_DepExp_2013'!O39,+'App.2-CL_MIFRS_DepExp_2013'!O39+((C39*0.5)/D39)) -> 0 | H39: 0
A40: 1930 | B40: Transportation Equipment | E40: 0 | F40: =IF(D40=0,'App.2-CL_MIFRS_DepExp_2013'!O40,+'App.2-CL_MIFRS_DepExp_2013'!O40+((C40*0.5)/D40)) -> 0 | H40: 0
A41: 1935 | B41: Stores Equipment | E41: 0 | F41: =IF(D41=0,'App.2-CL_MIFRS_DepExp_2013'!O41,+'App.2-CL_MIFRS_DepExp_2013'!O41+((C41*0.5)/D41)) -> 0 | H41: 0
A42: 1940 | B42: Tools, Shop & Garage Equipment | E42: 0 | F42: =IF(D42=0,'App.2-CL_MIFRS_DepExp_2013'!O42,+'App.2-CL_MIFRS_DepExp_2013'!O42+((C42*0.5)/D42)) -> 0 | H42: 0
A43: 1945 | B43: Measurement & Testing Equipment | E43: 0 | F43: =IF(D43=0,'App.2-CL_MIFRS_DepExp_2013'!O43,+'App.2-CL_MIFRS_DepExp_2013'!O43+((C43*0.5)/D43)) -> 0 | H43: 0
A44: 1950 | B44: Power Operated Equipment | E44: 0 | F44: =IF(D44=0,'App.2-CL_MIFRS_DepExp_2013'!O44,+'App.2-CL_MIFRS_DepExp_2013'!O44+((C44*0.5)/D44)) -> 0 | H44: 0
A45: 1955 | B45: Communications Equipment | E45: 0 | F45: =IF(D45=0,'App.2-CL_MIFRS_DepExp_2013'!O45,+'App.2-CL_MIFRS_DepExp_2013'!O45+((C45*0.5)/D45)) -> 0 | H45: 0
A46: 1955 | B46: Communication Equipment (Smart Meters) | E46: 0 | F46: =IF(D46=0,'App.2-CL_MIFRS_DepExp_2013'!O46,+'App.2-CL_MIFRS_DepExp_2013'!O46+((C46*0.5)/D46)) -> 0 | H46: 0
A47: 1960 | B47: Miscellaneous Equipment | E47: 0 | F47: =IF(D47=0,'App.2-CL_MIFRS_DepExp_2013'!O47,+'App.2-CL_MIFRS_DepExp_2013'!O47+((C47*0.5)/D47)) -> 0 | H47: 0
A48: 1970 | B48: Load Management Controls Customer Premises | E48: 0 | F48: =IF(D48=0,'App.2-CL_MIFRS_DepExp_2013'!O48,+'App.2-CL_MIFRS_DepExp_2013'!O48+((C48*0.5)/D48)) -> 0 | H48: 0
A49: 1975 | B49: Load Management Controls Utility Premises | E49: 0 | F49: =IF(D49=0,'App.2-CL_MIFRS_DepExp_2013'!O49,+'App.2-CL_MIFRS_DepExp_2013'!O49+((C49*0.5)/D49)) -> 0 | H49: 0
A50: 1980 | B50: System Supervisor Equipment | E50: 0 | F50: =IF(D50=0,'App.2-CL_MIFRS_DepExp_2013'!O50,+'App.2-CL_MIFRS_DepExp_2013'!O50+((C50*0.5)/D50)) -> 0 | H50: 0
A51: 1985 | B51: Miscellaneous Fixed Assets | E51: 0 | F51: =IF(D51=0,'App.2-CL_MIFRS_DepExp_2013'!O51,+'App.2-CL_MIFRS_DepExp_2013'!O51+((C51*0.5)/D51)) -> 0 | H51: 0
A52: 1990 | B52: Other Tangible Property | E52: 0 | F52: =IF(D52=0,'App.2-CL_MIFRS_DepExp_2013'!O52,+'App.2-CL_MIFRS_DepExp_2013'!O52+((C52*0.5)/D52)) -> 0 | H52: 0
A53: 1995 | B53: Contributions & Grants | E53: 0 | F53: =IF(D53=0,'App.2-CL_MIFRS_DepExp_2013'!O53,+'App.2-CL_MIFRS_DepExp_2013'!O53+((C53*0.5)/D53)) -> 0 | H53: 0
A54: etc. | E54: 0 | F54: =IF(D54=0,'App.2-CL_MIFRS_DepExp_2013'!O54,+'App.2-CL_MIFRS_DepExp_2013'!O54+((C54*0.5)/D54)) -> 0 | H54: 0
E55: 0 | F55: =IF(D55=0,'App.2-CL_MIFRS_DepExp_2013'!O55,+'App.2-CL_MIFRS_DepExp_2013'!O55+((C55*0.5)/D55)) -> 0 | H55: 0
B56: Total | C56: =SUM(C16:C55) -> 0 | F56: =SUM(F16:F55) -> 0 | G56: =SUM(G16:G55) -> 0 | H56: =SUM(H16:H55) -> 0
B57: Depreciation exp. adj. from gain or loss on the retirement of assets (pool of like assets) | F57: 0
B58: Total Depreciation expense to be included in the test year revenue requirement | F58: =SUM(F56:F57) -> 0
A60: Notes:
A61: 1 | B61: Board policy of the "half-year" rule - the applicant must ensure that additions in the year attract a half-year depreciation expense in the first year. Deviations from this standard practice must be supported in the application.
A62: 2 | B62: The applicant must provide an explanation of material variances in evidence.
A65: General: | B65: Applicants must provide a breakdown of depreciation and amortization expense in the above format for all relevant accounts. Asset Retirement Obligations (AROs), depreciation and accretion expense should be disclosed separately consistent with the Notes of historical Audited Financial Statements.

Sheet App.2-CN_OldCGAAP_DepExp_2012 (hidden)
K1: File Number: | L1: =EBNUMBER -> 
K2: Exhibit:
K3: Tab:
K4: Schedule:
K5: Page:
K7: Date:
A9: Appendix 2-CN
A10: Depreciation and Amortization Expense
A11: Assumes the applicant made capitalization and depreciation expense accounting policy changes under CGAAP effective January 1, 2012
C12: Year | D12: 2012 | E12: Former CGAAP - CGAAP without the changes to the policies
A14: Account | B14: Description | C14: Opening Regulatory Gross PP&E as at Jan 1, 2012 | D14: Less Fully Depreciated | E14: Net for Depreciation | F14: Additions | G14: Total for Depreciation | H14: Years | I14: Depreciation Rate | J14: Depreciation Expense | K14: 2012 Depreciation Expense per Appendix 2-B Fixed Assets, Column K (l) | L14: Variance 2
C15: (a) | D15: (b) | E15: (c) | F15: (d) | G15: (e) = (c) + ½ x (d) 1 | H15: (f) | I15: (g) = 1 / (f) | J15: (h) = (e) / (f) | L15: (m) = (h) - (l)
A16: 1611 | B16: Computer Software (Formally known as Account 1925) | E16: =C16-D16 -> 0 | G16: =E16+0.5*F16 -> 0 | I16: =IF(H16=0,0,1/H16) -> 0 | J16: =IF(H16=0,0,G16/H16) -> 0 | L16: =IF(ISERROR(+J16-K16), 0, +J16-K16) -> 0
A17: 1612 | B17: Land Rights (Formally known as Account 1906) | E17: =C17-D17 -> 0 | G17: =E17+0.5*F17 -> 0 | I17: 0 | J17: 0 | L17: 0
A18: 1805 | B18: Land | E18: 0 | G18: 0 | I18: 0 | J18: 0 | L18: 0
A19: 1808 | B19: Buildings | E19: 0 | G19: 0 | I19: 0 | J19: 0 | L19: 0
A20: 1810 | B20: Leasehold Improvements | E20: 0 | G20: 0 | I20: 0 | J20: 0 | L20: 0
A21: 1815 | B21: Transformer Station Equipment >50 kV | E21: 0 | G21: 0 | I21: 0 | J21: 0 | L21: 0
A22: 1820 | B22: Distribution Station Equipment <50 kV | E22: 0 | G22: 0 | I22: 0 | J22: 0 | L22: 0
A23: 1825 | B23: Storage Battery Equipment | E23: 0 | G23: 0 | I23: 0 | J23: 0 | L23: 0
A24: 1830 | B24: Poles, Towers & Fixtures | E24: 0 | G24: 0 | I24: 0 | J24: 0 | L24: 0
A25: 1835 | B25: Overhead Conductors & Devices | E25: 0 | G25: 0 | I25: 0 | J25: 0 | L25: 0
A26: 1840 | B26: Underground Conduit | E26: 0 | G26: 0 | I26: 0 | J26: 0 | L26: 0
A27: 1845 | B27: Underground Conductors & Devices | E27: 0 | G27: 0 | I27: 0 | J27: 0 | L27: 0
A28: 1850 | B28: Line Transformers | E28: 0 | G28: 0 | I28: 0 | J28: 0 | L28: 0
A29: 1855 | B29: Services (Overhead & Underground) | E29: 0 | G29: 0 | I29: 0 | J29: 0 | L29: 0
A30: 1860 | B30: Meters | E30: 0 | G30: 0 | I30: 0 | J30: 0 | L30: 0
A31: 1860 | B31: Meters (Smart Meters) | E31: 0 | G31: 0 | I31: 0 | J31: 0 | L31: 0
A32: 1905 | B32: Land | E32: 0 | G32: 0 | I32: 0 | J32: 0 | L32: 0
A33: 1908 | B33: Buildings & Fixtures | E33: 0 | G33: 0 | I33: 0 | J33: 0 | L33: 0
A34: 1910 | B34: Leasehold Improvements | E34: 0 | G34: 0 | I34: 0 | J34: 0 | L34: 0
A35: 1915 | B35: Office Furniture & Equipment (10 years) | E35: 0 | G35: 0 | I35: 0 | J35: 0 | L35: 0
A36: 1915 | B36: Office Furniture & Equipment (5 years) | E36: 0 | G36: 0 | I36: 0 | J36: 0 | L36: 0
A37: 1920 | B37: Computer Equipment - Hardware | E37: 0 | G37: 0 | I37: 0 | J37: 0 | L37: 0
A38: 1920 | B38: Computer Equip.-Hardware(Post Mar. 22/04) | E38: 0 | G38: 0 | I38: 0 | J38: 0 | L38: 0
A39: 1920 | B39: Computer Equip.-Hardware(Post Mar. 19/07) | E39: 0 | G39: 0 | I39: 0 | J39: 0 | L39: 0
A40: 1930 | B40: Transportation Equipment | E40: 0 | G40: 0 | I40: 0 | J40: 0 | L40: 0
A41: 1935 | B41: Stores Equipment | E41: 0 | G41: 0 | I41: 0 | J41: 0 | L41: 0
A42: 1940 | B42: Tools, Shop & Garage Equipment | E42: 0 | G42: 0 | I42: 0 | J42: 0 | L42: 0
A43: 1945 | B43: Measurement & Testing Equipment | E43: 0 | G43: 0 | I43: 0 | J43: 0 | L43: 0
A44: 1950 | B44: Power Operated Equipment | E44: 0 | G44: 0 | I44: 0 | J44: 0 | L44: 0
A45: 1955 | B45: Communications Equipment | E45: 0 | G45: 0 | I45: 0 | J45: 0 | L45: 0
A46: 1955 | B46: Communication Equipment (Smart Meters) | E46: 0 | G46: 0 | I46: 0 | J46: 0 | L46: 0
A47: 1960 | B47: Miscellaneous Equipment | E47: 0 | G47: 0 | I47: 0 | J47: 0 | L47: 0
A48: 1970 | B48: Load Management Controls - Customer Premises | E48: 0 | G48: 0 | I48: 0 | J48: 0 | L48: 0
A49: 1975 | B49: Load Management Controls Utility Premises | E49: 0 | G49: 0 | I49: 0 | J49: 0 | L49: 0
A50: 1980 | B50: System Supervisor Equipment | E50: 0 | G50: 0 | I50: 0 | J50: 0 | L50: 0
A51: 1985 | B51: Miscellaneous Fixed Assets | E51: 0 | G51: 0 | I51: 0 | J51: 0 | L51: 0
A52: 1990 | B52: Other Tangible Property | E52: 0 | G52: 0 | I52: 0 | J52: 0 | L52: 0
A53: 1995 | B53: Contributions & Grants | E53: 0 | G53: 0 | I53: 0 | J53: 0 | L53: 0
A54: etc. | E54: 0 | G54: 0 | I54: 0 | J54: 0 | L54: 0
E55: 0 | G55: 0 | I55: 0 | J55: 0 | L55: 0
B56: Total | C56: =SUM(C16:C55) -> 0 | D56: =SUM(D16:D55) -> 0 | E56: =SUM(E16:E55) -> 0 | F56: =SUM(F16:F55) -> 0 | G56: =SUM(G16:G55) -> 0 | J56: =SUM(J16:J55) -> 0 | K56: =SUM(K16:K55) -> 0 | L56: =SUM(L16:L55) -> 0
A58: Notes:
A60: 1 | B60: Board policy of the "half-year" rule - the applicant must ensure that additions in the year attract a half-year depreciation expense in the first year. Deviations from this standard practice must be supported in the application.
A61: 2 | B61: The applicant must provide an explanation of material variances in evidence.
A63: General | B63: Applicants must provide a breakdown of depreciation and amortization expense in the above format for all relevant accounts. Asset Retirement Obligations (AROs), depreciation and accretion expense should be disclosed separately consistent with the Notes of historical Audited Financial Statements.

Sheet App.2-CO_NewCGAAP_DepExp_2012 (hidden)
N1: File Number: | O1: =EBNUMBER -> 
N2: Exhibit:
N3: Tab:
N4: Schedule:
N5: Page:
N7: Date:
A9: Appendix 2-CO
A10: Depreciation and Amortization Expense
A11: Assumes the applicant made capitalization and depreciation expense accounting policy changes under CGAAP effective January 1, 2012
C13: Year | D13: 2012 | E13: Revised CGAAP or ASPE - CGAAP or ASPE with the changes to the policies
A15: Account | B15: Description | C15: Opening NBV as at Jan 1, 2012 5 | D15: Additions | E15: Average Remaining Life of Opening NBV 4 | F15: Years (new additions only) 3 | G15: Depreciation Rate on New Additions | H15: Depreciation Expense on Opening NBV | I15: Depreciation Expense on Additions 1 | J15: 2012 Depreciation Expense | K15: 2012 Depreciation Expense per Appendix 2-B Fixed Assets, Column K (l) | L15: Variance 2 | M15: Depreciation Expense on 2012 Full Year Additions | N15: Less Depreciation Expense on Assets Fully Depreciated during the year (o) | O15: 2012 Full Year Depreciation 6
C16: (a) | D16: (d) | E16: (i) | F16: (f) | G16: (g) = 1 / (f) | H16: (j) = (a) / (i) | I16: (h)=((d)*0.5)/(f) | J16: (k) = (j) + (h) | L16: (m) = (k) - (l) | M16: (n) = (d)/(f) | O16: (p) = (j) + (n) - (o)
A17: 1611 | B17: Computer Software (Formally known as Account 1925) | G17: =IF(F17=0,0,1/F17) -> 0 | H17: =IF(E17=0,0,+C17/E17) -> 0 | I17: =IF(F17=0,0,+(D17*0.5)/F17) -> 0 | J17: =IF(ISERROR(+H17+I17), 0, +H17+I17) -> 0 | L17: =IF(ISERROR(+J17-K17), 0, +J17-K17) -> 0 | M17: =IF(F17=0,0,+(D17)/F17) -> 0 | O17: =IF(ISERROR(+M17+H17-N17), 0, +M17+H17-N17) -> 0
A18: 1612 | B18: Land Rights (Formally known as Account 1906) | G18: 0 | H18: 0 | I18: 0 | J18: 0 | L18: 0 | M18: 0 | O18: =IF(ISERROR(+M18+H18-N18), 0, +M18+H18-N18) -> 0
A19: 1805 | B19: Land | G19: 0 | H19: 0 | I19: 0 | J19: 0 | L19: 0 | M19: 0 | O19: 0
A20: 1808 | B20: Buildings | G20: 0 | H20: 0 | I20: 0 | J20: 0 | L20: 0 | M20: 0 | O20: 0
A21: 1810 | B21: Leasehold Improvements | G21: 0 | H21: 0 | I21: 0 | J21: 0 | L21: 0 | M21: 0 | O21: 0
A22: 1815 | B22: Transformer Station Equipment >50 kV | G22: 0 | H22: 0 | I22: 0 | J22: 0 | L22: 0 | M22: 0 | O22: 0
A23: 1820 | B23: Distribution Station Equipment <50 kV | G23: 0 | H23: 0 | I23: 0 | J23: 0 | L23: 0 | M23: 0 | O23: 0
A24: 1825 | B24: Storage Battery Equipment | G24: 0 | H24: 0 | I24: 0 | J24: 0 | L24: 0 | M24: 0 | O24: 0
A25: 1830 | B25: Poles, Towers & Fixtures | G25: 0 | H25: 0 | I25: 0 | J25: 0 | L25: 0 | M25: 0 | O25: 0
A26: 1835 | B26: Overhead Conductors & Devices | G26: 0 | H26: 0 | I26: 0 | J26: 0 | L26: 0 | M26: 0 | O26: 0
A27: 1840 | B27: Underground Conduit | G27: 0 | H27: 0 | I27: 0 | J27: 0 | L27: 0 | M27: 0 | O27: 0
A28: 1845 | B28: Underground Conductors & Devices | G28: 0 | H28: 0 | I28: 0 | J28: 0 | L28: 0 | M28: 0 | O28: 0
A29: 1850 | B29: Line Transformers | G29: 0 | H29: 0 | I29: 0 | J29: 0 | L29: 0 | M29: 0 | O29: 0
A30: 1855 | B30: Services (Overhead & Underground) | G30: 0 | H30: 0 | I30: 0 | J30: 0 | L30: 0 | M30: 0 | O30: 0
A31: 1860 | B31: Meters | G31: 0 | H31: 0 | I31: 0 | J31: 0 | L31: 0 | M31: 0 | O31: 0
A32: 1860 | B32: Meters (Smart Meters) | G32: 0 | H32: 0 | I32: 0 | J32: 0 | L32: 0 | M32: 0 | O32: 0
A33: 1905 | B33: Land | G33: 0 | H33: 0 | I33: 0 | J33: 0 | L33: 0 | M33: 0 | O33: 0
A34: 1908 | B34: Buildings & Fixtures | G34: 0 | H34: 0 | I34: 0 | J34: 0 | L34: 0 | M34: 0 | O34: 0
A35: 1910 | B35: Leasehold Improvements | G35: 0 | H35: 0 | I35: 0 | J35: 0 | L35: 0 | M35: 0 | O35: 0
A36: 1915 | B36: Office Furniture & Equipment (10 years) | G36: 0 | H36: 0 | I36: 0 | J36: 0 | L36: 0 | M36: 0 | O36: 0
A37: 1915 | B37: Office Furniture & Equipment (5 years) | G37: 0 | H37: 0 | I37: 0 | J37: 0 | L37: 0 | M37: 0 | O37: 0
A38: 1920 | B38: Computer Equipment - Hardware | G38: 0 | H38: 0 | I38: 0 | J38: 0 | L38: 0 | M38: 0 | O38: 0
A39: 1920 | B39: Computer Equip.-Hardware(Post Mar. 22/04) | G39: 0 | H39: 0 | I39: 0 | J39: 0 | L39: 0 | M39: 0 | O39: 0
A40: 1920 | B40: Computer Equip.-Hardware(Post Mar. 19/07) | G40: 0 | H40: 0 | I40: 0 | J40: 0 | L40: 0 | M40: 0 | O40: 0
A41: 1930 | B41: Transportation Equipment | G41: 0 | H41: 0 | I41: 0 | J41: 0 | L41: 0 | M41: 0 | O41: 0
A42: 1935 | B42: Stores Equipment | G42: 0 | H42: 0 | I42: 0 | J42: 0 | L42: 0 | M42: 0 | O42: 0
A43: 1940 | B43: Tools, Shop & Garage Equipment | G43: 0 | H43: 0 | I43: 0 | J43: 0 | L43: 0 | M43: 0 | O43: 0
A44: 1945 | B44: Measurement & Testing Equipment | G44: 0 | H44: 0 | I44: 0 | J44: 0 | L44: 0 | M44: 0 | O44: 0
A45: 1950 | B45: Power Operated Equipment | G45: 0 | H45: 0 | I45: 0 | J45: 0 | L45: 0 | M45: 0 | O45: 0
A46: 1955 | B46: Communications Equipment | G46: 0 | H46: 0 | I46: 0 | J46: 0 | L46: 0 | M46: 0 | O46: 0
A47: 1955 | B47: Communication Equipment (Smart Meters) | G47: 0 | H47: 0 | I47: 0 | J47: 0 | L47: 0 | M47: 0 | O47: 0
A48: 1960 | B48: Miscellaneous Equipment | G48: 0 | H48: 0 | I48: 0 | J48: 0 | L48: 0 | M48: 0 | O48: 0
A49: 1970 | B49: Load Management Controls - Customer Premises | G49: 0 | H49: 0 | I49: 0 | J49: 0 | L49: 0 | M49: 0 | O49: 0
A50: 1975 | B50: Load Management Controls Utility Premises | G50: 0 | H50: 0 | I50: 0 | J50: 0 | L50: 0 | M50: 0 | O50: 0
A51: 1980 | B51: System Supervisor Equipment | G51: 0 | H51: 0 | I51: 0 | J51: 0 | L51: 0 | M51: 0 | O51: 0
A52: 1985 | B52: Miscellaneous Fixed Assets | G52: 0 | H52: 0 | I52: 0 | J52: 0 | L52: 0 | M52: 0 | O52: 0
A53: 1990 | B53: Other Tangible Property | G53: 0 | H53: 0 | I53: 0 | J53: 0 | L53: 0 | M53: 0 | O53: 0
A54: 1995 | B54: Contributions & Grants | G54: 0 | H54: 0 | I54: 0 | J54: 0 | L54: 0 | M54: 0 | O54: 0
A55: etc. | G55: 0 | H55: 0 | I55: 0 | J55: 0 | L55: 0 | M55: 0 | O55: 0
G56: 0 | H56: 0 | I56: 0 | J56: 0 | L56: 0 | M56: 0 | O56: 0
B57: Total | C57: =SUM(C17:C56) -> 0 | D57: =SUM(D17:D56) -> 0 | H57: =SUM(H17:H56) -> 0 | I57: 0 | J57: 0 | K57: 0 | L57: 0 | M57: 0 | N57: =SUM(N17:N56) -> 0 | O57: 0
A59: Notes:
A61: 1 | B61: Board policy of the "half-year" rule - the applicant must ensure that additions in the year attract a half-year depreciation expense in the first year. Deviations from this standard practice must be supported in the application.
A62: 2 | B62: The applicant must provide an explanation of material variances in evidence.
A63: 3 | B63: The applicant should ensure that the years for new additions of assets are the asset useful lives determined by management in accordance with the Board's regulatory accounting policies. The capitalization and depreciation expense accounting changes should be implemented consistent with the Board’s regulatory accounting policies as set out for modified IFRS as contained in the Report of the Board, Transition to International Financial Reporting Standards, EB-2008-0408, the Kinectrics Report, and the Revised 2012 Accounting Procedures Handbook for Electricity Distributors (“APH”).
A64: 4 | B64: A recalculation should be performed to determine the average remaining life of opening balance of assets (i.e. excluding 2012 additions) under the change in policies under CGAAP. For example, Asset A had a useful life of 20 years under CGAAP without the change in policies. On January 1, 2012, the effective date of the changes in policies, Asset A was 3 years depreciated. As a result, Asset A would have a remaining service life of 17 years (20 years less 3 years) as of January 1, 2012. Due to making the change in policies under CGAAP, management re-assessed the asset useful lives and concluded that the revised useful life of Asset A is now 30 years. Therefore, the average remaining useful life of the opening balance of Asset A is determined to be 27 years (30 years less 3 years) under the revised CGAAP as of January 1, 2012.
A65: 5 | B65: NBV must exclude assets still on the books but which have been fully amortized or depreciated.
A66: 6 | B66: This column refers to the calculated full year depreciation but excludes the depreciation expense on assets fully depreciated during the year. This column is used for the purpose of calculating depreciation expense in the following year on the next worksheet.
A68: General: | B68: Applicants must provide a breakdown of depreciation and amortization expense in the above format for all relevant accounts. Asset Retirement Obligations (AROs), depreciation and accretion expense should be disclosed separately consistent with the Notes of historical Audited Financial Statements.

Sheet App.2-CP_NewCGAAP_DepExp_2013 (hidden)
J1: File Number: | K1: =EBNUMBER -> 
J2: Exhibit:
J3: Tab:
J4: Schedule:
J5: Page:
J7: Date:
A9: Appendix 2-CP
A10: Depreciation and Amortization Expense
A11: Assumes the applicant made capitalization and depreciation expense accounting policy changes under CGAAP effective January 1, 2012
C12: 2013 | D12: Revised CGAAP or ASPE - CGAAP or ASPE with the changes to the policies
A14: Account | B14: Description | C14: Additions | D14: Years (new additions only) | E14: Depreciation Rate on New Additions | F14: 2013 Depreciation Expense 1 | G14: 2013 Depreciation Expense per Apppendix 2-B Fixed Assets, Column K (l) | H14: Variance 2 | I14: Depreciation Expense on 2013 Full Year Additions | J14: Less Depreciation Expense on Assets Fully Depreciated during the year (o) | K14: 2013 Full Year Depreciation 3
C15: (d) | D15: (f) | E15: (g) = 1 / (f) | F15: (h)=2012 Full Year Deprecation + ((d)*0.5)/(f) | H15: (m) = (h) - (l) | I15: (n)=((d))/(f) | K15: (p) = 2012 Full Year Depreciation + (n) - (o)
A16: 1611 | B16: Computer Software (Formally known as Account 1925) | E16: =IF(D16=0,0,1/D16) -> 0 | F16: =IF(D16=0,+'App.2-CO_NewCGAAP_DepExp_2012'!O17,+'App.2-CO_NewCGAAP_DepExp_2012'!O17+((C16*0.5)/D16)) -> 0 | H16: =IF(ISERROR(+F16-G16), 0, +F16-G16) -> 0 | I16: =IF(D16=0,0,+(C16)/D16) -> 0 | K16: =IF(ISERROR(+I16+'App.2-CO_NewCGAAP_DepExp_2012'!O17-J16), 0, +I16+'App.2-CO_NewCGAAP_DepExp_2012'!O17-J16) -> 0
A17: 1612 | B17: Land Rights (Formally known as Account 1906) | E17: 0 | F17: =IF(D17=0,+'App.2-CO_NewCGAAP_DepExp_2012'!O18,+'App.2-CO_NewCGAAP_DepExp_2012'!O18+((C17*0.5)/D17)) -> 0 | H17: 0 | I17: 0 | K17: =IF(ISERROR(+I17+'App.2-CO_NewCGAAP_DepExp_2012'!O18-J17), 0, +I17+'App.2-CO_NewCGAAP_DepExp_2012'!O18-J17) -> 0
A18: 1805 | B18: Land | E18: 0 | F18: =IF(D18=0,+'App.2-CO_NewCGAAP_DepExp_2012'!O19,+'App.2-CO_NewCGAAP_DepExp_2012'!O19+((C18*0.5)/D18)) -> 0 | H18: 0 | I18: 0 | K18: =IF(ISERROR(+I18+'App.2-CO_NewCGAAP_DepExp_2012'!O19-J18), 0, +I18+'App.2-CO_NewCGAAP_DepExp_2012'!O19-J18) -> 0
A19: 1808 | B19: Buildings | E19: 0 | F19: =IF(D19=0,+'App.2-CO_NewCGAAP_DepExp_2012'!O20,+'App.2-CO_NewCGAAP_DepExp_2012'!O20+((C19*0.5)/D19)) -> 0 | H19: 0 | I19: 0 | K19: =IF(ISERROR(+I19+'App.2-CO_NewCGAAP_DepExp_2012'!O20-J19), 0, +I19+'App.2-CO_NewCGAAP_DepExp_2012'!O20-J19) -> 0
A20: 1810 | B20: Leasehold Improvements | E20: 0 | F20: =IF(D20=0,+'App.2-CO_NewCGAAP_DepExp_2012'!O21,+'App.2-CO_NewCGAAP_DepExp_2012'!O21+((C20*0.5)/D20)) -> 0 | H20: 0 | I20: 0 | K20: =IF(ISERROR(+I20+'App.2-CO_NewCGAAP_DepExp_2012'!O21-J20), 0, +I20+'App.2-CO_NewCGAAP_DepExp_2012'!O21-J20) -> 0
A21: 1815 | B21: Transformer Station Equipment >50 kV | E21: 0 | F21: =IF(D21=0,+'App.2-CO_NewCGAAP_DepExp_2012'!O22,+'App.2-CO_NewCGAAP_DepExp_2012'!O22+((C21*0.5)/D21)) -> 0 | H21: 0 | I21: 0 | K21: =IF(ISERROR(+I21+'App.2-CO_NewCGAAP_DepExp_2012'!O22-J21), 0, +I21+'App.2-CO_NewCGAAP_DepExp_2012'!O22-J21) -> 0
A22: 1820 | B22: Distribution Station Equipment <50 kV | E22: 0 | F22: =IF(D22=0,+'App.2-CO_NewCGAAP_DepExp_2012'!O23,+'App.2-CO_NewCGAAP_DepExp_2012'!O23+((C22*0.5)/D22)) -> 0 | H22: 0 | I22: 0 | K22: =IF(ISERROR(+I22+'App.2-CO_NewCGAAP_DepExp_2012'!O23-J22), 0, +I22+'App.2-CO_NewCGAAP_DepExp_2012'!O23-J22) -> 0
A23: 1825 | B23: Storage Battery Equipment | E23: 0 | F23: =IF(D23=0,+'App.2-CO_NewCGAAP_DepExp_2012'!O24,+'App.2-CO_NewCGAAP_DepExp_2012'!O24+((C23*0.5)/D23)) -> 0 | H23: 0 | I23: 0 | K23: =IF(ISERROR(+I23+'App.2-CO_NewCGAAP_DepExp_2012'!O24-J23), 0, +I23+'App.2-CO_NewCGAAP_DepExp_2012'!O24-J23) -> 0
A24: 1830 | B24: Poles, Towers & Fixtures | E24: 0 | F24: =IF(D24=0,+'App.2-CO_NewCGAAP_DepExp_2012'!O25,+'App.2-CO_NewCGAAP_DepExp_2012'!O25+((C24*0.5)/D24)) -> 0 | H24: 0 | I24: 0 | K24: =IF(ISERROR(+I24+'App.2-CO_NewCGAAP_DepExp_2012'!O25-J24), 0, +I24+'App.2-CO_NewCGAAP_DepExp_2012'!O25-J24) -> 0
A25: 1835 | B25: Overhead Conductors & Devices | E25: 0 | F25: =IF(D25=0,+'App.2-CO_NewCGAAP_DepExp_2012'!O26,+'App.2-CO_NewCGAAP_DepExp_2012'!O26+((C25*0.5)/D25)) -> 0 | H25: 0 | I25: 0 | K25: =IF(ISERROR(+I25+'App.2-CO_NewCGAAP_DepExp_2012'!O26-J25), 0, +I25+'App.2-CO_NewCGAAP_DepExp_2012'!O26-J25) -> 0
A26: 1840 | B26: Underground Conduit | E26: 0 | F26: =IF(D26=0,+'App.2-CO_NewCGAAP_DepExp_2012'!O27,+'App.2-CO_NewCGAAP_DepExp_2012'!O27+((C26*0.5)/D26)) -> 0 | H26: 0 | I26: 0 | K26: =IF(ISERROR(+I26+'App.2-CO_NewCGAAP_DepExp_2012'!O27-J26), 0, +I26+'App.2-CO_NewCGAAP_DepExp_2012'!O27-J26) -> 0
A27: 1845 | B27: Underground Conductors & Devices | E27: 0 | F27: =IF(D27=0,+'App.2-CO_NewCGAAP_DepExp_2012'!O28,+'App.2-CO_NewCGAAP_DepExp_2012'!O28+((C27*0.5)/D27)) -> 0 | H27: 0 | I27: 0 | K27: =IF(ISERROR(+I27+'App.2-CO_NewCGAAP_DepExp_2012'!O28-J27), 0, +I27+'App.2-CO_NewCGAAP_DepExp_2012'!O28-J27) -> 0
A28: 1850 | B28: Line Transformers | E28: 0 | F28: =IF(D28=0,+'App.2-CO_NewCGAAP_DepExp_2012'!O29,+'App.2-CO_NewCGAAP_DepExp_2012'!O29+((C28*0.5)/D28)) -> 0 | H28: 0 | I28: 0 | K28: =IF(ISERROR(+I28+'App.2-CO_NewCGAAP_DepExp_2012'!O29-J28), 0, +I28+'App.2-CO_NewCGAAP_DepExp_2012'!O29-J28) -> 0
A29: 1855 | B29: Services (Overhead & Underground) | E29: 0 | F29: =IF(D29=0,+'App.2-CO_NewCGAAP_DepExp_2012'!O30,+'App.2-CO_NewCGAAP_DepExp_2012'!O30+((C29*0.5)/D29)) -> 0 | H29: 0 | I29: 0 | K29: =IF(ISERROR(+I29+'App.2-CO_NewCGAAP_DepExp_2012'!O30-J29), 0, +I29+'App.2-CO_NewCGAAP_DepExp_2012'!O30-J29) -> 0
A30: 1860 | B30: Meters | E30: 0 | F30: =IF(D30=0,+'App.2-CO_NewCGAAP_DepExp_2012'!O31,+'App.2-CO_NewCGAAP_DepExp_2012'!O31+((C30*0.5)/D30)) -> 0 | H30: 0 | I30: 0 | K30: =IF(ISERROR(+I30+'App.2-CO_NewCGAAP_DepExp_2012'!O31-J30), 0, +I30+'App.2-CO_NewCGAAP_DepExp_2012'!O31-J30) -> 0
A31: 1860 | B31: Meters (Smart Meters) | E31: 0 | F31: =IF(D31=0,+'App.2-CO_NewCGAAP_DepExp_2012'!O32,+'App.2-CO_NewCGAAP_DepExp_2012'!O32+((C31*0.5)/D31)) -> 0 | H31: 0 | I31: 0 | K31: =IF(ISERROR(+I31+'App.2-CO_NewCGAAP_DepExp_2012'!O32-J31), 0, +I31+'App.2-CO_NewCGAAP_DepExp_2012'!O32-J31) -> 0
A32: 1905 | B32: Land | E32: 0 | F32: =IF(D32=0,+'App.2-CO_NewCGAAP_DepExp_2012'!O33,+'App.2-CO_NewCGAAP_DepExp_2012'!O33+((C32*0.5)/D32)) -> 0 | H32: 0 | I32: 0 | K32: =IF(ISERROR(+I32+'App.2-CO_NewCGAAP_DepExp_2012'!O33-J32), 0, +I32+'App.2-CO_NewCGAAP_DepExp_2012'!O33-J32) -> 0
A33: 1908 | B33: Buildings & Fixtures | E33: 0 | F33: =IF(D33=0,+'App.2-CO_NewCGAAP_DepExp_2012'!O34,+'App.2-CO_NewCGAAP_DepExp_2012'!O34+((C33*0.5)/D33)) -> 0 | H33: 0 | I33: 0 | K33: =IF(ISERROR(+I33+'App.2-CO_NewCGAAP_DepExp_2012'!O34-J33), 0, +I33+'App.2-CO_NewCGAAP_DepExp_2012'!O34-J33) -> 0
A34: 1910 | B34: Leasehold Improvements | E34: 0 | F34: =IF(D34=0,+'App.2-CO_NewCGAAP_DepExp_2012'!O35,+'App.2-CO_NewCGAAP_DepExp_2012'!O35+((C34*0.5)/D34)) -> 0 | H34: 0 | I34: 0 | K34: =IF(ISERROR(+I34+'App.2-CO_NewCGAAP_DepExp_2012'!O35-J34), 0, +I34+'App.2-CO_NewCGAAP_DepExp_2012'!O35-J34) -> 0
A35: 1915 | B35: Office Furniture & Equipment (10 years) | E35: 0 | F35: =IF(D35=0,+'App.2-CO_NewCGAAP_DepExp_2012'!O36,+'App.2-CO_NewCGAAP_DepExp_2012'!O36+((C35*0.5)/D35)) -> 0 | H35: 0 | I35: 0 | K35: =IF(ISERROR(+I35+'App.2-CO_NewCGAAP_DepExp_2012'!O36-J35), 0, +I35+'App.2-CO_NewCGAAP_DepExp_2012'!O36-J35) -> 0
A36: 1915 | B36: Office Furniture & Equipment (5 years) | E36: 0 | F36: =IF(D36=0,+'App.2-CO_NewCGAAP_DepExp_2012'!O37,+'App.2-CO_NewCGAAP_DepExp_2012'!O37+((C36*0.5)/D36)) -> 0 | H36: 0 | I36: 0 | K36: =IF(ISERROR(+I36+'App.2-CO_NewCGAAP_DepExp_2012'!O37-J36), 0, +I36+'App.2-CO_NewCGAAP_DepExp_2012'!O37-J36) -> 0
A37: 1920 | B37: Computer Equipment - Hardware | E37: 0 | F37: =IF(D37=0,+'App.2-CO_NewCGAAP_DepExp_2012'!O38,+'App.2-CO_NewCGAAP_DepExp_2012'!O38+((C37*0.5)/D37)) -> 0 | H37: 0 | I37: 0 | K37: =IF(ISERROR(+I37+'App.2-CO_NewCGAAP_DepExp_2012'!O38-J37), 0, +I37+'App.2-CO_NewCGAAP_DepExp_2012'!O38-J37) -> 0
A38: 1920 | B38: Computer Equip.-Hardware(Post Mar. 22/04) | E38: 0 | F38: =IF(D38=0,+'App.2-CO_NewCGAAP_DepExp_2012'!O39,+'App.2-CO_NewCGAAP_DepExp_2012'!O39+((C38*0.5)/D38)) -> 0 | H38: 0 | I38: 0 | K38: =IF(ISERROR(+I38+'App.2-CO_NewCGAAP_DepExp_2012'!O39-J38), 0, +I38+'App.2-CO_NewCGAAP_DepExp_2012'!O39-J38) -> 0
A39: 1920 | B39: Computer Equip.-Hardware(Post Mar. 19/07) | E39: 0 | F39: =IF(D39=0,+'App.2-CO_NewCGAAP_DepExp_2012'!O40,+'App.2-CO_NewCGAAP_DepExp_2012'!O40+((C39*0.5)/D39)) -> 0 | H39: 0 | I39: 0 | K39: =IF(ISERROR(+I39+'App.2-CO_NewCGAAP_DepExp_2012'!O40-J39), 0, +I39+'App.2-CO_NewCGAAP_DepExp_2012'!O40-J39) -> 0
A40: 1930 | B40: Transportation Equipment | E40: 0 | F40: =IF(D40=0,+'App.2-CO_NewCGAAP_DepExp_2012'!O41,+'App.2-CO_NewCGAAP_DepExp_2012'!O41+((C40*0.5)/D40)) -> 0 | H40: 0 | I40: 0 | K40: =IF(ISERROR(+I40+'App.2-CO_NewCGAAP_DepExp_2012'!O41-J40), 0, +I40+'App.2-CO_NewCGAAP_DepExp_2012'!O41-J40) -> 0
A41: 1935 | B41: Stores Equipment | E41: 0 | F41: =IF(D41=0,+'App.2-CO_NewCGAAP_DepExp_2012'!O42,+'App.2-CO_NewCGAAP_DepExp_2012'!O42+((C41*0.5)/D41)) -> 0 | H41: 0 | I41: 0 | K41: =IF(ISERROR(+I41+'App.2-CO_NewCGAAP_DepExp_2012'!O42-J41), 0, +I41+'App.2-CO_NewCGAAP_DepExp_2012'!O42-J41) -> 0
A42: 1940 | B42: Tools, Shop & Garage Equipment | E42: 0 | F42: =IF(D42=0,+'App.2-CO_NewCGAAP_DepExp_2012'!O43,+'App.2-CO_NewCGAAP_DepExp_2012'!O43+((C42*0.5)/D42)) -> 0 | H42: 0 | I42: 0 | K42: =IF(ISERROR(+I42+'App.2-CO_NewCGAAP_DepExp_2012'!O43-J42), 0, +I42+'App.2-CO_NewCGAAP_DepExp_2012'!O43-J42) -> 0
A43: 1945 | B43: Measurement & Testing Equipment | E43: 0 | F43: =IF(D43=0,+'App.2-CO_NewCGAAP_DepExp_2012'!O44,+'App.2-CO_NewCGAAP_DepExp_2012'!O44+((C43*0.5)/D43)) -> 0 | H43: 0 | I43: 0 | K43: =IF(ISERROR(+I43+'App.2-CO_NewCGAAP_DepExp_2012'!O44-J43), 0, +I43+'App.2-CO_NewCGAAP_DepExp_2012'!O44-J43) -> 0
A44: 1950 | B44: Power Operated Equipment | E44: 0 | F44: =IF(D44=0,+'App.2-CO_NewCGAAP_DepExp_2012'!O45,+'App.2-CO_NewCGAAP_DepExp_2012'!O45+((C44*0.5)/D44)) -> 0 | H44: 0 | I44: 0 | K44: =IF(ISERROR(+I44+'App.2-CO_NewCGAAP_DepExp_2012'!O45-J44), 0, +I44+'App.2-CO_NewCGAAP_DepExp_2012'!O45-J44) -> 0
A45: 1955 | B45: Communications Equipment | E45: 0 | F45: =IF(D45=0,+'App.2-CO_NewCGAAP_DepExp_2012'!O46,+'App.2-CO_NewCGAAP_DepExp_2012'!O46+((C45*0.5)/D45)) -> 0 | H45: 0 | I45: 0 | K45: =IF(ISERROR(+I45+'App.2-CO_NewCGAAP_DepExp_2012'!O46-J45), 0, +I45+'App.2-CO_NewCGAAP_DepExp_2012'!O46-J45) -> 0
A46: 1955 | B46: Communication Equipment (Smart Meters) | E46: 0 | F46: =IF(D46=0,+'App.2-CO_NewCGAAP_DepExp_2012'!O47,+'App.2-CO_NewCGAAP_DepExp_2012'!O47+((C46*0.5)/D46)) -> 0 | H46: 0 | I46: 0 | K46: =IF(ISERROR(+I46+'App.2-CO_NewCGAAP_DepExp_2012'!O47-J46), 0, +I46+'App.2-CO_NewCGAAP_DepExp_2012'!O47-J46) -> 0
A47: 1960 | B47: Miscellaneous Equipment | E47: 0 | F47: =IF(D47=0,+'App.2-CO_NewCGAAP_DepExp_2012'!O48,+'App.2-CO_NewCGAAP_DepExp_2012'!O48+((C47*0.5)/D47)) -> 0 | H47: 0 | I47: 0 | K47: =IF(ISERROR(+I47+'App.2-CO_NewCGAAP_DepExp_2012'!O48-J47), 0, +I47+'App.2-CO_NewCGAAP_DepExp_2012'!O48-J47) -> 0
A48: 1970 | B48: Load Management Controls - Customer Premises | E48: 0 | F48: =IF(D48=0,+'App.2-CO_NewCGAAP_DepExp_2012'!O49,+'App.2-CO_NewCGAAP_DepExp_2012'!O49+((C48*0.5)/D48)) -> 0 | H48: 0 | I48: 0 | K48: =IF(ISERROR(+I48+'App.2-CO_NewCGAAP_DepExp_2012'!O49-J48), 0, +I48+'App.2-CO_NewCGAAP_DepExp_2012'!O49-J48) -> 0
A49: 1975 | B49: Load Management Controls Utility Premises | E49: 0 | F49: =IF(D49=0,+'App.2-CO_NewCGAAP_DepExp_2012'!O50,+'App.2-CO_NewCGAAP_DepExp_2012'!O50+((C49*0.5)/D49)) -> 0 | H49: 0 | I49: 0 | K49: =IF(ISERROR(+I49+'App.2-CO_NewCGAAP_DepExp_2012'!O50-J49), 0, +I49+'App.2-CO_NewCGAAP_DepExp_2012'!O50-J49) -> 0
A50: 1980 | B50: System Supervisor Equipment | E50: 0 | F50: =IF(D50=0,+'App.2-CO_NewCGAAP_DepExp_2012'!O51,+'App.2-CO_NewCGAAP_DepExp_2012'!O51+((C50*0.5)/D50)) -> 0 | H50: 0 | I50: 0 | K50: =IF(ISERROR(+I50+'App.2-CO_NewCGAAP_DepExp_2012'!O51-J50), 0, +I50+'App.2-CO_NewCGAAP_DepExp_2012'!O51-J50) -> 0
A51: 1985 | B51: Miscellaneous Fixed Assets | E51: 0 | F51: =IF(D51=0,+'App.2-CO_NewCGAAP_DepExp_2012'!O52,+'App.2-CO_NewCGAAP_DepExp_2012'!O52+((C51*0.5)/D51)) -> 0 | H51: 0 | I51: 0 | K51: =IF(ISERROR(+I51+'App.2-CO_NewCGAAP_DepExp_2012'!O52-J51), 0, +I51+'App.2-CO_NewCGAAP_DepExp_2012'!O52-J51) -> 0
A52: 1990 | B52: Other Tangible Property | E52: 0 | F52: =IF(D52=0,+'App.2-CO_NewCGAAP_DepExp_2012'!O53,+'App.2-CO_NewCGAAP_DepExp_2012'!O53+((C52*0.5)/D52)) -> 0 | H52: 0 | I52: 0 | K52: =IF(ISERROR(+I52+'App.2-CO_NewCGAAP_DepExp_2012'!O53-J52), 0, +I52+'App.2-CO_NewCGAAP_DepExp_2012'!O53-J52) -> 0
A53: 1995 | B53: Contributions & Grants | E53: 0 | F53: =IF(D53=0,+'App.2-CO_NewCGAAP_DepExp_2012'!O54,+'App.2-CO_NewCGAAP_DepExp_2012'!O54+((C53*0.5)/D53)) -> 0 | H53: 0 | I53: 0 | K53: =IF(ISERROR(+I53+'App.2-CO_NewCGAAP_DepExp_2012'!O54-J53), 0, +I53+'App.2-CO_NewCGAAP_DepExp_2012'!O54-J53) -> 0
A54: etc. | E54: 0 | F54: =IF(D54=0,+'App.2-CO_NewCGAAP_DepExp_2012'!O55,+'App.2-CO_NewCGAAP_DepExp_2012'!O55+((C54*0.5)/D54)) -> 0 | H54: 0 | I54: 0 | K54: =IF(ISERROR(+I54+'App.2-CO_NewCGAAP_DepExp_2012'!O55-J54), 0, +I54+'App.2-CO_NewCGAAP_DepExp_2012'!O55-J54) -> 0
E55: 0 | F55: =IF(D55=0,+'App.2-CO_NewCGAAP_DepExp_2012'!O56,+'App.2-CO_NewCGAAP_DepExp_2012'!O56+((C55*0.5)/D55)) -> 0 | H55: 0 | I55: 0 | K55: =IF(ISERROR(+I55+'App.2-CO_NewCGAAP_DepExp_2012'!O56-J55), 0, +I55+'App.2-CO_NewCGAAP_DepExp_2012'!O56-J55) -> 0
B56: Total | C56: =SUM(C16:C55) -> 0 | F56: =SUM(F16:F55) -> 0 | G56: 0 | H56: 0 | I56: 0 | J56: 0 | K56: 0
A58: Notes:
A59: 1 | B59: Board policy of the "half-year" rule - the applicant must ensure that additions in the year attract a half-year depreciation expense in the first year. Deviations from this standard practice must be supported in the application.
A60: 2 | B60: The applicant must provide an explanation of material variances in evidence.
A61: 3 | B61: This column refers to the calculated full year depreciation but excludes the depreciation expense on assets fully depreciated during the year. This column is used for the purpose of calculating depreciation expense in the following year on the next worksheet.
A63: General: | B63: Applicants must provide a breakdown of depreciation and amortization expense in the above format for all relevant accounts. Asset Retirement Obligations (AROs), depreciation and accretion expense should be disclosed separately consistent with the Notes of historical Audited Financial Statements.

Sheet App.2-CQ NewCGAAP_DepExp_2014 (hidden)
G1: File Number: | H1: =EBNUMBER -> 
G2: Exhibit:
G3: Tab:
G4: Schedule:
G5: Page:
G7: Date:
A9: Appendix 2-CQ
A10: Depreciation and Amortization Expense
A11: Assumes the applicant made capitalization and depreciation expense accounting policy changes under CGAAP effective January 1, 2012
B12: 2014 | C12: Revised CGAAP or ASPE - CGAAP or ASPE with the changes to the policies
A14: Account | B14: Description | C14: Additions | D14: Years (new additions only) | E14: Depreciation Rate on New Additions | F14: 2014 Depreciation Expense 1 | G14: 2014 Depreciation Expense per Appendix 2-B Fixed Assets, Column K (l) | H14: Variance 2
C15: (d) | D15: (f) | E15: (g) = 1 / (f) | F15: (h)=2013 Full Year Depreciation + ((d)*0.5)/(f) | H15: (m) = (h) - (l)
A16: 1611 | B16: Computer Software (Formally known as Account 1925) | E16: =IF(D16=0,0,1/D16) -> 0 | F16: =IF(D16=0,'App.2-CP_NewCGAAP_DepExp_2013'!K16,+'App.2-CP_NewCGAAP_DepExp_2013'!K16+((C16*0.5)/D16)) -> 0 | H16: =IF(ISERROR(+F16-G16), 0, +F16-G16) -> 0
A17: 1612 | B17: Land Rights (Formally known as Account 1906) | E17: 0 | F17: =IF(D17=0,'App.2-CP_NewCGAAP_DepExp_2013'!K17,+'App.2-CP_NewCGAAP_DepExp_2013'!K17+((C17*0.5)/D17)) -> 0 | H17: 0
A18: 1805 | B18: Land | E18: 0 | F18: =IF(D18=0,'App.2-CP_NewCGAAP_DepExp_2013'!K18,+'App.2-CP_NewCGAAP_DepExp_2013'!K18+((C18*0.5)/D18)) -> 0 | H18: 0
A19: 1808 | B19: Buildings | E19: 0 | F19: =IF(D19=0,'App.2-CP_NewCGAAP_DepExp_2013'!K19,+'App.2-CP_NewCGAAP_DepExp_2013'!K19+((C19*0.5)/D19)) -> 0 | H19: 0
A20: 1810 | B20: Leasehold Improvements | E20: 0 | F20: =IF(D20=0,'App.2-CP_NewCGAAP_DepExp_2013'!K20,+'App.2-CP_NewCGAAP_DepExp_2013'!K20+((C20*0.5)/D20)) -> 0 | H20: 0
A21: 1815 | B21: Transformer Station Equipment >50 kV | E21: 0 | F21: =IF(D21=0,'App.2-CP_NewCGAAP_DepExp_2013'!K21,+'App.2-CP_NewCGAAP_DepExp_2013'!K21+((C21*0.5)/D21)) -> 0 | H21: 0
A22: 1820 | B22: Distribution Station Equipment <50 kV | E22: 0 | F22: =IF(D22=0,'App.2-CP_NewCGAAP_DepExp_2013'!K22,+'App.2-CP_NewCGAAP_DepExp_2013'!K22+((C22*0.5)/D22)) -> 0 | H22: 0
A23: 1825 | B23: Storage Battery Equipment | E23: 0 | F23: =IF(D23=0,'App.2-CP_NewCGAAP_DepExp_2013'!K23,+'App.2-CP_NewCGAAP_DepExp_2013'!K23+((C23*0.5)/D23)) -> 0 | H23: 0
A24: 1830 | B24: Poles, Towers & Fixtures | E24: 0 | F24: =IF(D24=0,'App.2-CP_NewCGAAP_DepExp_2013'!K24,+'App.2-CP_NewCGAAP_DepExp_2013'!K24+((C24*0.5)/D24)) -> 0 | H24: 0
A25: 1835 | B25: Overhead Conductors & Devices | E25: 0 | F25: =IF(D25=0,'App.2-CP_NewCGAAP_DepExp_2013'!K25,+'App.2-CP_NewCGAAP_DepExp_2013'!K25+((C25*0.5)/D25)) -> 0 | H25: 0
A26: 1840 | B26: Underground Conduit | E26: 0 | F26: =IF(D26=0,'App.2-CP_NewCGAAP_DepExp_2013'!K26,+'App.2-CP_NewCGAAP_DepExp_2013'!K26+((C26*0.5)/D26)) -> 0 | H26: 0
A27: 1845 | B27: Underground Conductors & Devices | E27: 0 | F27: =IF(D27=0,'App.2-CP_NewCGAAP_DepExp_2013'!K27,+'App.2-CP_NewCGAAP_DepExp_2013'!K27+((C27*0.5)/D27)) -> 0 | H27: 0
A28: 1850 | B28: Line Transformers | E28: 0 | F28: =IF(D28=0,'App.2-CP_NewCGAAP_DepExp_2013'!K28,+'App.2-CP_NewCGAAP_DepExp_2013'!K28+((C28*0.5)/D28)) -> 0 | H28: 0
A29: 1855 | B29: Services (Overhead & Underground) | E29: 0 | F29: =IF(D29=0,'App.2-CP_NewCGAAP_DepExp_2013'!K29,+'App.2-CP_NewCGAAP_DepExp_2013'!K29+((C29*0.5)/D29)) -> 0 | H29: 0
A30: 1860 | B30: Meters | E30: 0 | F30: =IF(D30=0,'App.2-CP_NewCGAAP_DepExp_2013'!K30,+'App.2-CP_NewCGAAP_DepExp_2013'!K30+((C30*0.5)/D30)) -> 0 | H30: 0
A31: 1860 | B31: Meters (Smart Meters) | E31: 0 | F31: =IF(D31=0,'App.2-CP_NewCGAAP_DepExp_2013'!K31,+'App.2-CP_NewCGAAP_DepExp_2013'!K31+((C31*0.5)/D31)) -> 0 | H31: 0
A32: 1905 | B32: Land | E32: 0 | F32: =IF(D32=0,'App.2-CP_NewCGAAP_DepExp_2013'!K32,+'App.2-CP_NewCGAAP_DepExp_2013'!K32+((C32*0.5)/D32)) -> 0 | H32: 0
A33: 1908 | B33: Buildings & Fixtures | E33: 0 | F33: =IF(D33=0,'App.2-CP_NewCGAAP_DepExp_2013'!K33,+'App.2-CP_NewCGAAP_DepExp_2013'!K33+((C33*0.5)/D33)) -> 0 | H33: 0
A34: 1910 | B34: Leasehold Improvements | E34: 0 | F34: =IF(D34=0,'App.2-CP_NewCGAAP_DepExp_2013'!K34,+'App.2-CP_NewCGAAP_DepExp_2013'!K34+((C34*0.5)/D34)) -> 0 | H34: 0
A35: 1915 | B35: Office Furniture & Equipment (10 years) | E35: 0 | F35: =IF(D35=0,'App.2-CP_NewCGAAP_DepExp_2013'!K35,+'App.2-CP_NewCGAAP_DepExp_2013'!K35+((C35*0.5)/D35)) -> 0 | H35: 0
A36: 1915 | B36: Office Furniture & Equipment (5 years) | E36: 0 | F36: =IF(D36=0,'App.2-CP_NewCGAAP_DepExp_2013'!K36,+'App.2-CP_NewCGAAP_DepExp_2013'!K36+((C36*0.5)/D36)) -> 0 | H36: 0
A37: 1920 | B37: Computer Equipment - Hardware | E37: 0 | F37: =IF(D37=0,'App.2-CP_NewCGAAP_DepExp_2013'!K37,+'App.2-CP_NewCGAAP_DepExp_2013'!K37+((C37*0.5)/D37)) -> 0 | H37: 0
A38: 1920 | B38: Computer Equip.-Hardware(Post Mar. 22/04) | E38: 0 | F38: =IF(D38=0,'App.2-CP_NewCGAAP_DepExp_2013'!K38,+'App.2-CP_NewCGAAP_DepExp_2013'!K38+((C38*0.5)/D38)) -> 0 | H38: 0
A39: 1920 | B39: Computer Equip.-Hardware(Post Mar. 19/07) | E39: 0 | F39: =IF(D39=0,'App.2-CP_NewCGAAP_DepExp_2013'!K39,+'App.2-CP_NewCGAAP_DepExp_2013'!K39+((C39*0.5)/D39)) -> 0 | H39: 0
A40: 1930 | B40: Transportation Equipment | E40: 0 | F40: =IF(D40=0,'App.2-CP_NewCGAAP_DepExp_2013'!K40,+'App.2-CP_NewCGAAP_DepExp_2013'!K40+((C40*0.5)/D40)) -> 0 | H40: 0
A41: 1935 | B41: Stores Equipment | E41: 0 | F41: =IF(D41=0,'App.2-CP_NewCGAAP_DepExp_2013'!K41,+'App.2-CP_NewCGAAP_DepExp_2013'!K41+((C41*0.5)/D41)) -> 0 | H41: 0
A42: 1940 | B42: Tools, Shop & Garage Equipment | E42: 0 | F42: =IF(D42=0,'App.2-CP_NewCGAAP_DepExp_2013'!K42,+'App.2-CP_NewCGAAP_DepExp_2013'!K42+((C42*0.5)/D42)) -> 0 | H42: 0
A43: 1945 | B43: Measurement & Testing Equipment | E43: 0 | F43: =IF(D43=0,'App.2-CP_NewCGAAP_DepExp_2013'!K43,+'App.2-CP_NewCGAAP_DepExp_2013'!K43+((C43*0.5)/D43)) -> 0 | H43: 0
A44: 1950 | B44: Power Operated Equipment | E44: 0 | F44: =IF(D44=0,'App.2-CP_NewCGAAP_DepExp_2013'!K44,+'App.2-CP_NewCGAAP_DepExp_2013'!K44+((C44*0.5)/D44)) -> 0 | H44: 0
A45: 1955 | B45: Communications Equipment | E45: 0 | F45: =IF(D45=0,'App.2-CP_NewCGAAP_DepExp_2013'!K45,+'App.2-CP_NewCGAAP_DepExp_2013'!K45+((C45*0.5)/D45)) -> 0 | H45: 0
A46: 1955 | B46: Communication Equipment (Smart Meters) | E46: 0 | F46: =IF(D46=0,'App.2-CP_NewCGAAP_DepExp_2013'!K46,+'App.2-CP_NewCGAAP_DepExp_2013'!K46+((C46*0.5)/D46)) -> 0 | H46: 0
A47: 1960 | B47: Miscellaneous Equipment | E47: 0 | F47: =IF(D47=0,'App.2-CP_NewCGAAP_DepExp_2013'!K47,+'App.2-CP_NewCGAAP_DepExp_2013'!K47+((C47*0.5)/D47)) -> 0 | H47: 0
A48: 1970 | B48: Load Management Controls - Customer Premises | E48: 0 | F48: =IF(D48=0,'App.2-CP_NewCGAAP_DepExp_2013'!K48,+'App.2-CP_NewCGAAP_DepExp_2013'!K48+((C48*0.5)/D48)) -> 0 | H48: 0
A49: 1975 | B49: Load Management Controls Utility Premises | E49: 0 | F49: =IF(D49=0,'App.2-CP_NewCGAAP_DepExp_2013'!K49,+'App.2-CP_NewCGAAP_DepExp_2013'!K49+((C49*0.5)/D49)) -> 0 | H49: 0
A50: 1980 | B50: System Supervisor Equipment | E50: 0 | F50: =IF(D50=0,'App.2-CP_NewCGAAP_DepExp_2013'!K50,+'App.2-CP_NewCGAAP_DepExp_2013'!K50+((C50*0.5)/D50)) -> 0 | H50: 0
A51: 1985 | B51: Miscellaneous Fixed Assets | E51: 0 | F51: =IF(D51=0,'App.2-CP_NewCGAAP_DepExp_2013'!K51,+'App.2-CP_NewCGAAP_DepExp_2013'!K51+((C51*0.5)/D51)) -> 0 | H51: 0
A52: 1990 | B52: Other Tangible Property | E52: 0 | F52: =IF(D52=0,'App.2-CP_NewCGAAP_DepExp_2013'!K52,+'App.2-CP_NewCGAAP_DepExp_2013'!K52+((C52*0.5)/D52)) -> 0 | H52: 0
A53: 1995 | B53: Contributions & Grants | E53: 0 | F53: =IF(D53=0,'App.2-CP_NewCGAAP_DepExp_2013'!K53,+'App.2-CP_NewCGAAP_DepExp_2013'!K53+((C53*0.5)/D53)) -> 0 | H53: 0
A54: etc. | E54: 0 | F54: =IF(D54=0,'App.2-CP_NewCGAAP_DepExp_2013'!K54,+'App.2-CP_NewCGAAP_DepExp_2013'!K54+((C54*0.5)/D54)) -> 0 | H54: 0
E55: 0 | F55: =IF(D55=0,'App.2-CP_NewCGAAP_DepExp_2013'!K55,+'App.2-CP_NewCGAAP_DepExp_2013'!K55+((C55*0.5)/D55)) -> 0 | H55: 0
B56: Total | C56: =SUM(C16:C55) -> 0 | F56: =SUM(F16:F55) -> 0 | G56: =SUM(G16:G55) -> 0 | H56: =SUM(H16:H55) -> 0
B57: Total Depreciation expense to be included in the test year revenue requirement | F57: =+F56 -> 0
A58: Notes:
A59: 1 | B59: Board policy of the "half-year" rule - the applicant must ensure that additions in the year attract a half-year depreciation expense in the first year. Deviations from this standard practice must be supported in the application.
A60: 2 | B60: The applicant must provide an explanation of material variances in evidence.
A62: General: | B62: Applicants must provide a breakdown of depreciation and amortization expense in the above format for all relevant accounts. Asset Retirement Obligations (AROs), depreciation and accretion expense should be disclosed separately consistent with the Notes of historical Audited Financial Statements.

Sheet App.2-CR_OldCGAAP_DepExp_2012 (hidden)
K1: File Number: | L1: =CASENUMBER -> 
K2: Exhibit:
K3: Tab:
K4: Schedule:
K5: Page:
K7: Date:
A9: Appendix 2-CR
A10: Depreciation and Amortization Expense
A11: Assumes the applicant made capitalization and depreciation expense accounting policy changes under CGAAP effective January 1, 2013
C12: Year | D12: 2012 | E12: Former CGAAP - CGAAP without the changes to the policies
A14: Account | B14: Description | C14: Opening Regulatory Gross PP&E as at Jan 1, 2012 | D14: Less Fully Depreciated | E14: Net for Depreciation | F14: Additions | G14: Total for Depreciation | H14: Years | I14: Depreciation Rate | J14: 2012 Depreciation Expense | K14: 2012 Depreciation Expense per Appendix 2-B Fixed Assets, Column K (l) | L14: Variance 2
C15: (a) | D15: (b) | E15: (c) | F15: (d) | G15: (e) = (c) + ½ x (d) 1 | H15: (f) | I15: (g) = 1 / (f) | J15: (h) = (e) / (f) | L15: (m) = (h) - (l)
A16: 1611 | B16: Computer Software (Formally known as Account 1925) | E16: =C16-D16 -> 0 | G16: =E16+0.5*F16 -> 0 | I16: =IF(H16=0,"",1/H16) ->  | J16: =IF(H16=0,0,G16/H16) -> 0 | L16: =IF(ISERROR(+J16-K16), "", +J16-K16) -> 0
A17: 1612 | B17: Land Rights (Formally known as Account 1906) | E17: =C17-D17 -> 0 | G17: =E17+0.5*F17 -> 0 | J17: 0 | L17: =IF(ISERROR(+J17-K17), "", +J17-K17) -> 0
A18: 1805 | B18: Land | E18: 0 | G18: 0 | J18: 0 | L18: 0
A19: 1808 | B19: Buildings | E19: 0 | G19: 0 | J19: 0 | L19: 0
A20: 1810 | B20: Leasehold Improvements | E20: 0 | G20: 0 | J20: 0 | L20: 0
A21: 1815 | B21: Transformer Station Equipment >50 kV | E21: 0 | G21: 0 | J21: 0 | L21: 0
A22: 1820 | B22: Distribution Station Equipment <50 kV | E22: 0 | G22: 0 | J22: 0 | L22: 0
A23: 1825 | B23: Storage Battery Equipment | E23: 0 | G23: 0 | J23: 0 | L23: 0
A24: 1830 | B24: Poles, Towers & Fixtures | E24: 0 | G24: 0 | J24: 0 | L24: 0
A25: 1835 | B25: Overhead Conductors & Devices | E25: 0 | G25: 0 | J25: 0 | L25: 0
A26: 1840 | B26: Underground Conduit | E26: 0 | G26: 0 | J26: 0 | L26: 0
A27: 1845 | B27: Underground Conductors & Devices | E27: 0 | G27: 0 | J27: 0 | L27: 0
A28: 1850 | B28: Line Transformers | E28: 0 | G28: 0 | J28: 0 | L28: 0
A29: 1855 | B29: Services (Overhead & Underground) | E29: 0 | G29: 0 | J29: 0 | L29: 0
A30: 1860 | B30: Meters | E30: 0 | G30: 0 | J30: 0 | L30: 0
A31: 1860 | B31: Meters (Smart Meters) | E31: 0 | G31: 0 | J31: 0 | L31: 0
A32: 1905 | B32: Land | E32: 0 | G32: 0 | J32: 0 | L32: 0
A33: 1908 | B33: Buildings & Fixtures | E33: 0 | G33: 0 | J33: 0 | L33: 0
A34: 1910 | B34: Leasehold Improvements | E34: 0 | G34: 0 | J34: 0 | L34: 0
A35: 1915 | B35: Office Furniture & Equipment (10 years) | E35: 0 | G35: 0 | J35: 0 | L35: 0
A36: 1915 | B36: Office Furniture & Equipment (5 years) | E36: 0 | G36: 0 | J36: 0 | L36: 0
A37: 1920 | B37: Computer Equipment - Hardware | E37: 0 | G37: 0 | J37: 0 | L37: 0
A38: 1920 | B38: Computer Equip.-Hardware(Post Mar. 22/04) | E38: 0 | G38: 0 | J38: 0 | L38: 0
A39: 1920 | B39: Computer Equip.-Hardware(Post Mar. 19/07) | E39: 0 | G39: 0 | J39: 0 | L39: 0
A40: 1930 | B40: Transportation Equipment | E40: 0 | G40: 0 | J40: 0 | L40: 0
A41: 1935 | B41: Stores Equipment | E41: 0 | G41: 0 | J41: 0 | L41: 0
A42: 1940 | B42: Tools, Shop & Garage Equipment | E42: 0 | G42: 0 | J42: 0 | L42: 0
A43: 1945 | B43: Measurement & Testing Equipment | E43: 0 | G43: 0 | J43: 0 | L43: 0
A44: 1950 | B44: Power Operated Equipment | E44: 0 | G44: 0 | J44: 0 | L44: 0
A45: 1955 | B45: Communications Equipment | E45: 0 | G45: 0 | J45: 0 | L45: 0
A46: 1955 | B46: Communication Equipment (Smart Meters) | E46: 0 | G46: 0 | J46: 0 | L46: 0
A47: 1960 | B47: Miscellaneous Equipment | E47: 0 | G47: 0 | J47: 0 | L47: 0
A48: 1975 | B48: Load Management Controls Utility Premises | E48: 0 | G48: 0 | J48: 0 | L48: 0
A49: 1980 | B49: System Supervisor Equipment | E49: 0 | G49: 0 | J49: 0 | L49: 0
A50: 1985 | B50: Miscellaneous Fixed Assets | E50: 0 | G50: 0 | J50: 0 | L50: 0
A51: 1995 | B51: Contributions & Grants | E51: 0 | G51: 0 | J51: 0 | L51: 0
A52: etc. | E52: 0 | G52: 0 | J52: 0 | L52: 0
E53: 0 | G53: 0 | J53: 0 | L53: 0
B54: Total | C54: =SUM(C16:C53) -> 0 | D54: =SUM(D16:D53) -> 0 | E54: =SUM(E16:E53) -> 0 | F54: =SUM(F16:F53) -> 0 | G54: =SUM(G16:G53) -> 0 | J54: =SUM(J16:J53) -> 0 | K54: =SUM(K16:K53) -> 0 | L54: =SUM(L16:L53) -> 0

Sheet App.2-CS_OldCGAAP_DepExp_2013 (hidden)
K1: File Number: | L1: =CASENUMBER -> 
K2: Exhibit:
K3: Tab:
K4: Schedule:
K5: Page:
K7: Date:
A9: Appendix 2-CS
A10: Depreciation and Amortization Expense
A11: Assumes the applicant made capitalization and depreciation expense accounting policy changes under CGAAP effective January 1, 2013
C12: Year | D12: 2013 | E12: Former CGAAP - CGAAP without the changes to the policies
A14: Account | B14: Description | C14: Opening Regulatory Gross PP&E as at Jan 1, 2013 | D14: Less Fully Depreciated | E14: Net for Depreciation | F14: Additions | G14: Total for Depreciation | H14: Years | I14: Depreciation Rate | J14: 2013 Depreciation Expense | K14: 2013 Depreciation Expense per Appendix 2-B Fixed Assets, Column K (l) | L14: Variance 2
C15: (a) | D15: (b) | E15: (c) | F15: (d) | G15: (e) = (c) + ½ x (d) 1 | H15: (f) | I15: (g) = 1 / (f) | J15: (h) = (e) / (f) | L15: (m) = (h) - (l)
A16: 1611 | B16: Computer Software (Formally known as Account 1925) | E16: 0 | G16: 0 | I16: 0 | J16: 0 | L16: 0
A17: 1612 | B17: Land Rights (Formally known as Account 1906) | E17: 0 | G17: 0 | I17: 0 | J17: 0 | L17: 0
A18: 1805 | B18: Land | E18: 0 | G18: 0 | I18: 0 | J18: 0 | L18: 0
A19: 1808 | B19: Buildings | E19: 0 | G19: 0 | I19: 0 | J19: 0 | L19: 0
A20: 1810 | B20: Leasehold Improvements | E20: 0 | G20: 0 | I20: 0 | J20: 0 | L20: 0
A21: 1815 | B21: Transformer Station Equipment >50 kV | E21: 0 | G21: 0 | I21: 0 | J21: 0 | L21: 0
A22: 1820 | B22: Distribution Station Equipment <50 kV | E22: 0 | G22: 0 | I22: 0 | J22: 0 | L22: 0
A23: 1825 | B23: Storage Battery Equipment | E23: 0 | G23: 0 | I23: 0 | J23: 0 | L23: 0
A24: 1830 | B24: Poles, Towers & Fixtures | E24: 0 | G24: 0 | I24: 0 | J24: 0 | L24: 0
A25: 1835 | B25: Overhead Conductors & Devices | E25: 0 | G25: 0 | I25: 0 | J25: 0 | L25: 0
A26: 1840 | B26: Underground Conduit | E26: 0 | G26: 0 | I26: 0 | J26: 0 | L26: 0
A27: 1845 | B27: Underground Conductors & Devices | E27: 0 | G27: 0 | I27: 0 | J27: 0 | L27: 0
A28: 1850 | B28: Line Transformers | E28: 0 | G28: 0 | I28: 0 | J28: 0 | L28: 0
A29: 1855 | B29: Services (Overhead & Underground) | E29: 0 | G29: 0 | I29: 0 | J29: 0 | L29: 0
A30: 1860 | B30: Meters | E30: 0 | G30: 0 | I30: 0 | J30: 0 | L30: 0
A31: 1860 | B31: Meters (Smart Meters) | E31: 0 | G31: 0 | I31: 0 | J31: 0 | L31: 0
A32: 1905 | B32: Land | E32: 0 | G32: 0 | I32: 0 | J32: 0 | L32: 0
A33: 1908 | B33: Buildings & Fixtures | E33: 0 | G33: 0 | I33: 0 | J33: 0 | L33: 0
A34: 1910 | B34: Leasehold Improvements | E34: 0 | G34: 0 | I34: 0 | J34: 0 | L34: 0
A35: 1915 | B35: Office Furniture & Equipment (10 years) | E35: 0 | G35: 0 | I35: 0 | J35: 0 | L35: 0
A36: 1915 | B36: Office Furniture & Equipment (5 years) | E36: 0 | G36: 0 | I36: 0 | J36: 0 | L36: 0
A37: 1920 | B37: Computer Equipment - Hardware | E37: 0 | G37: 0 | I37: 0 | J37: 0 | L37: 0
A38: 1920 | B38: Computer Equip.-Hardware(Post Mar. 22/04) | E38: 0 | G38: 0 | I38: 0 | J38: 0 | L38: 0
A39: 1920 | B39: Computer Equip.-Hardware(Post Mar. 19/07) | E39: 0 | G39: 0 | I39: 0 | J39: 0 | L39: 0
A40: 1930 | B40: Transportation Equipment | E40: 0 | G40: 0 | I40: 0 | J40: 0 | L40: 0
A41: 1935 | B41: Stores Equipment | E41: 0 | G41: 0 | I41: 0 | J41: 0 | L41: 0
A42: 1940 | B42: Tools, Shop & Garage Equipment | E42: 0 | G42: 0 | I42: 0 | J42: 0 | L42: 0
A43: 1945 | B43: Measurement & Testing Equipment | E43: 0 | G43: 0 | I43: 0 | J43: 0 | L43: 0
A44: 1950 | B44: Power Operated Equipment | E44: 0 | G44: 0 | I44: 0 | J44: 0 | L44: 0
A45: 1955 | B45: Communications Equipment | E45: 0 | G45: 0 | I45: 0 | J45: 0 | L45: 0
A46: 1955 | B46: Communication Equipment (Smart Meters) | E46: 0 | G46: 0 | I46: 0 | J46: 0 | L46: 0
A47: 1960 | B47: Miscellaneous Equipment | E47: 0 | G47: 0 | I47: 0 | J47: 0 | L47: 0
A48: 1970 | B48: Load Management Controls - Customer Premises | E48: 0 | G48: 0 | I48: 0 | J48: 0 | L48: 0
A49: 1975 | B49: Load Management Controls Utility Premises | E49: 0 | G49: 0 | I49: 0 | J49: 0 | L49: 0
A50: 1980 | B50: System Supervisor Equipment | E50: 0 | G50: 0 | I50: 0 | J50: 0 | L50: 0
A51: 1985 | B51: Miscellaneous Fixed Assets | E51: 0 | G51: 0 | I51: 0 | J51: 0 | L51: 0
A52: 1990 | B52: Other Tangible Property | E52: 0 | G52: 0 | I52: 0 | J52: 0 | L52: 0
A53: 1995 | B53: Contributions & Grants | E53: 0 | G53: 0 | I53: 0 | J53: 0 | L53: 0
A54: etc. | E54: 0 | G54: 0 | I54: 0 | J54: 0 | L54: 0
E55: 0 | G55: 0 | I55: 0 | J55: 0 | L55: 0
B56: Total | C56: 0 | D56: 0 | E56: 0 | F56: 0 | G56: 0 | J56: 0 | K56: 0 | L56: 0

Sheet App.2-CV_USGAAP_DepExp (hidden)
K1: File Number: | L1: =EBNUMBER -> 
K2: Exhibit:
K3: Tab:
K4: Schedule:
K5: Page:
K7: Date:
A9: Appendix 2-CV
A10: Depreciation and Amortization Expense
A11: Assumes the applicant adopted USGAAP for financial reporting purposes. For applicants adopting USGAAP for financial reporting purposes January 1, 2012, applicants must complete 5 versions of the table below (2011 CGAAP, 2011 USGAAP, 2012 USGAAP, 2013 USGAAP, and 2014 USGAAP). For applicants adopting USGAAP for financial reporting purposes January 1, 2013, applicants must complete 4 versions of the table below (2012 CGAAP, 2012 USGAAP, 2013 USGAAP, and 2014 USGAAP). For applicants adopting USGAAP for financial reporting purposes January 1, 2014, applicants must complete 4 versions of the table below (2012 CGAAP, 2013 CGAAP, 2013 USGAAP, and 2014 USGAAP).
B12: Year | D12: USGAAP
A14: Account | B14: Description | C14: Opening Regulatory Gross PP&E | D14: Less Fully Depreciated | E14: Net for Depreciation | F14: Additions | G14: Total for Depreciation | H14: Years | I14: Depreciation Rate | J14: Depreciation Expense | K14: Depreciation Expense per Appendix 2-B Fixed Assets, Column K (l) | L14: Variance 2
C15: (a) | D15: (b) | E15: (c) | F15: (d) | G15: (e) = (c) + ½ x (d) 1 | H15: (f) | I15: (g) = 1 / (f) | J15: (h) = (e) / (f) | L15: (m) = (h) - (l)
A16: 1611 | B16: Computer Software (Formally known as Account 1925) | E16: =C16-D16 -> 0 | G16: =E16+0.5*F16 -> 0 | I16: =IF(H16=0,0,1/H16) -> 0 | J16: =IF(H16=0,0,G16/H16) -> 0 | L16: =IF(ISERROR(+J16-K16), 0, +J16-K16) -> 0
A17: 1612 | B17: Land Rights (Formally known as Account 1906) | E17: =C17-D17 -> 0 | G17: =E17+0.5*F17 -> 0 | I17: 0 | J17: 0 | L17: 0
A18: 1805 | B18: Land | E18: 0 | G18: 0 | I18: 0 | J18: 0 | L18: 0
A19: 1808 | B19: Buildings | E19: 0 | G19: 0 | I19: 0 | J19: 0 | L19: 0
A20: 1810 | B20: Leasehold Improvements | E20: 0 | G20: 0 | I20: 0 | J20: 0 | L20: 0
A21: 1815 | B21: Transformer Station Equipment >50 kV | E21: 0 | G21: 0 | I21: 0 | J21: 0 | L21: 0
A22: 1820 | B22: Distribution Station Equipment <50 kV | E22: 0 | G22: 0 | I22: 0 | J22: 0 | L22: 0
A23: 1825 | B23: Storage Battery Equipment | E23: 0 | G23: 0 | I23: 0 | J23: 0 | L23: 0
A24: 1830 | B24: Poles, Towers & Fixtures | E24: 0 | G24: 0 | I24: 0 | J24: 0 | L24: 0
A25: 1835 | B25: Overhead Conductors & Devices | E25: 0 | G25: 0 | I25: 0 | J25: 0 | L25: 0
A26: 1840 | B26: Underground Conduit | E26: 0 | G26: 0 | I26: 0 | J26: 0 | L26: 0
A27: 1845 | B27: Underground Conductors & Devices | E27: 0 | G27: 0 | I27: 0 | J27: 0 | L27: 0
A28: 1850 | B28: Line Transformers | E28: 0 | G28: 0 | I28: 0 | J28: 0 | L28: 0
A29: 1855 | B29: Services (Overhead & Underground) | E29: 0 | G29: 0 | I29: 0 | J29: 0 | L29: 0
A30: 1860 | B30: Meters | E30: 0 | G30: 0 | I30: 0 | J30: 0 | L30: 0
A31: 1860 | B31: Meters (Smart Meters) | E31: 0 | G31: 0 | I31: 0 | J31: 0 | L31: 0
A32: 1905 | B32: Land | E32: 0 | G32: 0 | I32: 0 | J32: 0 | L32: 0
A33: 1908 | B33: Buildings & Fixtures | E33: 0 | G33: 0 | I33: 0 | J33: 0 | L33: 0
A34: 1910 | B34: Leasehold Improvements | E34: 0 | G34: 0 | I34: 0 | J34: 0 | L34: 0
A35: 1915 | B35: Office Furniture & Equipment (10 years) | E35: 0 | G35: 0 | I35: 0 | J35: 0 | L35: 0
A36: 1915 | B36: Office Furniture & Equipment (5 years) | E36: 0 | G36: 0 | I36: 0 | J36: 0 | L36: 0
A37: 1920 | B37: Computer Equipment - Hardware | E37: 0 | G37: 0 | I37: 0 | J37: 0 | L37: 0
A38: 1920 | B38: Computer Equip.-Hardware(Post Mar. 22/04) | E38: 0 | G38: 0 | I38: 0 | J38: 0 | L38: 0
A39: 1920 | B39: Computer Equip.-Hardware(Post Mar. 19/07) | E39: 0 | G39: 0 | I39: 0 | J39: 0 | L39: 0
A40: 1930 | B40: Transportation Equipment | E40: 0 | G40: 0 | I40: 0 | J40: 0 | L40: 0
A41: 1935 | B41: Stores Equipment | E41: 0 | G41: 0 | I41: 0 | J41: 0 | L41: 0
A42: 1940 | B42: Tools, Shop & Garage Equipment | E42: 0 | G42: 0 | I42: 0 | J42: 0 | L42: 0
A43: 1945 | B43: Measurement & Testing Equipment | E43: 0 | G43: 0 | I43: 0 | J43: 0 | L43: 0
A44: 1950 | B44: Power Operated Equipment | E44: 0 | G44: 0 | I44: 0 | J44: 0 | L44: 0
A45: 1955 | B45: Communications Equipment | E45: 0 | G45: 0 | I45: 0 | J45: 0 | L45: 0
A46: 1955 | B46: Communication Equipment (Smart Meters) | E46: 0 | G46: 0 | I46: 0 | J46: 0 | L46: 0
A47: 1960 | B47: Miscellaneous Equipment | E47: 0 | G47: 0 | I47: 0 | J47: 0 | L47: 0
A48: 1970 | B48: Load Management Controls - Customer Premises | E48: 0 | G48: 0 | I48: 0 | J48: 0 | L48: 0
A49: 1975 | B49: Load Management Controls Utility Premises | E49: 0 | G49: 0 | I49: 0 | J49: 0 | L49: 0
A50: 1980 | B50: System Supervisor Equipment | E50: 0 | G50: 0 | I50: 0 | J50: 0 | L50: 0
A51: 1985 | B51: Miscellaneous Fixed Assets | E51: 0 | G51: 0 | I51: 0 | J51: 0 | L51: 0
A52: 1990 | B52: Other Tangible Property | E52: 0 | G52: 0 | I52: 0 | J52: 0 | L52: 0
A53: 1995 | B53: Contributions & Grants | E53: 0 | G53: 0 | I53: 0 | J53: 0 | L53: 0
A54: etc. | E54: 0 | G54: 0 | I54: 0 | J54: 0 | L54: 0
E55: 0 | G55: 0 | I55: 0 | J55: 0 | L55: 0
B56: Total | C56: =SUM(C16:C55) -> 0 | D56: =SUM(D16:D55) -> 0 | E56: =SUM(E16:E55) -> 0 | F56: =SUM(F16:F55) -> 0 | G56: =SUM(G16:G55) -> 0 | J56: =SUM(J16:J55) -> 0 | K56: =SUM(K16:K55) -> 0 | L56: =SUM(L16:L55) -> 0
A58: Notes:
A60: 1 | B60: Board policy of the "half-year" rule - the applicant must ensure that additions in the year attract a half-year depreciation expense in the first year. Deviations from this standard practice must be supported in the application.
A61: 2 | B61: The applicant must provide an explanation of material variances in evidence.
A64: General: | B64: Applicants must provide a breakdown of depreciation and amortization expense in the above format for all relevant accounts. Asset Retirement Obligations (AROs), depreciation and accretion expense should be disclosed separately consistent with the Notes of historical Audited Financial Statements.

Sheet App.2-DA_Overhead (hidden)
L1: File Number: | M1: =EBNUMBER -> 
L2: Exhibit:
L3: Tab:
L4: Schedule:
L5: Page:
L7: Date:
A9: Appendix 2-DA
A10: Overhead Expense
A12: The following table should be completed based on the information requested below. An explanation should be provided for any blank entries. The entries should include overhead costs that are currently capitalized on self-constructed assets under MIFRS.
E13: (A) 1 | F13: (B) | G13: (C) | H13: (D) | I13: (E) 1 | J13: (F) | K13: (G)
A14: Nature of the Overhead Costs | E14: Dollar | F14: Dollar | G14: Dollar | H14: Dollar Impact - | I14: Dollar Impact - | J14: Directly | K14: Reasons why the overhead costs are allowed to be
E15: Impact on PP&E | F15: Impact on PP&E | G15: Impact on PP&E | H15: PP&E Variance | I15: PP&E Variance | J15: Attributable? | K15: capitalized under MIFRS or an alternate accounting
E16: Historic Year | F16: Bridge Year | G16: Test Year | H16: Test versus Bridge | I16: Test versus Historic | J16: (Y/N) | K16: standard given limitations on capitalized overhead
A17: employee benefits | H17: =+G17-F17 -> 0 | I17: =+G17-E17 -> 0
A18: costs of site preparation | H18: 0 | I18: 0
A19: initial delivery and handling costs | H19: 0 | I19: 0
A20: costs of testing whether the asset is functioning properly | H20: 0 | I20: 0
A21: professional fees | H21: 0 | I21: 0
H22: 0 | I22: 0
A23: costs of opening a new facility | H23: 0 | I23: 0
A24: costs of introducing a new product or service (including costs of advertising and promotional activities) | H24: 0 | I24: 0
A25: costs of conducting business in a new location or with a new class of customer (including costs of staff training) | H25: 0 | I25: 0
A26: administration and other general overhead costs | H26: 0 | I26: 0
H27: 0 | I27: 0
H28: 0 | I28: 0
H29: 0 | I29: 0
A30: Insert description of additional item(s) and new rows if needed. | H30: 0 | I30: 0
A31: Total | E31: =SUM(E17:E30) -> 0 | F31: =SUM(F17:F30) -> 0 | G31: =SUM(G17:G30) -> 0 | H31: =SUM(H17:H30) -> 0 | I31: =SUM(I17:I30) -> 0
A34: The following table should be completed based on the information requested below. An explanation should be provided for any blank entries. The entries should include overhead costs that were capitalized on self-constructed assets under CGAAP but are no longer capitalized under MIFRS or an alternate accounting standard and are included in OM&A.
E35: (A) 1 | F35: (B) | G35: (C) | H35: (D) | I35: (E) 1 | J35: (F) | K35: (G)
A36: Nature of the Overhead Costs | E36: Dollar | F36: Dollar | G36: Dollar | H36: Dollar Impact - | I36: Dollar Impact - | J36: Directly | K36: Reasons why the overhead costs are not allowed to be
E37: Impact on OM&A | F37: Impact on OM&A | G37: Impact on OM&A | H37: OM&A Variance | I37: OM&A Variance | J37: Attributable? | K37: capitalized under MIFRS or an alternate accounting
E38: Historic Year | F38: Bridge Year | G38: Test Year | H38: Test versus Bridge | I38: Test versus Historic | J38: (Y/N) | K38: standard given limitations on capitalized overhead
A39: employee benefits | H39: =+G39-F39 -> 0 | I39: =+G39-E39 -> 0
A40: costs of site preparation | H40: =+G40-F40 -> 0 | I40: =+G40-E40 -> 0
A41: initial delivery and handling costs | H41: =+G41-F41 -> 0 | I41: =+G41-E41 -> 0
A42: costs of testing whether the asset is functioning properly | H42: =+G42-F42 -> 0 | I42: =+G42-E42 -> 0
A43: professional fees | H43: =+G43-F43 -> 0 | I43: =+G43-E43 -> 0
A45: costs of opening a new facility | H45: =+G45-F45 -> 0 | I45: =+G45-E45 -> 0
A46: costs of introducing a new product or service (including costs of advertising and promotional activities) | H46: 0 | I46: 0
A47: costs of conducting business in a new location or with a new class of customer (including costs of staff training) | H47: 0 | I47: 0
A48: administration and other general overhead costs | H48: 0 | I48: 0
H49: 0 | I49: 0
H50: 0 | I50: 0
H51: 0 | I51: 0
A52: Insert description of additional item(s) and new rows if needed. | H52: 0 | I52: 0
A53: Total | E53: =SUM(E39:E52) -> 0 | F53: =SUM(F39:F52) -> 0 | G53: =SUM(G39:G52) -> 0 | H53: =SUM(H39:H52) -> 0 | I53: =SUM(I39:I52) -> 0
A55: Notes:
A56: 1 | B56: If the applicant chooses to adopt IFRS for financial reporting purposes in 2014, the applicant does not need to complete Columns A, E. If the applicant adopts IFRS for financial reporting purposes in 2012 or 2013, the applicant must complete all columns.

Sheet App.2-EA_PP&E Deferral Account (hidden)
H1: File Number: | I1: =EBNUMBER -> 
H2: Exhibit:
H3: Tab:
H4: Schedule:
H5: Page:
H7: Date:
A9: Appendix 2-EA
A10: Account 1575 - IFRS-CGAAP Transitional PP&E Amounts
A11: 2012 Adopters of IFRS for Financial Reporting Purposes
A13: For applicants that adopt IFRS on January 1, 2012 for financial reporting purposes
A15: Note: this sheet should be filled out if the applicant adopts IFRS for its financial reporting purpose as of January 1, 2012.
B17: 2010 Rebasing Year | C17: 2011 | D17: 2012 | E17: 2013 | F17: 2014 Rebasing Year | G17: 2015 | H17: 2016 | I17: 2017 | J17: 2018
A18: Reporting Basis | B18: CGAAP | C18: IRM | D18: IRM | E18: IRM | F18: MIFRS | G18: IRM | H18: IRM | I18: IRM | J18: IRM
A19: Forecast vs. Actual Used in Rebasing Year | B19: Forecast | C19: Actual | D19: Actual | E19: Forecast | F19: Forecast
C20: $ | D20: $ | E20: $ | F20: $ | G20: $ | H20: $ | I20: $ | J20: $
A21: PP&E Values under CGAAP
A22: Opening net PP&E - Note 1 | D22: =+C25 -> 0 | E22: =+D25 -> 0
A23: Net Additions - Note 4
A24: Net Depreciation (amounts should be negative) - Note 4
A25: Closing net PP&E (1) | C25: =C22+C23+C24 -> 0 | D25: =D22+D23+D24 -> 0 | E25: =E22+E23+E24 -> 0
A27: PP&E Values under MIFRS (Starts from 2011, the transition year)
A28: Opening net PP&E - Note 1 | D28: =+C31 -> 0 | E28: =+D31 -> 0
A29: Net Additions - Note 4
A30: Net Depreciation (amounts should be negative) - Note 4
A31: Closing net PP&E (2) | C31: =SUM(C28:C30) -> 0 | D31: =SUM(D28:D30) -> 0 | E31: =SUM(E28:E30) -> 0
A33: Difference in Closing net PP&E, CGAAP vs. MIFRS | C33: =C25-C31 -> 0 | D33: =D25-D31 -> 0 | E33: =E25-E31 -> 0
A36: Effect on Deferral and Variance Account Rate Riders
A37: Closing balance in deferral account | F37: =IF(ISERROR(E33), 0, E33) -> 0 | H37: WACC
A38: Return on Rate Base Associated with deferred PP&E balance at WACC - Note 2 | F38: =E33*I37*I38 -> 0 | G38: # of years of rate rider disposition period
A39: Amount included in Deferral and Variance Account Rate Rider Calculation | F39: =F37+F38 -> 0
A41: Notes:
A42: 1 For an applicant that adopts IFRS on January 1, 2012, the PP&E values as of January 1, 2011 under both CGAAP and MIFRS should be the same.
A43: 2 Return on rate base associated with deferred balance is calculated as:
A44: the deferral account opening balance as of 2014 rebasing year x WACC X # of years of rate rider disposition period
A45: * Please note that the calculation should be adjusted once WACC is updated and finalized in the rate application.
A46: 3 The PP&E deferral account is cleared by including the total balance in the deferral and variance account rate rider calculation.
A47: 4 Net additions are additions net of disposals; Net depreciation is additions to depreciation net of disposals.

Sheet App.2-EB_PP&E Deferral Account (hidden)
H1: File Number: | I1: =EBNUMBER -> 
H2: Exhibit:
H3: Tab:
H4: Schedule:
H5: Page:
H7: Date:
A9: Appendix 2-EB
A10: Account 1575 - IFRS-CGAAP Transitional PP&E Amounts
A11: 2013 Adopters of IFRS for Financial Reporting Purposes
A13: For applicants that adopt IFRS on January 1, 2013 for financial reporting purposes
A15: Note: this sheet should be filled out if the applicant adopts IFRS for its financial reporting purpose as of January 1, 2013.
B17: 2010 Rebasing Year | C17: 2011 | D17: 2012 | E17: 2013 | F17: 2014 Rebasing Year | G17: 2015 | H17: 2016 | I17: 2017 | J17: 2018
A18: Reporting Basis | B18: CGAAP | C18: IRM | D18: IRM | E18: IRM | F18: MIFRS | G18: IRM | H18: IRM | I18: IRM | J18: IRM
A19: Forecast vs. Actual Used in Rebasing Year | B19: Forecast | C19: Actual | D19: Actual | E19: Forecast | F19: Forecast
D20: $ | E20: $ | F20: $ | G20: $ | H20: $ | I20: $ | J20: $
A21: PP&E Values under CGAAP
A22: Opening net PP&E - Note 1 | E22: =+D25 -> 0
A23: Net Additions - Note 4
A24: Net Depreciation (amounts should be negative) - Note 4
A25: Closing net PP&E (1) | D25: =D22+D23+D24 -> 0 | E25: =E22+E23+E24 -> 0
A27: PP&E Values under MIFRS (Starts from 2012, the transition year)
A28: Opening net PP&E - Note 1 | E28: =+D31 -> 0
A29: Net Additions - Note 4
A30: Net Depreciation (amounts should be negative) - Note 4
A31: Closing net PP&E (2) | D31: =SUM(D28:D30) -> 0 | E31: =SUM(E28:E30) -> 0
A33: Difference in Closing net PP&E, CGAAP vs. MIFRS | D33: =D25-D31 -> 0 | E33: =E25-E31 -> 0
A36: Effect on Deferral and Variance Account Rate Riders
A37: Closing balance in deferral account | F37: =IF(ISERROR(E33), 0, E33) -> 0 | H37: WACC
A38: Return on Rate Base Associated with deferred PP&E balance at WACC - Note 2 | F38: =E33*I37*I38 -> 0 | G38: # of years of rate rider disposition period
A39: Amount included in Deferral and Variance Account Rate Rider Calculation | F39: =F37+F38 -> 0
A41: Notes:
A42: 1 For an applicant that adopts IFRS on January 1, 2013, the PP&E values as of January 1, 2012 under both CGAAP and MIFRS should be the same.
A43: 2 Return on rate base associated with deferred balance is calculated as:
A44: the deferral account opening balance as of 2014 rebasing year x WACC X # of years of rate rider disposition period
A45: * Please note that the calculation should be adjusted once WACC is updated and finalized in the rate application.
A46: 3 The PP&E deferral account is cleared by including the total balance in the deferral and variance account rate rider calculation.
A47: 4 Net additions are additions net of disposals; Net depreciation is additions to depreciation net of disposals.

Sheet App.2-EC_PP&E Deferral Account (hidden)
H1: File Number: | I1: =EBNUMBER -> 
H2: Exhibit:
H3: Tab:
H4: Schedule:
H5: Page:
H7: Date:
A9: Appendix 2-EC
A10: Account 1575 - IFRS-CGAAP Transitional PP&E Amounts
A11: 2014 Adopters of IFRS for Financial Reporting Purposes
A13: For applicants that adopt IFRS on January 1, 2014 for financial reporting purposes
A15: Note: this sheet should be filled out if the applicant adopts IFRS for its financial reporting purpose as of January 1, 2014.
B17: 2010 Rebasing Year | C17: 2011 | D17: 2012 | E17: 2013 | F17: 2014 Rebasing Year | G17: 2015 | H17: 2016 | I17: 2016 | J17: 2017
A18: Reporting Basis | B18: CGAAP | C18: IRM | D18: IRM | E18: IRM | F18: MIFRS | G18: IRM | H18: IRM | I18: IRM | J18: IRM
A19: Forecast vs. Actual Used in Rebasing Year | B19: Forecast | C19: Actual | D19: Actual | E19: Forecast | F19: Forecast
E20: $ | F20: $ | G20: $ | H20: $ | I20: $ | J20: $
A21: PP&E Values under CGAAP
A22: Opening net PP&E - Note 1
A23: Net Additions - Note 4
A24: Net Depreciation (amounts should be negative) - Note 4
A25: Closing net PP&E (1) | E25: =SUM(E22:E24) -> 0
A27: PP&E Values under MIFRS (Starts from 2013, the transition year)
A28: Opening net PP&E - Note 1
A29: Net Additions - Note 4
A30: Net Depreciation (amounts should be negative) - Note 4
A31: Closing net PP&E (2) | E31: =SUM(E28:E30) -> 0
A33: Difference in Closing net PP&E, CGAAP vs. MIFRS | E33: =E25-E31 -> 0
A36: Effect on Deferral and Variance Account Rate Riders
A37: Closing balance in deferral account | F37: =IF(ISERROR(E33), 0, E33) -> 0 | H37: WACC
A38: Return on Rate Base Associated with deferred PP&E balance at WACC - Note 2 | F38: =E33*I37*I38 -> 0 | G38: # of years of rate rider disposition period
A39: Amount included in Deferral and Variance Account Rate Rider Calculation | F39: =F37+F38 -> 0
A41: Notes:
A42: 1 For an applicant that adopts IFRS on January 1, 2014, the PP&E values as of January 1, 2013 under both CGAAP and MIFRS should be the same.
A43: 2 Return on rate base associated with deferred balance is calculated as:
A44: the deferral account opening balance as of 2014 rebasing year x WACC X # of years of rate rider disposition period
A45: * Please note that the calculation should be adjusted once WACC is updated and finalized in the rate application.
A46: 3 The PP&E deferral account is cleared by including the total balance in the deferral and variance account rate rider calculation.
A47: 4 Net additions are additions net of disposals; Net depreciation is additions to depreciation net of disposals.

Sheet App.2-ED_Account 1576 (2012) (hidden)
H1: File Number: | I1: =EBNUMBER -> 
H2: Exhibit:
H3: Tab:
H4: Schedule:
H5: Page:
H7: Date:
A9: Appendix 2-ED
A10: Account 1576 - Accounting Changes under CGAAP
A11: 2012 Changes in Accounting Policies under CGAAP
A13: Assumes the applicant made capitalization and depreciation expense accounting policy changes under CGAAP effective January 1, 2012
B17: 2010 Rebasing Year | C17: 2011 | D17: 2012 | E17: 2013 | F17: 2014 Rebasing Year | G17: 2015 | H17: 2016 | I17: 2017 | J17: 2018
A18: Reporting Basis | B18: CGAAP | C18: IRM | D18: IRM | E18: IRM | F18: CGAAP - ASPE | G18: IRM | H18: IRM | I18: IRM | J18: IRM
A19: Forecast vs. Actual Used in Rebasing Year | B19: Forecast | C19: Actual | D19: Actual | E19: Forecast | F19: Forecast
D20: $ | E20: $ | F20: $ | G20: $ | H20: $ | I20: $ | J20: $
A21: PP&E Values under former CGAAP
A22: Opening net PP&E - Note 1 | E22: =+D25 -> 0
A23: Net Additions - Note 4
A24: Net Depreciation (amounts should be negative) - Note 4
A25: Closing net PP&E (1) | D25: =D22+D23+D24 -> 0 | E25: =E22+E23+E24 -> 0
A27: PP&E Values under revised CGAAP (Starts from 2012)
A28: Opening net PP&E - Note 1 | E28: =+D31 -> 0
A29: Net Additions - Note 4
A30: Net Depreciation (amounts should be negative) - Note 4
A31: Closing net PP&E (2) | D31: =SUM(D28:D30) -> 0 | E31: =SUM(E28:E30) -> 0
A33: Difference in Closing net PP&E, former CGAAP vs. revised CGAAP | D33: =D25-D31 -> 0 | E33: =E25-E31 -> 0
A36: Effect on Deferral and Variance Account Rate Riders
A37: Closing balance in Account 1576 | F37: =IF(ISERROR(E33), 0, E33) -> 0 | H37: WACC
A38: Return on Rate Base Associated with Account 1576 balance at WACC - Note 2 | F38: =E33*I37*I38 -> 0 | G38: # of years of rate rider disposition period
A39: Amount included in Deferral and Variance Account Rate Rider Calculation | F39: =F37+F38 -> 0
A41: Notes:
A42: 1 For an applicant that made the capitalization and depreciation expense accounting policy changes on January 1, 2012, the PP&E values as of January 1, 2012 under both former CGAAP and revised CGAAP should be the same.
A43: 2 Return on rate base associated with Account 1576 balance is calculated as:
A44: the variance account opening balance as of 2014 rebasing year x WACC X # of years of rate rider disposition period
A45: * Please note that the calculation should be adjusted once WACC is updated and finalized in the rate application.
A46: 3 Account 1576 is cleared by including the total balance in the deferral and variance account rate rider calculation.
A47: 4 Net additions are additions net of disposals; Net depreciation is additions to depreciation net of disposals.

Sheet App.2-FB Calc of REG Improvemnt (hidden)
F1: File Number: | G1: =EBNUMBER -> 
F2: Exhibit:
F3: Tab:
F4: Schedule:
F5: Page:
F7: Date:
A9: Appendix 2-FB
A10: Calculation of Renewable Generation Connection Direct Benefits/Provincial Amount: Renewable Enabling Improvement Investments
A12: This table will calculate the distributor/provincial shares of the investments entered in Part A of Appendix 2-FA.
A13: Enter values in green shaded cells: WCA percentage, debt percentages, interest rates, kWh, tax rates, amortization period, CCA Class and percentage.
A14: Rate Riders are not calculated for Test Year as these assets and costs are already in the distributor's rate base/revenue requirement.
D16: 2014 Test Year | G16: 2015 | J16: 2016 | K16: 2016 | M16: 2017 | P16: 2018
E17: Direct Benefit | F17: Provincial | H17: Direct Benefit | I17: Provincial | K17: Direct Benefit | L17: Provincial | N17: Direct Benefit | O17: Provincial | Q17: Direct Benefit | R17: Provincial
D18: Total | E18: 0.06 | F18: 0.94 | G18: Total | H18: 0.06 | I18: 0.94 | J18: Total | K18: 0.06 | L18: 0.94 | M18: Total | N18: 0.06 | O18: 0.94 | P18: Total | Q18: 0.06 | R18: 0.94
A19: Net Fixed Assets (average) | D19: =D80 ->  | E19: =D19*E18 ->  | F19: =D19*F18 ->  | G19: =E80 ->  | H19: =G19*H18 ->  | I19: =G19*I18 ->  | J19: =F80 ->  | K19: =J19*K18 ->  | L19: =J19*L18 ->  | M19: =G80 ->  | N19: =M19*N18 ->  | O19: =M19*O18 ->  | P19: =H80 ->  | Q19: =P19*Q18 ->  | R19: =P19*R18 -> 
A20: Incremental OM&A (on-going, N/A for Provincial Recovery) | D20: =#REF! ->  | E20: =D20 ->  | G20: =#REF! ->  | H20: 15000 | J20: =#REF! ->  | K20: =J20 ->  | M20: =#REF! ->  | N20: =M20 ->  | P20: =#REF! ->  | Q20: =P20 -> 
A21: Incremental OM&A (start-up, applicable for Provincial Recovery) | D21: =#REF! ->  | E21: =D21*E18 ->  | F21: =D21*F18 ->  | G21: =#REF! ->  | H21: =G21*H18 ->  | I21: =G21*I18 ->  | J21: =#REF! ->  | K21: =J21*K18 ->  | L21: =J21*L18 ->  | M21: =#REF! ->  | N21: =M21*N18 ->  | O21: =M21*O18 ->  | P21: =#REF! ->  | Q21: =P21*Q18 ->  | R21: =P21*R18 -> 
A22: WCA | B22: 0.13 | E22: =(E20+E21)*$C$14 ->  | F22: =F21*$C$14 ->  | H22: =(H20+H21)*$C$14 ->  | I22: =I21*$C$14 ->  | K22: =(K20+K21)*$C$14 ->  | L22: =L21*$C$14 ->  | N22: =(N20+N21)*$C$14 ->  | O22: =O21*$C$14 ->  | Q22: =(Q20+Q21)*$C$14 ->  | R22: =R21*$C$14 -> 
A23: Rate Base | E23: =SUM(E19+E22) ->  | F23: =SUM(F19+F22) ->  | H23: =SUM(H19+H22) ->  | I23: =SUM(I19+I22) ->  | K23: =SUM(K19+K22) ->  | L23: =SUM(L19+L22) ->  | N23: =SUM(N19+N22) ->  | O23: =SUM(O19+O22) ->  | Q23: =SUM(Q19+Q22) ->  | R23: =SUM(R19+R22) -> 
A26: Deemed ST Debt | B26: 0 | E26: =E23*$C$18 ->  | F26: =F23*$C$18 ->  | H26: =H23*$C$18 ->  | I26: =I23*$C$18 ->  | K26: =K23*$C$18 ->  | L26: =L23*$C$18 ->  | N26: =N23*$C$18 ->  | O26: =O23*$C$18 ->  | Q26: =Q23*$C$18 ->  | R26: =R23*$C$18 -> 
A27: Deemed LT Debt | B27: 0 | E27: =E23*$C$19 ->  | F27: =F23*$C$19 ->  | H27: =H23*$C$19 ->  | I27: =I23*$C$19 ->  | K27: =K23*$C$19 ->  | L27: =L23*$C$19 ->  | N27: =N23*$C$19 ->  | O27: =O23*$C$19 ->  | Q27: =Q23*$C$19 ->  | R27: =R23*$C$19 -> 
A28: Deemed Equity | B28: 0 | E28: =E23*$C$20 ->  | F28: =F23*$C$20 ->  | H28: =H23*$C$20 ->  | I28: =I23*$C$20 ->  | K28: =K23*$C$20 ->  | L28: =L23*$C$20 ->  | N28: =N23*$C$20 ->  | O28: =O23*$C$20 ->  | Q28: =Q23*$C$20 ->  | R28: =R23*$C$20 -> 
A30: ST Interest | B30: 0 | E30: =E26*$C$22 ->  | F30: =F26*$C$22 ->  | H30: =H26*$C$22 ->  | I30: =I26*$C$22 ->  | K30: =K26*$C$22 ->  | L30: =L26*$C$22 ->  | N30: =N26*$C$22 ->  | O30: =O26*$C$22 ->  | Q30: =Q26*$C$22 ->  | R30: =R26*$C$22 -> 
A31: LT Interest | B31: 0 | E31: =E27*$C$23 ->  | F31: =F27*$C$23 ->  | H31: =H27*$C$23 ->  | I31: =I27*$C$23 ->  | K31: =K27*$C$23 ->  | L31: =L27*$C$23 ->  | N31: =N27*$C$23 ->  | O31: =O27*$C$23 ->  | Q31: =Q27*$C$23 ->  | R31: =R27*$C$23 -> 
A32: ROE | B32: 0 | E32: =E28*$C$24 ->  | F32: =F28*$C$24 ->  | H32: =H28*$C$24 ->  | I32: =I28*$C$24 ->  | K32: =K28*$C$24 ->  | L32: =L28*$C$24 ->  | N32: =N28*$C$24 ->  | O32: =O28*$C$24 ->  | Q32: =Q28*$C$24 ->  | R32: =R28*$C$24 -> 
A33: Cost of Capital Total | E33: =SUM(E30:E32) ->  | F33: =SUM(F30:F32) ->  | H33: =SUM(H30:H32) ->  | I33: =SUM(I30:I32) ->  | K33: =SUM(K30:K32) ->  | L33: =SUM(L30:L32) ->  | N33: =SUM(N30:N32) ->  | O33: =SUM(O30:O32) ->  | Q33: =SUM(Q30:Q32) ->  | R33: =SUM(R30:R32) -> 
A35: OM&A | E35: =E20+E21 ->  | F35: =F21 ->  | H35: =H20+H21 ->  | I35: =I21 ->  | K35: =K20+K21 ->  | L35: =L21 ->  | N35: =N20+N21 ->  | O35: =O21 ->  | Q35: =Q20+Q21 ->  | R35: =R21 -> 
A36: Amortization | D36: =D75 ->  | E36: =D36*$F$10 ->  | F36: =D36*$G$10 ->  | G36: =E74+E75 ->  | H36: =G36*$F$10 ->  | I36: =G36*$G$10 ->  | J36: =F74+F75 ->  | K36: =J36*$F$10 ->  | L36: =J36*$G$10 ->  | M36: =G74+G75 ->  | N36: =M36*$F$10 ->  | O36: =M36*$G$10 ->  | P36: =H74+H75 ->  | Q36: =P36*$F$10 ->  | R36: =P36*$G$10 -> 
A37: Grossed-up PILs | E37: =E63 ->  | F37: =F63 ->  | H37: =H63 ->  | I37: =I63 ->  | K37: =K63 ->  | L37: =L63 ->  | N37: =N63 ->  | O37: =O63 ->  | Q37: =Q63 ->  | R37: =R63 -> 
A39: Revenue Requirement | E39: =SUM(E33:E37) ->  | F39: =SUM(F33:F37) ->  | H39: =SUM(H33:H37) ->  | I39: =SUM(I33:I37) ->  | K39: =SUM(K33:K37) ->  | L39: =SUM(L33:L37) ->  | N39: =SUM(N33:N37) ->  | O39: =SUM(O33:O37) ->  | Q39: =SUM(Q33:Q37) ->  | R39: =SUM(R33:R37) -> 
B41: Test Year
A42: Provincial Rate Protection | B42: kWh | F42: =F39 ->  | I42: =I39 ->  | L42: =L39 ->  | O42: =O39 ->  | R42: =R39 -> 
A43: Rate Adder ($/kWh)(for non-test years) | B43: 0 | E43: N/A | H43: =IF(ISERROR((H39-$F$31)/$B$43), 0, (H39-$F$31)/$B$43) -> 0 | K43: =IF(ISERROR((K39-$F$31)/$B$43), 0, (K39-$F$31)/$B$43) -> 0 | N43: =IF(ISERROR((N39-$F$31)/$B$43), 0, (N39-$F$31)/$B$43) -> 0 | Q43: =IF(ISERROR((Q39-$F$31)/$B$43), 0, (Q39-$F$31)/$B$43) -> 0
A44: Monthly Adder Amount Paid by IESO | F44: =F42/12 ->  | I44: =I42/12 ->  | L44: =L42/12 ->  | O44: =O42/12 ->  | R44: =R42/12 -> 
A46: Note 1: Revenue collected to be recorded in Account 1533 Renewable Generation Connection Funding Adder Deferral - Subaccount Revenue Collected from IESO.
A47: Note 2: For the 2014 Test Year, Costs and Revenues of the Direct Benefit are to be included in the test year applicant Rate Base and Revenues. For new projects in subsequent years, applicant revenues are to be collected through a rate adder.
A49: PILs Calculation
E50: 2014 | H50: 2015 | K50: 2016 | N50: 2017 | Q50: 2018
A51: Income Tax | E51: Direct Benefit | F51: Provincial | H51: Direct Benefit | I51: Provincial | K51: Direct Benefit | L51: Provincial | N51: Direct Benefit | O51: Provincial | Q51: Direct Benefit | R51: Provincial
M52: Total | P52: Total
A53: Net Income - ROE on Rate Base | E53: =E32 ->  | F53: =F32 ->  | H53: =H32 ->  | I53: =I32 ->  | K53: =K32 ->  | L53: =L32 ->  | N53: =N32 ->  | O53: =O32 ->  | Q53: =Q32 ->  | R53: =R32 -> 
A54: Amortization (6% DB and 94% P) | E54: =E36 ->  | F54: =F36 ->  | H54: =H36 ->  | I54: =I36 ->  | K54: =K36 ->  | L54: =L36 ->  | N54: =N36 ->  | O54: =O36 ->  | Q54: =Q36 ->  | R54: =R36 -> 
A55: CCA (6% DB and 94% P) | E55: =-D92*$F$10 ->  | F55: =-D92*$G$10 ->  | H55: =-E92*$F$10 ->  | I55: =-E92*$G$10 ->  | K55: =-F92*$F$10 ->  | L55: =-F92*$G$10 ->  | N55: =-G92*$F$10 ->  | O55: =-G92*$G$10 ->  | Q55: =-H92*$F$10 ->  | R55: =-H92*$G$10 -> 
A56: Taxable income | E56: =SUM(E53:E55) ->  | F56: =SUM(F53:F55) ->  | H56: =SUM(H53:H55) ->  | I56: =SUM(I53:I55) ->  | K56: =SUM(K53:K55) ->  | L56: =SUM(L53:L55) ->  | N56: =SUM(N53:N55) ->  | O56: =SUM(O53:O55) ->  | Q56: =SUM(Q53:Q55) ->  | R56: =SUM(R53:R55) -> 
A58: Tax Rate (to be entered) | E58: 0 | F58: 0 | H58: 0 | I58: 0 | K58: 0 | L58: 0 | N58: 0 | O58: 0 | Q58: 0 | R58: 0
A60: Income Taxes Payable | E60: =E56*E58 ->  | F60: =F56*F58 ->  | H60: =H56*H58 ->  | I60: =I56*I58 ->  | K60: =K56*K58 ->  | L60: =L56*L58 ->  | N60: =N56*N58 ->  | O60: =O56*O58 ->  | Q60: =Q56*Q58 ->  | R60: =R56*R58 -> 
A61: Gross Up
A62: Income Taxes Payable | E62: =E60/(1-E58) ->  | F62: =F60/(1-F58) ->  | H62: =H60/(1-H58) ->  | I62: =I60/(1-I58) ->  | K62: =K60/(1-K58) ->  | L62: =L60/(1-L58) ->  | N62: =N60/(1-N58) ->  | O62: =O60/(1-O58) ->  | Q62: =Q60/(1-Q58) ->  | R62: =R60/(1-R58) -> 
A63: Grossed Up PILs | E63: =SUM(E62:E62) ->  | F63: =SUM(F62:F62) ->  | H63: =SUM(H62:H62) ->  | I63: =SUM(I62:I62) ->  | K63: =SUM(K62:K62) ->  | L63: =SUM(L62:L62) ->  | N63: =SUM(N62:N62) ->  | O63: =SUM(O62:O62) ->  | Q63: =SUM(Q62:Q62) ->  | R63: =SUM(R62:R62) -> 
D66: 2014 | E66: 2015 | F66: 2016 | G66: 2017 | H66: 2018
A67: Net Fixed Assets
B68: Enter applicable amortization in years: | C68: 25
A69: Opening Gross Fixed Assets | D69: =C71 -> 0 | E69: =D71 ->  | F69: =E71 ->  | G69: =F71 ->  | H69: =G71 -> 
A70: Gross Capital Additions | D70: =#REF! ->  | E70: =#REF! ->  | F70: =#REF! ->  | G70: =#REF! ->  | H70: =#REF! -> 
A71: Closing Gross Fixed Assets | D71: =SUM(D69:D70) ->  | E71: =SUM(E69:E70) ->  | F71: =SUM(F69:F70) ->  | G71: =SUM(G69:G70) ->  | H71: =SUM(H69:H70) -> 
A73: Opening Accumulated Amortization | D73: =C76 -> 0 | E73: =D76 ->  | F73: =E76 ->  | G73: =F76 ->  | H73: =G76 -> 
A74: Current Year Amortization (before additions) | D74: - | E74: =IF(ISERROR(E69/$C$68), 0, E69/$C$68) -> 0 | F74: =IF(ISERROR(F69/$C$68), 0, F69/$C$68) -> 0 | G74: =IF(ISERROR(G69/$C$68), 0, G69/$C$68) -> 0 | H74: =IF(ISERROR(H69/$C$68), 0, H69/$C$68) -> 0
A75: Additions (half year) | D75: =D70/C68/2 ->  | E75: =E70/C68/2 ->  | F75: =F70/C68/2 ->  | G75: =G70/C68/2 ->  | H75: =H70/C68/2 -> 
A76: Closing Accumulated Amortization | D76: =SUM(D73+D75) ->  | E76: =SUM(E73:E75) ->  | F76: =SUM(F73:F75) ->  | G76: =SUM(G73:G75) ->  | H76: =SUM(H73:H75) -> 
A78: Opening Net Fixed Assets | D78: =D69-D73 -> 0 | E78: =D79 ->  | F78: =E79 ->  | G78: =F79 ->  | H78: =G79 -> 
A79: Closing Net Fixed Assets | D79: =D71-D76 ->  | E79: =E71-E76 ->  | F79: =F71-F76 ->  | G79: =G71-G76 ->  | H79: =H71-H76 -> 
A80: Average Net Fixed Assets | D80: =SUM(D78:D79)/2 ->  | E80: =SUM(E78:E79)/2 ->  | F80: =SUM(F78:F79)/2 ->  | G80: =SUM(G78:G79)/2 ->  | H80: =SUM(H78:H79)/2 -> 
A82: UCC for PILs Calculation
D83: 2014 | E83: 2015 | F83: 2016 | G83: 2017 | H83: 2018
A85: Opening UCC | D85: 0 | E85: =D93 ->  | F85: =E93 ->  | G85: =F93 ->  | H85: =G93 -> 
A86: Capital Additions (from Appendix 2-FA) | D86: =#REF! ->  | E86: =#REF! ->  | F86: =#REF! ->  | G86: =#REF! ->  | H86: =#REF! -> 
A87: UCC Before Half Year Rule | D87: =SUM(D85:D86) ->  | E87: =SUM(E85:E86) ->  | F87: =SUM(F85:F86) ->  | G87: =SUM(G85:G86) ->  | H87: =SUM(H85:H86) -> 
A88: Half Year Rule (1/2 Additions - Disposals) | D88: =D86/2 ->  | E88: =E86/2 ->  | F88: =F86/2 ->  | G88: =G86/2 ->  | H88: =H86/2 -> 
A89: Reduced UCC | D89: =D87-D88 ->  | E89: =E87-E88 ->  | F89: =F87-F88 ->  | G89: =G87-G88 ->  | H89: =H87-H88 -> 
A90: CCA Rate Class (to be entered) | C90: 47 | D90: =C90 -> 47 | E90: =C90 -> 47 | F90: =C90 -> 47 | G90: =C90 -> 47 | H90: =C90 -> 47
A91: CCA Rate (to be entered) | C91: 0.08 | D91: =C91 -> 0.08 | E91: =C91 -> 0.08 | F91: =C91 -> 0.08 | G91: =C91 -> 0.08 | H91: =C91 -> 0.08
A92: CCA | D92: =D89*$D$83 ->  | E92: =E89*$D$83 ->  | F92: =F89*$D$83 ->  | G92: =G89*$D$83 ->  | H92: =H89*$D$83 -> 
A93: Closing UCC | D93: =D87-D92 ->  | E93: =E87-E92 ->  | F93: =F87-F92 ->  | G93: =G87-G92 ->  | H93: =H87-H92 -> 

Sheet App.2-FC Calc of REG Expansion (hidden)
E1: File Number: | F1: =EBNUMBER -> 
E2: Exhibit:
E3: Tab:
E4: Schedule:
E5: Page:
E7: Date:
A9: Appendix 2-FC
A10: Calculation of Renewable Generation Connection Direct Benefits/Provincial Amount: Renewable Expansion Investments
A12: This table will calculate the distributor/provincial shares of the investments entered in Part B of Appendix 2-FA.
A13: Enter values in green shaded cells: WCA percentage, debt percentages, interest rates, kWh, tax rates, amortization period, CCA Class and percentage.
A14: Rate Riders are not calculated for Test Year as these assets and costs are already in the distributors rate base.
D17: 2014 Test Year | G17: 2015 | J17: 2016 | K17: 2016 | M17: 2017 | P17: 2018
E18: Direct Benefit | F18: Provincial | H18: Direct Benefit | I18: Provincial | K18: Direct Benefit | L18: Provincial | N18: Direct Benefit | O18: Provincial | Q18: Direct Benefit | R18: Provincial
D19: Total | E19: 0.17 | F19: 0.83 | G19: Total | H19: 0.17 | I19: 0.83 | J19: Total | K19: 0.17 | L19: 0.83 | M19: Total | N19: 0.17 | O19: 0.83 | P19: Total | Q19: 0.17 | R19: 0.83
A20: Net Fixed Assets (average) | D20: =D79 ->  | E20: =D20*E19 ->  | F20: =D20*F19 ->  | G20: =E79 ->  | H20: =G20*H19 ->  | I20: =G20*I19 ->  | J20: =F79 ->  | K20: =J20*K19 ->  | L20: =J20*L19 ->  | M20: =G79 ->  | N20: =M20*N19 ->  | O20: =M20*O19 ->  | P20: =H79 ->  | Q20: =P20*Q19 ->  | R20: =P20*R19 -> 
A21: Incremental OM&A (on-going, N/A for Provincial Recovery) | D21: =#REF! ->  | E21: =D21 ->  | G21: =#REF! ->  | H21: =G21 ->  | J21: =#REF! ->  | K21: =J21 ->  | M21: =#REF! ->  | N21: =M21 ->  | P21: =#REF! ->  | Q21: =P21 -> 
A22: Incremental OM&A (start-up, applicable for Provincial Recovery) | D22: =#REF! ->  | E22: =D22*E19 ->  | F22: =D22*F19 ->  | G22: =#REF! ->  | H22: =G22*H19 ->  | I22: =G22*I19 ->  | J22: =#REF! ->  | K22: =J22*K19 ->  | L22: =J22*L19 ->  | M22: =#REF! ->  | N22: =M22*N19 ->  | O22: =M22*O19 ->  | P22: =#REF! ->  | Q22: =P22*Q19 ->  | R22: =P22*R19 -> 
A23: WCA | B23: 0.13 | E23: =(E21+E22)*$B$23 ->  | F23: =F22*$B$23 ->  | H23: =(H21+H22)*$B$23 ->  | I23: =I22*$B$23 ->  | K23: =(K21+K22)*$B$23 ->  | L23: =L22*$B$23 ->  | N23: =(N21+N22)*$B$23 ->  | O23: =O22*$B$23 ->  | Q23: =(Q21+Q22)*$B$23 ->  | R23: =R22*$B$23 -> 
A24: Rate Base | E24: =SUM(E20+E23) ->  | F24: =SUM(F20+F23) ->  | H24: =SUM(H20+H23) ->  | I24: =SUM(I20+I23) ->  | K24: =SUM(K20+K23) ->  | L24: =SUM(L20+L23) ->  | N24: =SUM(N20+N23) ->  | O24: =SUM(O20+O23) ->  | Q24: =SUM(Q20+Q23) ->  | R24: =SUM(R20+R23) -> 
A27: Deemed ST Debt | B27: 0 | E27: =E24*$B$27 ->  | F27: =F24*$B$27 ->  | H27: =H24*$B$27 ->  | I27: =I24*$B$27 ->  | K27: =K24*$B$27 ->  | L27: =L24*$B$27 ->  | N27: =N24*$B$27 ->  | O27: =O24*$B$27 ->  | Q27: =Q24*$B$27 ->  | R27: =R24*$B$27 -> 
A28: Deemed LT Debt | B28: 0 | E28: =E24*$B$28 ->  | F28: =F24*$B$28 ->  | H28: =H24*$B$28 ->  | I28: =I24*$B$28 ->  | K28: =K24*$B$28 ->  | L28: =L24*$B$28 ->  | N28: =N24*$B$28 ->  | O28: =O24*$B$28 ->  | Q28: =Q24*$B$28 ->  | R28: =R24*$B$28 -> 
A29: Deemed Equity | B29: 0 | E29: =E24*$B$29 ->  | F29: =F24*$B$29 ->  | H29: =H24*$B$29 ->  | I29: =I24*$B$29 ->  | K29: =K24*$B$29 ->  | L29: =L24*$B$29 ->  | N29: =N24*$B$29 ->  | O29: =O24*$B$29 ->  | Q29: =Q24*$B$29 ->  | R29: =R24*$B$29 -> 
A31: ST Interest | B31: 0 | E31: =E27*$B$31 ->  | F31: =F27*$B$31 ->  | H31: =H27*$B$31 ->  | I31: =I27*$B$31 ->  | K31: =K27*$B$31 ->  | L31: =L27*$B$31 ->  | N31: =N27*$B$31 ->  | O31: =O27*$B$31 ->  | Q31: =Q27*$B$31 ->  | R31: =R27*$B$31 -> 
A32: LT Interest | B32: 0 | E32: =E28*$B$32 ->  | F32: =F28*$B$32 ->  | H32: =H28*$B$32 ->  | I32: =I28*$B$32 ->  | K32: =K28*$B$32 ->  | L32: =L28*$B$32 ->  | N32: =N28*$B$32 ->  | O32: =O28*$B$32 ->  | Q32: =Q28*$B$32 ->  | R32: =R28*$B$32 -> 
A33: ROE | B33: 0 | E33: =E29*$B$33 ->  | F33: =F29*$B$33 ->  | H33: =H29*$B$33 ->  | I33: =I29*$B$33 ->  | K33: =K29*$B$33 ->  | L33: =L29*$B$33 ->  | N33: =N29*$B$33 ->  | O33: =O29*$B$33 ->  | Q33: =Q29*$B$33 ->  | R33: =R29*$B$33 -> 
A34: Cost of Capital Total | E34: =SUM(E31:E33) ->  | F34: =SUM(F31:F33) ->  | H34: =SUM(H31:H33) ->  | I34: =SUM(I31:I33) ->  | K34: =SUM(K31:K33) ->  | L34: =SUM(L31:L33) ->  | N34: =SUM(N31:N33) ->  | O34: =SUM(O31:O33) ->  | Q34: =SUM(Q31:Q33) ->  | R34: =SUM(R31:R33) -> 
A36: OM&A | E36: =E21+E22 ->  | F36: =F22 ->  | H36: =H21+H22 ->  | I36: =I22 ->  | K36: =K21+K22 ->  | L36: =L22 ->  | N36: =N21+N22 ->  | O36: =O22 ->  | Q36: =Q21+Q22 ->  | R36: =R22 -> 
A37: Amortization | D37: =D75 ->  | E37: =D37*$E$19 ->  | F37: =D37*$F$19 ->  | G37: =E73+E74 ->  | H37: =G37*$E$19 ->  | I37: =G37*$F$19 ->  | J37: =F73+F74 ->  | K37: =J37*$E$19 ->  | L37: =J37*$F$19 ->  | M37: =G73+G74 ->  | N37: =M37*$E$19 ->  | O37: =M37*$F$19 ->  | P37: =H73+H74 ->  | Q37: =P37*$E$19 ->  | R37: =P37*$F$19 -> 
A38: Grossed-up PILs | E38: =E63 ->  | F38: =F63 ->  | H38: =H63 ->  | I38: =I63 ->  | K38: =K63 ->  | L38: =L63 ->  | N38: =N63 ->  | O38: =O63 ->  | Q38: =Q63 ->  | R38: =R63 -> 
A40: Revenue Requirement | E40: =SUM(E34:E38) ->  | F40: =SUM(F34:F38) ->  | H40: =SUM(H34:H38) ->  | I40: =SUM(I34:I38) ->  | K40: =SUM(K34:K38) ->  | L40: =SUM(L34:L38) ->  | N40: =SUM(N34:N38) ->  | O40: =SUM(O34:O38) ->  | Q40: =SUM(Q34:Q38) ->  | R40: =SUM(R34:R38) -> 
B42: Test Year
A43: Provincial Rate Protection | B43: kWh | F43: =F40 ->  | I43: =I40 ->  | L43: =L40 ->  | O43: =O40 ->  | R43: =R40 -> 
A44: Rate Adder ($/kWh)(for non-test years) | B44: 0 | E44: N/A | H44: =IF(ISERROR((H40-$E$40)/$B$44), 0, (H40-$E$40)/$B$44) -> 0 | K44: =IF(ISERROR((K40-$E$40)/$B$44),0,(K40-$E$40)/$B$44) -> 0 | N44: =IF(ISERROR((N40-$E$40)/$B$44), 0, (N40-$E$40)/$B$44) -> 0 | Q44: =IF(ISERROR((Q40-$E$40)/$B$44), 0, (Q40-$E$40)/$B$44) -> 0
A45: Monthly Adder Amount Paid by IESO | F45: =F43/12 ->  | I45: =I43/12 ->  | L45: =L43/12 ->  | O45: =O43/12 ->  | R45: =R43/12 -> 
A47: Note 1: Revenue collected to be recorded in Account 1533 Renewable Generation Connection Funding Adder Deferral - Subaccount Revenue Collected from IESO.
A48: Note 2: For the 2014 Test Year, Costs and Revenues of the Direct Benefit are to be included in the test year applicant Rate Base and Revenues. For new projects in subsequent years, applicant revenues are to be collected through a rate adder.
A50: PILs Calculation
E51: 2014 | H51: 2015 | K51: 2016 | N51: 2017 | Q51: 2018
A52: Income Tax | E52: Direct Benefit | F52: Provincial | H52: Direct Benefit | I52: Provincial | K52: Direct Benefit | L52: Provincial | N52: Direct Benefit | O52: Provincial | Q52: Direct Benefit | R52: Provincial
M53: Total | P53: Total
A54: Net Income - ROE on Rate Base | E54: =E33 ->  | F54: =F33 ->  | H54: =H33 ->  | I54: =I33 ->  | K54: =K33 ->  | L54: =L33 ->  | N54: =N33 ->  | O54: =O33 ->  | Q54: =Q33 ->  | R54: =R33 -> 
A55: Amortization (6% DB and 94% P) | E55: =E37 ->  | F55: =F37 ->  | H55: =H37 ->  | I55: =I37 ->  | K55: =K37 ->  | L55: =L37 ->  | N55: =N37 ->  | O55: =O37 ->  | Q55: =Q37 ->  | R55: =R37 -> 
A56: CCA (6% DB and 94% P) | E56: =-D91*$E$19 ->  | F56: =-D91*$F$19 ->  | H56: =-E91*$E$19 ->  | I56: =-E91*$F$19 ->  | K56: =-F91*$E$19 ->  | L56: =-F91*$F$19 ->  | N56: =-G91*$E$19 ->  | O56: =-G91*$F$19 ->  | Q56: =-H91*$E$19 ->  | R56: =-H91*$F$19 -> 
A57: Taxable income | E57: =SUM(E54:E56) ->  | F57: =SUM(F54:F56) ->  | H57: =SUM(H54:H56) ->  | I57: =SUM(I54:I56) ->  | K57: =SUM(K54:K56) ->  | L57: =SUM(L54:L56) ->  | N57: =SUM(N54:N56) ->  | O57: =SUM(O54:O56) ->  | Q57: =SUM(Q54:Q56) ->  | R57: =SUM(R54:R56) -> 
A59: Tax Rate (to be entered) | E59: 0 | F59: 0 | H59: 0 | I59: 0 | K59: 0 | L59: 0 | N59: 0 | O59: 0 | Q59: 0 | R59: 0
A60: Income Taxes Payable | E60: =E57*E59 ->  | F60: =F57*F59 ->  | H60: =H57*H59 ->  | I60: =I57*I59 ->  | K60: =K57*K59 ->  | L60: =L57*L59 ->  | N60: =N57*N59 ->  | O60: =O57*O59 ->  | Q60: =Q57*Q59 ->  | R60: =R57*R59 -> 
A61: Gross Up
A62: Income Taxes Payable | E62: =E60/(1-E59) ->  | F62: =F60/(1-F59) ->  | H62: =H60/(1-H59) ->  | I62: =I60/(1-I59) ->  | K62: =K60/(1-K59) ->  | L62: =L60/(1-L59) ->  | N62: =N60/(1-N59) ->  | O62: =O60/(1-O59) ->  | Q62: =Q60/(1-Q59) ->  | R62: =R60/(1-R59) -> 
A63: Grossed Up PILs | E63: =SUM(E62:E62) ->  | F63: =SUM(F62:F62) ->  | H63: =SUM(H62:H62) ->  | I63: =SUM(I62:I62) ->  | K63: =SUM(K62:K62) ->  | L63: =SUM(L62:L62) ->  | N63: =SUM(N62:N62) ->  | O63: =SUM(O62:O62) ->  | Q63: =SUM(Q62:Q62) ->  | R63: =SUM(R62:R62) -> 
A66: Net Fixed Assets | D66: 2014 | E66: 2015 | F66: 2016 | G66: 2017 | H66: 2018
B67: Enter applicable amortization in years: | C67: 25
A68: Opening Gross Fixed Assets | D68: =C70 -> 0 | E68: =D70 ->  | F68: =E70 ->  | G68: =F70 ->  | H68: =G70 -> 
A69: Gross Capital Additions | D69: =#REF! ->  | E69: =#REF! ->  | F69: =#REF! ->  | G69: =#REF! ->  | H69: =#REF! -> 
A70: Closing Gross Fixed Assets | D70: =SUM(D68:D69) ->  | E70: =SUM(E68:E69) ->  | F70: =SUM(F68:F69) ->  | G70: =SUM(G68:G69) ->  | H70: =SUM(H68:H69) -> 
A72: Opening Accumulated Amortization | D72: =C75 -> 0 | E72: =D75 ->  | F72: =E75 ->  | G72: =F75 ->  | H72: =G75 -> 
A73: Current Year Amortization (before additions) | D73: - | E73: =E68/$C$67 ->  | F73: =F68/$C$67 ->  | G73: =G68/$C$67 ->  | H73: =H68/$C$67 -> 
A74: Additions (half year) | D74: =D69/C67/2 ->  | E74: =E69/C67/2 ->  | F74: =F69/C67/2 ->  | G74: =G69/C67/2 ->  | H74: =H69/C67/2 -> 
A75: Closing Accumulated Amortization | D75: =SUM(D72+D74) ->  | E75: =SUM(E72:E74) ->  | F75: =SUM(F72:F74) ->  | G75: =SUM(G72:G74) ->  | H75: =SUM(H72:H74) -> 
A77: Opening Net Fixed Assets | D77: =D68-D72 -> 0 | E77: =D78 ->  | F77: =E78 ->  | G77: =F78 ->  | H77: =G78 -> 
A78: Closing Net Fixed Assets | D78: =D70-D75 ->  | E78: =E70-E75 ->  | F78: =F70-F75 ->  | G78: =G70-G75 ->  | H78: =H70-H75 -> 
A79: Average Net Fixed Assets | D79: =SUM(D77:D78)/2 ->  | E79: =SUM(E77:E78)/2 ->  | F79: =SUM(F77:F78)/2 ->  | G79: =SUM(G77:G78)/2 ->  | H79: =SUM(H77:H78)/2 -> 
A81: UCC for PILs Calculation
D82: 2014 | E82: 2015 | F82: 2016 | G82: 2017 | H82: 2018
A84: Opening UCC | D84: 0 | E84: =D92 ->  | F84: =E92 ->  | G84: =F92 ->  | H84: =G92 -> 
A85: Capital Additions (from Appendix 2-FA) | D85: =D69 ->  | E85: =E69 ->  | F85: =F69 ->  | G85: =G69 ->  | H85: =H69 -> 
A86: UCC Before Half Year Rule | D86: =SUM(D84:D85) ->  | E86: =SUM(E84:E85) ->  | F86: =SUM(F84:F85) ->  | G86: =SUM(G84:G85) ->  | H86: =SUM(H84:H85) -> 
A87: Half Year Rule (1/2 Additions - Disposals) | D87: =D85/2 ->  | E87: =E85/2 ->  | F87: =F85/2 ->  | G87: =G85/2 ->  | H87: =H85/2 -> 
A88: Reduced UCC | D88: =D86-D87 ->  | E88: =E86-E87 ->  | F88: =F86-F87 ->  | G88: =G86-G87 ->  | H88: =H86-H87 -> 
A89: CCA Rate Class (to be entered) | C89: 47 | D89: =C89 -> 47 | E89: =C89 -> 47 | F89: =C89 -> 47 | G89: =C89 -> 47 | H89: =C89 -> 47
A90: CCA Rate (to be entered) | C90: 0.08 | D90: =C90 -> 0.08 | E90: =C90 -> 0.08 | F90: =C90 -> 0.08 | G90: =C90 -> 0.08 | H90: =C90 -> 0.08
A91: CCA | D91: =D88*$C$90 ->  | E91: =E88*$C$90 ->  | F91: =F88*$C$90 ->  | G91: =G88*$C$90 ->  | H91: =H88*$C$90 -> 
A92: Closing UCC | D92: =D86-D91 ->  | E92: =E86-E91 ->  | F92: =F86-F91 ->  | G92: =G86-G91 ->  | H92: =H86-H91 -> 

Sheet App.2-Q_Cost of Serv. Emb. Dx (hidden)
F1: File Number: | G1: =CASENUMBER -> 
F2: Exhibit:
F3: Tab:
F4: Schedule:
F5: Page:
F7: Date:
A9: Appendix 2-Q
A10: Cost of Serving Embedded Distributor(s)
A12: To be completed by Host Distributors ONLY*
A13: (Not required if Host Distributor has an Embedded Distributor rate class, i.e. a separate row in Appendix 2-P.)
A17: Proposed Rate Class for Billing Embedded Distributor(s)
A19: Host's Distribution Facilities used by Embedded Distributor(s)
A21: (1) | B21: (2) | C21: (3) | D21: (4) | E21: (5) | F21: (6) = '(3) + (4)
A22: Asset Class | B22: Total OM&A costs asociated with asset class | C22: Original cost of asset class | D22: Accumulated amortization of asset class | E22: Annual amortization of asset class | F22: Net Book Value of asset class
A23: Totals for Host Distributor: | B23: ($) | C23: ($) | D23: ($) | E23: ($)
A24: Distribution Stations | F24: =C24+D24 -> 0
A25: Low Voltage Line | F25: 0
A26: LV Line category # 2 (if applcable) | F26: 0
A27: TS (owned by host) | F27: 0
A28: add rows if necessary... | F28: 0
F29: 0
F30: 0
A32: (1) | B32: (7) | C32: (8) | D32: (9) | E32: (10) | F32: (11)
A33: =A22 -> Asset Class | B33: Total line length or station capacity in asset class | C33: Line length or capacity required to provide LV service to Embedded Distributor(s) | D33: Annual total demand on station/line providing LV services (sum of 12 monthly peaks) | E33: Annual billed Embedded Distributor demand on station/line providing LV services | F33: Embedded Distributor(s)' Responsibility Share
A34: Embedded Distributor's share: | B34: kW or kVa; km | C34: kW or kVA; km | D34: kW or kVA | E34: kW or kVA | F34: percent
A35: Distribution Stations | F35: =IF(D35=0,0,(C35/B35)*(E35/D35)) -> 0
A36: Low Voltage Line | F36: =IF(D36=0,0,(C36/B36)*(E36/D36)) -> 0
A37: LV Line # 2 (if applicable) | F37: =IF(D37=0,0,(C37/B37)*(E37/D37)) -> 0
A38: TS (owned by host) | F38: =IF(D38=0,0,(C38/B38)*(E38/D38)) -> 0
A39: add rows if necessary | F39: =IF(D39=0,0,(C39/B39)*(E39/D39)) -> 0
A41: (1) | B41: (12) | C41: (12a) | D41: (13) | E41: (14) | F41: (15) | G41: (16)
A42: =A33 -> Asset Class | B42: Return on Assets used to Provide LV services | C42: Taxes/PILs | D42: Annual amortization on assets used to provide LV services | E42: OM&A costs with burden associated with assets used to provide LV services | F42: Total annual cost associated with assets used to provide LV services | G42: Monthly cost associated with the delivery of LV services
B43: ($) | C43: ($) | D43: ($) | E43: ($) | F43: ($) | G43: $/kW or $/kVA
A44: Distribution Stations | B44: =E$55*(F24+B24*E$60)*F35 -> 0 | C44: =(B44-(B$55*C$55*F35*(F24+B24*E58)+B$56*C$56*F35*(F24+B24*E$58)))*E$58/(1-E$58) -> 0 | D44: =E24*F35 -> 0 | E44: =B24*F35 -> 0 | F44: =SUM(B44:E44) -> 0 | G44: =IF(E35=0,0,(D44/E35)) -> 0
A45: Low Voltage Line | B45: =E$55*(F25+B25*E$60)*F36 -> 0 | C45: =(B45-(B$55*C$55*F36*(F25+B25*E59)+B$56*C$56*F36*(F25+B25*E59)))*E$58/(1-E$58) -> 0 | D45: =E25*F36 -> 0 | E45: =B25*F36 -> 0 | F45: =SUM(B45:E45) -> 0 | G45: =IF(E36=0,0,(D45/E36)) -> 0
A46: LV Line # 2 (if applicable) | B46: =E$55*(F26+B26*E$60)*F37 -> 0 | C46: =(B46-(B$55*C$55*F37*(F26+B26*E60)+B$56*C$56*F37*(F26+B26*E$60)))*E$58/(1-E$58) -> 0 | D46: =E26*F37 -> 0 | E46: =B26*F37 -> 0 | F46: =SUM(B46:E46) -> 0 | G46: =IF(E37=0,0,(D46/E37)) -> 0
A47: TS (owned by host) | B47: =E$55*(F27+B27*E$60)*F38 -> 0 | C47: =(B47-(B$55*C$55*F38*(F27+B27*E61)+B$56*C$56*F38*(F27+B27*E61)))*E$58/(1-E$58) -> 0 | D47: =E27*F38 -> 0 | E47: =B27*F38 -> 0 | F47: =SUM(B47:E47) -> 0 | G47: =IF(E38=0,0,(D47/E38)) -> 0
A48: add rows if necessary | B48: =E$55*(F28+B28*E$60)*F39 -> 0 | C48: =(B48-(B$55*C$55*F39*(F28+B28*I62)+B$56*C$56*F39*(F28+B28*I62)))*E$58/(1-E$58) -> 0 | D48: =E28*F39 -> 0 | E48: =B28*F39 -> 0 | F48: =SUM(B48:E48) -> 0 | G48: =IF(E39=0,0,(D48/E39)) -> 0
A50: Total | F50: =SUM(F44:F48) -> 0 | G50: =SUM(G44:G48) -> 0
A52: (17) | B52: (18) | C52: (19) | D52: (20) | E52: (21)
B53: Capital Structure | C53: Cost Rate
B54: (%) | C54: (%) | E54: (%)
A55: Long-Term Debt | D55: Weighted Average Cost of Capital | E55: =IF(B61=0,0,SUMPRODUCT(B55:B59,C55:C59)/B61) -> 0
A56: Short-term Debt
A58: Common Equity | D58: Tax/PILs Rate
A59: Preferred Shares
D60: Working Capital Allowance Factor
A61: Total | B61: =SUM(B55:B59) -> 0

Sheet App.2-U_IFRS Transition Costs (hidden)
K1: File Number: | L1: =CASENUMBER -> 
K2: Exhibit:
K3: Tab:
K4: Schedule:
K5: Page:
K7: Date:
A9: Appendix 2-U
A10: One-Time Incremental IFRS Transition Costs
A12: The following table should be completed based on the information requested below. An explanation should be provided for any blank entries. The entries should include one-time incremental IFRS transition costs that are currently included in Account 1508, Other Regulatory Assets, sub-account Deferred IFRS Transition Costs Account, or Account 1508, Other Regulatory Assets, sub-account IFRS Transition Costs Variance Account.
A14: Nature of One-Time Incremental IFRS Transition Costs 1 | E14: Audited Actual | F14: Audited Actual | G14: Audited Actual | H14: Audited Actual | I14: Audited Carrying | J14: Total Audited | K14: RRR 2.1.7 | L14: Variance 2 | M14: Reasons why the costs recorded meet the criteria of one-time IFRS administrative incremental costs
E15: Costs Incurred | F15: Costs Incurred | G15: Costs Incurred | H15: Costs Incurred | I15: Charges | J15: Actual Costs | K15: Balance
E16: 2009 | F16: 2010 | G16: 2011 | H16: 2012 | I16: to Dec 31, 2012 | J16: to Dec 31, 2012 | K16: 2012-12-31
A17: professional accounting fees | J17: =SUM(E17:I17) -> 0
A18: professional legal fees | J18: =SUM(E18:I18) -> 0
A19: salaries, wages and benefits of staff added to support the transition to IFRS | J19: 0
A20: associated staff training and development costs | J20: 0
A21: costs related to system upgrades, or replacements or changes where IFRS was the major reason for conversion | J21: 0
J22: 0
J23: 0
J24: 0
J25: 0
A26: Amounts, if any, included in previous Board approved rates (amounts should be negative) 3 | J26: 0
J27: 0
A28: Insert description of additional item(s) and new rows if needed. | J28: 0
A29: Total | E29: =SUM(E17:E28) -> 0 | F29: 0 | G29: 0 | H29: 0 | I29: 0 | J29: 0 | L29: =+J29-K29 -> 0
A32: Note:
A33: 1 | B33: The Deferred IFRS Transition Costs Account and the IFRS Transition Costs Variance Account are exclusively for necessary, incremental transition costs and shall not include ongoing IFRS compliance costs or impacts arising from adopting accounting policy changes that reflect changes in the timing of the recognition of income. The incremental costs in these accounts shall not include costs related to system upgrades, or replacements or changes where IFRS was not the major reason for conversion. In addition, incremental IFRS costs shall not include capital assets or expenditures.
A35: 2 | B35: Applicants are to provide an explanation of material variances in evidence
A36: 3 | B36: If there were any amounts approved in previous Board approved rates, please state the EB #:

Sheet DVA (hidden)
B13: Please indicate the Rate Rider Recovery Period (in years) | D13: 2
B16: Rate Rider Calculation for Deferral / Variance Accounts Balances (excluding Global Adj.)
B18: Rate Class (Enter Rate Classes in cells below) | C18: Units | D18: kW / kWh / # of Customers | E18: Allocated Balance (excluding 1589) | F18: Rate Rider for Deferral/Variance Accounts
B20: Residential | C20: kWh | D20: 555923716 | E20: -1528589.259 | F20: -0.001374819256 | G20: $/kWh
B21: General Service Less Than 50 kW | C21: kWh | D21: 183112615 | E21: -509516.5747 | F21: -0.001391265628 | G21: $/kWh
B22: General Service 50 to 4,999 kW | C22: kW | D22: 2448411 | E22: -2751382.668 | F22: -0.5618710804 | G22: $/kW
B23: Unmetered Scattered Load | C23: kWh | D23: 3918008 | E23: -10824.18725 | F23: -0.001381338074 | G23: $/kWh
B24: Street Lighting | C24: kW | D24: 26120 | E24: -27184.47734 | F24: -0.5203766719 | G24: $/kW
D25: 0 | E25: 0 | F25: 0
D26: 0 | E26: 0 | F26: 0
D27: 0 | E27: 0 | F27: 0
D28: 0 | E28: 0 | F28: 0
D29: 0 | E29: 0 | F29: 0
D30: 0 | E30: 0 | F30: 0
D31: 0 | E31: 0 | F31: 0
D32: 0 | E32: 0 | F32: 0
D33: 0 | E33: 0 | F33: 0
D34: 0 | E34: 0 | F34: 0
D35: 0 | E35: 0 | F35: 0
D36: 0 | E36: 0 | F36: 0
D37: 0 | E37: 0 | F37: 0
D38: 0 | E38: 0 | F38: 0
D39: 0 | E39: 0 | F39: 0
B40: Total | E40: -4827497.166
B43: Rate Rider Calculation for RSVA - Power - Global Adjustment
B45: Rate Class (Enter Rate Classes in cells below) | C45: Units | D45: Non-RPP kW / kWh / # of Customers | E45: Balance of RSVA - Power - Global Adjustment | F45: Rate Rider for RSVA - Power - Global Adjustment
B47: Residential | C47: kWh | D47: 49643988 | E47: 373585.2812 | F47: 0.003762643739 | G47: $/kWh
B48: General Service Less Than 50 kW | C48: kWh | D48: 30433317 | E48: 123053.174 | F48: 0.002021685215 | G48: $/kWh
B49: General Service 50 to 4,999 kW | C49: kW | D49: 2053727.147 | E49: 638996.5613 | F49: 0.1555699748 | G49: $/kW
B50: Unmetered Scattered Load | C50: kWh | D50: 25075 | E50: 2632.933401 | F50: 0.05250116453 | G50: $/kWh
B51: Street Lighting | C51: kW | D51: 25921.48693 | E51: 6330.99035 | F51: 0.12211858 | G51: $/kW
D52: 0 | E52: 0 | F52: 0
D53: 0 | E53: 0 | F53: 0
D54: 0 | E54: 0 | F54: 0
D55: 0 | E55: 0 | F55: 0
D56: 0 | E56: 0 | F56: 0
D57: 0 | E57: 0 | F57: 0
D58: 0 | E58: 0 | F58: 0
D59: 0 | E59: 0 | F59: 0
D60: 0 | E60: 0 | F60: 0
D61: 0 | E61: 0 | F61: 0
D62: 0 | E62: 0 | F62: 0
D63: 0 | E63: 0 | F63: 0
D64: 0 | E64: 0 | F64: 0
D65: 0 | E65: 0 | F65: 0
D66: 0 | E66: 0 | F66: 0
B67: Total | E67: 1144598.94
B69: Rate Rider Calculation for Accounts 1575 and 1576
B71: Please indicate the Rate Rider Recovery Period (in years) | D71: 2
B73: Rate Class (Enter Rate Classes in cells below) | C73: Units | D73: kW / kWh / # of Customers | E73: Balance of Accounts 1575 and 1576 | F73: Rate Rider for Accounts 1575 and 1576
B75: Residential | C75: kWh | D75: 555923716 | E75: -941414 | F75: -0.0008 | G75: $/kWh
B76: General Service Less Than 50 kW | C76: kWh | D76: 183112615 | E76: -310087 | F76: -0.0008 | G76: $/kWh
B77: General Service 50 to 4,999 kW | C77: kW | D77: 2448411 | E77: -1610235 | F77: -0.3288 | G77: $/kW
B78: Unmetered Scattered Load | C78: kWh | D78: 3918008 | E78: -6635 | F78: -0.0008 | G78: $/kWh
B79: Street Lighting | C79: kW | D79: 26120 | E79: -15954 | F79: -0.3054 | G79: $/kW
D80: 0 | E80: $- | F80: -
D81: 0 | E81: $- | F81: -
D82: 0 | E82: $- | F82: -
D83: 0 | E83: $- | F83: -
D84: 0 | E84: $- | F84: -
D85: 0 | E85: $- | F85: -
D86: 0 | E86: $- | F86: -
D87: 0 | E87: $- | F87: -
D88: 0 | E88: $- | F88: -
D89: 0 | E89: $- | F89: -
D90: 0 | E90: $- | F90: -
D91: 0 | E91: $- | F91: -
D92: 0 | E92: $- | F92: -
D93: 0 | E93: $- | F93: -
D94: 0 | E94: $- | F94: -
B95: Total | E95: -2884325

Sheet App.2-W_Bill Impacts Res
N1: File Number: | O1: =CASENUMBER ->  | T1: 1
N2: Exhibit:
N3: Tab:
N4: Schedule:
N5: Page:
N7: Date:
B10: Appendix 2-W
B11: Bill Impacts
B14: Customer Class: | D14: Residential
B16: TOU / non-TOU: | D16: TOU
D18: Consumption | F18: 800 | G18: kWh
F20: Current Board-Approved | J20: Proposed | N20: Impact
D21: Charge Unit | F21: Rate | G21: Volume | H21: Charge | J21: Rate | K21: Volume | L21: Charge | N21: $ Change | O21: % Change
F22: ($) | H22: ($) | J22: ($) | L22: ($)
B23: Monthly Service Charge | D23: Monthly | F23: 12.29 | G23: 1 | H23: =G23*F23 -> 12.29 | J23: 12.29 | K23: 1 | L23: =K23*J23 -> 12.29 | N23: =L23-H23 -> 0 | O23: =IF((H23)=0,"",(N23/H23)) -> 0
B24: Smart Meter Rate Adder | D24: Monthly | G24: 1 | H24: =G24*F24 -> 0 | K24: 1 | L24: =K24*J24 -> 0 | N24: =L24-H24 -> 0 | O24: =IF((H24)=0,"",(N24/H24)) -> 
B25: SMIRR | D25: Monthly | F25: 2.9 | G25: 1 | H25: 2.9 | K25: 1 | L25: =K25*J25 -> 0 | N25: =L25-H25 -> -2.9 | O25: =IF((H25)=0,"",(N25/H25)) -> -1
G26: 1 | H26: 0 | K26: 1 | L26: 0 | N26: 0
B27: Stranded Meter Rate Rider | D27: Monthly | G27: 1 | H27: 0 | J27: 2.362682302 | K27: 1 | L27: 2.362682302 | N27: 2.362682302
B28: MDMR | G28: 1 | H28: 0 | J28: -0.6269222796 | K28: 1 | L28: -0.6269222796 | N28: -0.6269222796
B29: Distribution Volumetric Rate | D29: per kWh | F29: 0.0167 | G29: =$F$18 -> 800 | H29: 13.36 | J29: 0.0148 | K29: =$F$18 -> 800 | L29: 11.84 | N29: -1.52 | O29: -0.1137724551
B30: Smart Meter Disposition Rider | D30: per kWh | G30: 800 | H30: 0 | K30: =$F$18 -> 800 | L30: 0 | N30: 0
B31: LRAM & SSM Rate Rider | D31: per kWh | F31: 0.0004 | G31: 800 | H31: 0.32 | K31: 800 | L31: 0 | N31: -0.32 | O31: -1
B32: Tax change | D32: per kWh | F32: -0.0002 | G32: 800 | H32: =G32*F32 -> -0.16 | K32: 800 | L32: =K32*J32 -> 0 | N32: =L32-H32 -> 0.16 | O32: =IF((H32)=0,"",(N32/H32)) -> -1
B33: Disposal of 1576 (Acct Chg) | D33: per kWh | G33: 800 | H33: =G33*F33 -> 0 | J33: -0.0006 | K33: 800 | L33: =K33*J33 -> -0.48 | N33: =L33-H33 -> -0.48 | O33: =IF((H33)=0,"",(N33/H33)) -> 
G34: 800 | H34: =G34*F34 -> 0 | K34: 800 | L34: =K34*J34 -> 0 | N34: =L34-H34 -> 0 | O34: =IF((H34)=0,"",(N34/H34)) -> 
G35: 800 | H35: 0 | K35: 800 | L35: 0 | N35: 0
G36: 800 | H36: 0 | K36: 800 | L36: 0 | N36: 0
G37: 800 | H37: 0 | K37: 800 | L37: 0 | N37: 0
G38: 800 | H38: 0 | K38: 800 | L38: 0 | N38: 0
B39: Sub-Total A (excluding pass through) | H39: =SUM(H23:H38) -> 28.71 | L39: =SUM(L23:L38) -> 25.38576002 | N39: -3.324239978 | O39: -0.1157868331
B40: DVA RR (2010) | D40: per kWh | F40: -0.0006 | G40: =$F$18 -> 800 | H40: =G40*F40 -> -0.48 | J40: 0 | K40: =$F$18 -> 800 | L40: =K40*J40 -> 0 | N40: =L40-H40 -> 0.48 | O40: =IF((H40)=0,"",(N40/H40)) -> -1
B41: GA DVA RR (2010) | D41: per kWh | F41: 0 | G41: =$F$18 -> 800 | H41: 0 | K41: =$F$18 -> 800 | L41: 0 | N41: 0
B42: DVA RR (2012) | D42: per kWh | F42: -0.002 | G42: =$F$18 -> 800 | H42: -1.6 | K42: =$F$18 -> 800 | L42: 0 | N42: 1.6 | O42: -1
B43: GA DVA RR (2012) | D43: per kWh | F43: 0 | G43: =$F$18 -> 800 | H43: 0 | K43: =$F$18 -> 800 | L43: 0 | N43: 0
B44: Proposed DVA Rate Rider | D44: per kWh | G44: =$F$18 -> 800 | J44: =DVA!F20 -> -0.001374819256 | K44: =$F$18 -> 800 | L44: =K44*J44 -> -1.099855405 | N44: =L44-H44 -> -1.099855405 | O44: =IF((H44)=0,"",(N44/H44)) -> 
B45: Proposed DVA GA Rate Rider | D45: per kWh | G45: 800 | J45: 0 | K45: 800 | L45: 0 | N45: 0
B46: Low Voltage Service Charge | G46: =$F$18 -> 800 | H46: 0 | K46: =$F$18 -> 800 | L46: 0 | N46: 0
B47: Line Losses on Cost of Power | F47: =IF(ISBLANK(D16)=TRUE, 0, IF(D16="TOU", 0.64*$F$57+0.18*$F$58+0.18*$F$59, IF(AND(D16="non-TOU", G61>0), F61,F60))) -> 0.08392 | G47: =ROUND($F$18*(1+$F$76)-$F$18,0) -> 32 | H47: 2.68544 | J47: =0.64*$F$57+0.18*$F$58+0.18*$F$59 -> 0.08392 | K47: =ROUND($F$18*(1+$J$76)-$F$18,0) -> 30 | L47: 2.5176 | N47: -0.16784 | O47: -0.0625
B48: Smart Meter Entity Charge | D48: Monthly | F48: 0.79 | G48: 1 | H48: 0.79 | J48: 0.79 | K48: 1 | L48: 0.79 | N48: 0
B49: Sub-Total B - Distribution (includes Sub-Total A) | H49: =SUM(H40:H48)+H39 -> 30.10544 | L49: =SUM(L40:L48)+L39 -> 27.59350462 | N49: =L49-H49 -> -2.511935383 | O49: =IF((H49)=0,"",(N49/H49)) -> -0.08343792295
B50: RTSR - Network | D50: per kWh | F50: 0.0072 | G50: =$F$18*(1+$F$76) -> 832.4 | H50: =G50*F50 -> 5.99328 | J50: 0.0075 | K50: =$F$18*(1+$J$76) -> 829.84 | L50: =K50*J50 -> 6.2238 | N50: 0.23052 | O50: 0.03846307865
B51: RTSR - Line and Transformation Connection | D51: per kWh | F51: 0.0055 | G51: =$F$18*(1+$F$76) -> 832.4 | H51: =G51*F51 -> 4.5782 | J51: 0.0058 | K51: =$F$18*(1+$J$76) -> 829.84 | L51: =K51*J51 -> 4.813072 | N51: 0.234872 | O51: 0.05130225853
B52: Sub-Total C - Delivery (including Sub-Total B) | H52: =SUM(H49:H51) -> 40.67692 | L52: =SUM(L49:L51) -> 38.63037662 | N52: -2.046543383 | O52: -0.05031215203
B53: Wholesale Market Service Charge (WMSC) | D53: per kWh | F53: 0.0044 | G53: =$F$18*(1+$F$76) -> 832.4 | H53: =G53*F53 -> 3.66256 | J53: =F53 -> 0.0044 | K53: =$F$18*(1+$J$76) -> 829.84 | L53: =K53*J53 -> 3.651296 | N53: -0.011264 | O53: -0.003075444498
B54: Rural and Remote Rate Protection (RRRP) | D54: per kWh | F54: 0.0012 | G54: 832.4 | H54: 0.99888 | J54: 0.0013 | K54: 829.84 | L54: 1.078792 | N54: 0.079912 | O54: 0.08000160179
B55: Standard Supply Service Charge | D55: per kWh | F55: 0.25 | G55: 1 | H55: 0.25 | J55: =F55 -> 0.25 | K55: 1 | L55: 0.25 | N55: 0 | O55: 0
B56: Debt Retirement Charge (DRC) | D56: per kWh | F56: 0.007 | G56: =F18 -> 800 | H56: 5.6 | J56: 0.007 | K56: =F18 -> 800 | L56: 5.6 | N56: 0 | O56: 0
B57: TOU - Off Peak | D57: per kWh | F57: 0.067 | G57: =0.64*$F$18 -> 512 | H57: 34.304 | J57: 0.067 | K57: =G57 -> 512 | L57: 34.304 | N57: 0 | O57: 0
B58: TOU - Mid Peak | D58: per kWh | F58: 0.104 | G58: =0.18*$F$18 -> 144 | H58: 14.976 | J58: 0.104 | K58: =G58 -> 144 | L58: 14.976 | N58: 0 | O58: 0
B59: TOU - On Peak | D59: per kWh | F59: 0.124 | G59: =0.18*$F$18 -> 144 | H59: 17.856 | J59: 0.124 | K59: =G59 -> 144 | L59: 17.856 | N59: 0 | O59: 0
B60: Energy - RPP - Tier 1 | D60: per kWh | F60: 0.075 | G60: =IF(AND($T$1=1, F18>=600), 600, IF(AND($T$1=1, AND(F18<600, F18>=0)), F18, IF(AND($T$1=2, F18>=1000), 1000, IF(AND($T$1=2, AND(F18<1000, F18>=0)), F18)))) -> 600 | H60: =G60*F60 -> 45 | J60: 0.075 | K60: =G60 -> 600 | L60: =K60*J60 -> 45 | N60: 0 | O60: 0
B61: Energy - RPP - Tier 2 | D61: per kWh | F61: 0.088 | G61: =IF(AND($T$1=1, F18>=600), F18-600, IF(AND($T$1=1, AND(F18<600, F18>=0)), 0, IF(AND($T$1=2, F18>=1000), F18-1000, IF(AND($T$1=2, AND(F18<1000, F18>=0)), 0)))) -> 200 | H61: =G61*F61 -> 17.6 | J61: 0.088 | K61: =G61 -> 200 | L61: =K61*J61 -> 17.6 | N61: 0 | O61: 0
B63: Total Bill on TOU (before Taxes) | H63: =SUM(H53:H59,H52) -> 118.32436 | L63: =SUM(L53:L59,L52) -> 116.3464646 | N63: =L63-H63 -> -1.977895383 | O63: =IF((H63)=0,"",(N63/H63)) -> -0.01671587645
B64: HST | F64: 0.13 | H64: =H63*F64 -> 15.3821668 | J64: 0.13 | L64: =L63*J64 -> 15.1250404 | N64: -0.2571263998 | O64: -0.01671587645
B65: Total Bill (including HST) | H65: =H63+H64 -> 133.7065268 | L65: =L63+L64 -> 131.471505 | N65: -2.235021783 | O65: -0.01671587645
B66: Ontario Clean Energy Benefit 1 | H66: =ROUND(-H65*0.1,2) -> -13.37 | L66: =ROUND(-L65*0.1,2) -> -13.15 | N66: 0.22 | O66: -0.01645474944
B67: Total Bill on TOU (including OCEB) | H67: =H65+H66 -> 120.3365268 | L67: =L65+L66 -> 118.321505 | N67: -2.015021783 | O67: -0.01674488899
B69: Total Bill on RPP (before Taxes) | H69: =SUM(H60:H61,H52,H53:H56) -> 113.78836 | L69: =SUM(L60:L61,L52,L53:L56) -> 111.8104646 | N69: =L69-H69 -> -1.977895383 | O69: =IF((H69)=0,"",(N69/H69)) -> -0.01738222946
B70: HST | F70: 0.13 | H70: =H69*F70 -> 14.7924868 | J70: 0.13 | L70: =L69*J70 -> 14.5353604 | N70: =L70-H70 -> -0.2571263998 | O70: =IF((H70)=0,"",(N70/H70)) -> -0.01738222946
B71: Total Bill (including HST) | H71: =H69+H70 -> 128.5808468 | L71: =L69+L70 -> 126.345825 | N71: =L71-H71 -> -2.235021783 | O71: =IF((H71)=0,"",(N71/H71)) -> -0.01738222946
B72: Ontario Clean Energy Benefit 1 | H72: =ROUND(-H71*0.1,2) -> -12.86 | L72: =ROUND(-L71*0.1,2) -> -12.63 | N72: =L72-H72 -> 0.23 | O72: =IF((H72)=0,"",(N72/H72)) -> -0.01788491446
B73: Total Bill on RPP (including OCEB) | H73: =SUM(H71:H72) -> 115.7208468 | L73: =SUM(L71:L72) -> 113.715825 | N73: =L73-H73 -> -2.005021783 | O73: =IF((H73)=0,"",(N73/H73)) -> -0.01732636632
B76: Loss Factor (%) | F76: 0.0405 | J76: 0.0373
A78: 1 Applicable to eligible customers only. Refer to the Ontario Clean Energy Benefit Act, 2010.
A80: Note that the "Charge $" columns provide breakdowns of the amounts that each bill component contributes to the total monthly bill at the referenced
A81: consumption level at existing and proposed rates.
A83: Applicants must provide bill impacts for residential at 800 kWh and GS<50kW at 2000 kWh. In addition, their filing must cover the range that is relevant
A84: to their service territory, class by class. A general guideline of consumption levels follows:
A86: Residential (kWh) - 100, 250, 500, 800, 1000, 1500, 2000
A87: GS<50kW (kWh) - 1000, 2000, 5000, 10000, 15000
A88: GS>50kW (kW) - 60, 100, 500, 1000
A89: Large User - range appropriate for utility
A90: Lighting Classes and USL - 150 kWh and 1 kW, range appropriate for utility.
B92: Note that cells with the highlighted color shown to the left indicate quantities that are loss adjusted.

Sheet App.2-W_Bill Impacts GS<50
N1: File Number: | O1: =CASENUMBER ->  | T1: 1
N2: Exhibit:
N3: Tab:
N4: Schedule:
N5: Page:
N7: Date:
B10: Appendix 2-W
B11: Bill Impacts
B14: Customer Class: | D14: General Service < 50 kW
B16: TOU / non-TOU: | D16: TOU
D18: Consumption | F18: 2000 | G18: kWh
F20: Current Board-Approved | J20: Proposed | N20: Impact
D21: Charge Unit | F21: Rate | G21: Volume | H21: Charge | J21: Rate | K21: Volume | L21: Charge | N21: $ Change | O21: % Change
F22: ($) | H22: ($) | J22: ($) | L22: ($)
B23: Monthly Service Charge | D23: Monthly | F23: 25.53 | G23: 1 | H23: =G23*F23 -> 25.53 | J23: 28.71 | K23: 1 | L23: =K23*J23 -> 28.71 | N23: =L23-H23 -> 3.18 | O23: =IF((H23)=0,"",(N23/H23)) -> 0.124559342
B24: Smart Meter Rate Adder | D24: Monthly | G24: 1 | H24: =G24*F24 -> 0 | K24: 1 | L24: =K24*J24 -> 0 | N24: =L24-H24 -> 0 | O24: =IF((H24)=0,"",(N24/H24)) -> 
B25: SMIRR | D25: Monthly | F25: 6.63 | G25: 1 | H25: 6.63 | K25: 1 | L25: =K25*J25 -> 0 | N25: =L25-H25 -> -6.63 | O25: =IF((H25)=0,"",(N25/H25)) -> -1
B26: SM Entity Charge | D26: Monthly | G26: 1 | H26: 0 | K26: 1 | L26: 0 | N26: 0
B27: Stranded Meter Rate Rider | D27: Monthly | G27: 1 | H27: 0 | J27: 8.278699709 | K27: 1 | L27: 8.278699709 | N27: 8.278699709
B28: MDMR | D28: Monthly | G28: 1 | H28: 0 | J28: -0.6146888561 | K28: 1 | L28: -0.6146888561 | N28: -0.6146888561
B29: Distribution Volumetric Rate | D29: per kWh | F29: 0.0137 | G29: =$F$18 -> 2000 | H29: 27.4 | J29: 0.0125 | K29: =$F$18 -> 2000 | L29: 25 | N29: -2.4 | O29: -0.08759124088
B30: Smart Meter Disposition Rider | D30: per kWh | G30: 2000 | H30: 0 | K30: =$F$18 -> 2000 | L30: 0 | N30: 0
B31: LRAM & SSM Rate Rider | D31: per kWh | F31: 0.0004 | G31: 2000 | H31: 0.8 | K31: 2000 | L31: 0 | N31: -0.8 | O31: -1
B32: Tax change | D32: per kWh | F32: -0.0002 | G32: 2000 | H32: =G32*F32 -> -0.4 | K32: 2000 | L32: =K32*J32 -> 0 | N32: =L32-H32 -> 0.4 | O32: =IF((H32)=0,"",(N32/H32)) -> -1
B33: Disposal of 1576 (Acct Chg) | D33: per kWh | G33: 2000 | H33: =G33*F33 -> 0 | J33: -0.0006 | K33: 2000 | L33: =K33*J33 -> -1.2 | N33: =L33-H33 -> -1.2 | O33: =IF((H33)=0,"",(N33/H33)) -> 
G34: 2000 | H34: =G34*F34 -> 0 | K34: 2000 | L34: =K34*J34 -> 0 | N34: =L34-H34 -> 0 | O34: =IF((H34)=0,"",(N34/H34)) -> 
G35: 2000 | H35: 0 | K35: 2000 | L35: 0 | N35: 0
G36: 2000 | H36: 0 | K36: 2000 | L36: 0 | N36: 0
G37: 2000 | H37: 0 | K37: 2000 | L37: 0 | N37: 0
G38: 2000 | H38: 0 | K38: 2000 | L38: 0 | N38: 0
B39: Sub-Total A (excluding pass through) | H39: =SUM(H23:H38) -> 59.96 | L39: =SUM(L23:L38) -> 60.17401085 | N39: 0.2140108527 | O39: 0.003569227029
B40: DVA RR (2010) | D40: per kWh | F40: -0.0006 | G40: =$F$18 -> 2000 | H40: =G40*F40 -> -1.2 | K40: =$F$18 -> 2000 | L40: =K40*J40 -> 0 | N40: 1.2 | O40: -1
B41: GA DVA RR (2010) | D41: per kWh | G41: =$F$18 -> 2000 | H41: 0 | K41: =$F$18 -> 2000 | L41: 0 | N41: 0
B42: DVA RR (2012) | D42: per kWh | F42: -0.0018 | G42: =$F$18 -> 2000 | H42: -3.6 | K42: =$F$18 -> 2000 | L42: 0 | N42: 3.6 | O42: -1
B43: GA DVA RR (2012) | D43: per kWh | G43: =$F$18 -> 2000 | H43: 0 | K43: =$F$18 -> 2000 | L43: 0 | N43: 0
B44: Proposed DVA Rate Rider | D44: per kWh | G44: =$F$18 -> 2000 | J44: =DVA!F21 -> -0.001391265628 | K44: =$F$18 -> 2000 | L44: -2.782531257 | N44: -2.782531257
B45: Proposed DVA GA Rate Rider | D45: per kWh | G45: 2000 | K45: 2000 | L45: 0 | N45: 0
B46: Low Voltage Service Charge | G46: 2000 | H46: 0 | K46: 2000 | L46: 0 | N46: 0
B47: Line Losses on Cost of Power | F47: =IF(ISBLANK(D16)=TRUE, 0, IF(D16="TOU", 0.64*$F$57+0.18*$F$58+0.18*$F$59, IF(AND(D16="non-TOU", G61>0), F61,F60))) -> 0.08392 | G47: =ROUND($F$18*(1+$F$76)-$F$18,0) -> 81 | H47: 6.79752 | J47: =0.64*$F$57+0.18*$F$58+0.18*$F$59 -> 0.08392 | K47: =ROUND($F$18*(1+$J$76)-$F$18,0) -> 75 | L47: 6.294 | N47: -0.50352 | O47: -0.07407407407
B48: Smart Meter Entity Charge | D48: Monthly | F48: 0.79 | G48: 1 | H48: 0.79 | J48: 0.79 | K48: 1 | L48: 0.79 | N48: 0 | O48: 0
B49: Sub-Total B - Distribution (includes Sub-Total A) | H49: =SUM(H40:H48)+H39 -> 62.74752 | L49: =SUM(L40:L48)+L39 -> 64.4754796 | N49: 1.727959596 | O49: =IF((H49)=0,"",(N49/H49)) -> 0.02753829308
B50: RTSR - Network | D50: per kWh | F50: 0.0068 | G50: =$F$18*(1+$F$76) -> 2081 | H50: =G50*F50 -> 14.1508 | J50: 0.0071 | K50: =$F$18*(1+$J$76) -> 2074.6 | L50: =K50*J50 -> 14.72966 | N50: 0.57886 | O50: 0.04090652119
B51: RTSR - Line and Transformation Connection | D51: per kWh | F51: 0.0048 | G51: =$F$18*(1+$F$76) -> 2081 | H51: =G51*F51 -> 9.9888 | J51: 0.0051 | K51: =$F$18*(1+$J$76) -> 2074.6 | L51: =K51*J51 -> 10.58046 | N51: 0.59166 | O51: 0.05923234022
B52: Sub-Total C - Delivery (including Sub-Total B) | H52: =SUM(H49:H51) -> 86.88712 | L52: =SUM(L49:L51) -> 89.7855996 | N52: 2.898479596 | O52: 0.03335913995
B53: Wholesale Market Service Charge (WMSC) | D53: per kWh | F53: 0.0044 | G53: =$F$18*(1+$F$76) -> 2081 | H53: =G53*F53 -> 9.1564 | J53: =F53 -> 0.0044 | K53: =$F$18*(1+$J$76) -> 2074.6 | L53: =K53*J53 -> 9.12824 | N53: -0.02816 | O53: -0.003075444498
B54: Rural and Remote Rate Protection (RRRP) | D54: per kWh | F54: 0.0012 | G54: 2081 | H54: 2.4972 | J54: 0.0013 | K54: 2074.6 | L54: 2.69698 | N54: 0.19978 | O54: 0.08000160179
B55: Standard Supply Service Charge | D55: per kWh | F55: 0.25 | G55: 1 | H55: 0.25 | J55: =F55 -> 0.25 | K55: 1 | L55: 0.25 | N55: 0 | O55: 0
B56: Debt Retirement Charge (DRC) | D56: per kWh | F56: 0.007 | G56: =F18 -> 2000 | H56: 14 | J56: 0.007 | K56: =F18 -> 2000 | L56: 14 | N56: 0 | O56: 0
B57: TOU - Off Peak | D57: per kWh | F57: 0.067 | G57: =0.64*$F$18 -> 1280 | H57: 85.76 | J57: 0.067 | K57: =G57 -> 1280 | L57: 85.76 | N57: 0 | O57: 0
B58: TOU - Mid Peak | D58: per kWh | F58: 0.104 | G58: =0.18*$F$18 -> 360 | H58: 37.44 | J58: 0.104 | K58: =G58 -> 360 | L58: 37.44 | N58: 0 | O58: 0
B59: TOU - On Peak | D59: per kWh | F59: 0.124 | G59: =0.18*$F$18 -> 360 | H59: 44.64 | J59: 0.124 | K59: =G59 -> 360 | L59: 44.64 | N59: 0 | O59: 0
B60: Energy - RPP - Tier 1 | D60: per kWh | F60: 0.075 | G60: =IF(AND($T$1=1, F18>=600), 600, IF(AND($T$1=1, AND(F18<600, F18>=0)), F18, IF(AND($T$1=2, F18>=1000), 1000, IF(AND($T$1=2, AND(F18<1000, F18>=0)), F18)))) -> 600 | H60: =G60*F60 -> 45 | J60: 0.075 | K60: =G60 -> 600 | L60: =K60*J60 -> 45 | N60: 0 | O60: 0
B61: Energy - RPP - Tier 2 | D61: per kWh | F61: 0.088 | G61: =IF(AND($T$1=1, F18>=600), F18-600, IF(AND($T$1=1, AND(F18<600, F18>=0)), 0, IF(AND($T$1=2, F18>=1000), F18-1000, IF(AND($T$1=2, AND(F18<1000, F18>=0)), 0)))) -> 1400 | H61: =G61*F61 -> 123.2 | J61: 0.088 | K61: =G61 -> 1400 | L61: =K61*J61 -> 123.2 | N61: 0 | O61: 0
B63: Total Bill on TOU (before Taxes) | H63: =SUM(H53:H59,H52) -> 280.63072 | L63: =SUM(L53:L59,L52) -> 283.7008196 | N63: =L63-H63 -> 3.070099596 | O63: =IF((H63)=0,"",(N63/H63)) -> 0.01093999829
B64: HST | F64: 0.13 | H64: =H63*F64 -> 36.4819936 | J64: 0.13 | L64: =L63*J64 -> 36.88110655 | N64: 0.3991129475 | O64: 0.01093999829
B65: Total Bill (including HST) | H65: =H63+H64 -> 317.1127136 | L65: =L63+L64 -> 320.5819261 | N65: 3.469212543 | O65: 0.01093999829
B66: Ontario Clean Energy Benefit 1 | H66: =ROUND(-H65*0.1,2) -> -31.71 | L66: =ROUND(-L65*0.1,2) -> -32.06 | N66: -0.35 | O66: 0.01103752759
B67: Total Bill on TOU (including OCEB) | H67: =H65+H66 -> 285.4027136 | L67: =L65+L66 -> 288.5219261 | N67: 3.119212543 | O67: 0.01092916218
B69: Total Bill on RPP (before Taxes) | H69: =SUM(H60:H61,H52,H53:H56) -> 280.99072 | L69: =SUM(L60:L61,L52,L53:L56) -> 284.0608196 | N69: =L69-H69 -> 3.070099596 | O69: =IF((H69)=0,"",(N69/H69)) -> 0.01092598217
B70: HST | F70: 0.13 | H70: =H69*F70 -> 36.5287936 | J70: 0.13 | L70: =L69*J70 -> 36.92790655 | N70: =L70-H70 -> 0.3991129475 | O70: =IF((H70)=0,"",(N70/H70)) -> 0.01092598217
B71: Total Bill (including HST) | H71: =H69+H70 -> 317.5195136 | L71: =L69+L70 -> 320.9887261 | N71: =L71-H71 -> 3.469212543 | O71: =IF((H71)=0,"",(N71/H71)) -> 0.01092598217
B72: Ontario Clean Energy Benefit 1 | H72: =ROUND(-H71*0.1,2) -> -31.75 | L72: =ROUND(-L71*0.1,2) -> -32.1 | N72: =L72-H72 -> -0.35 | O72: =IF((H72)=0,"",(N72/H72)) -> 0.01102362205
B73: Total Bill on RPP (including OCEB) | H73: =SUM(H71:H72) -> 285.7695136 | L73: =SUM(L71:L72) -> 288.8887261 | N73: =L73-H73 -> 3.119212543 | O73: =IF((H73)=0,"",(N73/H73)) -> 0.01091513403
B76: Loss Factor (%) | F76: 0.0405 | J76: 0.0373
A78: 1 Applicable to eligible customers only. Refer to the Ontario Clean Energy Benefit Act, 2010.
A80: Note that the "Charge $" columns provide breakdowns of the amounts that each bill component contributes to the total monthly bill at the referenced
A81: consumption level at existing and proposed rates.
A83: Applicants must provide bill impacts for residential at 800 kWh and GS<50kW at 2000 kWh. In addition, their filing must cover the range that is relevant
A84: to their service territory, class by class. A general guideline of consumption levels follows:
A86: Residential (kWh) - 100, 250, 500, 800, 1000, 1500, 2000
A87: GS<50kW (kWh) - 1000, 2000, 5000, 10000, 15000
A88: GS>50kW (kW) - 60, 100, 500, 1000
A89: Large User - range appropriate for utility
A90: Lighting Classes and USL - 150 kWh and 1 kW, range appropriate for utility.
B92: Note that cells with the highlighted color shown to the left indicate quantities that are loss adjusted.

Sheet App.2-W_Bill Impacts GS>50
N1: File Number: | O1: =CASENUMBER ->  | T1: 1
N2: Exhibit:
N3: Tab:
N4: Schedule:
N5: Page:
N7: Date:
B10: Appendix 2-W
B11: Bill Impacts
B14: Customer Class: | D14: General Service >50kW
B16: TOU / non-TOU: | D16: TOU
D18: Consumption | F18: 100 | G18: kW
D19: Consumption | F19: 36670 | G19: kWh
F20: Current Board-Approved | J20: Proposed | N20: Impact
D21: Charge Unit | F21: Rate | G21: Volume | H21: Charge | J21: Rate | K21: Volume | L21: Charge | N21: $ Change | O21: % Change
F22: ($) | H22: ($) | J22: ($) | L22: ($)
B23: Monthly Service Charge | D23: Monthly | F23: 72.77 | G23: 1 | H23: =G23*F23 -> 72.77 | J23: 72.77 | K23: 1 | L23: =K23*J23 -> 72.77 | N23: =L23-H23 -> 0 | O23: =IF((H23)=0,"",(N23/H23)) -> 0
B24: Smart Meter Rate Adder | D24: Monthly | G24: 1 | H24: =G24*F24 -> 0 | K24: 1 | L24: =K24*J24 -> 0 | N24: =L24-H24 -> 0 | O24: =IF((H24)=0,"",(N24/H24)) -> 
B25: SMIRR | D25: Monthly | F25: 4.18 | G25: 1 | H25: 4.18 | K25: 1 | L25: =K25*J25 -> 0 | N25: =L25-H25 -> -4.18 | O25: =IF((H25)=0,"",(N25/H25)) -> -1
B26: SM Entity Charge | D26: Monthly | G26: 1 | H26: 0 | K26: 1 | L26: 0 | N26: 0
B27: Stranded Meter Rate Rider | D27: Monthly | G27: 1 | H27: 0 | J27: 4.809673049 | K27: 1 | L27: 4.809673049 | N27: 4.809673049
B28: MDMR | D28: Monthly | G28: 1 | H28: 0 | J28: -0.3940857423 | K28: 1 | L28: -0.3940857423 | N28: -0.3940857423
B29: Distribution Volumetric Rate | D29: per kW | F29: 2.8723 | G29: =$F$18 -> 100 | H29: 287.23 | J29: 3.3502 | K29: =$F$18 -> 100 | L29: 335.02 | N29: 47.79 | O29: 0.1663823417
B30: Smart Meter Disposition Rider | D30: per kW | G30: 100 | H30: 0 | K30: =$F$18 -> 100 | L30: 0 | N30: 0
B31: LRAM & SSM Rate Rider | D31: per kW | F31: 0.0142 | G31: 100 | H31: 1.42 | K31: 100 | L31: 0 | N31: -1.42 | O31: -1
B32: Tax change | D32: per kW | F32: -0.025 | G32: 100 | H32: =G32*F32 -> -2.5 | K32: 100 | L32: =K32*J32 -> 0 | N32: =L32-H32 -> 2.5 | O32: =IF((H32)=0,"",(N32/H32)) -> -1
B33: Disposal of 1576 (Acct Chg) | D33: per kW | G33: 100 | H33: =G33*F33 -> 0 | J33: -0.2225 | K33: 100 | L33: =K33*J33 -> -22.25 | N33: =L33-H33 -> -22.25 | O33: =IF((H33)=0,"",(N33/H33)) -> 
D34: per kW | G34: 100 | H34: =G34*F34 -> 0 | K34: 100 | L34: =K34*J34 -> 0 | N34: =L34-H34 -> 0 | O34: =IF((H34)=0,"",(N34/H34)) -> 
D35: per kW | G35: 100 | H35: 0 | K35: 100 | L35: 0 | N35: 0
D36: per kW | G36: 100 | H36: 0 | K36: 100 | L36: 0 | N36: 0
D37: per kW | G37: 100 | H37: 0 | K37: 100 | L37: 0 | N37: 0
D38: per kW | G38: 100 | H38: 0 | K38: 100 | L38: 0 | N38: 0
B39: Sub-Total A (excluding pass through) | H39: =SUM(H23:H38) -> 363.1 | L39: =SUM(L23:L38) -> 389.9555873 | N39: 26.85558731 | O39: 0.07396195898
B40: DVA RR (2010) | D40: per kW | F40: -0.2906 | G40: =$F$18 -> 100 | H40: =G40*F40 -> -29.06 | K40: =$F$18 -> 100 | L40: =K40*J40 -> 0 | N40: 29.06 | O40: -1
B41: GA DVA RR (2010) | D41: per kW | G41: =$F$18 -> 100 | H41: 0 | K41: =$F$18 -> 100 | L41: =K41*J41 -> 0 | N41: =L41-H41 -> 0 | O41: =IF((H41)=0,"",(N41/H41)) -> 
B42: DVA RR (2012) | D42: per kW | F42: -0.5791 | G42: =$F$18 -> 100 | H42: -57.91 | K42: 100 | L42: 0 | N42: 57.91 | O42: -1
B43: GA DVA RR (2012) | D43: per kW | G43: =$F$18 -> 100 | H43: 0 | K43: 100 | L43: 0 | N43: 0
B44: Proposed DVA Rate Rider | D44: per kW | G44: =$F$18 -> 100 | J44: =DVA!F22 -> -0.5618710804 | K44: 100 | L44: -56.18710804 | N44: -56.18710804
B45: Proposed DVA GA Rate Rider | D45: per kW | G45: 100 | K45: =$F$18 -> 100 | L45: =K45*J45 -> 0 | N45: =L45-H45 -> 0 | O45: =IF((H45)=0,"",(N45/H45)) -> 
B46: Low Voltage Service Charge | G46: =$F$18 -> 100 | H46: 0 | K46: =$F$18 -> 100 | L46: 0 | N46: 0
B47: Line Losses on Cost of Power | F47: =IF(ISBLANK(D16)=TRUE, 0, IF(D16="TOU", 0.64*$F$57+0.18*$F$58+0.18*$F$59, IF(AND(D16="non-TOU", G61>0), F61,F60))) -> 0.08392 | G47: =ROUND(+$F$19*(1+F76)-$F$19,0) -> 1485 | H47: 124.6212 | J47: =0.64*$F$57+0.18*$F$58+0.18*$F$59 -> 0.08392 | K47: =ROUND(+$F$19*(1+J76)-$F$19,0) -> 1368 | L47: 114.80256 | N47: -9.81864 | O47: -0.07878787879
B48: Smart Meter Entity Charge | G48: 1 | H48: 0 | K48: 1 | L48: 0 | N48: 0
B49: Sub-Total B - Distribution (includes Sub-Total A) | H49: =SUM(H40:H48)+H39 -> 400.7512 | L49: =SUM(L40:L48)+L39 -> 448.5710393 | N49: 47.81983927 | O49: =IF((H49)=0,"",(N49/H49)) -> 0.1193255049
B50: RTSR - Network | D50: per kW | F50: 2.8124 | G50: =$F$18*(1+$F$76) -> 104.05 | H50: =G50*F50 -> 292.63022 | J50: 2.9008 | K50: =$F$18*(1+$J$76) -> 103.73 | L50: =K50*J50 -> 300.899984 | N50: 8.269764 | O50: 0.02826011613
B51: RTSR - Line and Transformation Connection | D51: per kW | F51: 2.1245 | G51: =$F$18*(1+$F$76) -> 104.05 | H51: =G51*F51 -> 221.054225 | J51: 2.1384 | K51: =$F$18*(1+$J$76) -> 103.73 | L51: =K51*J51 -> 221.816232 | N51: 0.762007 | O51: 0.003447149676
B52: Sub-Total C - Delivery (including Sub-Total B) | H52: =SUM(H49:H51) -> 914.435645 | L52: =SUM(L49:L51) -> 971.2872553 | N52: 56.85161027 | O52: 0.06217125347
B53: Wholesale Market Service Charge (WMSC) | D53: per kWh | F53: 0.0044 | G53: =$F$19*(1+$F$76) -> 38155.135 | H53: =G53*F53 -> 167.882594 | J53: =F53 -> 0.0044 | K53: =$F$19*(1+$J$76) -> 38037.791 | L53: =K53*J53 -> 167.3662804 | N53: -0.5163136 | O53: -0.003075444498
B54: Rural and Remote Rate Protection (RRRP) | D54: per kWh | F54: 0.0012 | G54: =$F$19*(1+$F$76) -> 38155.135 | H54: 45.786162 | J54: 0.0013 | K54: =$F$19*(1+$J$76) -> 38037.791 | L54: 49.4491283 | N54: 3.6629663 | O54: 0.08000160179
B55: Standard Supply Service Charge | D55: per kWh | F55: 0.25 | G55: 1 | H55: 0.25 | J55: =F55 -> 0.25 | K55: 1 | L55: 0.25 | N55: 0 | O55: 0
B56: Debt Retirement Charge (DRC) | D56: per kWh | F56: 0.007 | G56: =+F19 -> 36670 | H56: 256.69 | J56: 0.007 | K56: =F19 -> 36670 | L56: 256.69 | N56: 0 | O56: 0
B57: TOU - Off Peak | D57: per kWh | F57: 0.067 | G57: =0.64*$F$19 -> 23468.8 | H57: 1572.4096 | J57: 0.067 | K57: =G57 -> 23468.8 | L57: 1572.4096 | N57: 0 | O57: 0
B58: TOU - Mid Peak | D58: per kWh | F58: 0.104 | G58: =0.18*$F$19 -> 6600.6 | H58: 686.4624 | J58: 0.104 | K58: =G58 -> 6600.6 | L58: 686.4624 | N58: 0 | O58: 0
B59: TOU - On Peak | D59: per kWh | F59: 0.124 | G59: =0.18*$F$19 -> 6600.6 | H59: 818.4744 | J59: 0.124 | K59: =G59 -> 6600.6 | L59: 818.4744 | N59: 0 | O59: 0
B60: Energy - RPP - Tier 1 | D60: per kWh | F60: 0.075 | G60: =IF(AND($T$1=1, F19>=600), 600, IF(AND($T$1=1, AND(F19<600, F18>=0)), F19, IF(AND($T$1=2, F19>=1000), 1000, IF(AND($T$1=2, AND(F19<1000, F18>=0)), F19)))) -> 600 | H60: =G60*F60 -> 45 | J60: 0.075 | K60: =G60 -> 600 | L60: =K60*J60 -> 45 | N60: 0 | O60: 0
B61: Energy - RPP - Tier 2 | D61: per kWh | F61: 0.088 | G61: =IF(AND($T$1=1, F19>=600), F19-600, IF(AND($T$1=1, AND(F19<600, F19>=0)), 0, IF(AND($T$1=2, F19>=1000), F19-1000, IF(AND($T$1=2, AND(F19<1000, F19>=0)), 0)))) -> 36070 | H61: =G61*F61 -> 3174.16 | J61: 0.088 | K61: =G61 -> 36070 | L61: =K61*J61 -> 3174.16 | N61: 0 | O61: 0
B63: Total Bill on TOU (before Taxes) | H63: =SUM(H53:H59,H52) -> 4462.390801 | L63: =SUM(L53:L59,L52) -> 4522.389064 | N63: =L63-H63 -> 59.99826297 | O63: =IF((H63)=0,"",(N63/H63)) -> 0.01344531791
B64: HST | F64: 0.13 | H64: =H63*F64 -> 580.1108041 | J64: 0.13 | L64: =L63*J64 -> 587.9105783 | N64: 7.799774186 | O64: 0.01344531791
B65: Total Bill (including HST) | H65: =H63+H64 -> 5042.501605 | L65: =L63+L64 -> 5110.299642 | N65: 67.79803716 | O65: 0.01344531791
B66: Ontario Clean Energy Benefit 1 | H66: =ROUND(-H65*0.1,2) -> -504.25 | L66: =ROUND(-L65*0.1,2) -> -511.03 | N66: -6.78 | O66: 0.01344571145
B67: Total Bill on TOU (including OCEB) | H67: =H65+H66 -> 4538.251605 | L67: =L65+L66 -> 4599.269642 | N67: 61.01803716 | O67: 0.01344527419
B69: Total Bill on RPP (before Taxes) | H69: =SUM(H60:H61,H52,H53:H56) -> 4604.204401 | L69: =SUM(L60:L61,L52,L53:L56) -> 4664.202664 | N69: =L69-H69 -> 59.99826297 | O69: =IF((H69)=0,"",(N69/H69)) -> 0.01303119013
B70: HST | F70: 0.13 | H70: =H69*F70 -> 598.5465721 | J70: 0.13 | L70: =L69*J70 -> 606.3463463 | N70: =L70-H70 -> 7.799774186 | O70: =IF((H70)=0,"",(N70/H70)) -> 0.01303119013
B71: Total Bill (including HST) | H71: =H69+H70 -> 5202.750973 | L71: =L69+L70 -> 5270.54901 | N71: =L71-H71 -> 67.79803716 | O71: =IF((H71)=0,"",(N71/H71)) -> 0.01303119013
B72: Ontario Clean Energy Benefit 1 | H72: =ROUND(-H71*0.1,2) -> -520.28 | L72: =ROUND(-L71*0.1,2) -> -527.05 | N72: =L72-H72 -> -6.77 | O72: =IF((H72)=0,"",(N72/H72)) -> 0.01301222419
B73: Total Bill on RPP (including OCEB) | H73: =SUM(H71:H72) -> 4682.470973 | L73: =SUM(L71:L72) -> 4743.49901 | N73: =L73-H73 -> 61.02803716 | O73: =IF((H73)=0,"",(N73/H73)) -> 0.01303329748
B76: Loss Factor (%) | F76: 0.0405 | J76: 0.0373
A78: 1 Applicable to eligible customers only. Refer to the Ontario Clean Energy Benefit Act, 2010.
A80: Note that the "Charge $" columns provide breakdowns of the amounts that each bill component contributes to the total monthly bill at the referenced
A81: consumption level at existing and proposed rates.
A83: Applicants must provide bill impacts for residential at 800 kWh and GS<50kW at 2000 kWh. In addition, their filing must cover the range that is relevant
A84: to their service territory, class by class. A general guideline of consumption levels follows:
A86: Residential (kWh) - 100, 250, 500, 800, 1000, 1500, 2000
A87: GS<50kW (kWh) - 1000, 2000, 5000, 10000, 15000
A88: GS>50kW (kW) - 60, 100, 500, 1000
A89: Large User - range appropriate for utility
A90: Lighting Classes and USL - 150 kWh and 1 kW, range appropriate for utility.
B92: Note that cells with the highlighted color shown to the left indicate quantities that are loss adjusted.

Sheet App.2-W_Bill Impacts USL
N1: File Number: | O1: =CASENUMBER ->  | T1: 1
N2: Exhibit:
N3: Tab:
N4: Schedule:
N5: Page:
N7: Date:
B10: Appendix 2-W
B11: Bill Impacts
B14: Customer Class: | D14: Unscattered Metered Load
B16: TOU / non-TOU: | D16: non-TOU
D18: Consumption | F18: 150 | G18: kWh
F20: Current Board-Approved | J20: Proposed | N20: Impact
D21: Charge Unit | F21: Rate | G21: Volume | H21: Charge | J21: Rate | K21: Volume | L21: Charge | N21: $ Change | O21: % Change
F22: ($) | H22: ($) | J22: ($) | L22: ($)
B23: Monthly Service Charge | D23: Monthly | F23: 10.34 | G23: 1 | H23: =G23*F23 -> 10.34 | J23: 10.34 | K23: 1 | L23: =K23*J23 -> 10.34 | N23: =L23-H23 -> 0 | O23: =IF((H23)=0,"",(N23/H23)) -> 0
B24: Smart Meter Rate Adder | D24: Monthly | G24: 1 | H24: =G24*F24 -> 0 | K24: 1 | L24: =K24*J24 -> 0 | N24: =L24-H24 -> 0 | O24: =IF((H24)=0,"",(N24/H24)) -> 
B25: SMIRR | D25: Monthly | G25: 1 | H25: 0 | K25: 1 | L25: =K25*J25 -> 0 | N25: =L25-H25 -> 0 | O25: =IF((H25)=0,"",(N25/H25)) -> 
B26: SM Entity Charge | D26: Monthly | G26: 1 | H26: 0 | K26: 1 | L26: 0 | N26: 0
B27: Stranded Meter Rate Rider | D27: Monthly | G27: 1 | H27: 0 | K27: 1 | L27: 0 | N27: 0
D28: Monthly | G28: 1 | H28: 0 | K28: 1 | L28: 0 | N28: 0
B29: Distribution Volumetric Rate | D29: per kWh | F29: 0.0179 | G29: =$F$18 -> 150 | H29: 2.685 | J29: 0.007 | K29: =$F$18 -> 150 | L29: 1.05 | N29: -1.635 | O29: -0.6089385475
B30: Smart Meter Disposition Rider | D30: per kWh | G30: 150 | H30: 0 | K30: =$F$18 -> 150 | L30: 0 | N30: 0
B31: LRAM & SSM Rate Rider | D31: per kWh | G31: 150 | H31: 0 | K31: 150 | L31: 0 | N31: 0
B32: Tax change | D32: per kWh | F32: -0.0003 | G32: 150 | H32: =G32*F32 -> -0.045 | K32: 150 | L32: =K32*J32 -> 0 | N32: =L32-H32 -> 0.045 | O32: =IF((H32)=0,"",(N32/H32)) -> -1
B33: Disposal of 1576 (Acct Chg) | D33: per kWh | G33: 150 | H33: =G33*F33 -> 0 | J33: -0.0006 | K33: 150 | L33: =K33*J33 -> -0.09 | N33: =L33-H33 -> -0.09 | O33: =IF((H33)=0,"",(N33/H33)) -> 
D34: per kWh | G34: 150 | H34: =G34*F34 -> 0 | K34: 150 | L34: =K34*J34 -> 0 | N34: =L34-H34 -> 0 | O34: =IF((H34)=0,"",(N34/H34)) -> 
D35: per kWh | G35: 150 | H35: 0 | K35: 150 | L35: 0 | N35: 0
D36: per kWh | G36: 150 | H36: 0 | K36: 150 | L36: 0 | N36: 0
D37: per kWh | G37: 150 | H37: 0 | K37: 150 | L37: 0 | N37: 0
D38: per kWh | G38: 150 | H38: 0 | K38: 150 | L38: 0 | N38: 0
B39: Sub-Total A (excluding pass through) | H39: =SUM(H23:H38) -> 12.98 | L39: =SUM(L23:L38) -> 11.3 | N39: -1.68 | O39: -0.1294298921
B40: DVA RR (2010) | D40: per kWh | F40: -0.0006 | G40: =$F$18 -> 150 | H40: =G40*F40 -> -0.09 | K40: =$F$18 -> 150 | L40: =K40*J40 -> 0 | N40: 0.09 | O40: -1
B41: GA DVA RR (2010) | D41: per kWh | G41: =$F$18 -> 150 | H41: 0 | K41: =$F$18 -> 150 | L41: 0 | N41: 0
B42: DVA RR (2012) | D42: per kWh | F42: -0.0021 | G42: =$F$18 -> 150 | H42: -0.315 | K42: =$F$18 -> 150 | L42: 0 | N42: 0.315 | O42: -1
B43: GA DVA RR (2012) | D43: per kWh | G43: =$F$18 -> 150 | H43: 0 | K43: =$F$18 -> 150 | L43: 0 | N43: 0
B44: Proposed DVA Rate Rider | D44: per kWh | G44: =$F$18 -> 150 | J44: =DVA!F23 -> -0.001381338074 | K44: =$F$18 -> 150 | L44: =K44*J44 -> -0.2072007111 | N44: =L44-H44 -> -0.2072007111 | O44: =IF((H44)=0,"",(N44/H44)) -> 
B45: Proposed DVA GA Rate Rider | D45: per kWh | G45: 150 | K45: 150 | L45: 0 | N45: 0
B46: Low Voltage Service Charge | G46: =$F$18 -> 150 | H46: 0 | K46: =$F$18 -> 150 | L46: 0 | N46: 0
B47: Line Losses on Cost of Power | F47: =IF(ISBLANK(D16)=TRUE, 0, IF(D16="TOU", 0.64*$F$57+0.18*$F$58+0.18*$F$59, IF(AND(D16="non-TOU", G61>0), F61,F60))) -> 0.075 | G47: =ROUND($F$18*(1+$F$76)-$F$18,0) -> 6 | H47: 0.45 | J47: =IF(ISBLANK(D16)=TRUE, 0, IF(D16="TOU", 0.64*$F$57+0.18*$F$58+0.18*$F$59, IF(AND(D16="non-TOU", K61>0), J61,J60))) -> 0.075 | K47: =ROUND($F$18*(1+$J$76)-$F$18,0) -> 6 | L47: 0.45 | N47: 0 | O47: 0
B48: Smart Meter Entity Charge | D48: Monthly | H48: 0 | L48: 0 | N48: 0
B49: Sub-Total B - Distribution (includes Sub-Total A) | H49: =SUM(H40:H48)+H39 -> 13.025 | L49: =SUM(L40:L48)+L39 -> 11.54279929 | N49: -1.482200711 | O49: =IF((H49)=0,"",(N49/H49)) -> -0.1137965997
B50: RTSR - Network | D50: per kWh | F50: 0.0068 | G50: =ROUND($F$18*(1+$F$76),0) -> 156 | H50: =G50*F50 -> 1.0608 | J50: 0.0071 | K50: =ROUND($F$18*(1+$J$76),0) -> 156 | L50: =K50*J50 -> 1.1076 | N50: 0.0468 | O50: 0.04411764706
B51: RTSR - Line and Transformation Connection | D51: per kWh | F51: 0.0048 | G51: =ROUND($F$18*(1+$F$76),0) -> 156 | H51: =G51*F51 -> 0.7488 | J51: 0.0051 | K51: =ROUND($F$18*(1+$J$76),0) -> 156 | L51: =K51*J51 -> 0.7956 | N51: 0.0468 | O51: 0.0625
B52: Sub-Total C - Delivery (including Sub-Total B) | H52: =SUM(H49:H51) -> 14.8346 | L52: =SUM(L49:L51) -> 13.44599929 | N52: -1.388600711 | O52: -0.0936055378
B53: Wholesale Market Service Charge (WMSC) | D53: per kWh | F53: 0.0044 | G53: =ROUND($F$18*(1+$F$76),0) -> 156 | H53: =G53*F53 -> 0.6864 | J53: =F53 -> 0.0044 | K53: =ROUND($F$18*(1+$J$76),0) -> 156 | L53: =K53*J53 -> 0.6864 | N53: 0 | O53: 0
B54: Rural and Remote Rate Protection (RRRP) | D54: per kWh | F54: 0.0012 | G54: 156 | H54: 0.1872 | J54: 0.0013 | K54: 156 | L54: 0.2028 | N54: 0.0156 | O54: 0.08333333333
B55: Standard Supply Service Charge | D55: per kWh | F55: 0.25 | G55: 1 | H55: 0.25 | J55: =F55 -> 0.25 | K55: 1 | L55: 0.25 | N55: 0 | O55: 0
B56: Debt Retirement Charge (DRC) | D56: per kWh | F56: 0.007 | G56: =F18 -> 150 | H56: 1.05 | J56: 0.007 | K56: =F18 -> 150 | L56: 1.05 | N56: 0 | O56: 0
B57: TOU - Off Peak | D57: per kWh | F57: 0.067 | G57: =0.64*$F$18 -> 96 | H57: 6.432 | J57: 0.067 | K57: =G57 -> 96 | L57: 6.432 | N57: 0 | O57: 0
B58: TOU - Mid Peak | D58: per kWh | F58: 0.104 | G58: =0.18*$F$18 -> 27 | H58: 2.808 | J58: 0.104 | K58: =G58 -> 27 | L58: 2.808 | N58: 0 | O58: 0
B59: TOU - On Peak | D59: per kWh | F59: 0.124 | G59: =0.18*$F$18 -> 27 | H59: 3.348 | J59: 0.124 | K59: =G59 -> 27 | L59: 3.348 | N59: 0 | O59: 0
B60: Energy - RPP - Tier 1 | D60: per kWh | F60: 0.075 | G60: =IF(AND($T$1=1, F18>=600), 600, IF(AND($T$1=1, AND(F18<600, F18>=0)), F18, IF(AND($T$1=2, F18>=1000), 1000, IF(AND($T$1=2, AND(F18<1000, F18>=0)), F18)))) -> 150 | H60: =G60*F60 -> 11.25 | J60: 0.075 | K60: =G60 -> 150 | L60: =K60*J60 -> 11.25 | N60: 0 | O60: 0
B61: Energy - RPP - Tier 2 | D61: per kWh | F61: 0.088 | G61: =IF(AND($T$1=1, F18>=600), F18-600, IF(AND($T$1=1, AND(F18<600, F18>=0)), 0, IF(AND($T$1=2, F18>=1000), F18-1000, IF(AND($T$1=2, AND(F18<1000, F18>=0)), 0)))) -> 0 | H61: =G61*F61 -> 0 | J61: 0.088 | K61: =G61 -> 0 | L61: =K61*J61 -> 0 | N61: 0
B63: Total Bill on TOU (before Taxes) | H63: =SUM(H53:H59,H52) -> 29.5962 | L63: =SUM(L53:L59,L52) -> 28.22319929 | N63: =L63-H63 -> -1.373000711 | O63: =IF((H63)=0,"",(N63/H63)) -> -0.04639111477
B64: HST | F64: 0.13 | H64: =H63*F64 -> 3.847506 | J64: 0.13 | L64: =L63*J64 -> 3.669015908 | N64: -0.1784900924 | O64: -0.04639111477
B65: Total Bill (including HST) | H65: =H63+H64 -> 33.443706 | L65: =L63+L64 -> 31.8922152 | N65: -1.551490804 | O65: -0.04639111477
B66: Ontario Clean Energy Benefit 1 | H66: =ROUND(-H65*0.1,2) -> -3.34 | L66: =ROUND(-L65*0.1,2) -> -3.19 | N66: 0.15 | O66: -0.04491017964
B67: Total Bill on TOU (including OCEB) | H67: =H65+H66 -> 30.103706 | L67: =L65+L66 -> 28.7022152 | N67: -1.401490804 | O67: -0.04655542422
B69: Total Bill on RPP (before Taxes) | H69: =SUM(H60:H61,H52,H53:H56) -> 28.2582 | L69: =SUM(L60:L61,L52,L53:L56) -> 26.88519929 | N69: =L69-H69 -> -1.373000711 | O69: =IF((H69)=0,"",(N69/H69)) -> -0.04858769175
B70: HST | F70: 0.13 | H70: =H69*F70 -> 3.673566 | J70: 0.13 | L70: =L69*J70 -> 3.495075908 | N70: =L70-H70 -> -0.1784900924 | O70: =IF((H70)=0,"",(N70/H70)) -> -0.04858769175
B71: Total Bill (including HST) | H71: =H69+H70 -> 31.931766 | L71: =L69+L70 -> 30.3802752 | N71: =L71-H71 -> -1.551490804 | O71: =IF((H71)=0,"",(N71/H71)) -> -0.04858769175
B72: Ontario Clean Energy Benefit 1 | H72: =ROUND(-H71*0.1,2) -> -3.19 | L72: =ROUND(-L71*0.1,2) -> -3.04 | N72: =L72-H72 -> 0.15 | O72: =IF((H72)=0,"",(N72/H72)) -> -0.04702194357
B73: Total Bill on RPP (including OCEB) | H73: =SUM(H71:H72) -> 28.741766 | L73: =SUM(L71:L72) -> 27.3402752 | N73: =L73-H73 -> -1.401490804 | O73: =IF((H73)=0,"",(N73/H73)) -> -0.0487614715
B76: Loss Factor (%) | F76: 0.0405 | J76: 0.0373
A78: 1 Applicable to eligible customers only. Refer to the Ontario Clean Energy Benefit Act, 2010.
A80: Note that the "Charge $" columns provide breakdowns of the amounts that each bill component contributes to the total monthly bill at the referenced
A81: consumption level at existing and proposed rates.
A83: Applicants must provide bill impacts for residential at 800 kWh and GS<50kW at 2000 kWh. In addition, their filing must cover the range that is relevant
A84: to their service territory, class by class. A general guideline of consumption levels follows:
A86: Residential (kWh) - 100, 250, 500, 800, 1000, 1500, 2000
A87: GS<50kW (kWh) - 1000, 2000, 5000, 10000, 15000
A88: GS>50kW (kW) - 60, 100, 500, 1000
A89: Large User - range appropriate for utility
A90: Lighting Classes and USL - 150 kWh and 1 kW, range appropriate for utility.
B92: Note that cells with the highlighted color shown to the left indicate quantities that are loss adjusted.

Sheet App.2-W_Bill Impacts StrLights
N1: File Number: | O1: =CASENUMBER ->  | T1: 1
N2: Exhibit:
N3: Tab:
N4: Schedule:
N5: Page:
N7: Date:
B10: Appendix 2-W
B11: Bill Impacts
B14: Customer Class: | D14: Street Lights
B16: TOU / non-TOU: | D16: non-TOU
D18: Consumption | F18: 0.22 | G18: kW
D19: Consumption | F19: 78 | G19: kWh
F20: Current Board-Approved | J20: Proposed | N20: Impact
D21: Charge Unit | F21: Rate | G21: Volume | H21: Charge | J21: Rate | K21: Volume | L21: Charge | N21: $ Change | O21: % Change
F22: ($) | H22: ($) | J22: ($) | L22: ($)
B23: Monthly Service Charge | D23: Monthly | F23: 0.61 | G23: 1 | H23: =G23*F23 -> 0.61 | J23: 0.63 | K23: 1 | L23: =K23*J23 -> 0.63 | N23: =L23-H23 -> 0.02 | O23: =IF((H23)=0,"",(N23/H23)) -> 0.03278688525
B24: Smart Meter Rate Adder | D24: Monthly | G24: 1 | H24: =G24*F24 -> 0 | K24: 1 | L24: =K24*J24 -> 0 | N24: =L24-H24 -> 0 | O24: =IF((H24)=0,"",(N24/H24)) -> 
B25: SMIRR | D25: Monthly | G25: 1 | H25: 0 | K25: 1 | L25: =K25*J25 -> 0 | N25: =L25-H25 -> 0 | O25: =IF((H25)=0,"",(N25/H25)) -> 
B26: SM Entity Charge | D26: Monthly | G26: 1 | H26: 0 | K26: 1 | L26: 0 | N26: 0
B27: Stranded Meter Rate Rider | D27: Monthly | G27: 1 | H27: 0 | K27: 1 | L27: 0 | N27: 0
D28: Monthly | G28: 1 | H28: 0 | K28: 1 | L28: 0 | N28: 0
B29: Distribution Volumetric Rate | D29: per kW | F29: 4.43 | G29: =$F$18 -> 0.22 | H29: 0.9746 | J29: 4.6348 | K29: =$F$18 -> 0.22 | L29: 1.019656 | N29: 0.045056 | O29: 0.04623024831
B30: Smart Meter Disposition Rider | D30: per kW | G30: 0.22 | H30: 0 | K30: =$F$18 -> 0.22 | L30: 0 | N30: 0
B31: LRAM & SSM Rate Rider | D31: per kW | G31: 0.22 | H31: 0 | K31: 0.22 | L31: 0 | N31: 0
B32: Tax change | D32: per kW | F32: -0.006 | G32: 0.22 | H32: =G32*F32 -> -0.00132 | K32: 0.22 | L32: =K32*J32 -> 0 | N32: =L32-H32 -> 0.00132 | O32: =IF((H32)=0,"",(N32/H32)) -> -1
B33: Disposal of 1576 (Acct Chg) | D33: per kW | G33: 0.22 | H33: =G33*F33 -> 0 | J33: -0.2066 | K33: 0.22 | L33: =K33*J33 -> -0.045452 | N33: =L33-H33 -> -0.045452 | O33: =IF((H33)=0,"",(N33/H33)) -> 
D34: per kW | G34: 0.22 | H34: =G34*F34 -> 0 | K34: 0.22 | L34: =K34*J34 -> 0 | N34: =L34-H34 -> 0 | O34: =IF((H34)=0,"",(N34/H34)) -> 
D35: per kW | G35: 0.22 | H35: 0 | K35: 0.22 | L35: 0 | N35: 0
D36: per kW | G36: 0.22 | H36: 0 | K36: 0.22 | L36: 0 | N36: 0
D37: per kW | G37: 0.22 | H37: 0 | K37: 0.22 | L37: 0 | N37: 0
D38: per kW | G38: 0.22 | H38: 0 | K38: 0.22 | L38: 0 | N38: 0
B39: Sub-Total A (excluding pass through) | H39: =SUM(H23:H38) -> 1.58328 | L39: =SUM(L23:L38) -> 1.604204 | N39: 0.020924 | O39: 0.01321560305
B40: DVA RR (2010) | D40: per kW | F40: -0.3359 | G40: =$F$18 -> 0.22 | H40: =G40*F40 -> -0.073898 | K40: =$F$18 -> 0.22 | L40: =K40*J40 -> 0 | N40: 0.073898 | O40: -1
B41: GA DVA RR (2010) | D41: per kW | G41: =$F$18 -> 0.22 | H41: 0 | K41: =$F$18 -> 0.22 | L41: 0 | N41: 0
B42: DVA RR (2012) | D42: per kW | F42: -0.6571 | G42: =$F$18 -> 0.22 | H42: -0.144562 | K42: =$F$18 -> 0.22 | L42: 0 | N42: 0.144562 | O42: -1
B43: GA DVA RR (2012) | D43: per kW | G43: =$F$18 -> 0.22 | H43: 0 | K43: =$F$18 -> 0.22 | L43: 0 | N43: 0
B44: Proposed DVA Rate Rider | D44: per kW | G44: =$F$18 -> 0.22 | J44: =DVA!F24 -> -0.5203766719 | K44: =$F$18 -> 0.22 | L44: -0.1144828678 | N44: =L44-H44 -> -0.1144828678 | O44: =IF((H44)=0,"",(N44/H44)) -> 
B45: Proposed DVA GA Rate Rider | D45: per kW | G45: 0.22 | K45: 0.22 | L45: 0 | N45: 0
B46: Low Voltage Service Charge | G46: =$F$18 -> 0.22 | H46: 0 | K46: =$F$18 -> 0.22 | L46: 0 | N46: 0
B47: Line Losses on Cost of Power | F47: =IF(ISBLANK(D16)=TRUE, 0, IF(D16="TOU", 0.64*$F$57+0.18*$F$58+0.18*$F$59, IF(AND(D16="non-TOU", G61>0), F61,F60))) -> 0.075 | G47: =ROUND($F$19*(1+$F$76)-$F$19,0) -> 3 | H47: 0.225 | J47: =IF(ISBLANK(D16)=TRUE, 0, IF(D16="TOU", 0.64*$F$57+0.18*$F$58+0.18*$F$59, IF(AND(D16="non-TOU", K61>0), J61,J60))) -> 0.075 | K47: =ROUND($F$19*(1+$J$76)-$F$19,0) -> 3 | L47: 0.225 | N47: 0 | O47: 0
B48: Smart Meter Entity Charge | N48: 0
B49: Sub-Total B - Distribution (includes Sub-Total A) | H49: =SUM(H40:H48)+H39 -> 1.58982 | L49: =SUM(L40:L48)+L39 -> 1.714721132 | N49: 0.1249011322 | O49: =IF((H49)=0,"",(N49/H49)) -> 0.07856306511
B50: RTSR - Network | D50: per kW | F50: 2.0553 | G50: =$F$18*(1+$F$76) -> 0.22891 | H50: =G50*F50 -> 0.470478723 | J50: 2.1505 | K50: =$F$18*(1+$J$76) -> 0.228206 | L50: =K50*J50 -> 0.490757003 | N50: 0.02027828 | O50: 0.04310137528
B51: RTSR - Line and Transformation Connection | D51: per kW | F51: 1.5119 | G51: =$F$18*(1+$F$76) -> 0.22891 | H51: =G51*F51 -> 0.346089029 | J51: 1.6064 | K51: =$F$18*(1+$J$76) -> 0.228206 | L51: =K51*J51 -> 0.3665901184 | N51: 0.0205010894 | O51: 0.05923646138
B52: Sub-Total C - Delivery (including Sub-Total B) | H52: =SUM(H49:H51) -> 2.406387752 | L52: =SUM(L49:L51) -> 2.572068254 | N52: 0.1656805016 | O52: 0.06885029291
B53: Wholesale Market Service Charge (WMSC) | D53: per kWh | F53: 0.0044 | G53: =+$F$19*(1+$F$76) -> 81.159 | H53: =G53*F53 -> 0.3570996 | J53: =F53 -> 0.0044 | K53: =$F$19*(1+$J$76) -> 80.9094 | L53: =K53*J53 -> 0.35600136 | N53: -0.00109824 | O53: -0.003075444498
B54: Rural and Remote Rate Protection (RRRP) | D54: per kWh | F54: 0.0012 | G54: =+$F$19*(1+$F$76) -> 81.159 | H54: 0.0973908 | J54: 0.0013 | K54: =$F$19*(1+$J$76) -> 80.9094 | L54: 0.10518222 | N54: 0.00779142 | O54: 0.08000160179
B55: Standard Supply Service Charge | D55: per kWh | F55: 0.25 | G55: 1 | H55: 0.25 | J55: =F55 -> 0.25 | K55: 1 | L55: 0.25 | N55: 0 | O55: 0
B56: Debt Retirement Charge (DRC) | D56: per kWh | F56: 0.007 | G56: =F18 -> 0.22 | H56: 0.00154 | J56: 0.007 | K56: =F18 -> 0.22 | L56: 0.00154 | N56: 0 | O56: 0
B57: TOU - Off Peak | D57: per kWh | F57: 0.067 | G57: =0.64*$F$19 -> 49.92 | H57: 3.34464 | J57: 0.067 | K57: =G57 -> 49.92 | L57: 3.34464 | N57: 0 | O57: 0
B58: TOU - Mid Peak | D58: per kWh | F58: 0.104 | G58: =0.18*$F$19 -> 14.04 | H58: 1.46016 | J58: 0.104 | K58: =G58 -> 14.04 | L58: 1.46016 | N58: 0 | O58: 0
B59: TOU - On Peak | D59: per kWh | F59: 0.124 | G59: =0.18*$F$19 -> 14.04 | H59: 1.74096 | J59: 0.124 | K59: =G59 -> 14.04 | L59: 1.74096 | N59: 0 | O59: 0
B60: Energy - RPP - Tier 1 | D60: per kWh | F60: 0.075 | G60: =IF(AND($T$1=1, F19>=600), 600, IF(AND($T$1=1, AND(F19<600, F19>=0)), F19, IF(AND($T$1=2, F19>=1000), 1000, IF(AND($T$1=2, AND(F19<1000, F19>=0)), F19)))) -> 78 | H60: =G60*F60 -> 5.85 | J60: 0.075 | K60: =G60 -> 78 | L60: =K60*J60 -> 5.85 | N60: 0 | O60: 0
B61: Energy - RPP - Tier 2 | D61: per kWh | F61: 0.088 | G61: =IF(AND($T$1=1, F19>=600), F19-600, IF(AND($T$1=1, AND(F19<600, F19>=0)), 0, IF(AND($T$1=2, F19>=1000), F19-1000, IF(AND($T$1=2, AND(F19<1000, F19>=0)), 0)))) -> 0 | H61: =G61*F61 -> 0 | J61: 0.088 | K61: =G61 -> 0 | L61: =K61*J61 -> 0 | N61: 0
B63: Total Bill on TOU (before Taxes) | H63: =SUM(H53:H59,H52) -> 9.658178152 | L63: =SUM(L53:L59,L52) -> 9.830551834 | N63: =L63-H63 -> 0.1723736816 | O63: =IF((H63)=0,"",(N63/H63)) -> 0.01784743239
B64: HST | F64: 0.13 | H64: =H63*F64 -> 1.25556316 | J64: 0.13 | L64: =L63*J64 -> 1.277971738 | N64: 0.02240857861 | O64: 0.01784743239
B65: Total Bill (including HST) | H65: =H63+H64 -> 10.91374131 | L65: =L63+L64 -> 11.10852357 | N65: 0.1947822602 | O65: 0.01784743239
B66: Ontario Clean Energy Benefit 1 | H66: =ROUND(-H65*0.1,2) -> -1.09 | L66: =ROUND(-L65*0.1,2) -> -1.11 | N66: -0.02 | O66: 0.01834862385
B67: Total Bill on TOU (including OCEB) | H67: =H65+H66 -> 9.823741312 | L67: =L65+L66 -> 9.998523572 | N67: 0.1747822602 | O67: 0.01779182235
B69: Total Bill on RPP (before Taxes) | H69: =SUM(H60:H61,H52,H53:H56) -> 8.962418152 | L69: =SUM(L60:L61,L52,L53:L56) -> 9.134791834 | N69: =L69-H69 -> 0.1723736816 | O69: =IF((H69)=0,"",(N69/H69)) -> 0.01923294346
B70: HST | F70: 0.13 | H70: =H69*F70 -> 1.16511436 | J70: 0.13 | L70: =L69*J70 -> 1.187522938 | N70: =L70-H70 -> 0.02240857861 | O70: =IF((H70)=0,"",(N70/H70)) -> 0.01923294346
B71: Total Bill (including HST) | H71: =H69+H70 -> 10.12753251 | L71: =L69+L70 -> 10.32231477 | N71: =L71-H71 -> 0.1947822602 | O71: =IF((H71)=0,"",(N71/H71)) -> 0.01923294346
B72: Ontario Clean Energy Benefit 1 | H72: =ROUND(-H71*0.1,2) -> -1.01 | L72: =ROUND(-L71*0.1,2) -> -1.03 | N72: =L72-H72 -> -0.02 | O72: =IF((H72)=0,"",(N72/H72)) -> 0.0198019802
B73: Total Bill on RPP (including OCEB) | H73: =SUM(H71:H72) -> 9.117532512 | L73: =SUM(L71:L72) -> 9.292314772 | N73: =L73-H73 -> 0.1747822602 | O73: =IF((H73)=0,"",(N73/H73)) -> 0.01916990808
B76: Loss Factor (%) | F76: 0.0405 | J76: 0.0373
A78: 1 Applicable to eligible customers only. Refer to the Ontario Clean Energy Benefit Act, 2010.
A80: Note that the "Charge $" columns provide breakdowns of the amounts that each bill component contributes to the total monthly bill at the referenced
A81: consumption level at existing and proposed rates.
A83: Applicants must provide bill impacts for residential at 800 kWh and GS<50kW at 2000 kWh. In addition, their filing must cover the range that is relevant
A84: to their service territory, class by class. A general guideline of consumption levels follows:
A86: Residential (kWh) - 100, 250, 500, 800, 1000, 1500, 2000
A87: GS<50kW (kWh) - 1000, 2000, 5000, 10000, 15000
A88: GS>50kW (kW) - 60, 100, 500, 1000
A89: Large User - range appropriate for utility
A90: Lighting Classes and USL - 150 kWh and 1 kW, range appropriate for utility.
B92: Note that cells with the highlighted color shown to the left indicate quantities that are loss adjusted.

Sheet App.2-YA_MIFRS Summary Impacts (hidden)
H1: File Number: | I1: =CASENUMBER -> 
H2: Exhibit:
H3: Tab:
H4: Schedule:
H5: Page:
H7: Date:
A9: Appendix 2-YA
A10: Summary of Impacts to Revenue Requirement
A11: from Transition to MIFRS
A15: Revenue Requirement Component | D15: 2014 | E15: 2014 | F15: Difference | G15: Reasons why the revenue requirement
D16: MIFRS | E16: CGAAP | G16: component is different under
G17: MIFRS versus CGAAP
A18: Closing NBV 2013 | F18: =+D18-E18 -> 0
A19: Closing NBV 2014 | F19: =+D19-E19 -> 0
A20: Average NBV | D20: =(D18+D19)/2 -> 0 | E20: =(E18+E19)/2 -> 0 | F20: =(F18+F19)/2 -> 0
A21: Working Capital | F21: =+D21-E21 -> 0
A22: Rate Base | D22: =SUM(D20:D21) -> 0 | E22: =SUM(E20:E21) -> 0 | F22: =SUM(F20:F21) -> 0
F23: =+D23-E23 -> 0
A24: Return on Rate Base | F24: 0
F25: 0
A26: OM&A | F26: 0
A27: Depreciation | F27: 0
A28: PILs or Income Taxes | F28: 0
F29: 0
A30: Less: Revenue Offsets | F30: 0
F31: 0
F32: 0
F33: 0
A34: Insert description of additional item(s) and new rows if needed. | F34: 0
A35: Total Base Revenue Requirement | D35: =SUM(D24:D34) -> 0 | E35: =SUM(E24:E34) -> 0 | F35: =SUM(F24:F34) -> 0
A38: For modified IFRS applications, the applicants must provide a summary of the dollar impacts of modified IFRS to each component of the revenue requirement (e.g. rate base, operating costs, etc.), including the overall impact on the proposed revenue requirement. Accordingly, the applicants must identify financial differences and resulting revenue requirement impacts arising from the adoption of modified IFRS accounting.

Sheet lists (hidden)
A1: DISTRIBUTED GENERATION [DGEN] | B1: Embedded Distributor | C1: =COUNTA(B1:B17) -> 4 | I1: Distribution Volumetric Rate | L1: Loss Factors | N1: Units | O1: Units1 | P1: Units2 | Z1: Account History | AA1: Account set up charge/change of occupancy charge (plus credit agency costs if applicable) | AB1: Total Loss Factor – Embedded Distributor – Hydro One Networks Inc. | AL1: Algoma Power Inc. | AM1: Algoma Power Inc. | AO1: DISTRIBUTED GENERATION [DGEN] | AP1: kW | AT1: Sub-Total: Delivery (Distribution and Retail Transmission)
A2: EMBEDDED DISTRIBUTOR | B2: General Service 3,000 to 4,999 kW | I2: Distribution Volumetric Rate - $/kW of contracted amount | L2: Total Loss Factor – Primary Metered Customer | N2: $ | O2: $/kWh | P2: $ | Z2: Account set up charge/change of occupancy charge | AA2: Administrative Billing Charge | AB2: Total Loss Factor – Primary Metered Customer | AL2: Atikokan Hydro Inc. | AM2: Atikokan Hydro Inc. | AO2: EMBEDDED DISTRIBUTOR | AP2: kW | AT2: Wholesale Market Service Rate | AW2: =AU2*AV2 -> 0 | AX2: =AU2 -> 0 | AY2: 0 | AZ2: =AX2*AY2 -> 0 | BB2: =AZ2-AW2 -> 0 | BC2: =BB2/AW2 -> 
A3: EMBEDDED DISTRIBUTOR | B3: General Service 1,000 to 4,999 kW | I3: Distribution Wheeling Service Rate | L3: Total Loss Factor – Primary Metered Customer < 5,000 kW | N3: $/kWh | O3: $/kW | P3: % | W3: MSC | Z3: Account set up charge/change of occupancy charge (plus credit agency costs if applicable – Residential) | AA3: Bell Canada Pole Rentals | AB3: Total Loss Factor – Primary Metered Customer < 5,000 kW | AL3: Attawapiskat Power Corp. | AM3: Attawapiskat Power Corp. | AO3: EMBEDDED DISTRIBUTOR | AP3: kW | AT3: Rural Rate Protection Charge | AW3: =AU3*AV3 -> 0 | AX3: 0 | AY3: 0 | AZ3: =AX3*AY3 -> 0 | BB3: =AZ3-AW3 -> 0 | BC3: =BB3/AW3 -> 
A4: FARMS - SINGLE PHASE ENERGY-BILLED [F1] | B4: General Service Equal To Or Greater Than 1,500 kW - Interval Metered | I4: General Service 1,500 to 4,999 kW customer | L4: Total Loss Factor – Primary Metered Customer > 5,000 kW | N4: $/kW | O4: $/kVA | W4: SM_Rate_Adder | Z4: Account set up charge/change of occupancy charge (plus credit agency costs if applicable) | AA4: Clearance Pole Attachment charge $/pole/year | AB4: Total Loss Factor – Primary Metered Customer > 5,000 kW | AL4: Bluewater Power Distribution Corporation | AM4: Bluewater Power Distribution Corporation | AO4: FARMS - SINGLE PHASE ENERGY-BILLED [F1] | AP4: kWh | AT4: Standard Supply Service – Administration Charge (if applicable) | AW4: =AU4*AV4 -> 0 | AX4: 0 | AY4: 0 | AZ4: =AX4*AY4 -> 0 | BB4: =AZ4-AW4 -> 0 | BC4: =BB4/AW4 -> 
A5: FARMS - THREE PHASE ENERGY-BILLED [F3] | I5: General Service 50 to 1,499 kW customer | L5: Total Loss Factor – Secondary Metered Customer | N5: $/kVA | W5: MSC_Rate_Rider_ | Z5: Arrears certificate | AA5: Collection of account charge – no disconnection | AB5: Total Loss Factor – Secondary Metered Customer | AL5: Brant County Power Inc. | AM5: Brant County Power Inc. | AO5: FARMS - THREE PHASE ENERGY-BILLED [F3] | AP5: kWh | AT5: Sub-Total: Regulatory | AW5: =SUM(AW2:AW4) -> 0 | AZ5: =SUM(AZ2:BA4) -> 0 | BB5: =AZ5-AW5 -> 0 | BC5: =BB5/AW5 -> 
A6: GENERAL SERVICE - COMMERCIAL | I6: General Service Large Use customer | L6: Total Loss Factor – Secondary Metered Customer < 5,000 kW | W6: VC | Z6: Arrears certificate (credit reference) | AA6: Collection of account charge – no disconnection – after regular hours | AB6: Total Loss Factor – Secondary Metered Customer < 5,000 kW | AL6: Brantford Power Inc. | AM6: Brantford Power Inc. | AO6: GENERAL SERVICE - COMMERCIAL | AP6: kW | AT6: Debt Retirement Charge (DRC) | AW6: =AU6*AV6 -> 0 | AX6: =AU6 -> 0 | AY6: =AV6 -> 0 | AZ6: =AX6*AY6 -> 0 | BB6: =AZ6-AW6 -> 0 | BC6: =BB6/AW6 -> 
A7: GENERAL SERVICE - INSTITUTIONAL | I7: Green Energy Act Plan Funding Adder - effective April 1, 2013 until March 31, 2014 | AL7: Burlington Hydro Inc. | AM7: Burlington Hydro Inc. | AO7: GENERAL SERVICE - INSTITUTIONAL | AP7: kW
A8: GENERAL SERVICE 1,000 TO 2,999 KW | I8: Green Energy Act Plan Funding Adder - effective until March 31, 2013 | L8: Total Loss Factor – Secondary Metered Customer > 5,000 kW | W8: VC_Rate_Rider_ | Z8: Charge to certify cheque | AA8: Collection of account charge – no disconnection - during regular business hours | AB8: Total Loss Factor – Secondary Metered Customer > 5,000 kW | AL8: Cambridge and North Dumfries Hydro Inc. | AM8: Cambridge and North Dumfries Hydro Inc. | AO8: GENERAL SERVICE 1,000 TO 2,999 KW | AP8: kW | AT8: Total Bill on RPP (before taxes) | BB8: =AZ8-AW8 -> 0
A9: GENERAL SERVICE 1,000 TO 4,999 KW - INTERVAL METERS | I9: Low Voltage Service Charge | L9: Distribution Loss Factor - Secondary Metered Customer < 5,000 kW | W9: VC_GA_Rate_Rider_kW_ | Z9: Collection of Account Charge – No Disconnection | AA9: Collection of account charge – no disconnection – during regular hours | AL9: Canadian Niagara Power Inc. | AM9: Canadian Niagara Power Inc. - Eastern Ontario Power | AO9: GENERAL SERVICE 1,000 TO 4,999 KW - INTERVAL METERS | AP9: kW | AT9: HST | AW9: =AV9*AW8 -> 0 | AY9: =AV9 -> 0 | AZ9: =AY9*AZ8 -> 0 | BB9: =AZ9-AW9 -> 0 | BC9: =BB9/AW9 -> 
A10: GENERAL SERVICE 1,000 TO 4,999 KW (CO-GENERATION) | I10: Low Voltage Service Rate | L10: Distribution Loss Factor - Secondary Metered Customer > 5,000 kW | W10: VC_LV_Rate | Z10: Credit Card Convenience Charge | AA10: Collection/Disconnection/Load Limiter/Reconnection – if in Community | AL10: Centre Wellington Hydro Ltd. | AM10: Canadian Niagara Power Inc. - Fort Erie | AO10: GENERAL SERVICE 1,000 TO 4,999 KW (CO-GENERATION) | AP10: kW | AT10: Total Bill (including HST) | AW10: =AW9+AW8 -> 0 | AZ10: =AZ9+AZ8 -> 0 | BB10: =AZ10-AW10 -> 0 | BC10: =BB10/AW10 -> 
A11: GENERAL SERVICE 1,000 TO 4,999 KW | I11: Low Voltage Volumetric Rate | L11: Distribution Loss Factor - Primary Metered Customer < 5,000 kW | W11: RTSR_Network | Z11: Credit check (plus credit agency costs) | AA11: Credit Card Convenience Charge | AL11: Chapleau Public Utilities Corporation | AM11: Canadian Niagara Power Inc. - Port Colborne Hydro Inc. | AO11: GENERAL SERVICE 1,000 TO 4,999 KW | AP11: kW | AT11: Ontario Clean Energy Benefit (OCEB) | AW11: =-0.1*AW10 -> 0 | AY11: =AV11 -> 0 | AZ11: =-0.1*AZ10 -> 0 | BB11: =AZ11-AW11 -> 0 | BC11: =BB11/AW11 -> 
A12: GENERAL SERVICE 1,500 TO 4,999 KW | I12: Mechanism (SSM) Recovery (2012) - effective until April 30, 2014 | L12: Distribution Loss Factor - Primary Metered Customer > 5,000 kW | W12: RTSR_Connection | Z12: Credit reference Letter | AA12: Disconnect/Reconnect at meter – after regular hours | AL12: Clinton Power Corporation | AM12: Centre Wellington Hydro Ltd. | AO12: GENERAL SERVICE 1,500 TO 4,999 KW | AP12: kW | AT12: Total Bill on RPP (including OCEB) | AW12: =AW10+AW11 -> 0 | AZ12: =AZ10+AZ11 -> 0 | BB12: =AZ12-AW12 -> 0 | BC12: =BB12/AW12 -> 
A13: GENERAL SERVICE 2,500 TO 4,999 KW | I13: Minimum Distribution Charge - per KW of maximum billing demand in the previous 11 months | AL13: COLLUS Power Corporation | AM13: Chapleau Public Utilities Corporation | AO13: GENERAL SERVICE 2,500 TO 4,999 KW | AP13: kW
A14: GENERAL SERVICE 3,000 TO 4,999 KW - INTERMEDIATE USE | I14: Monthly Distribution Wheeling Service Rate - Dedicated LV Line | L14: Total Loss Factor - Embedded Distributor | W14: RTSR_Network_Interval | Z14: Credit reference/credit check (plus credit agency costs – General Service) | AA14: Disconnect/Reconnect at meter – during regular hours | AL14: Cooperative Hydro Embrun Inc. | AM14: Clinton Power Corporation | AO14: GENERAL SERVICE 3,000 TO 4,999 KW - INTERMEDIATE USE | AP14: kW | AT14: Total Bill on TOU (before taxes) | BB14: =AZ14-AW14 -> 0
A15: GENERAL SERVICE 3,000 TO 4,999 KW - INTERVAL METERED | I15: Monthly Distribution Wheeling Service Rate - Hydro One Networks | L15: Total Loss Factor – Embedded Distributor – Hydro One Networks Inc. | W15: RTSR_Connection_Interval | Z15: Credit Reference/credit check (plus credit agency costs) | AA15: Disconnect/Reconnect at pole – after regular hours | AL15: E.L.K. Energy Inc. | AM15: COLLUS Power Corporation | AO15: GENERAL SERVICE 3,000 TO 4,999 KW - INTERVAL METERED | AP15: kW | AT15: HST | AW15: =AV15*AW14 -> 0 | AY15: =AV15 -> 0 | AZ15: =AY15*AZ14 -> 0 | BB15: =AZ15-AW15 -> 0 | BC15: =BB15/AW15 -> 
A16: GENERAL SERVICE 3,000 TO 4,999 KW - TIME OF USE | I16: Monthly Distribution Wheeling Service Rate - Shared LV Line | W16: RTSR_Network_Interval_GR1000kW | Z16: Dispute Test – Commercial self contained -- MC | AA16: Disconnect/Reconnect at pole – during regular hours | AL16: Enersource Hydro Mississauga Inc. | AM16: Cooperative Hydro Embrun Inc. | AO16: GENERAL SERVICE 3,000 TO 4,999 KW - TIME OF USE | AP16: kW | AT16: Total Bill (including HST) | AW16: =AW15+AW14 -> 0 | AZ16: =AZ15+AZ14 -> 0 | BB16: =AZ16-AW16 -> 0 | BC16: =BB16/AW16 -> 
A17: GENERAL SERVICE 3,000 TO 4,999 KW | I17: Monthly Distribution Wheeling Service Rate - Waterloo North Hydro | W17: RTSR_Connection_Interval_GR1000kW | Z17: Dispute Test – Commercial TT -- MC | AA17: Disconnect/Reconnect Charge – At Meter – After Hours | AL17: Entegrus Powerlines Inc. | AM17: E.L.K. Energy Inc. | AO17: GENERAL SERVICE 3,000 TO 4,999 KW | AP17: kW | AT17: Ontario Clean Energy Benefit (OCEB) | AW17: =-0.1*AW16 -> 0 | AY17: =AV17 -> 0 | AZ17: =-0.1*AZ16 -> 0 | BB17: =AZ17-AW17 -> 0 | BC17: =BB17/AW17 -> 
A18: GENERAL SERVICE 50 TO 1,000 KW - INTERVAL METERS | I18: Rate Rider for Application of Tax Change - effective until April 30, 2014 | W18: RTSR_Line_Connection | Z18: Dispute Test – Residential | AA18: Disconnect/Reconnect Charge – At Meter – During Regular Hours | AL18: ENWIN Utilities Ltd. | AM18: Enersource Hydro Mississauga Inc. | AO18: GENERAL SERVICE 50 TO 1,000 KW - INTERVAL METERS | AP18: kW | AT18: Total Bill on TOU (including OCEB) | AW18: =AW16+AW17 -> 0 | AZ18: =AZ16+AZ17 -> 0 | BB18: =AZ18-AW18 -> 0 | BC18: =BB18/AW18 -> 
A19: GENERAL SERVICE 50 TO 1,000 KW - NON INTERVAL METERS | I19: Rate Rider for Application of Tax Change - effective until December 31, 2013 | W19: RTSR_Transformer_Connection | Z19: Duplicate Invoices for previous billing | AA19: Disconnect/Reconnect Charge – At Pole – After Hours | AL19: Erie Thames Powerlines Corporation | AM19: Entegrus Powerlines Inc. - Chatham-Kent | AO19: GENERAL SERVICE 50 TO 1,000 KW - NON INTERVAL METERS | AP19: kW
A20: GENERAL SERVICE 50 TO 1,000 KW | I20: Rate Rider for Application of Tax Change - Hydro One Networks - effective until April 30, 2014 | W20: WMSR | Z20: Easement Letter | AA20: Disconnect/Reconnect Charge – At Pole – During Regular Hours | AL20: Espanola Regional Hydro Distribution Corporation | AM20: Entegrus Powerlines Inc. - Dutton | AO20: GENERAL SERVICE 50 TO 1,000 KW | AP20: kW
A21: GENERAL SERVICE 50 TO 1,499 KW - INTERVAL METERED | I21: Rate Rider for Application of Tax Change - Waterloo North Hydro - effective until April 30, 2014 | W21: RRRP | Z21: Income Tax Letter | AA21: Disconnect/Reconnect Charges for non payment of account - At Meter After Hours | AL21: Essex Powerlines Corporation | AM21: Entegrus Powerlines Inc. - Newbury | AO21: GENERAL SERVICE 50 TO 1,499 KW - INTERVAL METERED | AP21: kW
A22: GENERAL SERVICE 50 TO 1,499 KW | I22: Rate Rider for Application of Tax Change (2013) - effective until April 30, 2014 | W22: SPC | Z22: Interval Meter Interrogation | AA22: Disconnect/Reconnect charges for non payment of account – at meter after regular hours | AL22: Festival Hydro Inc. | AM22: Entegrus Powerlines Inc. - Strathroy, Mounth Brydges & Parkhill | AO22: GENERAL SERVICE 50 TO 1,499 KW | AP22: kW
A23: GENERAL SERVICE 50 TO 2,499 KW | I23: Rate Rider for Application of Tax Change (per connection) - effective until April 30, 2014 | W23: DRC | Z23: Interval meter request change | AA23: Disconnect/Reconnect Charges for non payment of account - At Meter During Regular Hours | AL23: Fort Albany Power Corporation | AM23: ENWIN Utilities Ltd. | AO23: GENERAL SERVICE 50 TO 2,499 KW | AP23: kW
A24: GENERAL SERVICE 50 TO 2,999 KW - INTERVAL METERED | I24: Rate Rider for Application of Tax Change Dedicated LV Line - effective until April 30, 2014 | W24: SSS | Z24: Legal letter | AA24: Disconnect/Reconnect charges for non payment of account – at meter during regular hours | AL24: Fort Frances Power Corporation | AM24: Erie Thames Powerlines Corporation | AO24: GENERAL SERVICE 50 TO 2,999 KW - INTERVAL METERED | AP24: kW
A25: GENERAL SERVICE 50 TO 2,999 KW - TIME OF USE | I25: Rate Rider for Application of Tax Change Shared LV Line - effective until April 30, 2014 | W25: SFLF | Z25: Legal letter charge | AA25: Disconnect/Reconnect charges for non payment of account – at pole after regular hours | AL25: Greater Sudbury Hydro Inc. | AM25: Espanola Regional Hydro Distribution Corporation | AO25: GENERAL SERVICE 50 TO 2,999 KW - TIME OF USE | AP25: kW
A26: GENERAL SERVICE 50 TO 2,999 KW | B26: January | I26: Rate Rider for Deferral/Variance Account (2012) - effective unitl April 30, 2016 | W26: DLF_Secondary_LT_5000kW | Z26: Meter dispute charge plus Measurement Canada fees (if meter found correct) | AA26: Disconnect/Reconnect charges for non payment of account – at pole during regular hours | AL26: Grimsby Power Inc. | AM26: Essex Powerlines Corporation | AO26: GENERAL SERVICE 50 TO 2,999 KW | AP26: kW
A27: GENERAL SERVICE 50 TO 4,999 KW - INTERVAL METERED | B27: February | I27: Rate Rider for Deferral/Variance Account Disposition (2012) - effective until April 30, 2016 | W27: DLF_Secondary_GT_5000kW | Z27: Notification charge | AA27: Disconnect/Reconnection for >300 volts - after regular hours | AL27: Guelph Hydro Electric Systems Inc. | AM27: Festival Hydro Inc. | AO27: GENERAL SERVICE 50 TO 4,999 KW - INTERVAL METERED | AP27: kW
A28: GENERAL SERVICE 50 TO 4,999 KW - TIME OF USE | B28: March | I28: Rate Rider for Deferral/Variance Account Disposition (2013) - effective until April 30, 2014 | W28: DLF_Primary_LT_5000kW | Z28: Pulling Post Dated Cheques | AA28: Disconnect/Reconnection for >300 volts - during regular hours | AL28: Haldimand County Hydro Inc. | AM28: Festival Hydro Inc. - Hensall | AO28: GENERAL SERVICE 50 TO 4,999 KW - TIME OF USE | AP28: kW
A29: GENERAL SERVICE 50 TO 4,999 KW (COGENERATION) | B29: April | I29: Rate Rider for Deferral/Variance Account Dispositon (2012) - effective until April 30, 2016 | W29: DLF_Primary_GT_5000kW | Z29: Request for other billing information | AA29: Disposal of Concrete Poles | AL29: Halton Hills Hydro Inc. | AM29: Fort Albany Power Corporation | AO29: GENERAL SERVICE 50 TO 4,999 KW (COGENERATION) | AP29: kW
A30: GENERAL SERVICE 50 TO 4,999 KW (FORMERLY TIME OF USE) | B30: May | I30: Rate Rider for Disposition of Capital Gain - effective until April 30, 2014 | W30: TLF_Secondary_LT_5000kW | Z30: Returned cheque (plus bank charges) | AA30: Dispute Test – Commercial TT -- MC | AL30: Hearst Power Distribution Company Limited | AM30: Fort Frances Power Corporation | AO30: GENERAL SERVICE 50 TO 4,999 KW (FORMERLY TIME OF USE) | AP30: kW
A31: GENERAL SERVICE 50 TO 4,999 KW | B31: June | I31: Rate Rider for Disposition of Deferral/Variance Accounts - effective until August 31, 2013 | W31: TLF_Secondary_GT_5000kW | Z31: Returned cheque charge (plus bank charges) | AA31: Install/Remove load control device – after regular hours | AL31: Horizon Utilities Corporation | AM31: Greater Sudbury Hydro Inc. | AO31: GENERAL SERVICE 50 TO 4,999 KW | AP31: kW
A32: GENERAL SERVICE 50 TO 499 KW | B32: July | I32: Rate Rider for Disposition of Deferral/Variance Accounts (2010) - effective until April 30, 2014 | W32: TLF_Primary_LT_5000kW | Z32: Special Billing Service (aggregation) | AA32: Install/Remove load control device – during regular hours | AL32: Hydro 2000 Inc. | AM32: Grimsby Power Inc. | AO32: GENERAL SERVICE 50 TO 499 KW | AP32: kW
A33: GENERAL SERVICE 50 TO 699 KW | B33: August | I33: Rate Rider for Disposition of Deferral/Variance Accounts (2011) - effective until April 30, 2014 | W33: TLF_Primary_GT_5000kW | Z33: Special Billing Service (sub-metering charge per meter) | AA33: Interval Meter Interrogation | AL33: Hydro Hawkesbury Inc. | AM33: Guelph Hydro Electric Systems Inc. | AO33: GENERAL SERVICE 50 TO 699 KW | AP33: kW
A34: GENERAL SERVICE 50 TO 999 KW - INTERVAL METERED | B34: September | I34: Rate Rider for Disposition of Deferral/Variance Accounts (2011) - effective until April 30, 2015 | W34: TLF_EmbeddedDistributor | Z34: Special meter reads | AA34: Interval Meter Load Management Tool Charge $/month | AL34: Hydro One Brampton Networks Inc. | AM34: Haldimand County Hydro Inc. | AO34: GENERAL SERVICE 50 TO 999 KW - INTERVAL METERED | AP34: kW
A35: GENERAL SERVICE 50 TO 999 KW | B35: October | I35: Rate Rider for Disposition of Deferral/Variance Accounts (2011) - effective until April 30, 2016 | Z35: Statement of Account | AA35: Interval meter request change | AL35: Hydro One Networks Inc. | AM35: Halton Hills Hydro Inc. | AO35: GENERAL SERVICE 50 TO 999 KW | AP35: kW
A36: GENERAL SERVICE 500 TO 4,999 KW | B36: November | I36: Rate Rider for Disposition of Deferral/Variance Accounts (2012) - effective until April 30, 2014 | Z36: Unprocessed Payment Charge (plus bank charges) | AA36: Late Payment – per annum | AL36: Hydro Ottawa Limited | AM36: Hearst Power Distribution Company Limited | AO36: GENERAL SERVICE 500 TO 4,999 KW | AP36: kW
A37: GENERAL SERVICE 700 TO 4,999 KW | B37: December | I37: Rate Rider for Disposition of Deferral/Variance Accounts (2012) - effective until April 30, 2015 | AA37: Late Payment – per month | AL37: Innisfil Hydro Distribution Systems Limited | AM37: Horizon Utilities Corporation | AO37: GENERAL SERVICE 700 TO 4,999 KW | AP37: kW
A38: GENERAL SERVICE DEMAND BILLED (50 KW AND ABOVE) [GSD] | I38: Rate Rider for Disposition of Deferral/Variance Accounts (2012) - effective until April 30, 2016 | AA38: Layout fees | AL38: Kashechewan Power Corporation | AM38: Hydro 2000 Inc. | AO38: GENERAL SERVICE DEMAND BILLED (50 KW AND ABOVE) [GSD] | AP38: kW
A39: GENERAL SERVICE ENERGY BILLED (LESS THAN 50 KW) [GSE-METERED] | I39: Rate Rider for Disposition of Deferral/Variance Accounts (2012) - effective until December 31, 2013 | AA39: Meter dispute charge plus Measurement Canada fees (if meter found correct) | AL39: Kenora Hydro Electric Corporation Ltd. | AM39: Hydro Hawkesbury Inc. | AO39: GENERAL SERVICE ENERGY BILLED (LESS THAN 50 KW) [GSE-METERED] | AP39: kWh
A40: GENERAL SERVICE ENERGY BILLED (LESS THAN TO 50 KW) [GSE-UNMETERED] | I40: Rate Rider for Disposition of Deferral/Variance Accounts (2012) - effective until December 31, 2013 Applicable in the service area excluding the former service area of Clinton Power | AA40: Meter Interrogation Charge | AL40: Kingston Hydro Corporation | AM40: Hydro One Brampton Networks Inc. | AO40: GENERAL SERVICE ENERGY BILLED (LESS THAN TO 50 KW) [GSE-UNMETERED] | AP40: kWh
A41: GENERAL SERVICE EQUAL TO OR GREATER THAN 1,500 KW - INTERVAL METERED | I41: Rate Rider for Disposition of Deferral/Variance Accounts (2012) - effective until December 31, 2013 Applicable in the service area excluding the former service areas of Clinton Power and West Perth PowerRate Rider for Disposition of Deferral/Variance Accounts (2012) - effective until December 31, 2013 Applicable in the service area excluding the former service areas of Clinton Power and West Perth PowerRate Rider for Disposition of Deferral/Variance Accounts (2012) - effective until December 31, 2013 Applicable in the service area excluding the former service areas of Clinton Power and West Perth PowerRate Rider for Disposition of Deferral/Variance Accounts (2012) - effective until December 31, 2013 Applicable in the service area excluding the former service areas of Clinton Power and West Perth Power | AA41: Missed Service Appointment | AL41: Kitchener-Wilmot Hydro Inc. | AM41: Hydro One Networks Inc. | AO41: GENERAL SERVICE EQUAL TO OR GREATER THAN 1,500 KW - INTERVAL METERED | AP41: kW
A42: GENERAL SERVICE EQUAL TO OR GREATER THAN 1,500 KW | I42: Rate Rider for Disposition of Deferral/Variance Accounts (2012) - effective until December 31, 2013 Applicable only in the former service area of West Perth Power | AA42: Norfolk Pole Rentals – Billed | AL42: Lakefront Utilities Inc. | AM42: Hydro Ottawa Limited | AO42: GENERAL SERVICE EQUAL TO OR GREATER THAN 1,500 KW | AP42: kW
A43: GENERAL SERVICE GREATER THAN 1,000 KW | I43: Rate Rider for Disposition of Deferral/Variance Accounts (2012) - effective until December 31, 2015 | AA43: Optional Interval/TOU Meter charge $/month | AL43: Lakeland Power Distribution Ltd. | AM43: Innisfil Hydro Distribution Systems Limited | AO43: GENERAL SERVICE GREATER THAN 1,000 KW | AP43: kW
A44: GENERAL SERVICE INTERMEDIATE 1,000 TO 4,999 KW | I44: Rate Rider for Disposition of Deferral/Variance Accounts (2012) - effective until December 31, 2016 Applicable only in the former service area of Clinton Power | AA44: Overtime Locate | AL44: London Hydro Inc. | AM44: Kashechewan Power Corporation | AO44: GENERAL SERVICE INTERMEDIATE 1,000 TO 4,999 KW | AP44: kW
A45: GENERAL SERVICE INTERMEDIATE RATE CLASS 1,000 TO 4,999 KW (FORMERLY GENERAL SERVICE > 50 KW CUSTOMERS) | I45: Rate Rider for Disposition of Deferral/Variance Accounts (2012) - effective until February 28, 2013 | AA45: Owner Requested Disconnection/Reconnection – after regular hours | AL45: Midland Power Utility Corporation | AM45: Kenora Hydro Electric Corporation Ltd. | AO45: GENERAL SERVICE INTERMEDIATE RATE CLASS 1,000 TO 4,999 KW (FORMERLY GENERAL SERVICE > 50 KW CUSTOMERS) | AP45: kW
A46: GENERAL SERVICE INTERMEDIATE RATE CLASS 1,000 TO 4,999 KW (FORMERLY LARGE USE CUSTOMERS) | I46: Rate Rider for Disposition of Deferral/Variance Accounts (2012) - effective until June 30, 2014 | AA46: Owner Requested Disconnection/Reconnection – during regular hours | AL46: Milton Hydro Distribution inc. | AM46: Kingston Hydro Corporation | AO46: GENERAL SERVICE INTERMEDIATE RATE CLASS 1,000 TO 4,999 KW (FORMERLY LARGE USE CUSTOMERS) | AP46: kW
A47: GENERAL SERVICE LESS THAN 50 KW - SINGLE PHASE ENERGY-BILLED [G1] | I47: Rate Rider for Disposition of Deferral/Variance Accounts (2012) - effective until March 31, 2013 | AA47: Returned cheque (plus bank charges) | AL47: Newmarket - Tay Power Distribution Ltd. | AM47: Kitchener-Wilmot Hydro Inc. | AO47: GENERAL SERVICE LESS THAN 50 KW - SINGLE PHASE ENERGY-BILLED [G1] | AP47: kWh
A48: GENERAL SERVICE LESS THAN 50 KW - THREE PHASE ENERGY-BILLED [G3] | I48: Rate Rider for Disposition of Deferral/Variance Accounts (2012) - effective until October 31, 2013 | AA48: Rural system expansion / line connection fee | AL48: Niagara Peninsula Energy Inc. | AM48: Lakefront Utilities Inc. | AO48: GENERAL SERVICE LESS THAN 50 KW - THREE PHASE ENERGY-BILLED [G3] | AP48: kWh
A49: GENERAL SERVICE LESS THAN 50 KW - TRANSMISSION CLASS ENERGY-BILLED [T] | I49: Rate Rider for Disposition of Deferral/Variance Accounts (2013) - effective until April 30, 2014 | AA49: Same Day Open Trench | AL49: Niagara-on-the-Lake Hydro Inc. | AM49: Lakeland Power Distribution Ltd. | AO49: GENERAL SERVICE LESS THAN 50 KW - TRANSMISSION CLASS ENERGY-BILLED [T] | AP49: kWh
A50: GENERAL SERVICE LESS THAN 50 KW - URBAN ENERGY-BILLED [UG] | I50: Rate Rider for Disposition of Deferral/Variance Accounts (2013) - effective until April 30, 2015 | AA50: Scheduled Day Open Trench | AL50: Norfolk Power Distribution Inc. | AM50: London Hydro Inc. | AO50: GENERAL SERVICE LESS THAN 50 KW - URBAN ENERGY-BILLED [UG] | AP50: kWh
A51: GENERAL SERVICE LESS THAN 50 KW | I51: Rate Rider for Disposition of Deferral/Variance Accounts (2013) - effective until April 30, 2017 | AA51: Service call – after regular hours | AL51: North Bay Hydro Distribution Limited | AM51: Midland Power Utility Corporation | AO51: GENERAL SERVICE LESS THAN 50 KW | AP51: kWh
A52: GENERAL SERVICE SINGLE PHASE - G1 | I52: Rate Rider for Disposition of Deferral/Variance Accounts (2013) - effective until December 31, 2013 | AA52: Service call – customer owned equipment | AL52: Northern Ontario Wires Inc. | AM52: Milton Hydro Distribution inc. | AO52: GENERAL SERVICE SINGLE PHASE - G1 | AP52: kW
A53: GENERAL SERVICE THREE PHASE - G3 | I53: Rate Rider for Disposition of Deferred PILs Variance Account 1562 - effective until April 30, 2014 | AA53: Service Call – Customer-owned Equipment – After Regular Hours | AL53: Oakville Hydro Electricity Distribution Inc. | AM53: Newmarket - Tay Power Distribution Ltd. - Newmarket | AO53: GENERAL SERVICE THREE PHASE - G3 | AP53: kW
A54: INTERMEDIATE USERS | I54: Rate Rider for Disposition of Deferred PILs Variance Account 1562 - effective until December 31, 2013 | AA54: Service Call – Customer-owned Equipment – During Regular Hours | AL54: Orangeville Hydro Limited | AM54: Newmarket - Tay Power Distribution Ltd. - Tay | AO54: INTERMEDIATE USERS | AP54: kW
A55: INTERMEDIATE WITH SELF GENERATION | I55: Rate Rider for Disposition of Deferred PILs Variance Account 1562 - effective until March 31, 2016 | AA55: Service Charge for onsite interrogation of interval meter due to customer phone line failure - required weekly until line repaired $ 6 | AL55: Orillia Power Distribution Corporation | AM55: Niagara Peninsula Energy Inc. - Niagara Falls | AO55: INTERMEDIATE WITH SELF GENERATION | AP55: kW
A56: LARGE USE - 3TS | I56: Rate Rider for Disposition of Deferred PILs Variance Account 1562 - effective until November 30, 2013 | AA56: Service Layout - Commercial | AL56: Oshawa PUC Networks Inc. | AM56: Niagara Peninsula Energy Inc. - Peninsula West | AO56: LARGE USE - 3TS | AP56: kW
A57: LARGE USE - FORD ANNEX | I57: Rate Rider for Disposition of Deferred PILs Variance Account 1562 - effective until October 31, 2013 | AA57: Service Layout - ResidentiaI | AL57: Ottawa River Power Corporation | AM57: Niagara-on-the-Lake Hydro Inc. | AO57: LARGE USE - FORD ANNEX | AP57: kW
A58: LARGE USE - REGULAR | I58: Rate Rider for Disposition of Deferred PILs Variance Account 1562 (2012) - effective until April 30, 2015 | AA58: Special Billing Service (sub-metering charge per meter) | AL58: Parry Sound Power Corporation | AM58: Norfolk Power Distribution Inc. | AO58: LARGE USE - REGULAR | AP58: kW
A59: LARGE USE > 5000 KW | I59: Rate Rider for Disposition of Deferred PILs Variance Account 1562 (per connection) (2012) - effective until April 30, 2015 | AA59: Special meter reads | AL59: Peterborough Distribution Incorporated | AM59: North Bay Hydro Distribution Limited | AO59: LARGE USE > 5000 KW | AP59: kW
A60: LARGE USE | I60: Rate Rider for Disposition of Global Adjustment Sub-Account - effective until November 30, 2013 Applicable only for Non-RPP CustomersRate Rider for Disposition of Global Adjustment Sub-Account - effective until November 30, 2013 Applicable only for Non-RPP CustomersRate Rider for Disposition of Global Adjustment Sub-Account - effective until November 30, 2013 Applicable only for Non-RPP Customers | AA60: Specific Charge for Access to the Power Poles - $/pole/year | AL60: PowerStream Inc. | AM60: Northern Ontario Wires Inc. | AO60: LARGE USE | AP60: kW
A61: microFIT | I61: Rate Rider for Disposition of Global Adjustment Sub-Account - effective until November 30, 2013 Applicable only for Non-RPP Customers | AA61: Specific Charge for Bell Canada Access to the Power Poles – per pole/year | AL61: PUC Distribution Inc. | AM61: Oakville Hydro Electricity Distribution Inc. | AO61: microFIT | AP61: $
A62: RESIDENTIAL - HENSALL | I62: Rate Rider for Disposition of Global Adjustment Sub-Account (2010) - effective until April 30, 2014 Applicable only for Non-RPP Customers | AA62: Switching for company maintenance – Charge based on Time and Materials | AL62: Renfrew Hydro Inc. | AM62: Orangeville Hydro Limited | AO62: RESIDENTIAL - HENSALL | AP62: kWh
A63: RESIDENTIAL - HIGH DENSITY [R1] | I63: Rate Rider for Disposition of Global Adjustment Sub-Account (2011) - effective until April 30, 2014 Applicable only for Non-RPP Customers | AA63: Temporary Service – Install & remove – overhead – no transformer | AL63: Rideau St. Lawrence Distribution Inc. | AM63: Orillia Power Distribution Corporation | AO63: RESIDENTIAL - HIGH DENSITY [R1] | AP63: kWh
A64: RESIDENTIAL - LOW DENSITY [R2] | I64: Rate Rider for Disposition of Global Adjustment Sub-Account (2011) - effective until April 30, 2015 Applicable only for Non-RPP Customers | AA64: Temporary Service – Install & remove – overhead – with transformer | AL64: Sioux Lookout Hydro Inc. | AM64: Oshawa PUC Networks Inc. | AO64: RESIDENTIAL - LOW DENSITY [R2] | AP64: kWh
A65: RESIDENTIAL - MEDIUM DENSITY [R1] | I65: Rate Rider for Disposition of Global Adjustment Sub-Account (2011) - effective until April 30, 2016 Applicable only for Non-RPP Customers | AA65: Temporary Service – Install & remove – underground – no transformer | AL65: St. Thomas Energy Inc. | AM65: Ottawa River Power Corporation | AO65: RESIDENTIAL - MEDIUM DENSITY [R1] | AP65: kWh
A66: RESIDENTIAL - NORMAL DENSITY [R2] | I66: Rate Rider for Disposition of Global Adjustment Sub-Account (2012) - effective until April 30, 2014 Applicable only for Non-RPP Customers | AA66: Temporary service install & remove – overhead – no transformer | AL66: Thunder Bay Hydro Electricity Distribution Inc. | AM66: Parry Sound Power Corporation | AO66: RESIDENTIAL - NORMAL DENSITY [R2] | AP66: kWh
A67: RESIDENTIAL - TIME OF USE | I67: Rate Rider for Disposition of Global Adjustment Sub-Account (2012) - effective until April 30, 2015 Applicable only for Non-RPP Customers | AA67: Temporary Service Install & Remove – Overhead – With Transformer | AL67: Tillsonburg Hydro Inc. | AM67: Peterborough Distribution Incorporated | AO67: RESIDENTIAL - TIME OF USE | AP67: kWh
A68: RESIDENTIAL - URBAN [UR] | I68: Rate Rider for Disposition of Global Adjustment Sub-Account (2012) - effective until April 30, 2015 Applicatble only for Non-RPP Customers | AA68: Temporary Service Install & Remove – Underground – No Transformer | AL68: Toronto Hydro-Electric System Limited | AM68: PowerStream Inc. - Barrie | AO68: RESIDENTIAL - URBAN [UR] | AP68: kWh
A69: RESIDENTIAL REGULAR | I69: Rate Rider for Disposition of Global Adjustment Sub-Account (2012) - effective until April 30, 2016 Applicable only for Non-RPP Customers | AA69: Temporary service installation and removal – overhead – no transformer | AL69: Veridian Connections Inc. | AM69: PowerStream Inc. - South | AO69: RESIDENTIAL REGULAR | AP69: kWh
A70: RESIDENTIAL | I70: Rate Rider for Disposition of Global Adjustment Sub-Account (2012) - effective until December 31, 2013 Applicable only for Non-RPP Customers in the former service area of Clinton Power | AA70: Temporary service installation and removal – overhead – with transformer | AL70: Wasaga Distribution Inc. | AM70: PUC Distribution Inc. | AO70: RESIDENTIAL | AP70: kWh
A71: RESIDENTIAL SUBURBAN SEASONAL | I71: Rate Rider for Disposition of Global Adjustment Sub-Account (2012) - effective until December 31, 2013 Applicable only for Non-RPP Customers in the former service area of West Perth Power | AA71: Temporary service installation and removal – underground – no transformer | AL71: Waterloo North Hydro Inc. | AM71: Renfrew Hydro Inc. | AO71: RESIDENTIAL SUBURBAN SEASONAL | AP71: kWh
A72: RESIDENTIAL SUBURBAN | I72: Rate Rider for Disposition of Global Adjustment Sub-Account (2012) - effective until December 31, 2013 Applicable only for Non-RPP Customers in the service area excluding the former service areas of Clinton Power and West Perth Power | AL72: Welland Hydro-Electric System Corp. | AM72: Rideau St. Lawrence Distribution Inc. | AO72: RESIDENTIAL SUBURBAN | AP72: kWh
A73: RESIDENTIAL SUBURBAN YEAR ROUND | I73: Rate Rider for Disposition of Global Adjustment Sub-Account (2012) - effective until February 28, 2013 Applicable only for Non-RPP Customers | AL73: Wellington North Power Inc. | AM73: Sioux Lookout Hydro Inc. | AO73: RESIDENTIAL SUBURBAN YEAR ROUND | AP73: kWh
A74: RESIDENTIAL URBAN | I74: Rate Rider for Disposition of Global Adjustment Sub-Account (2012) - effective until June 30, 2014 Applicable only for Non-RPP Customers | AL74: West Coast Huron Energy Inc. | AM74: St. Thomas Energy Inc. | AO74: RESIDENTIAL URBAN | AP74: kWh
A75: RESIDENTIAL URBAN YEAR-ROUND | I75: Rate Rider for Disposition of Global Adjustment Sub-Account (2012) - effective until March 31, 2013 Applicable only for Non-RPP Customers | AL75: West Perth Power Inc. | AM75: Thunder Bay Hydro Electricity Distribution Inc. | AO75: RESIDENTIAL URBAN YEAR-ROUND | AP75: kWh
A76: SEASONAL RESIDENTIAL - HIGH DENSITY [R3] | I76: Rate Rider for Disposition of Global Adjustment Sub-Account (2012) - effective until October 31, 2013 Applicable only for Non-RPP Customers | AL76: Westario Power Inc. | AM76: Tillsonburg Hydro Inc. | AO76: SEASONAL RESIDENTIAL - HIGH DENSITY [R3] | AP76: kWh
A77: SEASONAL RESIDENTIAL - NORMAL DENSITY [R4] | I77: Rate Rider for Disposition of Global Adjustment Sub-Account (2013) - effective until April 30, 2014 Applicable only for Non-RPP Customers | AL77: Whitby Hydro Electric Corporation | AM77: Toronto Hydro-Electric System Limited | AO77: SEASONAL RESIDENTIAL - NORMAL DENSITY [R4] | AP77: kWh
